Workbook

Sheet FNTYSY (hidden)

Sheet QNRSMQ (hidden)

Sheet 数据基表
B1: 晋城煤业集团煤化工板块生产调度情况日报表（一）
A2: 公司名称： | C2: 晋煤金石集团 | L2: 单位：吨 | AA2: 日期： | AC2: 2019-05-04
B3: 总氨产量 | G3: 合成氨产量 | L3: 尿素产量 | Q3: 甲醇产量 | V3: 其他肥料产量 | AA3: 精细化工产品产量
B4: 当日 | C4: 月累 计划 | D4: 月累 实际 | E4: 年累 计划 | F4: 年累 实际 | G4: 当日 | H4: 月累 计划 | I4: 月累 实际 | J4: 年累 计划 | K4: 年累 实际 | L4: 当日 | M4: 月累 计划 | N4: 月累 实际 | O4: 年累 计划 | P4: 年累 实际 | Q4: 当日 | R4: 月累 计划 | S4: 月累 实际 | T4: 年累 计划 | U4: 年累 实际 | V4: 当日 | W4: 月累 计划 | X4: 月累 实际 | Y4: 年累 计划 | Z4: 年累 实际 | AA4: 当日 | AB4: 月累 计划 | AC4: 月累 实际 | AD4: 年累 计划 | AE4: 年累 实际
A5: 藁城园区 | B5: 744 | C5: 31050 | D5: 16267 | E5: 377552 | F5: 73768 | G5: 529 | H5: 17496 | I5: 10165 | J5: 191290 | K5: 46020 | Q5: 129 | R5: 10004 | S5: 3326 | T5: 156565 | U5: 17040
A6: 金万泰 | B6: 0 | C6: 0 | D6: 0 | E6: 0 | F6: 0 | G6: 0 | H6: 0 | I6: 0 | J6: 0 | K6: 0 | L6: 0 | M6: 0 | N6: 0 | O6: 0 | P6: 0 | Q6: 0 | R6: 0 | S6: 0 | T6: 0 | U6: 0 | V6: 0 | W6: 0 | X6: 0 | Y6: 0 | Z6: 0
A7: 湖北华强 | B7: 1454 | C7: 43900 | D7: 29657 | E7: 500691 | F7: 165072 | G7: 1194 | H7: 36100 | I7: 24426 | J7: 412369 | K7: 135553 | L7: 507 | M7: 30600 | N7: 16152 | O7: 139108 | P7: 76955 | Q7: 171 | R7: 7900 | S7: 3521 | T7: 72100 | U7: 20003 | V7: 1834 | W7: 55000 | X7: 47886 | Y7: 561400 | Z7: 207210 | AA7: 1344 | AB7: 38000 | AC7: 24906 | AD7: 412000 | AE7: 129404
A8: 金华润 | B8: 1772 | C8: 53940 | D8: 32995.28 | E8: 580000 | F8: 190994.61 | G8: 1383.92 | H8: 41540 | I8: 25745 | J8: 468000 | K8: 148655.83 | L8: 1105.8 | M8: 37200 | N8: 21016 | O8: 490000 | P8: 138515.389 | Q8: 388.18 | R8: 12400 | S8: 7250 | T8: 111800 | U8: 42338.78
A9: 安乡金牛 | B9: 565 | C9: 16000 | D9: 10811 | E9: 180000 | F9: 56437 | G9: 421 | H9: 12000 | I9: 8154 | J9: 144000 | K9: 42936 | Q9: 49 | R9: 900 | S9: 949 | T9: 10800 | U9: 5002 | V9: 220 | W9: 8000 | X9: 4090 | Y9: 96000 | Z9: 23386
A10: 合计 | B10: 4535 | C10: 144890 | D10: 89730.28 | E10: 1638243 | F10: 486271.61 | G10: 3527.92 | H10: 107136 | I10: 68490 | J10: 1215659 | K10: 373164.83 | L10: 1612.8 | M10: 67800 | N10: 37168 | O10: 629108 | P10: 215470.389 | Q10: 737.18 | R10: 31204 | S10: 15046 | T10: 351265 | U10: 84383.78 | V10: 2054 | W10: 63000 | X10: 51976 | Y10: 657400 | Z10: 230596 | AA10: 1344 | AB10: 38000 | AC10: 24906 | AD10: 412000 | AE10: 129404
A11: 集团公司煤化工板块生产调度情况日报表（二）
A12: 公司名称： | C12: 晋煤金石集团 | O12: 单位：吨、元/吨、千克/吨、千万时/吨 | AE12: 日期： | AH12: 1900年1月0日
B13: 尿素销量 | C13: 华强复三聚氰胺 | E13: 9500 | F13: 元/吨 | G13: 甲醇销量 | L13: 液氨销量 | P13: 其它肥料销量 | S13: 精细化工销量 | V13: 吨氨耗原料煤 | Y13: 吨氨耗电 | AB13: 吨尿素耗蒸汽 | AE13: 吨尿素耗电 | AH13: 原料煤情况（含燃料煤）
B14: 当日 | C14: 月累计 | D14: 年累计 | E14: 当日 价格 | F14: 库存量 | G14: 当日 | H14: 月累计 | I14: 年累计 | J14: 当日 价格 | K14: 库存量 | L14: 当日 | M14: 月累计 | N14: 年累计 | O14: 当日 价格 | P14: 当日 | Q14: 月累计 | R14: 年累计 | S14: 当日 | T14: 月累计 | U14: 年累计 | V14: 当日 | W14: 月累计 | X14: 年累计 | Y14: 当日 | Z14: 月累计 | AA14: 年累计 | AB14: 当日 | AC14: 月累计 | AD14: 年累计 | AE14: 当日 | AF14: 月累计 | AG14: 年累计 | AH14: 块煤 库存 | AI14: 块煤 日消耗 | AJ14: 末煤 库存 | AK14: 末煤 日消耗 | AL14: 燃料煤库存 | AM14: 燃料煤消耗
A15: 藁城园区 | G15: 62 | H15: 6502 | I15: 15798 | J15: 2035 | K15: 1312 | L15: 443 | M15: 9892 | N15: 44687 | O15: 3053 | V15: 1682 | W15: 1443 | X15: 1446 | Y15: 647 | Z15: 588 | AA15: 684 | AH15: 14516 | AI15: 1706 | AL15: 10811 | AM15: 1132
A16: 金万泰 | B16: 0 | C16: 0 | D16: 0 | F16: 0 | G16: 0 | H16: 0 | I16: 0 | L16: 0 | M16: 0 | N16: 0
A17: 湖北华强 | B17: 0 | C17: 0 | D17: 15633 | E17: 2129 | F17: 7 | G17: 324 | H17: 3029 | I17: 17598 | J17: 2300 | K17: 639 | L17: 694 | M17: 10619 | N17: 67606 | O17: 3600 | P17: 1700 | Q17: 33062 | R17: 203261 | S17: 820 | T17: 15468 | U17: 90825 | V17: 1086 | W17: 1040 | X17: 1080 | Y17: 1304 | Z17: 1330 | AA17: 1299 | AB17: 766 | AC17: 766 | AD17: 980 | AE17: 175 | AF17: 175 | AG17: 216 | AH17: 12300 | AI17: 1598 | AJ17: 未用 | AK17: 未用 | AL17: 31000 | AM17: 820
A18: 金华润 | B18: 838.457 | C18: 19463.765 | D18: 134035.654 | E18: 2120 | F18: 5614.135 | G18: 0 | H18: 690.6 | I18: 1378.78 | J18: 1800 | K18: 854 | L18: 650.86 | M18: 13131.66 | N18: 66574.88 | O18: 3570 | S18: 206.14 | T18: 4687.48 | U18: 27324.14 | V18: 1080 | W18: 1124 | X18: 1091 | Y18: 1108 | Z18: 1108 | AA18: 1087 | AB18: 956 | AC18: 959 | AD18: 976 | AE18: 150 | AF18: 152 | AG18: 142 | AH18: 33101 | AI18: 1914.07 | AM18: 67.5
A19: 安乡金牛 | G19: 66 | H19: 988 | I19: 4974 | J19: 2100 | K19: 28 | L19: 459 | M19: 8151 | N19: 43216 | O19: 3700 | V19: 1299 | W19: 1348 | X19: 1409 | Y19: 1269 | Z19: 1278 | AA19: 1353 | AH19: 5386 | AI19: 734 | AJ19: 5550 | AK19: 0
A20: 合计 | B20: 838.457 | C20: 19463.765 | D20: 149668.654 | E20: 2120 | F20: 5621.135 | G20: 452 | H20: 11209.6 | I20: 39748.78 | J20: 2234.446903 | K20: 2833 | L20: 2246.86 | M20: 41793.66 | N20: 222083.88 | O20: 3503.889517 | P20: 1700 | Q20: 33062 | R20: 203261 | S20: 1026.14 | T20: 20155.48 | U20: 118149.14 | V20: 1207.970673 | W20: 1181.055979 | X20: 1178.027112 | Y20: 1115.269019 | Z20: 1107.58636 | AA20: 1128.703035 | AB20: 896.2715774 | AC20: 875.1284976 | AD20: 977.4285954 | AE20: 157.859003 | AF20: 161.9950495 | AG20: 168.4290143 | AH20: 65303 | AI20: 5952.07 | AJ20: 5550 | AK20: 0 | AL20: 41811 | AM20: 2019.5
B21: 晋城煤业集团煤化工板块生产调度情况日报表（一）
A22: 公司名称： | C22: 山西晋丰煤化工有限责任公司
B23: 总氨产量 | G23: 合成氨产量 | L23: 尿素产量 | Q23: 甲醇产量 | V23: 其他肥料产量 | AA23: 精细化工产品产量
B24: 当日 | C24: 月累 计划 | D24: 月累 实际 | E24: 年累 计划 | F24: 年累 实际 | G24: 当日 | H24: 月累 计划 | I24: 月累 实际 | J24: 年累 计划 | K24: 年累 实际 | L24: 当日 | M24: 月累 计划 | N24: 月累 实际 | O24: 年累 计划 | P24: 年累 实际 | Q24: 当日 | R24: 月累 计划 | S24: 月累 实际 | T24: 年累 计划 | U24: 年累 实际 | V24: 当日 | W24: 月累 计划 | X24: 月累 实际 | Y24: 年累 计划 | Z24: 年累 实际 | AA24: 当日 | AB24: 月累 计划 | AC24: 月累 实际 | AD24: 年累 计划 | AE24: 年累 实际
A25: 晋丰 | B25: 1513 | C25: 0 | D25: 35532 | E25: 0 | F25: 126977 | G25: 1303 | H25: 0 | I25: 30640 | J25: 0 | K25: 111007 | L25: 1937 | M25: 0 | N25: 38318 | O25: 0 | P25: 157986.91 | Q25: 147 | R25: 0 | S25: 4258 | T25: 0 | U25: 14701
A26: 高平 | B26: 1513 | C26: 0 | D26: 31340 | E26: 0 | F26: 60928 | G26: 1303 | H26: 0 | I26: 26748 | J26: 0 | K26: 52572 | L26: 1937 | M26: 0 | N26: 36412 | O26: 0 | P26: 73308 | Q26: 147 | R26: 0 | S26: 4063 | T26: 0 | U26: 7385
A27: 闻喜 | B27: 0 | C27: 0 | D27: 4192 | E27: 0 | F27: 66049 | G27: 0 | H27: 0 | I27: 3892 | J27: 0 | K27: 58435 | L27: 0 | M27: 0 | N27: 1906 | O27: 0 | P27: 84678.91 | Q27: 0 | R27: 0 | S27: 195 | T27: 0 | U27: 7316
A28: 集团公司煤化工板块生产调度情况日报表（二）
A29: 公司名称：
B30: 尿素销量 | G30: 甲醇销量 | L30: 液氨销量 | P30: 其它肥料销量 | S30: 精细化工销量 | V30: 吨氨耗原料煤 | Y30: 吨氨耗电 | AB30: 吨尿素耗蒸汽 | AE30: 吨尿素耗电 | AH30: 原料煤情况（不含燃料煤） | AL30: 燃料煤
B31: 当日 | C31: 月累计 | D31: 年累计 | E31: 当日 价格 | F31: 库存量 | G31: 当日 | H31: 月累计 | I31: 年累计 | J31: 当日 价格 | K31: 库存量 | L31: 当日 | M31: 月累计 | N31: 年累计 | O31: 当日 价格 | P31: 当日 | Q31: 月累计 | R31: 年累计 | S31: 当日 | T31: 月累计 | U31: 年累计 | V31: 当日 | W31: 月累计 | X31: 年累计 | Y31: 当日 | Z31: 月累计 | AA31: 年累计 | AB31: 当日 | AC31: 月累计 | AD31: 年累计 | AE31: 当日 | AF31: 月累计 | AG31: 年累计 | AH31: 块煤 库存 | AI31: 块煤 日消耗 | AJ31: 末煤 库存 | AK31: 末煤 日消耗 | AL31: 库存 | AM31: 日消耗
A32: 晋丰 | B32: 3023 | C32: 47146 | D32: 157655 | E32: 2008.594112 | F32: 2944 | G32: 439 | H32: 4082 | I32: 14519 | J32: 2120 | K32: 1335 | L32: 557 | M32: 8166 | N32: 17824 | O32: 3250 | V32: 1168 | W32: 1127.544974 | X32: 1150.165447 | Y32: 1191 | Z32: 1236.528425 | AA32: 1375.763083 | AB32: 990 | AC32: 997.5574926 | AD32: 983.4563807 | AE32: 169 | AF32: 167.7330805 | AG32: 165.1416749 | AH32: 17420 | AI32: 1551 | AJ32: 0 | AK32: 0 | AL32: 2844 | AM32: 483
A33: 高平 | B33: 3014 | C33: 44150 | D33: 71455 | E33: 2008.560053 | F33: 2807 | G33: 425 | H33: 3826 | I33: 7222 | J33: 2120 | K33: 1305 | L33: 557 | M33: 5377 | N33: 9214 | O33: 3250 | V33: 1168 | W33: 1122 | X33: 1133 | Y33: 1191 | Z33: 1174 | AA33: 1240 | AB33: 990 | AC33: 999 | AD33: 999 | AE33: 169 | AF33: 169 | AG33: 178 | AH33: 11899 | AI33: 1551 | AL33: 1717 | AM33: 483
A34: 闻喜 | B34: 9 | C34: 2996 | D34: 86200 | E34: 2020 | F34: 137 | G34: 14 | H34: 256 | I34: 7297 | J34: 2120 | K34: 30 | L34: 0 | M34: 2789 | N34: 8610 | V34: 0 | W34: 1169 | X34: 1166 | Y34: 0 | Z34: 1704 | AA34: 1501 | AB34: 0 | AC34: 970 | AD34: 970 | AE34: 0 | AF34: 143.53 | AG34: 154.01 | AH34: 5521 | AI34: 0 | AJ34: 0 | AK34: 0 | AL34: 1127 | AM34: 0
A35: 高平大颗粒 | B35: 1724 | C35: 20252 | D35: 41553 | E35: 2000 | F35: 511
A36: 高平大颗粒多肽 | B36: 0 | C36: 0 | D36: 0
A37: 高平中颗粒 | B37: 1290 | C37: 23898 | D37: 29902 | E37: 2020 | F37: 2296
A38: 高平中颗粒多肽 | B38: 0 | C38: 0 | D38: 0
A39: 高平小颗粒 | B39: 0 | C39: 0 | D39: 0
B40: 安全生产及突发事件情况
A41: 公司名称：河南晋开化工投资控股集团有限责任公司 | L41: 单位：吨 | AA41: 日期： | AC41: 2019-05-05
B42: 总氨产量 | G42: 合成氨产量 | L42: 尿素产量 | Q42: 甲醇产量 | V42: 其他肥料产量 | AA42: 精细化工产量
B43: 当日 | C43: 月累 计划 | D43: 月累 实际 | E43: 年累 计划 | F43: 年累 实际 | G43: 当日 | H43: 月累 计划 | I43: 月累 实际 | J43: 年累 计划 | K43: 年累 实际 | L43: 当日 | M43: 月累 计划 | N43: 月累 实际 | O43: 年累 计划 | P43: 年累 实际 | Q43: 当日 | R43: 月累 计划 | S43: 月累 实际 | T43: 年累 计划 | U43: 年累 实际 | V43: 当日 | W43: 月累 计划 | X43: 月累 实际 | Y43: 年累 计划 | Z43: 年累 实际 | AA43: 当日 | AB43: 月累 计划 | AC43: 月累 实际 | AD43: 年累 计划 | AE43: 年累 实际
B44: 4019 | D44: 61456 | F44: 419996 | G44: 4019 | I44: 61456 | K44: 419996 | L44: 2645 | N44: 28664 | P44: 276476 | V44: 360 | X44: 20975 | Z44: 86851 | AC44: 0 | AE44: 0 | AF44: 142 | AG44: 140 | AH44: 4466 | AI44: 0 | AJ44: 40204 | AK44: 5638 | AL44: 10517 | AM44: 2892
A45: 一分 | AH45: 2638 | AJ45: 5384 | AK45: 0 | AL45: 0 | AM45: 0
A46: 二分 | B46: 4019 | G46: 4019 | L46: 2645 | V46: 322 | AF46: 142 | AJ46: 34398 | AK46: 5638 | AL46: 7481 | AM46: 2892
A47: 延化 | AF47: 0 | AH47: 0 | AI47: 0 | AJ47: 0 | AK47: 0 | AL47: 2505 | AM47: 0
A48: 复合肥公司 | V48: 38
A49: 郸城 | B49: 0 | G49: 0 | L49: 0 | Q49: 0
A50: 武陟 | B50: 0 | G50: 0 | L50: 0 | Q50: 0 | AF50: 0 | AH50: 1828 | AI50: 0 | AJ50: 422 | AK50: 0 | AL50: 531 | AM50: 0
A51: 集团公司煤化工板块生产调度情况日报表（二）
A52: 公司名称：河南晋开化工投资控股集团有限责任公司 | O52: 单位：吨、元/吨、千克/吨、千万时/吨 | AE52: 日期： | AH52: 1900年1月0日
B53: 尿素销量 | G53: 甲醇销量 | L53: 液氨销量 | P53: 其它肥料销量 | S53: 平均售价 | V53: 吨氨耗入炉煤 | Y53: 吨氨耗电 | AB53: 吨尿素耗蒸汽 | AE53: 吨尿素耗电 | AH53: 原料煤情况（不含燃料煤） | AL53: 燃料煤
B54: 当日 | C54: 月累计 | D54: 年累计 | E54: 当日 价格 | F54: 库存量 | G54: 当日 | H54: 月累计 | I54: 年累计 | J54: 当日 价格 | K54: 库存量 | L54: 当日 | M54: 月累计 | N54: 年累计 | O54: 当日 价格 | P54: 当日 | Q54: 月累计 | R54: 年累计 | S54: 复合肥 | T54: 硝铵 | U54: 多孔 | V54: 当日 | W54: 月累计 | X54: 年累计 | Y54: 当日 | Z54: 月累计 | AA54: 年累计 | AB54: 当日 | AC54: 月累计 | AD54: 年累计 | AE54: 当日 | AF54: 月累计 | AG54: 年累计 | AH54: 块煤 库存 | AI54: 块煤 日消耗 | AJ54: 末煤 库存 | AK54: 末煤 日消耗 | AL54: 末煤 库存 | AM54: 末煤 日消耗
B55: 1680 | C55: 28146 | D55: 245058 | E55: 2045 | F55: 32549 | H55: 0 | I55: 0 | K55: 0 | L55: 1453.2 | M55: 23391.44 | N55: 137763.44 | O55: 3438.55 | P55: 1027.2 | Q55: 12556.36 | R55: 79136.36 | S55: 1866.679303 | T55: 1842.58 | U55: 1867.74 | V55: 1361 | W55: 1367 | X55: 1365 | Y55: 183 | Z55: 191 | AA55: 185 | AB55: 1033 | AC55: 1018 | AD55: 1031 | AE55: 156 | AF55: 144 | AG55: 140 | AH55: 4466 | AI55: 0 | AJ55: 42761 | AK55: 5722 | AL55: 8933 | AM55: 2656
A56: 一分（精甲醇） | AH56: 2638 | AJ56: 5384 | AK56: 0 | AL56: 0 | AM56: 0
A57: 二分 | B57: 1680 | E57: 2045 | F57: 32549 | L57: 1453.2 | O57: 3438.55 | P57: 0 | V57: 1361 | W57: 1367 | Y57: 183 | Z57: 191 | AB57: 1033 | AC57: 1018 | AE57: 156 | AF57: 144 | AJ57: 36955 | AK57: 5722 | AL57: 5897 | AM57: 2656
A58: 延化（粗甲醇） | F58: 0 | H58: 0 | L58: 0 | O58: 0 | V58: 0 | W58: 0 | Y58: 0 | Z58: 0 | AB58: 0 | AC58: 0 | AE58: 0 | AF58: 0 | AH58: 0 | AI58: 0 | AJ58: 0 | AK58: 0 | AL58: 2505 | AM58: 0
A59: 复合肥公司 | P59: 1027.2
A60: 郸城（精甲醇） | B60: 0 | E60: 0 | F60: 0 | G60: 0
A61: 武陟（粗甲醇） | B61: 0 | E61: 0 | F61: 0 | H61: 0 | L61: 0 | O61: 0 | V61: 0 | W61: 0 | Y61: 0 | Z61: 0 | AB61: 0 | AC61: 0 | AE61: 0 | AF61: 0 | AH61: 1828 | AI61: 0 | AJ61: 422 | AK61: 0 | AL61: 531 | AM61: 0
B62: 晋城煤业集团煤化工板块生产调度情况日报表（一）
A63: 公司名称： | C63: 恒盛公司 | L63: 单位：吨 | X63: 日期：2019年5月3
B64: 总氨产量 | G64: 合成氨产量 | L64: 尿素产量 | Q64: 甲醇产量 | V64: 其他肥料产量
B65: 当日 | C65: 月累 计划 | D65: 月累 实际 | E65: 年累 计划 | F65: 年累 实际 | G65: 当日 | H65: 月累 计划 | I65: 月累 实际 | J65: 年累 计划 | K65: 年累 实际 | L65: 当日 | M65: 月累 计划 | N65: 月累 实际 | O65: 年累 计划 | P65: 年累 实际 | Q65: 当日 | R65: 月累 计划 | S65: 月累 实际 | T65: 年累 计划 | U65: 年累 实际 | V65: 当日 | W65: 月累 计划 | X65: 月累 实际 | Y65: 年累 计划 | Z65: 年累 实际 | AA65: 当日 | AB65: 月累 计划 | AC65: 月累 实际 | AD65: 年累 计划 | AE65: 年累 实际
B66: 1143 | D66: 20574 | F66: 122567 | G66: 888 | I66: 16160 | K66: 98468 | L66: 0 | N66: 4604 | O66: 0 | P66: 108041 | Q66: 241 | S66: 4164 | T66: 0 | U66: 22877 | V66: 0 | X66: 0 | Z66: 0
A67: 本部 | B67: 1143 | G67: 888 | L67: 0 | P67: 0 | Q67: 241 | S67: 0 | V67: 0
A68: 恒鑫 | B68: 0 | G68: 0 | Q68: 0 | V68: 0
A69: 集团公司煤化工板块生产调度情况日报表（二）
A70: 公司名称： | O70: 单位：吨、元/吨、千克/吨、千万时/吨 | AE70: 2019.5.4
B71: 尿素销量 | G71: 甲醇销量 | L71: 液氨销量 | P71: 其它肥料销量 | S71: 精细化工销量 | V71: 吨氨耗原料煤 | Y71: 吨氨耗电 | AB71: 吨尿素耗蒸汽 | AH71: 原料煤情况
B72: 当日 | C72: 月累计 | D72: 年累计 | E72: 当日 价格 | F72: 库存量 | G72: 当日 | H72: 月累计 | I72: 年累计 | J72: 当日 价格 | K72: 库存量 | L72: 当日 | M72: 月累计 | N72: 年累计 | O72: 当日 价格 | P72: 当日 | Q72: 月累计 | R72: 年累计 | S72: 当日 | T72: 月累计 | U72: 年累计 | V72: 当日 | W72: 月累计 | X72: 年累计 | Y72: 当日 | Z72: 月累计 | AA72: 年累计 | AB72: 当日 | AC72: 月累计 | AD72: 年累计 | AE72: 当日 | AF72: 月累计 | AG72: 年累计 | AH72: 块煤 库存 | AI72: 块煤 日消耗 | AJ72: 末煤 库存 | AK72: 末煤 日消耗 | AL72: 燃料煤库存 | AM72: 燃料煤日消耗
B73: 0 | C73: 4835 | D73: 164168 | E73: 0 | F73: 0 | G73: 106 | H73: 2412 | I73: 18625 | J73: 2350 | K73: 1538 | L73: 932 | M73: 13745 | N73: 36560 | O73: 3530 | P73: 0 | Q73: 0 | R73: 0 | V73: 1112 | W73: 1112 | X73: 1109 | Y73: 1228 | Z73: 1228 | AA73: 1240 | AB73: 0 | AC73: 0 | AD73: 1097 | AE73: 0 | AF73: 0 | AG73: 140 | AH73: 7325 | AI73: 1206 | AJ73: 123 | AK73: 0 | AL73: 5919 | AM73: 127
A75: 公司名称： | D75: 联盟公司
B76: 总氨产量 | G76: 合成氨产量 | L76: 尿素产量 | Q76: 甲醇产量 | V76: 其他肥料产量 | AA76: 精细化工产品产量
B77: 当日 | C77: 月累 计划 | D77: 月累 实际 | E77: 年累 计划 | F77: 年累 实际 | G77: 当日 | H77: 月累 计划 | I77: 月累 实际 | J77: 年累 计划 | K77: 年累 实际 | L77: 当日 | M77: 月累 计划 | N77: 月累 实际 | O77: 年累 计划 | P77: 年累 实际 | Q77: 当日 | R77: 月累 计划 | S77: 月累 实际 | T77: 年累 计划 | U77: 年累 实际 | V77: 当日 | W77: 月累 计划 | X77: 月累 实际 | Y77: 年累 计划 | Z77: 年累 实际 | AA77: 当日 | AB77: 月累 计划 | AC77: 月累 实际 | AD77: 年累 计划 | AE77: 年累 实际
A78: 一厂 | B78: 2124.4651 | D78: 48547.8629 | F78: 270409.5898 | G78: 1769.4445 | I78: 39297.711 | K78: 215898.1603 | L78: 1751.9 | N78: 39846.3 | P78: 226932.85 | Q78: 322.746 | S78: 8409.229 | U78: 49555.845
A79: 二厂 | B79: 2072 | D79: 44193 | F79: 250818 | G79: 1817 | I79: 38209 | K79: 206584 | L79: 2441 | N79: 51139 | P79: 274278 | Q79: 231 | S79: 5440 | U79: 40213 | AA79: 125 | AC79: 2613 | AE79: 13196
A80: 合计 | B80: 4196.4651 | D80: 92740.8629 | F80: 521227.5898 | G80: 3586.4445 | I80: 77506.711 | K80: 422482.1603 | L80: 4192.9 | N80: 90985.3 | P80: 501210.85 | Q80: 553.746 | S80: 13849.229 | U80: 89768.845 | AA80: 125 | AC80: 2613 | AE80: 13196
A81: 集团公司煤化工板块生产调度情况日报表（二）
A82: 公司名称： | O82: 单位：吨、元/吨、千克/吨、千万时/吨 | AE82: 日期： | AH82: 1900年1月0日
B83: 尿素销量 | G83: 甲醇销量 | L83: 液氨销量 | P83: 其它肥料销量 | S83: 精细化工销量 | V83: 吨氨耗原料煤 | Y83: 吨氨耗电 | AB83: 吨尿素耗蒸汽 | AE83: 吨尿素耗电 | AH83: 原料煤情况（不含燃料煤） | AL83: 燃料末煤
B84: 当日 | C84: 月累计 | D84: 年累计 | E84: 当日 价格 | F84: 库存量 | G84: 当日 | H84: 月累计 | I84: 年累计 | J84: 当日 价格 | K84: 库存量 | L84: 当日 | M84: 月累计 | N84: 年累计 | O84: 当日 价格 | P84: 当日 | Q84: 月累计 | R84: 年累计 | S84: 当日 | T84: 月累计 | U84: 年累计 | V84: 当日 | W84: 月累计 | X84: 年累计 | Y84: 当日 | Z84: 月累计 | AA84: 年累计 | AB84: 当日 | AC84: 月累计 | AD84: 年累计 | AE84: 当日 | AF84: 月累计 | AG84: 年累计 | AH84: 块煤 库存 | AI84: 块煤 日消耗 | AJ84: 末煤 库存 | AK84: 末煤 日消耗 | AL84: 末煤 库存 | AM84: 末煤 日消耗
A85: 一厂 | B85: 1655 | C85: 41607.65 | D85: 225008.73 | F85: 0 | G85: 1901-07-04T03:21:36 | H85: 8349.34 | I85: 48211.76 | K85: 1620 | L85: 727.5 | M85: 13407.91 | N85: 65606.36 | V85: 1278.4395 | W85: 1243.4121 | X85: 1171.8132 | Y85: 1277.121898 | Z85: 1256.673601 | AA85: 1220.241559 | AB85: 933.2724 | AC85: 914.1376 | AD85: 942.3581 | AE85: 163.1029 | AF85: 160.0901 | AG85: 155.5392 | AH85: 39044 | AI85: 2716 | AL85: 10359.9 | AM85: 496
A86: 二厂 | B86: 2459 | C86: 121902 | D86: 265203 | E86: 2133 | F86: 0 | G86: 265 | H86: 6135 | I86: 41744 | J86: 2441 | K86: 620 | L86: 379 | M86: 7696 | N86: 42319 | O86: 3554 | S86: 124 | T86: 2132 | U86: 11025 | V86: 1313 | W86: 1311 | X86: 1254 | Y86: 400.9303242 | Z86: 395.3005587 | AA86: 378.4352184 | AB86: 893 | AC86: 903 | AD86: 921 | AE86: 43 | AF86: 43 | AG86: 46 | AJ86: 15203 | AK86: 2896 | AL86: 15698 | AM86: 1856
A87: 合计 | B87: 4114 | C87: 163509.65 | D87: 490211.73 | E87: 2133 | F87: 0 | G87: 816.14 | H87: 14484.34 | I87: 89955.76 | J87: 2441 | K87: 2240 | L87: 1106.5 | M87: 21103.91 | N87: 107925.36 | O87: 3554 | S87: 124 | T87: 2132 | U87: 11025 | V87: 1295.71975 | W87: 1277.20605 | X87: 1212.9066 | Y87: 839.0261112 | Z87: 825.9870798 | AA87: 799.3383889 | AB87: 913.1362 | AC87: 908.5688 | AD87: 931.67905 | AE87: 103.05145 | AF87: 101.54505 | AG87: 100.7696 | AH87: 39044 | AI87: 2716 | AJ87: 15203 | AK87: 2896 | AL87: 26057.9 | AM87: 2352
B88: 晋城煤业集团煤化工板块生产调度情况日报表（一）
A89: 公司名称： | C89: 山东晋煤明水化工集团有限公司 | L89: 单位：吨 | AA89: 日期：
B90: 总氨产量 | G90: 合成氨产量 | L90: 尿素产量 | Q90: 甲醇产量 | V90: 其他肥料产量 | AA90: 精细化工产品产量
B91: 当日 | C91: 月累 计划 | D91: 月累 实际 | E91: 年累 计划 | F91: 年累 实际 | G91: 当日 | H91: 月累 计划 | I91: 月累 实际 | J91: 年累 计划 | K91: 年累 实际 | L91: 当日 | M91: 月累 计划 | N91: 月累 实际 | O91: 年累 计划 | P91: 年累 实际 | Q91: 当日 | R91: 月累 计划 | S91: 月累 实际 | T91: 年累 计划 | U91: 年累 实际 | V91: 当日 | W91: 月累 计划 | X91: 月累 实际 | Y91: 年累 计划 | Z91: 年累 实际 | AA91: 当日 | AB91: 月累 计划 | AC91: 月累 实际 | AD91: 年累 计划 | AE91: 年累 实际
A92: 合计 | B92: 5316.192943 | D92: 79333.09161 | F92: 553508.7328 | G92: 3072.43 | I92: 45560.13 | K92: 310166.305 | L92: 4228.51 | N92: 61266.95 | P92: 428745.21 | Q92: 1997 | S92: 29732.7 | U92: 219326.582 | V92: 0 | X92: 0 | Z92: 0 | AA92: 0 | AC92: 0 | AE92: 0
B93: 尿素销量 | G93: 甲醇销量 | L93: 液氨销量 | P93: 其它肥料销量 | S93: 精细化工销量 | V93: 吨氨耗原料煤 | Y93: 吨氨耗电 | AB93: 吨尿素耗蒸汽 | AE93: 吨尿素耗电 | AH93: 原料煤情况（不含燃料煤）
B94: 当日 | C94: 月累计 | D94: 年累计 | E94: 当日 价格 | F94: 库存量 | G94: 当日 | H94: 月累计 | I94: 年累计 | J94: 当日 价格 | K94: 库存量 | L94: 当日 | M94: 月累计 | N94: 年累计 | O94: 当日 价格 | P94: 当日 | Q94: 月累计 | R94: 年累计 | S94: 当日 | T94: 月累计 | U94: 年累计 | V94: 当日 | W94: 月累计 | X94: 年累计 | Y94: 当日 | Z94: 月累计 | AA94: 年累计 | AB94: 当日 | AC94: 月累计 | AD94: 年累计 | AE94: 当日 | AF94: 月累计 | AG94: 年累计 | AH94: 块煤 库存 | AI94: 块煤 日消耗 | AJ94: 末煤 库存 | AK94: 末煤 日消耗
A95: 合计 | B95: 4116 | C95: 61884.2 | D95: 426340.4 | E95: 2077.05758 | F95: 3187 | G95: 1635.73 | H95: 23095.84 | I95: 178455.52 | J95: 2220.592427 | K95: 5525 | L95: 629.04 | M95: 9855.74 | N95: 61675.54 | O95: 3454.001335 | Q95: 0 | R95: 0 | S95: 0 | T95: 0 | U95: 0 | V95: 1288.396334 | W95: 1283.652381 | X95: 1290.327201 | Y95: 354.6519136 | Z95: 363.085675 | AA95: 362.6626193 | AB95: 1054.641881 | AC95: 1044.388901 | AD95: 1060.177569 | AE95: 67.89578362 | AF95: 69.92105075 | AG95: 71.81340046 | AH95: 12482 | AI95: 1048.34 | AJ95: 23304.15 | AK95: 2706.1
A96: 报表填报人 | I96: 手机 | S96: 电话 | V96: 83550636
A98: 单位 | B98: 总氨产量 | G98: 合成氨产量 | L98: 尿素产量 | Q98: 甲醇产量 | V98: 其他肥料产量 | AA98: 精细化工产品产量
B99: 当日 | C99: 月累 计划 | D99: 月累 实际 | E99: 年累 计划 | F99: 年累 实际 | G99: 当日 | H99: 月累 计划 | I99: 月累 实际 | J99: 年累 计划 | K99: 年累 实际 | L99: 当日 | M99: 月累 计划 | N99: 月累 实际 | O99: 年累 计划 | P99: 年累 实际 | Q99: 当日 | R99: 月累 计划 | S99: 月累 实际 | T99: 年累 计划 | U99: 年累 实际 | V99: 当日 | W99: 月累 计划 | X99: 月累 实际 | Y99: 年累 计划 | Z99: 年累 实际 | AA99: 当日 | AB99: 月累 计划 | AC99: 月累 实际 | AD99: 年累 计划 | AE99: 年累 实际
A100: 明泉科技 | B100: 2192.762943 | D100: 32554.73161 | F100: 227505.7478 | Q100: 1949.6 | S100: 28583.6 | U100: 204386.822
A101: 晋煤明化 | B101: 989 | D101: 15082.08 | F101: 114781.31 | G101: 938 | I101: 13863.85 | K101: 98944.63 | L101: 1279 | N101: 19138.32 | P101: 139953.86 | Q101: 47.4 | S101: 1149.1 | U101: 14939.76
A102: 化肥三厂
A103: 汉枫明化
A104: 明升达 | B104: 2134.43 | D104: 31696.28 | F104: 211221.675 | G104: 2134.43 | I104: 31696.28 | K104: 211221.675 | L104: 2949.51 | N104: 42128.63 | P104: 288791.35
A105: 文登
A106: 郓城
A107: 滕州
A108: 合计 | B108: 5316.192943 | D108: 79333.09161 | F108: 553508.7328 | G108: 3072.43 | I108: 45560.13 | K108: 310166.305 | L108: 4228.51 | N108: 61266.95 | P108: 428745.21 | Q108: 1997 | S108: 29732.7 | U108: 219326.582 | V108: 0 | X108: 0 | Z108: 0 | AA108: 0 | AC108: 0 | AE108: 0
A109: 单位 | B109: 尿素销量 | G109: 甲醇销量 | L109: 液氨销量 | P109: 其它肥料销量 | S109: 精细化工销量 | V109: 吨氨耗原料煤 | Y109: 吨氨耗电 | AB109: 吨尿素耗蒸汽 | AE109: 吨尿素耗电 | AH109: 原料煤情况（不含燃料煤）
B110: 当日 | C110: 月累计 | D110: 年累计 | E110: 当日 价格 | F110: 库存量 | G110: 当日 | H110: 月累计 | I110: 年累计 | J110: 当日 价格 | K110: 库存量 | L110: 当日 | M110: 月累计 | N110: 年累计 | O110: 当日 价格 | P110: 当日 | Q110: 月累计 | R110: 年累计 | S110: 当日 | T110: 月累计 | U110: 年累计 | V110: 当日 | W110: 月累计 | X110: 年累计 | Y110: 当日 | Z110: 月累计 | AA110: 年累计 | AB110: 当日 | AC110: 月累计 | AD110: 年累计 | AE110: 当日 | AF110: 月累计 | AG110: 年累计 | AH110: 块煤 库存 | AI110: 块煤 日消耗 | AJ110: 末煤 库存 | AK110: 末煤 日消耗
A111: 明泉科技 | G111: 1635.73 | H111: 23095.84 | I111: 178455.52 | J111: 2220.592427 | K111: 5525 | V111: 1234.105132 | W111: 1246.872513 | X111: 1255.163028 | Y111: 395.7564144 | Z111: 394.68917 | AA111: 387.269715 | AJ111: 23304.15 | AK111: 2706.1
A112: 晋煤明化 | B112: 1228 | C112: 18786.22 | D112: 136817.03 | E112: 2103.062704 | F112: 1098 | L112: 83.9 | M112: 2527.62 | N112: 14260.28 | O112: 3480 | V112: 1060 | W112: 1059.68302 | X112: 1101.651226 | Y112: 1002 | Z112: 1009.464817 | AA112: 954.3391751 | AB112: 1010 | AC112: 1010.024642 | AD112: 1009.140117 | AE112: 162 | AF112: 160.6958981 | AG112: 160.9584149 | AH112: 12482 | AI112: 1048.34
A113: 化肥三厂
A114: 明升达 | B114: 2888 | C114: 43097.98 | D114: 289523.37 | E114: 2066 | F114: 2089 | L114: 545.14 | M114: 7328.12 | N114: 47415.26 | O114: 3450 | V114: 1450 | W114: 1428 | X114: 1430.731955 | Y114: 12.47171376 | Z114: 23.05885738 | AA114: 14.63173701 | AB114: 1074 | AC114: 1060 | AD114: 1084.911304 | AE114: 27.08924533 | AF114: 28.68358169 | AG114: 28.61200656
A115: 文登
A116: 郓城
A117: 滕州
A118: 合计 | B118: 4116 | C118: 61884.2 | D118: 426340.4 | E118: 2077.05758 | F118: 3187 | G118: 1635.73 | H118: 23095.84 | I118: 178455.52 | J118: 2220.592427 | K118: 5525 | L118: 629.04 | M118: 9855.74 | N118: 61675.54 | O118: 3454.001335 | Q118: 0 | R118: 0 | S118: 0 | T118: 0 | U118: 0 | V118: 1288.396334 | W118: 1283.652381 | X118: 1290.327201 | Y118: 354.6519136 | Z118: 363.085675 | AA118: 362.6626193 | AB118: 1054.641881 | AC118: 1044.388901 | AD118: 1060.177569 | AE118: 67.89578362 | AF118: 69.92105075 | AG118: 71.81340046 | AH118: 12482 | AI118: 1048.34 | AJ118: 23304.15 | AK118: 2706.1
A119: 晋煤集团煤化工板块各公司煤炭库存统计表
A120: 2019.5.5 单位：吨
A121: 公司名称 | C121: 生产情况（生产、检修） | D121: 原料煤情况 | J121: 燃料煤情况
G122: 原料末煤 | J122: 燃料末煤
A123: 二级公司 | B123: 三级公司 | D123: 库存 | E123: 日消耗 | F123: 可用天数 | G123: 库存 | H123: 日消耗 | I123: 可用天数 | J123: 库存 | K123: 日消耗 | L123: 可用天数
A124: 明化本部 | B124: 晋煤明化 | C124: 生产 | D124: 12482 | E124: 1048 | F124: 11.91030534 | J124: 5409 | K124: 569 | L124: 9.506151142
B126: 山东晋煤明升达化工有限公司 | C126: 停车 | D126: 12199.39 | E126: 3084 | F126: 3.955703632 | J126: 4303.23 | K126: 1281 | L126: 3.359274005
B127: 明泉科技 | C127: 生产 | G127: 23304.15 | H127: 2706.1 | I127: 8.61171058 | J127: 8376.59 | K127: 1179.8 | L127: 7.100008476
B128: 郓城县鲁发化工有限公司 | C128: 检修
B129: 晋城煤业集团煤化工板块生产调度情况日报表（一）
A130: 公司名称： | C130: 安徽晋煤中能化工股份有限公司 | L130: 单位：吨 | AA130: 日期： | AC130: 2019-05-01
B131: 总氨产量 | G131: 合成氨产量 | L131: 尿素产量 | Q131: 精甲醇产量 | V131: 其它肥料产量 | AA131: 精细化工产品产量
B132: 当日 | C132: 月累 计划 | D132: 月累 实际 | E132: 年累 计划 | F132: 年累 实际 | G132: 当日 | H132: 月累 计划 | I132: 月累 实际 | J132: 年累 计划 | K132: 年累 实际 | L132: 当日 | M132: 月累 计划 | N132: 月累 实际 | O132: 年累 计划 | P132: 年累 实际 | Q132: 当日 | R132: 月累 计划 | S132: 月累 实际 | T132: 年累 计划 | U132: 年累 实际 | V132: 当日 | W132: 月累 计划 | X132: 月累 实际 | Y132: 年累 计划 | Z132: 年累 实际 | AA132: 当日 | AB132: 月累 计划 | AC132: 月累 实际 | AD132: 年累 计划 | AE132: 年累 实际
B133: 4024 | C133: 120000 | D133: 52306 | E133: 1790000 | F133: 480327 | G133: 2568 | H133: 100000 | I133: 34132 | J133: 1175000 | K133: 319380 | L133: 2871 | M133: 110000 | N133: 37559 | O133: 1475000 | P133: 356486 | Q133: 1280 | R133: 35000 | S133: 14312 | T133: 518000 | U133: 146236 | AA133: 1146 | AB133: 51000 | AC133: 14898 | AD133: 615000 | AE133: 152036
B134: 本部 | C134: 2960.354 | G134: 本部 | H134: 1504 | L134: 本部 | M134: 1287 | Q134: 本部 | R134: 1280 | AA134: 本部 | AB134: 1146
B135: 泉盛 | C135: 0 | G135: 泉盛 | H135: 0 | L135: 泉盛 | M135: 0 | Q135: 泉盛 | R135: 0 | AA135: 泉盛 | AB135: 0
B136: 新疆 | C136: 1064 | G136: 新疆 | H136: 1064 | L136: 新疆 | M136: 1584
A137: 集团公司煤化工板块生产调度情况日报表（二）
A138: 公司名称： | C138: 安徽晋煤中能化工股份有限公司 | O138: 单位：吨、元/吨、千克/吨、千万时/吨 | AE138: 日期： | AH138: 2019-03-01
B139: 尿素销量 | G139: 精甲醇销量 | L139: 液氨销量 | P139: 其它肥料销量 | S139: 精细化工销量 | V139: 吨氨耗原料煤 | Y139: 吨氨耗电 | AB139: 吨尿素耗蒸汽 | AE139: 吨尿素耗电 | AH139: 原料煤情况（不含燃料煤）
C140: 月累计 | D140: 年累计 | E140: 当日 价格 | F140: 库存量 | G140: 当日 | H140: 月累计 | I140: 年累计 | J140: 当日 价格 | K140: 库存量 | L140: 当日 | M140: 月累计 | N140: 年累计 | O140: 当日 价格 | P140: 当日 | Q140: 月累计 | R140: 年累计 | S140: 当日 | T140: 月累计 | U140: 年累计 | V140: 当日 | W140: 月累计 | X140: 年累计 | Y140: 当日 | Z140: 月累计 | AA140: 年累计 | AB140: 当日 | AC140: 月累计 | AD140: 年累计 | AE140: 当日 | AF140: 月累计 | AG140: 年累计 | AH140: 块煤 库存 | AI140: 块煤 日消耗 | AJ140: 末煤 库存 | AK140: 末煤 日消耗
B141: 2144 | C141: 36369 | D141: 321588 | E141: 2119 | F141: 36805 | G141: 1601 | H141: 16293 | I141: 136169 | J141: 2306 | K141: 22071 | L141: 718 | M141: 9867 | N141: 91752 | O141: 3627 | S141: 1284 | T141: 13968 | U141: 146720 | V141: 1112 | W141: 1106 | X141: 1078 | Y141: 1277 | Z141: 1273 | AA141: 1301 | AB141: 936 | AC141: 990 | AD141: 994 | AE141: 147 | AF141: 148 | AG141: 147 | AH141: 42283 | AI141: 663 | AJ141: 90527 | AK141: 4635
B142: 本部 | C142: 1093 | D142: 2119 | G142: 本部 | H142: 1601 | I142: 2306 | L142: 本部 | M142: 668 | N142: 3627 | S142: 本部 | T142: 1280
B143: 泉盛 | C143: 0 | D143: 2162 | G143: 泉盛 | H143: 0 | I143: 2400 | L143: 泉盛 | M143: 50 | N143: 3730 | S143: 泉盛 | T143: 4
B144: 新疆 | C144: 1051 | D144: 1600 | V144: 总氨 | W144: 煤耗(kg/t) | X144: 汽耗(kg/t) | Y144: 电耗(kwh/t)
A145: 晋煤集团煤化工板块各公司煤炭库存统计表5.5 | V145: 泉盛固定床工艺 | W145: 1131 | X145: 1470 | Y145: 1146
C146: 生产情况（生产、试生产） | D146: 原料煤情况 | J146: 燃料煤情况
D147: 原料块煤 | G147: 原料末煤 | J147: 燃料末煤
A148: 二级公司 | B148: 三级公司 | D148: 库存 | E148: 日消耗 | F148: 可用天数 | G148: 库存 | H148: 日消耗 | I148: 可用天数 | J148: 库存 | K148: 日消耗 | L148: 可用天数
A149: 中能化工 | B149: 中能公司 | C149: 生产 | D149: 15367 | E149: 663 | F149: 23.17797888 | G149: 46290 | H149: 3248 | I149: 14.25184729 | J149: 36618 | K149: 1362 | L149: 26.88546256
B150: 泉盛公司 | D150: 26916 | E150: 0 | G150: 7290 | H150: 0 | J150: 6713 | K150: 368 | L150: 18.24184783
B151: 新疆公司 | G151: 36947 | H151: 1387 | I151: 26.63806777 | J151: 15077 | K151: 839 | L151: 17.97020262
B152: 晋城煤业集团煤化工板块生产调度情况日报表（一）
A153: 公司名称：安徽昊源化工集团有限公司 | L153: 单位：吨 | AA153: 日期： | AC153: 2019-05-04
A154: 单位 | B154: 总氨产量 | G154: 合成氨产量 | L154: 尿素产量 | Q154: 甲醇产量 | V154: 其他肥料产量 | AA154: 精细化工产品产量
B155: 当日 | C155: 月累 计划 | D155: 月累 实际 | E155: 年累 计划 | F155: 年累 实际 | G155: 当日 | H155: 月累 计划 | I155: 月累 实际 | J155: 年累 计划 | K155: 年累 实际 | L155: 当日 | M155: 月累 计划 | N155: 月累 实际 | O155: 年累 计划 | P155: 年累 实际 | Q155: 当日 | R155: 月累 计划 | S155: 月累 实际 | T155: 年累 计划 | U155: 年累 实际 | V155: 当日 | W155: 月累 计划 | X155: 月累 实际 | Y155: 年累 计划 | Z155: 年累 实际 | AA155: 当日 | AB155: 月累 计划 | AC155: 月累 实际 | AD155: 年累 计划 | AE155: 年累 实际
A156: 昊源本部 | B156: 2007.22 | D156: 37879.56 | F156: 232240.9 | G156: 1235.1478 | I156: 23451.8046 | K156: 143729.9884 | L156: 2825.77 | N156: 56538.88 | P156: 352875.67 | Q156: 206.61 | S156: 4821.23 | U156: 19851.51 | AA156: 1223.35 | AC156: 22538.45 | AE156: 150019.66
A157: 航天炉 | B157: 5511.9814 | D157: 105037.0676 | F157: 586842.4792 | G157: 3047.28 | I157: 57813.58 | K157: 322139.5 | Q157: 2325.19 | S157: 44550.46 | U157: 250046.98
A159: 合计 | B159: 7519.2014 | D159: 142916.6276 | F159: 819083.3792 | G159: 4282.4278 | I159: 81265.3846 | K159: 465869.4884 | L159: 2825.77 | N159: 56538.88 | P159: 352875.67 | Q159: 2531.8 | S159: 49371.69 | U159: 269898.49 | V159: 0 | W159: 0 | X159: 0 | Y159: 0 | Z159: 0 | AA159: 1223.35 | AC159: 22538.45 | AE159: 150019.66
A161: 公司名称：安徽昊源化工集团 | O161: 单位：吨、元/吨、千克/吨、千瓦时/吨 | AE161: 日期： | AH161: 2019-05-04
A162: 单位 | B162: 尿素销量 | G162: 甲醇销量 | L162: 液氨销量 | P162: 其它肥料销量 | S162: 精细化工销量 | V162: 吨氨耗原料煤 | Y162: 吨氨耗电 | AB162: 吨尿素耗蒸汽 | AE162: 吨尿素耗电 | AH162: 原料煤情况（不含燃料煤）
B163: 当日 | C163: 月累计 | D163: 年累计 | E163: 当日 价格 | F163: 库存量 | G163: 当日 | H163: 月累计 | I163: 年累计 | J163: 当日 价格 | K163: 库存量 | L163: 当日 | M163: 月累计 | N163: 年累计 | O163: 当日 价格 | P163: 当日 | Q163: 月累计 | R163: 年累计 | S163: 当日 | T163: 月累计 | U163: 年累计 | V163: 当日 | W163: 月累计 | X163: 年累计 | Y163: 当日 | Z163: 月累计 | AA163: 年累计 | AB163: 当日 | AC163: 月累计 | AD163: 年累计 | AE163: 当日 | AF163: 月累计 | AG163: 年累计 | AH163: 块煤 库存 | AI163: 块煤 日消耗 | AJ163: 末煤 库存 | AK163: 末煤 日消耗
A164: 昊源本部 | B164: 2991.72 | C164: 63667.91 | D164: 350563.69 | E164: 2210 | F164: 3227.37 | G164: 2417.3 | H164: 48360.64 | I164: 249617.19 | J164: 2300 | K164: 17264.36 | L164: 1961.92 | M164: 35917.07 | N164: 184309.99 | O164: 3450 | S164: 902.77 | T164: 17138.43 | U164: 68217.62 | V164: 1131.41559 | W164: 1120.234765 | X164: 1149.689826 | Y164: 989.3912227 | Z164: 1004.805436 | AA164: 1006.110584 | AB164: 979.9099007 | AC164: 1461.395011 | AD164: 991.9329377 | AE164: 155 | AF164: 155 | AG164: 155
A165: 航天炉 | V165: 1284.999409 | W165: 1285.213784 | X165: 1282.325023 | Y165: 821.0040802 | Z165: 817.9133087 | AA165: 811.9503106
A167: 合计 | B167: 2991.72 | C167: 63667.91 | D167: 350563.69 | E167: 2210 | F167: 3227.37 | G167: 2417.3 | H167: 48360.64 | I167: 249617.19 | J167: 2300 | K167: 17264.36 | L167: 1961.92 | M167: 35917.07 | N167: 184309.99 | O167: 3450 | S167: 902.77 | T167: 17138.43 | U167: 68217.62 | V167: 1193.253177 | W167: 1187.041112 | X167: 1200.986316 | Y167: 921.5933603 | Z167: 929.1256295 | AA167: 931.0193517 | AB167: 979.9099007 | AC167: 1461.395011 | AD167: 991.9329377 | AE167: 155 | AF167: 155 | AG167: 155
A168: 晋煤集团煤化工板块各公司煤炭库存统计表
A169: 日期：2019.5.31
A170: 公司名称 | B170: 生产情况（生产、检修） | C170: 原料煤情况 | I170: 燃料煤情况
C171: 原料块煤 | F171: 原料末煤 | I171: 燃料末煤
A172: 昊源公司 | C172: 库存 | D172: 日消耗 | E172: 可用天数 | F172: 库存 | G172: 日消耗 | H172: 可用天数 | I172: 库存 | J172: 日消耗 | K172: 可用天数
A173: 本部固定床 | C173: 23240 | D173: 2448 | E173: 9.493464052 | F173: 1480 | G173: 0 | I173: 7813 | J173: 306 | K173: 25.53267974
A174: 本部航天炉 | F174: 29845 | G174: 1738
A175: 园区航天炉 | F175: 38699 | G175: 3181 | H175: 12.16567117 | I175: 7745 | J175: 754 | K175: 10.27188329
A176: 晋城煤业集团煤化工板块生产调度情况日报表（一）
A177: 公司名称： | B177: 湖北三宁化工股份有限公司 | L177: 单位：吨
B178: 总氨 | G178: 合成氨 | L178: 尿素 | Q178: 甲醇 | V178: 精细化化工 | AA178: 其他肥料
B179: 当日产量 | C179: 月计划数量 | D179: 月累计产量 | E179: 年计划数量 | F179: 年累计产量 | G179: 当日产量 | H179: 月计划数量 | I179: 月累计产量 | J179: 年计划数量 | K179: 年累计产量 | L179: 当日产量 | M179: 月计划数量 | N179: 月累计产量 | O179: 年计划数量 | P179: 年累计产量 | Q179: 当日产量 | R179: 月计划数量 | S179: 月累计产量 | T179: 年计划数量 | U179: 年累计产量 | V179: 当日产量 | W179: 月计划数量 | X179: 月累计产量 | Y179: 年计划数量 | Z179: 年累计产量 | AA179: 当日产量 | AB179: 月计划数量 | AC179: 月累计产量 | AD179: 年计划数量 | AF179: 年累计产量
A180: 三宁 | B180: 4477.125 | C180: 109930.427 | D180: 94803.989 | E180: 1250612.834 | F180: 425168.434 | G180: 3759.945 | H180: 90181.727 | I180: 80952.889 | J180: 1025640.231 | K180: 345515.288 | L180: 2508.49 | M180: 44400 | N180: 55293.97 | O180: 507500 | P180: 195490.23 | Q180: 717.18 | R180: 19748.7 | S180: 13851.1 | T180: 224972.603 | U180: 79653.146 | V180: 448.13 | W180: 12680 | X180: 8074.79 | Y180: 204500.01 | Z180: 61208.19 | AA180: 6515.87 | AB180: 750 | AC180: 136632.019 | AD180: 10000 | AE180: 808706.348 | AF180: 808706.348
A181: 集团公司煤化工板块生产调度情况日报表（二）
A182: 公司名称： | B182: 湖北三宁化工股份有限公司 | L182: 单位：吨、元/吨、千克/吨、千万时/吨
B183: 尿素 | G183: 甲醇 | L183: 液氨 | Q183: 精细化化工 | V183: 其他肥料 | AA183: 已内酰胺 | AF183: 总氨 | AL183: 尿素 | AR183: 原料煤情况（不含燃料煤）
B184: 当日销量 | C184: 月累计销量 | D184: 年累计销量 | E184: 当日价格 | F184: 库存量 | G184: 当日销量 | H184: 月累计销量 | I184: 年累计销量 | J184: 当日价格 | K184: 库存量 | L184: 当日销量 | M184: 月累计销量 | N184: 年累计销量 | O184: 当日价格 | P184: 库存量 | Q184: 当日销量 | R184: 月累计销量 | S184: 年累计销量 | T184: 当日价格 | U184: 库存量 | V184: 当日销量 | W184: 月累计销量 | X184: 年累计销量 | Y184: 当日价格 | Z184: 库存量 | AA184: 当日销量 | AB184: 月累计销量 | AC184: 年累计销量 | AD184: 当日价格 | AE184: 库存量 | AF184: 吨天耗煤 | AG184: 吨月耗煤 | AH184: 吨年耗煤 | AJ184: 吨天耗电 | AK184: 吨月耗电 | AL184: 吨天耗电 | AM184: 吨月耗电 | AN184: 吨年耗电 | AO184: 吨天耗蒸汽 | AP184: 吨月耗蒸汽 | AQ184: 吨年耗蒸汽 | AR184: 块煤库存 | AS184: 块煤日消耗 | AT184: 末煤库存 | AU184: 末煤日消耗
A185: 三宁 | B185: 2670 | C185: 7812.14 | D185: 95145.16 | E185: 2091.064 | F185: 15518.92 | G185: 412.08 | H185: 8148.96 | I185: 43956.22 | J185: 2360 | K185: 18835.707 | L185: 1178.88 | M185: 20855.34 | N185: 88293.2 | O185: 3600 | Q185: 552.72 | V185: 4794.67 | AA185: 454.92 | AB185: 7944.04 | AC185: 47051.12 | AD185: 12966.774 | AE185: 505.7 | AF185: 1.024 | AG185: 0.915 | AH185: 1.117 | AI185: 873.858 | AJ185: 781.245 | AK185: 984.346 | AL185: 93.303 | AM185: 97.845 | AN185: 121.659 | AO185: 0.941 | AP185: 1.019 | AQ185: 1.046 | AT185: 59860.207 | AU185: 4585.69
A187: 名称 | C187: 生产情况（生产、检修） | D187: 原料煤情况 | E187: 己内酰胺价格 | F187: 11487 | J187: 燃料煤情况
D188: 原料块煤 | G188: 原料末煤 | J188: 燃料末煤
A189: 二级公司 | B189: 三级公司 | D189: 库存 | E189: 日消耗 | F189: 可用天数 | G189: 库存 | H189: 日消耗 | I189: 可用天数 | J189: 库存 | K189: 日消耗 | L189: 可用天数
A190: 湖北三宁化工股份有限公司 | B190: 本部 | G190: 58236.047 | H190: 4621.5 | I190: 38.22277623 | J190: 49813.827 | K190: 5193.62 | L190: 15
A191: 潜江金华润 | G191: 47424 | H191: 1379 | I191: 22 | J191: 3000 | K191: 284.3 | L191: 11
B192: 晋城煤业集团煤化工板块生产调度情况日报表（一）
A193: 公司名称： | C193: 山东晋煤日月化工有限公司 | L193: 单位：吨 | AA193: 日期： | AC193: 2019-05-03
B194: 总氨产量 | G194: 合成氨产量 | L194: 尿素产量 | Q194: 甲醇产量 | V194: 其他肥料产量 | AA194: 精细化工产品产量
B195: 当日 | C195: 月累 计划 | D195: 月累 实际 | E195: 年累 计划 | F195: 年累 实际 | G195: 当日 | H195: 月累 计划 | I195: 月累 实际 | J195: 年累 计划 | K195: 年累 实际 | L195: 当日 | M195: 月累 计划 | N195: 月累 实际 | O195: 年累 计划 | P195: 年累 实际 | Q195: 当日 | R195: 月累 计划 | S195: 月累 实际 | T195: 年累 计划 | U195: 年累 实际 | V195: 当日 | W195: 月累 计划 | X195: 月累 实际 | Y195: 年累 计划 | Z195: 年累 实际 | AA195: 当日 | AB195: 月累 计划 | AC195: 月累 实际 | AD195: 年累 计划 | AE195: 年累 实际
A197: 日月 | B197: 1140 | D197: 14719 | F197: 101485 | G197: 880 | I197: 11460 | K197: 79132 | L197: 0 | N197: 0 | P197: 0 | Q197: 260 | S197: 3259 | U197: 22353 | AA197: 533 | AC197: 6808 | AE197: 95847
A198: 同辉
A199: 集团公司煤化工板块生产调度情况日报表（二）
A200: 公司名称： | C200: 山东晋煤日月化工有限公司 | O200: 单位：吨、元/吨、千克/吨、千万时/吨 | AE200: 日期： | AH200: 2019-05-03
B201: 尿素销量 | G201: 甲醇销量 | L201: 液氨销量 | P201: 其它肥料销量 | S201: 精细化工销量 | V201: 吨氨耗原料煤 | Y201: 吨氨耗电 | AB201: 吨尿素耗蒸汽 | AE201: 吨尿素耗电 | AH201: 原料煤情况（不含燃料煤）
B202: 当日 | C202: 月累计 | D202: 年累计 | E202: 当日 价格 | F202: 库存量 | G202: 当日 | H202: 月累计 | I202: 年累计 | J202: 当日 价格 | K202: 库存量 | L202: 当日 | M202: 月累计 | N202: 年累计 | O202: 当日 价格 | P202: 当日 | Q202: 月累计 | R202: 年累计 | S202: 当日 | T202: 月累计 | U202: 年累计 | V202: 当日 | W202: 月累计 | X202: 年累计 | Y202: 当日 | Z202: 月累计 | AA202: 年累计 | AB202: 当日 | AC202: 月累计 | AD202: 年累计 | AE202: 当日 | AF202: 月累计 | AG202: 年累计 | AH202: 块煤 库存 | AI202: 块煤 日消耗 | AJ202: 末煤 库存 | AK202: 末煤 日消耗
A204: 日月 | B204: 0 | C204: 0 | D204: 0 | E204: 0 | F204: 0 | G204: 0 | H204: 0 | I204: 0 | J204: 0 | K204: 569 | L204: 294 | M204: 3558 | N204: 14966 | O204: 3480 | S204: 419 | T204: 4889 | U204: 41940 | Y204: 1129
A205: 同辉
A207: 原料煤 | D207: 燃料煤
A208: 块煤 库存 | B208: 块煤 日消耗 | C208: 末煤 库存 | D208: 末煤 库存 | E208: 末煤 日消耗
A209: 1000 | B209: 700 | C209: 2550 | D209: 2550
B212: 晋城煤业集团煤化工板块生产调度情况日报表（一）
... 84 more rows

Sheet 数据填报
C2: 日期： | M2: 2021-04-14 | W2: 今日值班： | AG2: 尚志宏 闫军 | AM2: 本月天数 | AT2: 30 | AW2: 累计天数 | AY2: 14 | BC2: 年度累计 天数 | BD2: 104
A4: 调度情况日报表一(产品产量) | AS4: 调度情况日报表二（产品销售） | BN4: 调度情况日报表二（产品消耗） | BZ4: 日报表二（原料煤情况）
A5: 19090 | C5: 总氨 | H5: 合成氨 | M5: 尿素 | R5: 甲醇 | W5: 复合肥料 | AB5: 精细化工 | AG5: 石化产品 | AL5: 合成油 | AT5: 尿素 | AY5: 甲醇 | BD5: 液氨 | BH5: 复合 | BK5: 精细 | BN5: 吨氨耗原料煤 | BQ5: 吨氨耗电 | BT5: 吨尿素耗蒸汽 | BW5: 吨尿素耗电 | BZ5: 块煤 | CB5: 末煤
B6: 合计 | C6: =SUM(C7:C24) -> 45947.02444 | D6: =SUM(D7:D22) ->  | E6: =SUM(E7:E22) ->  | F6: =SUM(F7:F22) ->  | G6: =SUM(G7:G22) ->  | H6: =SUM(H7:H23) -> 32423.0473 | I6: =SUM(I7:I22) ->  | J6: =SUM(J7:J22) ->  | K6: =SUM(K7:K22) ->  | L6: =SUM(L7:L22) ->  | M6: =SUM(M7:M23) -> 29786.814 | N6: =SUM(N7:N22) ->  | O6: =SUM(O7:O22) ->  | P6: =SUM(P7:P22) ->  | Q6: =SUM(Q7:Q22) ->  | R6: =SUM(R7:R24) -> 10199.606 | S6: =SUM(S7:S22) ->  | W6: 8929.87 | AB6: =SUM(AB7:AB23) -> 4819.48 | AC6: =SUM(AC7:AC22) ->  | AD6: =SUM(AD7:AD22) ->  | AE6: =SUM(AE7:AE22) ->  | AF6: =SUM(AF7:AF22) ->  | AG6: =AG25 -> 760 | AH6: =SUM(AH7:AH22) -> 0 | AI6: =SUM(AI7:AI22) -> 0 | AJ6: =SUM(AJ7:AJ22) -> 0 | AK6: =SUM(AK7:AK22) -> 0 | AL6: =SUM(AL7:AL22) -> 0 | AT6: 当日 | AU6: 月累计 | AV6: 年累计 | AW6: 价格 | AX6: 库存量 | AY6: 当日 | AZ6: 月累计 | BA6: 年累计 | BB6: 价格 | BC6: 库存量 | BD6: 当日 | BE6: 月累计 | BF6: 年累计 | BG6: 价格 | BH6: 当日 | BI6: 月累计 | BJ6: 年累计 | BK6: 当日 | BL6: 月累计 | BM6: 年累计 | BN6: 当日 | BO6: 月累 | BP6: 年累 | BQ6: 当日 | BR6: 月累 | BS6: 年累 | BT6: 当日 | BU6: 月累 | BV6: 年累 | BW6: 当日 | BX6: 月累 | BY6: 年累 | BZ6: 库存 | CA6: 日消耗 | CB6: 库存 | CC6: 日消耗
B7: 金石 | C7: =数据基表!B10 -> 4535 | D7: =#REF! ->  | E7: =#REF! ->  | F7: =#REF! ->  | G7: =#REF! ->  | H7: =数据基表!G10 -> 3527.92 | I7: =#REF! ->  | J7: =#REF! ->  | K7: =#REF! ->  | L7: =#REF! ->  | M7: =数据基表!L10 -> 1612.8 | N7: =#REF! ->  | O7: =#REF! ->  | P7: =#REF! ->  | Q7: =#REF! ->  | R7: =数据基表!Q10 -> 737.18 | S7: =#REF! ->  | T7: =#REF! ->  | U7: =#REF! ->  | V7: =#REF! ->  | W7: =数据基表!V10 -> 2054 | X7: =#REF! ->  | Y7: =#REF! ->  | Z7: =#REF! ->  | AA7: =#REF! ->  | AB7: =数据基表!AA10 -> 1344 | AC7: =#REF! ->  | AD7: =#REF! ->  | AE7: =#REF! ->  | AF7: =#REF! ->  | AS7: 金石 | AT7: =数据基表!B20 -> 838.457 | AU7: =#REF! ->  | AV7: =#REF! ->  | AW7: =数据基表!E20 -> 2120 | AX7: =数据基表!F20 -> 5621.135 | AY7: =数据基表!G20 -> 452 | AZ7: =#REF! ->  | BA7: =#REF! ->  | BB7: =数据基表!J20 -> 2234.446903 | BC7: =数据基表!K20 -> 2833 | BD7: =数据基表!L20 -> 2246.86 | BE7: =#REF! ->  | BF7: =#REF! ->  | BG7: =数据基表!O20 -> 3503.889517 | BH7: =数据基表!P20 -> 1700 | BI7: =#REF! ->  | BJ7: =#REF! ->  | BK7: =数据基表!S20 -> 1026.14 | BL7: =#REF! ->  | BM7: =#REF! ->  | BN7: =数据基表!V20 -> 1207.970673 | BO7: =数据基表!W20 -> 1181.055979 | BP7: =数据基表!X20 -> 1178.027112 | BQ7: =数据基表!Y20 -> 1115.269019 | BR7: =数据基表!Z20 -> 1107.58636 | BS7: =数据基表!AA20 -> 1128.703035 | BT7: =数据基表!AB20 -> 896.2715774 | BU7: =数据基表!AC20 -> 875.1284976 | BV7: =数据基表!AD20 -> 977.4285954 | BW7: =数据基表!AE20 -> 157.859003 | BX7: =数据基表!AF20 -> 161.9950495 | BY7: =数据基表!AG20 -> 168.4290143 | BZ7: =数据基表!AH20 -> 65303 | CA7: =数据基表!AI20 -> 5952.07 | CB7: =数据基表!AJ20 -> 5550 | CC7: =数据基表!AK20 -> 0 | CD7: =数据基表!AL20 -> 41811 | CE7: =数据基表!AM20 -> 2019.5
B8: 晋丰 | C8: =数据基表!B25 -> 1513 | D8: =#REF! ->  | E8: =#REF! ->  | F8: =#REF! ->  | G8: =#REF! ->  | H8: =数据基表!G25 -> 1303 | I8: =#REF! ->  | J8: =#REF! ->  | K8: =#REF! ->  | L8: =#REF! ->  | M8: =数据基表!L25 -> 1937 | N8: =#REF! ->  | O8: =#REF! ->  | P8: =#REF! ->  | Q8: =#REF! ->  | R8: =数据基表!Q25 -> 147 | S8: =#REF! ->  | T8: =#REF! ->  | U8: =#REF! ->  | V8: =#REF! ->  | AS8: 晋丰 | AT8: =数据基表!B32 -> 3023 | AU8: =#REF! ->  | AV8: =#REF! ->  | AW8: =数据基表!E32 -> 2008.594112 | AX8: =数据基表!F32 -> 2944 | AY8: =数据基表!G32 -> 439 | AZ8: =#REF! ->  | BA8: =#REF! ->  | BB8: =数据基表!J32 -> 2120 | BC8: =数据基表!K32 -> 1335 | BD8: =数据基表!L32 -> 557 | BE8: =#REF! ->  | BF8: =#REF! ->  | BG8: =数据基表!O32 -> 3250 | BL8: =#REF! ->  | BM8: =#REF! ->  | BN8: =数据基表!V32 -> 1168 | BO8: =数据基表!W32 -> 1127.544974 | BP8: =数据基表!X32 -> 1150.165447 | BQ8: =数据基表!Y32 -> 1191 | BR8: =数据基表!Z32 -> 1236.528425 | BS8: =数据基表!AA32 -> 1375.763083 | BT8: =数据基表!AB32 -> 990 | BU8: =数据基表!AC32 -> 997.5574926 | BV8: =数据基表!AD32 -> 983.4563807 | BW8: =数据基表!AE32 -> 169 | BX8: =数据基表!AF32 -> 167.7330805 | BY8: =数据基表!AG32 -> 165.1416749 | BZ8: =数据基表!AH32 -> 17420 | CA8: =数据基表!AI32 -> 1551 | CB8: =数据基表!AJ32 -> 0 | CC8: =数据基表!AK32 -> 0 | CD8: =数据基表!AL32 -> 2844 | CE8: =数据基表!AM32 -> 483
B9: 晋开 | C9: =数据基表!B44 -> 4019 | D9: =#REF! ->  | E9: =#REF! ->  | F9: =#REF! ->  | G9: =#REF! ->  | H9: =数据基表!G44 -> 4019 | I9: =#REF! ->  | J9: =#REF! ->  | K9: =#REF! ->  | L9: =#REF! ->  | M9: =数据基表!L44 -> 2645 | N9: =#REF! ->  | O9: =#REF! ->  | P9: =#REF! ->  | Q9: =#REF! ->  | R9: =数据基表!Q44 -> 0 | S9: =#REF! ->  | T9: =#REF! ->  | U9: =#REF! ->  | V9: =#REF! ->  | W9: =数据基表!V44 -> 360 | X9: =#REF! ->  | Y9: =#REF! ->  | Z9: =#REF! ->  | AA9: =#REF! ->  | AS9: 晋开 | AT9: =数据基表!B55 -> 1680 | AU9: =#REF! ->  | AV9: =#REF! ->  | AW9: =数据基表!E55 -> 2045 | AX9: =数据基表!F55 -> 32549 | AY9: =数据基表!G55 -> 0 | AZ9: =#REF! ->  | BA9: =#REF! ->  | BB9: =数据基表!J55 -> 0 | BC9: =数据基表!K55 -> 0 | BD9: =数据基表!L55 -> 1453.2 | BE9: =#REF! ->  | BF9: =#REF! ->  | BG9: =数据基表!O55 -> 3438.55 | BH9: =数据基表!P55 -> 1027.2 | BI9: =#REF! ->  | BJ9: =#REF! ->  | BL9: =#REF! ->  | BM9: =#REF! ->  | BN9: =数据基表!V55 -> 1361 | BO9: =数据基表!W55 -> 1367 | BP9: =数据基表!X55 -> 1365 | BQ9: =数据基表!Y55 -> 183 | BR9: =数据基表!Z55 -> 191 | BS9: =数据基表!AA55 -> 185 | BT9: =数据基表!AB55 -> 1033 | BU9: =数据基表!AC55 -> 1018 | BV9: =数据基表!AD55 -> 1031 | BW9: =数据基表!AE55 -> 156 | BX9: =数据基表!AF55 -> 144 | BY9: =数据基表!AG55 -> 140 | BZ9: =数据基表!AH55 -> 4466 | CA9: =数据基表!AI55 -> 0 | CB9: =数据基表!AJ55 -> 42761 | CC9: =数据基表!AK55 -> 5722 | CD9: =数据基表!AL55 -> 8933 | CE9: =数据基表!AM55 -> 2656
B10: 恒盛 | C10: =数据基表!B66 -> 1143 | D10: =#REF! ->  | E10: =#REF! ->  | F10: =#REF! ->  | G10: =#REF! ->  | H10: =数据基表!G66 -> 888 | I10: =#REF! ->  | J10: =#REF! ->  | K10: =#REF! ->  | L10: =#REF! ->  | M10: =数据基表!L66 -> 0 | N10: =#REF! ->  | O10: =#REF! ->  | P10: =#REF! ->  | Q10: =#REF! ->  | R10: =数据基表!Q66 -> 241 | S10: =#REF! ->  | T10: =#REF! ->  | U10: =#REF! ->  | V10: =#REF! ->  | W10: =数据基表!V66 -> 0 | X10: =#REF! ->  | Y10: =#REF! ->  | Z10: =#REF! ->  | AA10: =#REF! ->  | AS10: 恒盛 | AT10: =数据基表!B73 -> 0 | AU10: =#REF! ->  | AV10: =#REF! ->  | AW10: =数据基表!E73 -> 0 | AX10: =数据基表!F73 -> 0 | AY10: =数据基表!G73 -> 106 | AZ10: =#REF! ->  | BA10: =#REF! ->  | BB10: =数据基表!J73 -> 2350 | BC10: =数据基表!K73 -> 1538 | BD10: =数据基表!L73 -> 932 | BE10: =#REF! ->  | BF10: =#REF! ->  | BG10: =数据基表!O73 -> 3530 | BL10: =#REF! ->  | BM10: =#REF! ->  | BN10: =数据基表!V73 -> 1112 | BO10: =数据基表!W73 -> 1112 | BP10: =数据基表!X73 -> 1109 | BQ10: =数据基表!Y73 -> 1228 | BR10: =数据基表!Z73 -> 1228 | BS10: =数据基表!AA73 -> 1240 | BT10: =数据基表!AB73 -> 0 | BU10: =数据基表!AC73 -> 0 | BV10: =数据基表!AD73 -> 1097 | BW10: =数据基表!AE73 -> 0 | BX10: =数据基表!AF73 -> 0 | BY10: =数据基表!AG73 -> 140 | BZ10: =数据基表!AH73 -> 7325 | CA10: =数据基表!AI73 -> 1206 | CB10: =数据基表!AJ73 -> 123 | CC10: =数据基表!AK73 -> 0 | CD10: =数据基表!AL73 -> 5919 | CE10: =数据基表!AM73 -> 127
B11: 联盟 | C11: =数据基表!B80 -> 4196.4651 | D11: =#REF! ->  | E11: =#REF! ->  | F11: =#REF! ->  | G11: =#REF! ->  | H11: =数据基表!G80 -> 3586.4445 | I11: =#REF! ->  | J11: =#REF! ->  | K11: =#REF! ->  | L11: =#REF! ->  | M11: =数据基表!L80 -> 4192.9 | N11: =#REF! ->  | O11: =#REF! ->  | P11: =#REF! ->  | Q11: =#REF! ->  | R11: =数据基表!Q80 -> 553.746 | S11: =#REF! ->  | T11: =#REF! ->  | U11: =#REF! ->  | V11: =#REF! ->  | AB11: =数据基表!AA80 -> 125 | AS11: 联盟 | AT11: =数据基表!B87 -> 4114 | AU11: =#REF! ->  | AV11: =#REF! ->  | AW11: =数据基表!E87 -> 2133 | AX11: =数据基表!F87 -> 0 | AY11: =数据基表!G87 -> 816.14 | AZ11: =#REF! ->  | BA11: =#REF! ->  | BB11: =数据基表!J87 -> 2441 | BC11: =数据基表!K87 -> 2240 | BD11: =数据基表!L87 -> 1106.5 | BG11: =数据基表!O87 -> 3554 | BL11: =#REF! ->  | BM11: =#REF! ->  | BN11: =数据基表!V87 -> 1295.71975 | BO11: =数据基表!W87 -> 1277.20605 | BP11: =数据基表!X87 -> 1212.9066 | BQ11: =数据基表!Y87 -> 839.0261112 | BR11: =数据基表!Z87 -> 825.9870798 | BS11: =数据基表!AA87 -> 799.3383889 | BT11: =数据基表!AB87 -> 913.1362 | BU11: =数据基表!AC87 -> 908.5688 | BV11: =数据基表!AD87 -> 931.67905 | BW11: =数据基表!AE87 -> 103.05145 | BX11: =数据基表!AF87 -> 101.54505 | BY11: =数据基表!AG87 -> 100.7696 | BZ11: =数据基表!AH87 -> 39044 | CA11: =数据基表!AI87 -> 2716 | CB11: =数据基表!AJ87 -> 15203 | CC11: =数据基表!AK87 -> 2896
B12: 明水 | C12: =数据基表!B92 -> 5316.192943 | D12: =#REF! ->  | E12: =#REF! ->  | F12: =#REF! ->  | G12: =#REF! ->  | H12: =数据基表!G92 -> 3072.43 | I12: =#REF! ->  | J12: =#REF! ->  | K12: =#REF! ->  | L12: =#REF! ->  | M12: =数据基表!L92 -> 4228.51 | N12: =#REF! ->  | O12: =#REF! ->  | P12: =#REF! ->  | Q12: =#REF! ->  | R12: =数据基表!Q92 -> 1997 | S12: =#REF! ->  | T12: =#REF! ->  | U12: =#REF! ->  | V12: =#REF! ->  | AS12: 明水 | AT12: =数据基表!B95 -> 4116 | AU12: =#REF! ->  | AV12: =#REF! ->  | AW12: =数据基表!E95 -> 2077.05758 | AX12: =数据基表!F95 -> 3187 | AY12: =数据基表!G95 -> 1635.73 | AZ12: =#REF! ->  | BA12: =#REF! ->  | BB12: =数据基表!J95 -> 2220.592427 | BC12: =数据基表!K95 -> 5525 | BD12: =数据基表!L95 -> 629.04 | BE12: =#REF! ->  | BF12: =#REF! ->  | BG12: =数据基表!O95 -> 3454.001335 | BL12: =#REF! ->  | BM12: =#REF! ->  | BN12: =数据基表!V95 -> 1288.396334 | BO12: =数据基表!W95 -> 1283.652381 | BP12: =数据基表!X95 -> 1290.327201 | BQ12: =数据基表!Y95 -> 354.6519136 | BR12: =数据基表!Z95 -> 363.085675 | BS12: =数据基表!AA95 -> 362.6626193 | BU12: =数据基表!AC95 -> 1044.388901 | BV12: =数据基表!AD95 -> 1060.177569 | BX12: =数据基表!AF95 -> 69.92105075 | BY12: =数据基表!AG95 -> 71.81340046 | BZ12: =数据基表!AH95 -> 12482 | CA12: =数据基表!AI95 -> 1048.34 | CB12: =数据基表!G127 -> 23304.15 | CC12: =数据基表!H127 -> 2706.1 | CD12: =数据基表!J124+数据基表!J127 -> 13785.59 | CE12: =数据基表!K124+数据基表!K127 -> 1748.8
B13: 中能 | C13: =数据基表!B133 -> 4024 | D13: =#REF! ->  | E13: =#REF! ->  | F13: =#REF! ->  | G13: =#REF! ->  | H13: =数据基表!G133 -> 2568 | I13: =#REF! ->  | J13: =#REF! ->  | K13: =#REF! ->  | L13: =#REF! ->  | M13: =数据基表!L133 -> 2871 | N13: =#REF! ->  | O13: =#REF! ->  | P13: =#REF! ->  | Q13: =#REF! ->  | R13: =数据基表!Q133 -> 1280 | S13: =#REF! ->  | T13: =#REF! ->  | U13: =#REF! ->  | V13: =#REF! ->  | AB13: =数据基表!AA133 -> 1146 | AS13: 中能 | AT13: =数据基表!B141 -> 2144 | AU13: =#REF! ->  | AV13: =#REF! ->  | AW13: =数据基表!E141 -> 2119 | AX13: =数据基表!F141 -> 36805 | AY13: =数据基表!G141 -> 1601 | AZ13: =#REF! ->  | BA13: =#REF! ->  | BB13: =数据基表!J141 -> 2306 | BC13: =数据基表!K141 -> 22071 | BD13: =数据基表!L141 -> 718 | BE13: =#REF! ->  | BF13: =#REF! ->  | BG13: =数据基表!O141 -> 3627 | BI13: =#REF! ->  | BJ13: =#REF! ->  | BK13: =数据基表!S141 -> 1284 | BL13: =#REF! ->  | BM13: =#REF! ->  | BN13: =数据基表!V141 -> 1112 | BO13: =数据基表!W141 -> 1106 | BP13: =数据基表!X141 -> 1078 | BQ13: =数据基表!Y141 -> 1277 | BR13: =数据基表!Z141 -> 1273 | BS13: =数据基表!AA141 -> 1301 | BT13: =数据基表!AB141 -> 936 | BU13: =数据基表!AC141 -> 990 | BV13: =数据基表!AD141 -> 994 | BW13: =数据基表!AE141 -> 147 | BX13: =数据基表!AF141 -> 148 | BY13: =数据基表!AG141 -> 147 | BZ13: =数据基表!AH141 -> 42283 | CA13: =数据基表!AI141 -> 663 | CB13: =数据基表!AJ141 -> 90527 | CC13: =数据基表!AK141 -> 4635
B14: 昊源 | C14: =数据基表!B159 -> 7519.2014 | D14: =#REF! ->  | E14: =#REF! ->  | F14: =#REF! ->  | G14: =#REF! ->  | H14: =数据基表!G159 -> 4282.4278 | I14: =#REF! ->  | J14: =#REF! ->  | K14: =#REF! ->  | L14: =#REF! ->  | M14: =数据基表!L159 -> 2825.77 | N14: =#REF! ->  | O14: =#REF! ->  | P14: =#REF! ->  | Q14: =#REF! ->  | R14: =数据基表!Q159 -> 2531.8 | S14: =#REF! ->  | T14: =#REF! ->  | U14: =#REF! ->  | V14: =#REF! ->  | W14: =数据基表!V159 -> 0 | X14: =#REF! ->  | Y14: =#REF! ->  | Z14: =#REF! ->  | AA14: =#REF! ->  | AB14: =数据基表!AA156 -> 1223.35 | AC14: =#REF! ->  | AD14: =#REF! ->  | AE14: =#REF! ->  | AF14: =#REF! ->  | AS14: 昊源 | AT14: =数据基表!B167 -> 2991.72 | AU14: =#REF! ->  | AV14: =#REF! ->  | AW14: =数据基表!E167 -> 2210 | AX14: =数据基表!F167 -> 3227.37 | AY14: =数据基表!G167 -> 2417.3 | AZ14: =#REF! ->  | BA14: =#REF! ->  | BB14: =数据基表!J167 -> 2300 | BC14: =数据基表!K167 -> 17264.36 | BD14: =数据基表!L167 -> 1961.92 | BE14: =#REF! ->  | BF14: =#REF! ->  | BG14: =数据基表!O167 -> 3450 | BI14: =#REF! ->  | BJ14: =#REF! ->  | BK14: =数据基表!S167 -> 902.77 | BL14: =#REF! ->  | BM14: =#REF! ->  | BN14: =数据基表!V167 -> 1193.253177 | BO14: =数据基表!W167 -> 1187.041112 | BP14: =数据基表!X167 -> 1200.986316 | BQ14: =数据基表!Y167 -> 921.5933603 | BR14: =数据基表!Z167 -> 929.1256295 | BS14: =数据基表!AA167 -> 931.0193517 | BT14: =数据基表!AB167 -> 979.9099007 | BU14: =数据基表!AC167 -> 1461.395011 | BV14: =数据基表!AD167 -> 991.9329377 | BW14: =数据基表!AE167 -> 155 | BX14: =数据基表!AF167 -> 155 | BY14: =数据基表!AG167 -> 155 | BZ14: =数据基表!C173 -> 23240 | CA14: =数据基表!D173 -> 2448 | CB14: =数据基表!F173+数据基表!F174+数据基表!F175 -> 70024 | CC14: =数据基表!G173+数据基表!G174+数据基表!G175 -> 4919 | CD14: =数据基表!I173+数据基表!I175 -> 15558 | CE14: =数据基表!J173+数据基表!J175 -> 1060
B15: 三宁 | C15: =数据基表!B180 -> 4477.125 | D15: =#REF! ->  | E15: =#REF! ->  | F15: =#REF! ->  | G15: =#REF! ->  | H15: =数据基表!G180 -> 3759.945 | I15: =#REF! ->  | J15: =#REF! ->  | K15: =#REF! ->  | L15: =#REF! ->  | M15: =数据基表!L180 -> 2508.49 | N15: =#REF! ->  | O15: =#REF! ->  | P15: =#REF! ->  | Q15: =#REF! ->  | R15: =数据基表!Q180 -> 717.18 | S15: =#REF! ->  | T15: =#REF! ->  | U15: =#REF! ->  | V15: =#REF! ->  | W15: =数据基表!AA180 -> 6515.87 | X15: =#REF! ->  | Y15: =#REF! ->  | Z15: =#REF! ->  | AA15: =#REF! ->  | AB15: =数据基表!V180 -> 448.13 | AC15: =#REF! ->  | AD15: =#REF! ->  | AE15: =#REF! ->  | AF15: =#REF! ->  | AS15: 三宁 | AT15: =数据基表!B185 -> 2670 | AU15: =#REF! ->  | AV15: =#REF! ->  | AW15: =数据基表!E185 -> 2091.064 | AX15: =数据基表!F185 -> 15518.92 | AY15: =数据基表!G185 -> 412.08 | AZ15: =#REF! ->  | BA15: =#REF! ->  | BB15: =数据基表!J185 -> 2360 | BC15: =数据基表!K185 -> 18835.707 | BD15: =数据基表!L185 -> 1178.88 | BE15: =#REF! ->  | BF15: =#REF! ->  | BG15: =数据基表!O185 -> 3600 | BH15: =数据基表!V185 -> 4794.67 | BI15: =#REF! ->  | BJ15: =#REF! ->  | BK15: =数据基表!Q185 -> 552.72 | BL15: =#REF! ->  | BM15: =#REF! ->  | BN15: =数据基表!AF185*1000 -> 1024 | BO15: =数据基表!AG185*1000 -> 915 | BP15: =数据基表!AH185*1000 -> 1117 | BQ15: =数据基表!AE185 -> 505.7 | BR15: =数据基表!AF185 -> 1.024 | BS15: =数据基表!AG185 -> 0.915 | BT15: =数据基表!AH185*1000 -> 1117 | BU15: =数据基表!AP185*1000 -> 1019 | BV15: =数据基表!AQ185*1000 -> 1046 | BW15: =数据基表!AL185 -> 93.303 | BX15: =数据基表!AM185 -> 97.845 | BY15: =数据基表!AN185 -> 121.659 | CB15: =数据基表!G190+数据基表!G191 -> 105660.047 | CC15: =数据基表!H190+数据基表!H191 -> 6000.5
B16: 日月 | C16: =数据基表!B197 -> 1140 | D16: =#REF! ->  | E16: =#REF! ->  | F16: =#REF! ->  | G16: =#REF! ->  | H16: =数据基表!G197 -> 880 | I16: =#REF! ->  | J16: =#REF! ->  | K16: =#REF! ->  | L16: =#REF! ->  | M16: =数据基表!L197 -> 0 | N16: =#REF! ->  | O16: =#REF! ->  | P16: =#REF! ->  | Q16: =#REF! ->  | R16: =数据基表!Q197 -> 260 | S16: =#REF! ->  | T16: =#REF! ->  | U16: =#REF! ->  | V16: =#REF! ->  | W16: =数据基表!V197 -> 0 | X16: =#REF! ->  | Y16: =#REF! ->  | Z16: =#REF! ->  | AA16: =#REF! ->  | AB16: =数据基表!AA197 -> 533 | AC16: =#REF! ->  | AD16: =#REF! ->  | AE16: =#REF! ->  | AF16: =#REF! ->  | AS16: 日月 | AT16: =数据基表!B204 -> 0 | AU16: =#REF! ->  | AV16: =#REF! ->  | AW16: =数据基表!E204 -> 0 | AX16: =数据基表!F204 -> 0 | AY16: =数据基表!G204 -> 0 | AZ16: =#REF! ->  | BA16: =#REF! ->  | BB16: =数据基表!J204 -> 0 | BC16: =数据基表!K204 -> 569 | BD16: =数据基表!L204 -> 294 | BE16: =#REF! ->  | BF16: =#REF! ->  | BG16: =数据基表!O204 -> 3480 | BI16: =#REF! ->  | BJ16: =#REF! ->  | BK16: =数据基表!S204 -> 419 | BL16: =#REF! ->  | BM16: =#REF! ->  | BN16: =数据基表!V204 -> 0 | BO16: =数据基表!W204 -> 0 | BP16: =数据基表!X204 -> 0 | BQ16: =数据基表!Y204 -> 1129 | BR16: =数据基表!Z204 -> 0 | BS16: =数据基表!AA204 -> 0 | BT16: =数据基表!AB204 -> 0 | BU16: =数据基表!AC204 -> 0 | BV16: =数据基表!AD204 -> 0 | BW16: =数据基表!AE204 -> 0 | BX16: =数据基表!AF204 -> 0 | BY16: =数据基表!AG204 -> 0 | BZ16: =数据基表!AH204 -> 0 | CA16: =数据基表!AI204 -> 0
B17: 天溪 | C17: =数据基表!B216 -> 1166 | D17: =#REF! ->  | E17: =#REF! ->  | F17: =#REF! ->  | G17: =#REF! ->  | H17: =数据基表!G216 -> 0 | I17: =#REF! ->  | J17: =#REF! ->  | K17: =#REF! ->  | L17: =#REF! ->  | N17: =#REF! ->  | O17: =#REF! ->  | P17: =#REF! ->  | Q17: =#REF! ->  | R17: =数据基表!Q216 -> 1100 | S17: =#REF! ->  | T17: =#REF! ->  | U17: =#REF! ->  | V17: =#REF! ->  | AC17: =#REF! ->  | AD17: =#REF! ->  | AE17: =#REF! ->  | AF17: =#REF! ->  | AN17: 0 | AP17: 0 | AS17: 天溪 | AY17: =数据基表!B221 -> 919 | AZ17: 18202 | BA17: 256394.72 | BB17: =数据基表!E221 -> 2120 | BC17: =数据基表!F222+数据基表!F221 -> 6305 | BN17: =数据基表!Y221 -> 1607 | BO17: =数据基表!Z221 -> 1790 | BP17: =数据基表!AA221 -> 1550
B18: 双多 | AC18: =#REF! ->  | AD18: =#REF! ->  | AE18: =#REF! ->  | AF18: =#REF! ->  | AS18: 双多
B19: 晋巨 | AS19: 晋巨
B20: 晋银 | C20: =数据基表!B233 -> 836 | D20: =#REF! ->  | E20: =#REF! ->  | F20: =#REF! ->  | G20: =#REF! ->  | H20: =数据基表!G233 -> 775 | I20: =#REF! ->  | J20: =#REF! ->  | K20: =#REF! ->  | L20: =#REF! ->  | M20: =数据基表!L233 -> 1308 | N20: =#REF! ->  | O20: =#REF! ->  | P20: =#REF! ->  | Q20: =#REF! ->  | R20: =数据基表!Q233 -> 62 | S20: =#REF! ->  | T20: =#REF! ->  | U20: =#REF! ->  | V20: =#REF! ->  | AC20: =#REF! ->  | AD20: =#REF! ->  | AE20: =#REF! ->  | AF20: =#REF! ->  | AS20: 晋银 | AT20: =数据基表!B239 -> 2102 | AU20: =#REF! ->  | AV20: =#REF! ->  | AW20: =数据基表!E239 -> 2080 | AX20: =数据基表!F239 -> 35624 | AY20: =数据基表!G239 -> 0 | AZ20: =#REF! ->  | BA20: =#REF! ->  | BB20: =数据基表!J239 -> 2280 | BC20: =数据基表!K239+数据基表!K240 -> 2022 | BD20: =数据基表!L239 -> 150 | BE20: =#REF! ->  | BF20: =#REF! ->  | BG20: =数据基表!O239 -> 3580 | BL20: =#REF! ->  | BM20: =#REF! ->  | BN20: =数据基表!V239 -> 1180 | BO20: =数据基表!W239 -> 1167 | BP20: =数据基表!X239 -> 1178 | BQ20: =数据基表!Y239 -> 1332 | BR20: =数据基表!Z239 -> 1318 | BS20: =数据基表!AA239 -> 1296 | BT20: =数据基表!AB239 -> 1114 | BU20: =数据基表!AC239 -> 1112 | BV20: =数据基表!AD239 -> 1111 | BW20: =数据基表!AE239 -> 146 | BX20: =数据基表!AF239 -> 154 | BY20: =数据基表!AG239 -> 148 | BZ20: =数据基表!AH239 -> 17040 | CA20: =数据基表!AI239 -> 1088 | CB20: =数据基表!AJ239 -> 0 | CC20: =数据基表!AK239 -> 0
B21: 金象 | C21: =数据基表!B251 -> 1206.44 | D21: =#REF! ->  | E21: =#REF! ->  | F21: =#REF! ->  | G21: =#REF! ->  | H21: =数据基表!G251 -> 982.78 | I21: =#REF! ->  | J21: =#REF! ->  | K21: =#REF! ->  | L21: =#REF! ->  | M21: =数据基表!L251 -> 1320 | N21: =#REF! ->  | O21: =#REF! ->  | P21: =#REF! ->  | Q21: =#REF! ->  | R21: =数据基表!Q251 -> 211 | S21: =#REF! ->  | T21: =#REF! ->  | U21: =#REF! ->  | V21: =#REF! ->  | AC21: =#REF! ->  | AD21: =#REF! ->  | AE21: =#REF! ->  | AF21: =#REF! ->  | AS21: 金象 | AT21: =数据基表!B256 -> 1484 | AU21: =#REF! ->  | AV21: =#REF! ->  | AW21: =数据基表!E256 -> 2020 | AX21: =数据基表!F256 -> 3189 | AY21: =数据基表!G256 -> 33 | AZ21: =#REF! ->  | BA21: =#REF! ->  | BB21: =数据基表!J256 -> 2120 | BC21: =数据基表!K256 -> 1687 | BD21: =数据基表!L256 -> 315 | BE21: =#REF! ->  | BF21: =#REF! ->  | BG21: =数据基表!O256 -> 3250 | BL21: =#REF! ->  | BM21: =#REF! ->  | BN21: =数据基表!V256 -> 1146 | BO21: =数据基表!W256 -> 1144 | BP21: =数据基表!X256 -> 1213 | BQ21: =数据基表!Y256 -> 1176.3 | BR21: =数据基表!Z256 -> 1169.19 | BS21: =数据基表!AA256 -> 1201.33 | BT21: =数据基表!AB256 -> 983 | BU21: =数据基表!AC256 -> 978 | BV21: =数据基表!AD256 -> 999 | BW21: =数据基表!AE256 -> 153.64 | BX21: =数据基表!AF256 -> 154.86 | BY21: =数据基表!AG256 -> 153.94 | BZ21: =数据基表!D260 -> 8474.81 | CA21: =数据基表!E260 -> 1470.65
B22: 天源 | C22: =数据基表!B265 -> 2029.69 | D22: =#REF! ->  | E22: =#REF! ->  | F22: =#REF! ->  | G22: =#REF! ->  | H22: =数据基表!G265 -> 1641.71 | I22: =#REF! ->  | J22: =#REF! ->  | K22: =#REF! ->  | L22: =#REF! ->  | M22: =数据基表!L265 -> 2562 | N22: =#REF! ->  | O22: =#REF! ->  | P22: =#REF! ->  | Q22: =#REF! ->  | R22: =数据基表!Q265 -> 361.7 | S22: =#REF! ->  | T22: =#REF! ->  | U22: =#REF! ->  | V22: =#REF! ->  | AC22: =#REF! ->  | AD22: =#REF! ->  | AE22: =#REF! ->  | AF22: =#REF! ->  | AM22: 2135 | AN22: 788 | AS22: 天源 | AT22: =数据基表!B270 -> 2860 | AU22: =#REF! ->  | AV22: =#REF! ->  | AW22: =数据基表!E270 -> 2000 | AX22: =数据基表!F270 -> 1835.7 | AY22: =数据基表!G270 -> 629.94 | AZ22: =#REF! ->  | BA22: =#REF! ->  | BB22: =数据基表!J270 -> 2120 | BC22: =数据基表!K270 -> 2371.9504 | BD22: =数据基表!L270 -> 325.86 | BE22: =#REF! ->  | BF22: =#REF! ->  | BG22: =数据基表!O270 -> 3250 | BL22: =#REF! ->  | BM22: =#REF! ->  | BN22: =数据基表!V270 -> 1114 | BO22: =数据基表!W270 -> 1111 | BP22: =数据基表!X270 -> 1106 | BQ22: =数据基表!Y270 -> 959 | BR22: =数据基表!Z270 -> 968 | BS22: =数据基表!AA270 -> 926 | BT22: =数据基表!AB270 -> 931 | BU22: =数据基表!AC270 -> 926 | BV22: =数据基表!AD270 -> 923 | BW22: =数据基表!AE270 -> 180 | BX22: =数据基表!AF270 -> 183 | BY22: =数据基表!AG270 -> 176 | BZ22: =数据基表!AH270 -> 5331.08 | CA22: =数据基表!AI270 -> 2563.9 | CB22: =数据基表!AJ270 -> 0 | CC22: =数据基表!AK270 -> 0 | CD22: =数据基表!AL270 -> 2105.42 | CE22: =数据基表!AM270 -> 916.57
B23: 天庆 | C23: =数据基表!A275 -> 2825.91 | D23: =#REF! ->  | E23: =#REF! ->  | F23: =#REF! ->  | G23: =#REF! ->  | H23: =数据基表!F275 -> 1136.39 | I23: =#REF! ->  | J23: =#REF! ->  | K23: =#REF! ->  | L23: =#REF! ->  | M23: =数据基表!K275 -> 1775.344 | N23: =#REF! ->  | O23: =#REF! ->  | P23: =#REF! ->  | Q23: =#REF! ->  | R23: =数据基表!P275 -> 0 | S23: =#REF! ->  | T23: =#REF! ->  | U23: =#REF! ->  | V23: =#REF! ->  | W23: =数据基表!U275 -> 1013712 | X23: 24000000 | Y23: 13239000 | AA23: 84827949 | AS23: 天庆 | AT23: =数据基表!B280 -> 2013.872 | AU23: =#REF! ->  | AV23: =#REF! ->  | AW23: =数据基表!E280 -> 2070 | AX23: =数据基表!F280 -> 2153.058 | BD23: =数据基表!L280 -> 63.28 | BE23: =#REF! ->  | BF23: =#REF! ->  | BG23: =数据基表!O280 -> 3350 | BL23: =#REF! ->  | BM23: =#REF! ->  | BN23: =数据基表!V280 -> 1058.92969 | BO23: =数据基表!W280 -> 1038.513548 | BP23: =数据基表!X280 -> 1047.788535 | BQ23: =数据基表!Y280 -> 235.2297136 | BR23: =数据基表!Z280 -> 232.396071 | BS23: =数据基表!AA280 -> 233.0036172 | BT23: =数据基表!AB280 -> 817.8696636 | BU23: =数据基表!AC280 -> 818.1920091 | BV23: =数据基表!AD280 -> 818.7106685 | BW23: =数据基表!AE280 -> 140.1418542 | BX23: =数据基表!AF280 -> 140.969468 | BY23: =数据基表!AG280 -> 141.5611776 | BZ23: =数据基表!AH280 -> 24120.307 | CA23: =数据基表!AI280 -> 2992.44 | CB23: =数据基表!AJ280 -> 0 | CC23: =数据基表!AK280 -> 540.82 | CD23: =数据基表!AL280 -> 8997.75 | CE23: =数据基表!AM280 -> 1901.6
B24: 华昱 | C24: =数据基表!B285 -> 0 | R24: =数据基表!Q285 -> 0 | AS24: 华昱 | AY24: =数据基表!B295 -> 796.8 | BB24: =数据基表!E295 -> 2220 | BC24: =数据基表!F295 -> 15223.6 | BN24: =数据基表!M295*1000 -> 0 | BO24: =数据基表!N295*1000 -> 1357.527106 | BP24: =数据基表!O295*1000 -> 1393.745589 | BQ24: =数据基表!P295 -> 0 | BR24: =数据基表!Q295 -> 312.6159586 | BS24: =数据基表!R295 -> 249.1705949 | CB24: =数据基表!U295 -> 59225.23 | CC24: =数据基表!V295 -> 0 | CD24: =数据基表!S295 -> 13612.6 | CE24: =数据基表!T295 -> 481.1
B25: 石油 | AG25: =数据基表!B302+数据基表!B303 -> 760
AT26: 当日 | AW26: 价格 | AX26: 库存量 | BK26: 当日 | BN26: 价格 | BO26: 库存量 | BP26: 当日 | BQ26: 月累 | BR26: 年累 | BS26: 当日 | BT26: 月累 | BU26: 年累 | BV26: 当日 | BW26: 月累 | BX26: 年累 | BY26: 原料末煤库存 | BZ26: 日消耗 | CA26: 燃料末煤库存 | CB26: 日消耗
AS27: 石油 | AT27: =数据基表!B306+数据基表!B307 -> 1003 | AU27: =#REF! ->  | AV27: =#REF! ->  | AW27: =数据基表!E306 -> 7009 | AX27: =数据基表!F306+数据基表!F307 -> 30727
AS28: 天溪 | BK28: =数据基表!N221 -> 0 | BL28: =#REF! ->  | BM28: =#REF! ->  | BN28: =数据基表!Q221 -> 0 | BO28: =数据基表!R221 -> 0 | BP28: =数据基表!S221 -> 0 | BQ28: =数据基表!T221 -> 0 | BR28: =数据基表!U221 -> 0 | BS28: =数据基表!V221 -> 0 | BT28: =数据基表!W221 -> 0 | BU28: =数据基表!X221 -> 0 | BV28: =数据基表!Y221 -> 1607 | BW28: =数据基表!Z221 -> 1790 | BX28: =数据基表!AA221 -> 1550 | BY28: =数据基表!G226 -> 9700 | BZ28: =数据基表!H226 -> 1768 | CA28: =数据基表!J226 -> 3000 | CB28: =数据基表!K226 -> 668
A30: 昨 日 月 累 | B30: 2 | C30: 总氨 | H30: 合成氨 | M30: 尿素 | R30: 甲醇 | W30: 复合肥料 | AB30: 精细化工 | AG30: 石化产品 | AL30: 合成油 | AT30: 尿素 | AW30: 甲醇 | AX30: 液氨 | AY30: 肥料 | BB30: 精细 | BC30: 石化 | BD30: 合成油 | BG30: 今日库存 | BK30: 选 择 性 粘 贴 至 此 处
B31: 金石 | C31: 59106.29809 | H31: 46013.57 | M31: 25474.2 | R31: 9183.75 | W31: 49922 | AB31: 17237 | AS31: 金石 | AT31: 12694.1246 | AW31: 6034.65 | AX31: 27519.2 | AY31: 22590 | BB31: 14004.782 | BG31: 尿素 | BH31: 142904.278 | BY31: 尿素产销差值 | CA31: 甲醇产销差值
B32: 晋丰 | C32: 23321.11 | H32: 20080.12 | M32: 24686.04 | R32: 2841.11 | W32: 0 | AB32: 0 | AS32: 晋丰 | AT32: 30328.248 | AW32: 2259.18 | AX32: 5368.6 | AY32: 0 | BB32: 0 | BG32: 甲醇 | BH32: 101749.3943 | BX32: 金石 | BY32: =M7-AT7 -> 774.343 | CA32: =R7-AY7 -> 285.18 | CD32: =AX7-BY32 -> 4846.792
B33: 晋开 | C33: 47977 | H33: 47977 | M33: 21453 | R33: 1181 | W33: 20615 | AB33: 0 | AS33: 晋开 | AT33: 23847 | AW33: 0 | AX33: 18055.02 | AY33: 9441.16 | BB33: 0 | BO33: 1229.631327 | BR33: 华强400 金华润400 金源100 | BU33: 900 | BX33: 晋丰 | BY33: -1086 | CA33: -292 | CD33: 4030
B34: 恒盛 | C34: 14334 | H34: 11279 | M34: 0 | R34: 2884 | W34: 0 | AS34: 恒盛 | AT34: 2090 | AW34: 1393 | AX34: 11088 | AY34: 0 | BB34: 0 | BG34: 尿素 | BH34: 2082.630022 | BO34: 1122.1713 | BR34: 三宁400 | BU34: 400 | BX34: 晋开 | BY34: 965 | CA34: 0 | CD34: 31584
B35: 联盟 | C35: 56853.1245 | H35: 47640.6532 | M35: 56013.85 | R35: 8370.883 | W35: 0 | AB35: 2364 | AS35: 联盟 | AT35: 61395.58 | AW35: 9049.34 | AX35: 13430.11 | AY35: 0 | BB35: 0 | BG35: 甲醇 | BH35: 2271.040752 | BR35: 日月400 | BU35: 400 | BX35: 恒盛 | BY35: 0 | CA35: 135 | CD35: 0
B36: 明水 | C36: 68779.68038 | H36: 39485.51 | M36: 52928.86 | R36: 25777 | W36: 0 | AB36: 0 | AG36: 78 | AS36: 明水 | AT36: 58097.74 | AW36: 19626.1 | AX36: 8560.06 | AY36: 0 | BB36: 0 | BG36: 液氨 | BH36: 3494.732948 | BO36: 1320 | BR36: 晋巨400 | BU36: 400 | BX36: 联盟 | BY36: 78.9 | CA36: -262.394 | CD36: -78.9
B37: 中能 | C37: 51737 | H37: 34085 | M37: 37731 | R37: 14447 | W37: 0 | AB37: 13752 | AS37: 中能 | AT37: 52446 | AW37: 19657 | AX37: 9766 | AY37: 0 | BB37: 13718 | BO37: 1200 | BX37: 明水 | BY37: 112.51 | CA37: 361.27 | CD37: 3074.49
B38: 昊源 | C38: 97834.2548 | H38: 54315.3474 | M38: 38131.8 | R38: 33581.39 | W38: 0 | AB38: 21315.1 | AS38: 昊源 | AT38: 42102.63 | AW38: 29453.05 | AX38: 24948.85 | AY38: 0 | BB38: 11738.52 | BX38: 中能 | BY38: 727 | CA38: -321 | CD38: 36078
B39: 三宁 | C39: 68582.106 | H39: 58775.056 | M39: 43632.04 | R39: 9607.05 | W39: 130045.949 | AB39: 7616.66 | AS39: 三宁 | AT39: 7829.14 | AW39: 3408.36 | AX39: 15631.84 | AY39: 0 | BB39: 6228.14 | BO39: 1240 | BX39: 昊源 | BY39: -165.95 | CA39: 114.5 | CD39: 3393.32
B40: 日月 | C40: 14709 | H40: 11470 | M40: 0 | R40: 3239 | AB40: 6275 | AS40: 日月 | AT40: 0 | AW40: 0 | AX40: 3351 | BB40: 5183 | BO40: 1250 | BX40: 三宁 | BY40: -161.51 | CA40: 305.1 | CD40: 15680.43
B41: 天溪 | C41: 1092.86 | H41: 0 | M41: 0 | R41: 1031 | AL41: 0 | AS41: 天溪 | AT41: 0 | AW41: 100 | BB41: 0 | BD41: 0 | BO41: 1294 | BX41: 日月 | BY41: 0 | CA41: 260 | CD41: 0
B42: 双多 | C42: 0 | H42: 0 | M42: 0 | R42: 0 | AS42: 双多 | AT42: 0 | AW42: 0 | AX42: 0 | BB42: 0 | BO42: 1250 | BV42: . | BX42: 天溪 | BY42: 0 | CA42: 181 | CD42: 0
B43: 晋银 | C43: 11299 | H43: 10464 | M43: 15743 | R43: 833 | AS43: 晋银 | AT43: 25612 | AW43: 239 | BX43: 晋巨 | BY43: =M19-AT19 -> 0 | CA43: =R19-AY19 -> 0 | CD43: =AX19-BY43 -> 0
B44: 金象 | C44: 15752.64 | H44: 12875.95 | M44: 17274.28 | R44: 2716.6 | AS44: 金象 | AT44: 13357 | AW44: 1846.68 | BO44: 1350 | BX44: 晋银 | BY44: =M20-AT20 -> -794 | CA44: =R20-AY20 -> 62 | CD44: =AX20-BY44 -> 36418
B45: 天源 | C45: 26095.96 | H45: 21177.37 | M45: 32608 | R45: 4363.1 | AS45: 天源 | AT45: 42976.68 | AW45: 2692.54 | AX45: 0 | BO45: 1100 | BX45: 金象 | BY45: =M21-AT21 -> -164 | CA45: =R21-AY21 -> 178 | CD45: =AX21-BY45 -> 3353
B46: 天庆 | C46: 37441.192 | H46: 14778.212 | M46: 23067.377 | AS46: 天庆 | AT46: 32415.802 | AW46: 0 | BO46: 1120 | BX46: 天源 | BY46: =M22-AT22 -> -298 | CA46: =R22-AY22 -> -268.24 | CD46: =AX22-BY46 -> 2133.7
B47: 华昱 | C47: 19961.29248 | H47: 0 | R47: 19616.05 | AS47: 华昱 | AT47: 828.26 | AW47: 15189.88
B48: 石油 | AG48: 10592 | AS48: 石油 | BC48: 12753 | BX48: 天庆 | BY48: =M23-AT23 -> -238.528 | CA48: =R23-AY23 -> 0 | CD48: =AX23-BY48 -> 2391.586
BO49: 1198 | CA49: =R24-AY24 -> -796.8
A51: 今 日 月 累 | B51: 1 | C51: 总氨 | H51: 合成氨 | M51: 尿素 | R51: 甲醇 | W51: 复合肥料 | AB51: 精细化工 | AG51: 石化产品 | AL51: 合成油 | AT51: 尿素 | AW51: 甲醇 | AX51: 液氨 | AY51: 肥料 | BB51: 精细 | BC51: 石化 | BD51: 合成油 | BG51: 今日库存 | BK51: 复 制 此 处
B52: 金石 | C52: =表一!E6 -> 63641.29809 | H52: =表一!M6 -> 49541.49 | M52: =表一!E26 -> 27087 | R52: =表一!M26 -> 9920.93 | W52: =数据基表!X10 -> 51976 | AB52: =表一!M46 -> 18581 | AS52: 金石 | AT52: =表二!C7 -> 13532.5816 | AW52: =表二!H7 -> 6486.65 | AX52: =表二!C27 -> 29766.06 | AY52: =表二!G27 -> 24290 | BB52: =表二!J27 -> 15030.922 | BG52: 尿素 | BH52: =表二!F6 -> 142654.183 | BO52: 尿素当日产销率 | BQ52: =表二!B6/表一!B25 -> 1.008400865 | BS52: 销量 | BT52: =表二!B6 -> 30037.049 | BV52: 价格 | BW52: =表二!E6 -> 2084.291735 | BY52: 昨日价格 | CA52: =BH34 -> 2082.630022 | CB52: 差值 | CC52: =BW52-CA52 -> 1.661712339 | CD52: 库存增减 | CE52: =表二!F6-数据填报!BH31 -> -250.095
B53: 晋丰 | C53: =表一!E7 -> 24834.11 | H53: =表一!M7 -> 21383.12 | M53: =表一!E27 -> 26623.04 | R53: =表一!M27 -> 2988.11 | W53: =数据基表!X25 -> 0 | AB53: =表一!M47 -> 0 | AS53: 晋丰 | AT53: =表二!C8 -> 33351.248 | AW53: =表二!H8 -> 2698.18 | AX53: =表二!C28 -> 5925.6 | AY53: =表二!G28 -> 0 | BB53: =表二!J28 -> 0 | BG53: 甲醇 | BH53: =表二!K6 -> 99820.6174 | BO53: 甲醇当日产销率 | BQ53: =表二!G6/表一!J25 -> 1.005724143 | BS53: 销量 | BT53: =表二!G6 -> 10257.99 | BV53: 价格 | BW53: =表二!J6 -> 2258.933671 | BY53: 昨日价格 | CA53: =BH35 -> 2271.040752 | CB53: 差值 | CC53: =BW53-CA53 -> -12.10708107 | CD53: 库存增减 | CE53: =表二!K6-数据填报!BH32 -> -1928.7769
B54: 晋开 | C54: =表一!E8 -> 51996 | H54: =表一!M8 -> 51996 | M54: =表一!E28 -> 24098 | R54: =表一!M28 -> 1181 | W54: =数据基表!X44 -> 20975 | AB54: =表一!M48 -> 0 | AS54: 晋开 | AT54: =表二!C9 -> 25527 | AW54: =表二!H9 -> 0 | AX54: =表二!C29 -> 19508.22 | AY54: =表二!G29 -> 10468.36 | BB54: =表二!J29 -> 0 | BT54: 液氨 | BV54: 价格 | BW54: =BH57 -> 3482.798579 | BY54: 昨日价格 | CA54: =BH36 -> 3494.732948 | CB54: 差值 | CC54: =BW54-CA54 -> -11.93436898
B55: 恒盛 | C55: =表一!E9 -> 15477 | H55: =表一!M9 -> 12167 | M55: =表一!E29 -> 0 | R55: =表一!M29 -> 3125 | W55: =数据基表!X66 -> 0 | AS55: 恒盛 | AT55: =表二!C10 -> 2090 | AW55: =表二!H10 -> 1499 | AX55: =表二!C30 -> 12020 | AY55: =表二!G30 -> 0 | BB55: =表二!J30 -> 0 | BG55: 尿素 | BH55: =表二!E6 -> 2084.291735 | BO55: 总氨 | BP55: 产量 | BQ55: =C6 -> 45947.02444
B56: 联盟 | C56: =表一!E10 -> 61049.5896 | H56: =表一!M10 -> 51227.0977 | M56: =表一!E30 -> 60206.75 | R56: =表一!M30 -> 8924.629 | W56: =数据基表!X78 -> 0 | AB56: =数据基表!AC80 -> 2613 | AS56: 联盟 | AT56: =表二!C11 -> 65509.58 | AW56: =表二!H11 -> 9865.48 | AX56: =表二!C31 -> 14536.61 | AY56: =表二!G31 -> 0 | BB56: =表二!J31 -> 0 | BG56: 甲醇 | BH56: =表二!J6 -> 2258.933671 | BO56: 合成氨 | BP56: 产量 | BQ56: =H6 -> 32423.0473 | BS56: 销量 | BT56: =表二!B26 -> 11868.26 | BV56: 价格 | BW56: =表二!E26 -> 3482.798579
B57: 明水 | C57: =表一!E11 -> 74095.87332 | H57: =表一!M11 -> 42557.94 | M57: =表一!E31 -> 57157.37 | R57: =表一!M31 -> 27774 | W57: =数据基表!X92 -> 0 | AB57: =数据基表!AC92 -> 0 | AG57: 78 | AS57: 明水 | AT57: =表二!C12 -> 62213.74 | AW57: =表二!H12 -> 21261.83 | AX57: =表二!C32 -> 9189.1 | AY57: =表二!G32 -> 0 | BB57: =表二!J32 -> 0 | BG57: 液氨 | BH57: =表二!E26 -> 3482.798579 | BO57: 尿素 | BP57: 产量 | BQ57: =M6 -> 29786.814 | BS57: 销量 | BT57: =表二!B6 -> 30037.049
B58: 中能 | C58: =表一!E12 -> 55761 | H58: =表一!M12 -> 36653 | M58: =表一!E32 -> 40602 | R58: =表一!M32 -> 15727 | W58: =数据基表!X133 -> 0 | AB58: =数据基表!AC133 -> 14898 | AS58: 中能 | AT58: =表二!C13 -> 54590 | AW58: =表二!H13 -> 21258 | AX58: =表二!C33 -> 10484 | AY58: =表二!G33 -> 0 | BB58: =表二!J33 -> 15002 | BP58: 库存 | BQ58: =BH52 -> 142654.183 | BS58: 价格 | BT58: =BH55 -> 2084.291735
B59: 昊源 | C59: =表一!E13 -> 105353.4562 | H59: =表一!M13 -> 58597.7752 | M59: =表一!E33 -> 40957.57 | R59: =表一!M33 -> 36113.19 | W59: =数据基表!X156 -> 0 | AB59: =数据基表!AC156 -> 22538.45 | AS59: 昊源 | AT59: =表二!C14 -> 45094.35 | AW59: =表二!H14 -> 31870.35 | AX59: =表二!C34 -> 26910.77 | AY59: =表二!G34 -> 0 | BB59: =表二!J34 -> 12641.29
B60: 三宁 | C60: =表一!E14 -> 73059.231 | H60: =表一!M14 -> 62535.001 | M60: =表一!E34 -> 46140.53 | R60: =表一!M34 -> 10324.23 | W60: =数据基表!AC180 -> 136632.019 | AB60: =数据基表!X180 -> 8074.79 | AS60: 三宁 | AT60: =表二!C15 -> 10499.14 | AW60: =表二!H15 -> 3820.44 | AX60: =表二!C35 -> 16810.72 | AY60: =表二!G35 -> 0 | BB60: =表二!J35 -> 6780.86 | BO60: 甲醇 | BP60: 产量 | BQ60: =R6 -> 10199.606 | BS60: 销量 | BT60: =表二!G6 -> 10257.99
B61: 日月 | C61: =表一!E15 -> 15849 | H61: =表一!M15 -> 12350 | M61: =表一!E35 -> 0 | R61: =表一!M35 -> 3499 | AB61: =数据基表!AC197 -> 6808 | AS61: 日月 | AT61: =表二!C16 -> 0 | AW61: =表二!H16 -> 0 | AX61: =表二!C36 -> 3645 | BB61: =表二!J36 -> 5602 | BP61: 库存 | BQ61: =BH53 -> 99820.6174 | BS61: 价格 | BT61: =BH56 -> 2258.933671
B62: 天溪 | C62: =表一!E16 -> 2258.86 | H62: =表一!M16 -> 0 | M62: =表一!E36 -> 0 | R62: =表一!M36 -> 2131 | AL62: =表一!M60 -> 0 | AS62: 天溪 | AT62: =表二!C17 -> 0 | AW62: =表二!H17 -> 1019 | BB62: =表二!J37 -> 0 | BD62: =表二!H48 -> 0
B63: 双多 | C63: =表一!E17 -> 0 | H63: =表一!M17 -> 0 | M63: =表一!E37 -> 0 | R63: =表一!M37 -> 0 | AS63: 双多 | AT63: =表二!C18 -> 0 | AW63: =表二!H18 -> 0 | AX63: =[1]表二!C38 -> 0 | BB63: =表二!J38 -> 0 | BO63: 复合肥 | BP63: 产量 | BQ63: =W6 -> 8929.87 | BS63: 销量 | BT63: =表二!F26 -> 7521.87
B64: 晋银 | C64: =表一!E18 -> 12135 | H64: =表一!M18 -> 11239 | M64: =表一!E38 -> 17051 | R64: =表一!M38 -> 895 | AS64: 晋银 | AT64: =表二!C19 -> 27714 | AW64: =表二!H19 -> 239 | BO64: 石化 | BP64: 产量 | BQ64: =AG6 -> 760 | BS64: 销量 | BT64: =AT27 -> 1003
B65: 金象 | C65: =表一!E19 -> 16959.08 | H65: =表一!M19 -> 13858.73 | M65: =表一!E39 -> 18594.28 | R65: =表一!M39 -> 2927.6 | AS65: 金象 | AT65: =表二!C20 -> 14841 | AW65: =表二!H20 -> 1879.68
B66: 天源 | C66: =表一!E20 -> 28125.65 | H66: =表一!M20 -> 22819.08 | M66: =表一!E40 -> 35170 | R66: =表一!M40 -> 4724.8 | AS66: 天源 | AT66: =表二!C21 -> 45836.68 | AW66: =表二!H21 -> 3322.48 | AX66: 0 | BO66: 合成油 | BP66: 产量 | BQ66: =AL6 -> 0 | BS66: 销量 | BT66: =BK28 -> 0
B67: 天庆 | C67: =表一!E21 -> 40267.102 | H67: =表一!M21 -> 15914.602 | M67: =表一!E41 -> 24842.721 | AS67: 天庆 | AT67: =表二!C22 -> 34429.674 | AW67: =表二!H22 -> 0
B68: 华昱 | C68: =表一!E22 -> 19961.29248 | H68: =[1]表一!M22 -> 0 | M68: =[1]表一!E42 ->  | R68: =表一!M42 -> 19616.05 | AS68: 华昱 | AT68: =数据基表!C295 -> 30726.06 | AW68: =表二!H23 -> 15986.68
B69: 石油 | AG69: =表一!E59 -> 11352 | AS69: 石油 | BC69: =表二!C47 -> 13756 | BP69: 库存 | BQ69: =BO28 -> 0 | BS69: 价格 | BT69: =BN28 -> 0
BO71: 精细 | BP71: 产量 | BQ71: =AB6 -> 4819.48 | BS71: 销量 | BT71: =表二!I26 -> 4184.63
BY77: q
B267: 0 | C267: 0 | D267: 9314 | E267: 0 | F267: 0 | G267: 5 | H267: 498 | I267: 10905 | J267: 2980 | K267: 2745 | L267: 621 | M267: 11027 | N267: 32035 | O267: 2800 | P267: 93 | Q267: 1396 | R267: 3675 | S267: 175 | T267: 4565 | U267: 12057 | V267: 1170 | W267: 1163.333333 | X267: 1163.277019 | Y267: 981 | Z267: 989.3333333 | AA267: 989.1171578 | AB267: 0 | AC267: 0 | AD267: 9.979147273e-05 | AE267: 0
B271: 0 | C271: 0 | D271: 9314 | E271: 0 | F271: 0 | G271: 0 | H271: 498 | I271: 10905 | J271: 2980 | K271: 3036 | L271: 465 | M271: 11492 | N271: 32500 | O271: 2800 | P271: 45 | Q271: 379 | R271: 3720 | S271: 175 | T271: 4740 | U271: 12232 | V271: 1155 | W271: 1163 | X271: 1163.13851 | Y271: 982 | Z271: 989.04 | AA271: 192 | AB271: 0 | AC271: 0 | AD271: 4.989573636e-05 | AE271: 0 | AF271: 0 | AG271: 5.488088899e-06 | AH271: 5386 | AI271: 1026 | AJ271: 365 | AK271: 133
B279: 994 | C279: 23803 | D279: 157396 | E279: 1480 | F279: 82346 | G279: 0(精） | H279: 1759 | I279: 4365 | K279: 15 | L279: 0 | M279: 361 | N279: 9241 | O279: 2250 | V279: 1140 | W279: 1129 | X279: 1138 | Y279: 1249 | Z279: 1244 | AA279: 1259 | AB279: 1106 | AC279: 1103 | AD279: 1102 | AE279: 143
B284: 994 | C284: 23803 | D284: 157396 | E284: 1480 | F284: 82346 | G284: 0(精） | H284: 1759 | I284: 4365 | K284: 15 | L284: 0 | M284: 361 | N284: 9241 | O284: 2250 | V284: 1140 | W284: 1129 | X284: 1138 | Y284: 1249 | Z284: 1244 | AA284: 1259 | AB284: 1106 | AC284: 1103 | AD284: 1102 | AE284: 143 | AF284: 144 | AG284: 149 | AH284: 29918 | AI284: 974

Sheet 表一
A1: 晋城煤业集团煤化工板块生产调度情况日报表（一） | S1: 月修改项目
A2: 单位：吨 | N2: =数据填报!M2 -> 2021-04-14 | S2: 各公司当月生产计划
A3: 单位 | B3: 总氨产量 | E3: 本月计划 | F3: =T5 -> 1386312.329 | G3: 截止今日完成比例： | I3: =E5/F3*100% -> 0.4766772458 | J3: 合成氨产量 | M3: 本月计划 | N3: =U5 -> 888230.137 | O3: 截止今日完成比例： | Q3: =M5/N3*100% -> 0.5210809864 | T3: 总氨 | U3: 合成氨
B4: 当日 | C4: 日计划量 | D4: 月累计划 | E4: 月累实际 | F4: 月累超亏 | G4: 年累计划 | H4: 年累实际 | I4: 年累超亏 | J4: 当日 | K4: 日计划量 | L4: 月累计划 | M4: 月累实际 | N4: 月累超亏 | O4: 年累计划 | P4: 年累实际 | Q4: 年累超亏 | T4: 月生产计划 | U4: 月生产计划
A5: 合计 | B5: =SUM(B6:B22) -> 45947.02444 | C5: =SUM(C6:C22) -> 46210.35616 | D5: =SUM(D6:D22) -> 646944.9863 | E5: =SUM(E6:E22) -> 660823.5427 | F5: =E5-D5 -> 13878.55639 | G5: =SUM(G6:G22) -> 4805877.041 | H5: =SUM(H6:H22) -> 3572747.222 | I5: =H5-G5 -> -1233129.819 | J5: =SUM(J6:J22) -> 32423.0473 | K5: =SUM(K6:K22) -> 29607.74795 | L5: =SUM(L6:L22) -> 414508.4712 | M5: =SUM(M6:M22) -> 462839.8359 | N5: =M5-L5 -> 48331.36467 | O5: =SUM(O6:O22) -> 3079205.786 | P5: =SUM(P6:P22) -> 2297435.023 | Q5: =P5-O5 -> -781770.7636 | S5: 合计 | T5: 1386312.329 | U5: 888230.137
A6: 晋煤金石 | B6: =数据填报!C7 -> 4535 | C6: =T6/数据填报!$AT$2 -> 4763.150685 | D6: =T6/数据填报!$AT$2*数据填报!$AY$2 -> 66684.10959 | E6: =数据填报!C31+数据填报!C7 -> 63641.29809 | F6: =E6-D6 -> -3042.811501 | G6: =分月生产计划!O4-表一!T6/数据填报!$AT$2*(数据填报!$AT$2-数据填报!$AY$2) -> 495367.6712 | H6: =历史产量!N4+表一!E6 -> 322849.7021 | I6: =H6-G6 -> -172517.9691 | J6: =数据填报!H7 -> 3527.92 | K6: =U6/数据填报!$AT$2 -> 3442.268493 | L6: =U6/数据填报!$AT$2*数据填报!$AY$2 -> 48191.7589 | M6: =数据填报!H31+数据填报!H7 -> 49541.49 | N6: =M6-L6 -> 1349.731096 | O6: =分月生产计划!O23-表一!U6/数据填报!$AT$2*(数据填报!$AT$2-数据填报!$AY$2) -> 357995.9233 | P6: =历史产量!N23+表一!M6 -> 251138.58 | Q6: =P6-O6 -> -106857.3433 | S6: 晋煤金石 | T6: 142894.5205 | U6: 103268.0548
A7: 山西晋丰 | B7: =数据填报!C8 -> 1513 | C7: =T7/数据填报!$AT$2 -> 1694.794521 | D7: =T7/数据填报!$AT$2*数据填报!$AY$2 -> 23727.12329 | E7: =数据填报!C32+数据填报!C8 -> 24834.11 | F7: =E7-D7 -> 1106.986712 | G7: =分月生产计划!O5-表一!T7/数据填报!$AT$2*(数据填报!$AT$2-数据填报!$AY$2) -> 176258.6301 | H7: =历史产量!N5+表一!E7 -> 65488.82 | I7: =H7-G7 -> -110769.8101 | J7: =数据填报!H8 -> 1303 | K7: =U7/数据填报!$AT$2 -> 1447.39726 | L7: =U7/数据填报!$AT$2*数据填报!$AY$2 -> 20263.56164 | M7: =数据填报!H32+数据填报!H8 -> 21383.12 | N7: =M7-L7 -> 1119.558356 | O7: =分月生产计划!O24-表一!U7/数据填报!$AT$2*(数据填报!$AT$2-数据填报!$AY$2) -> 150529.3151 | P7: =历史产量!N24+表一!M7 -> 57080.63 | Q7: =P7-O7 -> -93448.68507 | S7: 山西晋丰 | T7: 50843.83562 | U7: 43421.91781
A8: 河南晋开 | B8: =数据填报!C9 -> 4019 | C8: =T8/数据填报!$AT$2 -> 3424.657534 | D8: =T8/数据填报!$AT$2*数据填报!$AY$2 -> 47945.20548 | E8: =数据填报!C33+数据填报!C9 -> 51996 | F8: 4050.794521 | G8: =分月生产计划!O6-表一!T8/数据填报!$AT$2*(数据填报!$AT$2-数据填报!$AY$2) -> 356164.3836 | H8: =历史产量!N6+表一!E8 -> 285656 | I8: -70508.38356 | J8: =数据填报!H9 -> 4019 | K8: =U8/数据填报!$AT$2 -> 3424.657534 | L8: =U8/数据填报!$AT$2*数据填报!$AY$2 -> 47945.20548 | M8: =数据填报!H33+数据填报!H9 -> 51996 | N8: 4050.794521 | O8: =分月生产计划!O25-表一!U8/数据填报!$AT$2*(数据填报!$AT$2-数据填报!$AY$2) -> 356164.3836 | P8: =历史产量!N25+表一!M8 -> 285656 | Q8: -70508.38356 | S8: 河南晋开 | T8: 102739.726 | U8: 102739.726
A9: 江苏恒盛 | B9: =数据填报!C10 -> 1143 | C9: =T9/数据填报!$AT$2 -> 1015.616438 | D9: =T9/数据填报!$AT$2*数据填报!$AY$2 -> 14218.63014 | E9: =数据填报!C34+数据填报!C10 -> 15477 | F9: 1258.369863 | G9: =分月生产计划!O7-表一!T9/数据填报!$AT$2*(数据填报!$AT$2-数据填报!$AY$2) -> 105624.1096 | H9: =历史产量!N7+表一!E9 -> 86539 | I9: -19085.10959 | J9: =数据填报!H10 -> 888 | K9: =U9/数据填报!$AT$2 -> 855.890411 | L9: =U9/数据填报!$AT$2*数据填报!$AY$2 -> 11982.46575 | M9: =数据填报!H34+数据填报!H10 -> 12167 | N9: 184.5342466 | O9: =分月生产计划!O26-表一!U9/数据填报!$AT$2*(数据填报!$AT$2-数据填报!$AY$2) -> 89012.60274 | P9: =历史产量!N26+表一!M9 -> 69767 | Q9: -19245.60274 | S9: 江苏恒盛 | T9: 30468.49315 | U9: 25676.71233
A10: 山东联盟 | B10: =数据填报!C11 -> 4196.4651 | C10: =T10/数据填报!$AT$2 -> 4055.068493 | D10: =T10/数据填报!$AT$2*数据填报!$AY$2 -> 56770.9589 | E10: =数据填报!C35+数据填报!C11 -> 61049.5896 | F10: 4278.630696 | G10: =分月生产计划!O8-表一!T10/数据填报!$AT$2*(数据填报!$AT$2-数据填报!$AY$2) -> 421727.1233 | H10: =历史产量!N8+表一!E10 -> 360643.5896 | I10: -61083.53369 | J10: =数据填报!H11 -> 3586.4445 | K10: =U10/数据填报!$AT$2 -> 3314.520548 | L10: =U10/数据填报!$AT$2*数据填报!$AY$2 -> 46403.28767 | M10: =数据填报!H35+数据填报!H11 -> 51227.0977 | N10: 4823.810029 | O10: =分月生产计划!O27-表一!U10/数据填报!$AT$2*(数据填报!$AT$2-数据填报!$AY$2) -> 344710.137 | P10: =历史产量!N27+表一!M10 -> 287281.0977 | Q10: -57429.03929 | S10: 山东联盟 | T10: 121652.0548 | U10: 99435.61644
A11: 山东明水 | B11: =数据填报!C12 -> 5316.192943 | C11: =T11/数据填报!$AT$2 -> 4328.767123 | D11: =T11/数据填报!$AT$2*数据填报!$AY$2 -> 60602.73973 | E11: =数据填报!C36+数据填报!C12 -> 74095.87332 | F11: 13493.13359 | G11: =分月生产计划!O9-表一!T11/数据填报!$AT$2*(数据填报!$AT$2-数据填报!$AY$2) -> 450191.7808 | H11: =历史产量!N9+表一!E11 -> 391095.8733 | I11: -59095.9075 | J11: =数据填报!H12 -> 3072.43 | K11: =U11/数据填报!$AT$2 -> 2191.780822 | L11: =U11/数据填报!$AT$2*数据填报!$AY$2 -> 30684.93151 | M11: =数据填报!H36+数据填报!H12 -> 42557.94 | N11: 11873.00849 | O11: =分月生产计划!O28-表一!U11/数据填报!$AT$2*(数据填报!$AT$2-数据填报!$AY$2) -> 227945.2055 | P11: =历史产量!N28+表一!M11 -> 221507.94 | Q11: -6437.265479 | S11: 山东明水 | T11: 129863.0137 | U11: 65753.42466
A12: 安徽中能 | B12: =数据填报!C13 -> 4024 | C12: =T12/数据填报!$AT$2 -> 4747.534247 | D12: =T12/数据填报!$AT$2*数据填报!$AY$2 -> 66465.47945 | E12: =数据填报!C37+数据填报!C13 -> 55761 | F12: -10704.47945 | G12: =分月生产计划!O10-表一!T12/数据填报!$AT$2*(数据填报!$AT$2-数据填报!$AY$2) -> 493743.5616 | H12: =历史产量!N10+表一!E12 -> 343761 | I12: -149982.5616 | J12: =数据填报!H13 -> 2568 | K12: =U12/数据填报!$AT$2 -> 3256.438356 | L12: =U12/数据填报!$AT$2*数据填报!$AY$2 -> 45590.13699 | M12: =数据填报!H37+数据填报!H13 -> 36653 | N12: -8937.136986 | O12: =分月生产计划!O29-表一!U12/数据填报!$AT$2*(数据填报!$AT$2-数据填报!$AY$2) -> 338669.589 | P12: =历史产量!N29+表一!M12 -> 217653 | Q12: -121016.589 | S12: 安徽中能 | T12: 142426.0274 | U12: 97693.15068
A13: 安徽昊源 | B13: =数据填报!C14 -> 7519.2014 | C13: =T13/数据填报!$AT$2 -> 6607.123288 | D13: =T13/数据填报!$AT$2*数据填报!$AY$2 -> 92499.72603 | E13: =数据填报!C38+数据填报!C14 -> 105353.4562 | F13: 12853.73017 | G13: =分月生产计划!O11-表一!T13/数据填报!$AT$2*(数据填报!$AT$2-数据填报!$AY$2) -> 687140.8219 | H13: =历史产量!N11+表一!E13 -> 568853.4562 | I13: -118287.3657 | J13: =数据填报!H14 -> 4282.4278 | K13: =U13/数据填报!$AT$2 -> 4039.726027 | L13: =U13/数据填报!$AT$2*数据填报!$AY$2 -> 56556.16438 | M13: =数据填报!H38+数据填报!H14 -> 58597.7752 | N13: 2041.610816 | O13: =分月生产计划!O30-表一!U13/数据填报!$AT$2*(数据填报!$AT$2-数据填报!$AY$2) -> 420131.5068 | P13: =历史产量!N30+表一!M13 -> 321797.7752 | Q13: -98333.73165 | S13: 安徽昊源 | T13: 198213.6986 | U13: 121191.7808 | AT13: 3559 | AU13: 86292 | AV13: 961418 | AW13: 1240 | AX13: 61597 | AY13: 528.34 | AZ13: 11313.66 | BA13: 123263.66 | BB13: 1808 | BC13: 7807.76 | BD13: 588 | BE13: 8539 | BF13: 105713 | BG13: 1907.21119 | BK13: 108.94 | BL13: 4299.36 | BM13: 56095.36 | BN13: 1202 | BO13: 1207 | BP13: 1198 | BQ13: 1259 | BR13: 1253 | BS13: 1260 | BT13: 1151 | BU13: 1156 | BV13: 1153 | BW13: 150 | BX13: 155 | BY13: 153 | BZ13: 59580 | CA13: 2158 | CB13: 43982 | CC13: 3315
A14: 湖北三宁 | B14: =数据填报!C15 -> 4477.125 | C14: =T14/数据填报!$AT$2 -> 5146.794521 | D14: =T14/数据填报!$AT$2*数据填报!$AY$2 -> 72055.12329 | E14: =数据填报!C39+数据填报!C15 -> 73059.231 | F14: 1004.107712 | G14: =分月生产计划!O12-表一!T14/数据填报!$AT$2*(数据填报!$AT$2-数据填报!$AY$2) -> 535266.6301 | H14: =历史产量!N12+表一!E14 -> 302229.231 | I14: -233037.3991 | J14: =数据填报!H15 -> 3759.945 | K14: =U14/数据填报!$AT$2 -> 3605.753425 | L14: =U14/数据填报!$AT$2*数据填报!$AY$2 -> 50480.54795 | M14: =数据填报!H39+数据填报!H15 -> 62535.001 | N14: 12054.45305 | O14: =分月生产计划!O31-表一!U14/数据填报!$AT$2*(数据填报!$AT$2-数据填报!$AY$2) -> 374998.3562 | P14: =历史产量!N31+表一!M14 -> 244535.001 | Q14: -130463.3552 | S14: 湖北三宁 | T14: 154403.8356 | U14: 108172.6027 | AT14: 2446 | AU14: 28981.93 | AV14: 319633.27 | AW14: 1940.83 | AX14: 4639.52 | AY14: 1101.77 | AZ14: 9328.19 | BA14: 118691.55 | BB14: 2561.414804 | BC14: 1482.186 | BD14: 376.3 | BE14: 5193.88 | BF14: 51652.13 | BG14: 2878.816252 | BH14: 1115 | BI14: 11317.1 | BJ14: 157581.7 | BK14: 396.806 | BL14: 4584.868 | BM14: 60499.333 | BN14: 1323.79797 | BO14: 1327.874812 | BP14: 1312.007797 | BQ14: 1191.468978 | BR14: 1071.296579 | BS14: 1148.614398 | BT14: 1175.88452 | BU14: 1155.488063 | BV14: 1141.233871 | BW14: 155 | BX14: 155 | BY14: 155
A15: 山东日月 | B15: =数据填报!C16 -> 1140 | C15: =T15/数据填报!$AT$2 -> 986.3013699 | D15: =T15/数据填报!$AT$2*数据填报!$AY$2 -> 13808.21918 | E15: =数据填报!C40+数据填报!C16 -> 15849 | F15: 2040.780822 | G15: =分月生产计划!O13-表一!T15/数据填报!$AT$2*(数据填报!$AT$2-数据填报!$AY$2) -> 102575.3425 | H15: =历史产量!N13+表一!E15 -> 77249 | I15: -25326.34247 | J15: =数据填报!H16 -> 880 | K15: =U15/数据填报!$AT$2 -> 547.9452055 | L15: =U15/数据填报!$AT$2*数据填报!$AY$2 -> 7671.232877 | M15: =数据填报!H40+数据填报!H16 -> 12350 | N15: 4678.767123 | O15: =分月生产计划!O32-表一!U15/数据填报!$AT$2*(数据填报!$AT$2-数据填报!$AY$2) -> 56986.30137 | P15: =历史产量!N32+表一!M15 -> 44150 | Q15: -12836.30137 | S15: 山东日月 | T15: 29589.0411 | U15: 16438.35616
A16: 晋煤天溪 | B16: =数据填报!C17 -> 1166 | C16: =T16/数据填报!$AT$2 -> 929.3150685 | D16: =T16/数据填报!$AT$2*数据填报!$AY$2 -> 13010.41096 | E16: =数据填报!C41+数据填报!C17 -> 2258.86 | F16: -10751.55096 | G16: =分月生产计划!O14-表一!T16/数据填报!$AT$2*(数据填报!$AT$2-数据填报!$AY$2) -> 96648.76712 | H16: =历史产量!N14+表一!E16 -> 70840.86 | I16: -25807.90712 | J16: =数据填报!H17 -> 0 | K16: =U16/数据填报!$AT$2 -> 0 | L16: =U16/数据填报!$AT$2*数据填报!$AY$2 -> 0 | M16: =数据填报!H41+数据填报!H17 -> 0 | N16: 0 | O16: =分月生产计划!O33-表一!U16/数据填报!$AT$2*(数据填报!$AT$2-数据填报!$AY$2) -> 0 | P16: =历史产量!N33+表一!M16 -> 0 | Q16: 0 | S16: 晋煤天溪 | T16: 27879.45205
A17: 江苏双多 | B17: =数据填报!C18 -> 0 | C17: =T17/数据填报!$AT$2 -> 0 | D17: =T17/数据填报!$AT$2*数据填报!$AY$2 -> 0 | E17: =数据填报!C42+数据填报!C18 -> 0 | F17: 0 | G17: =分月生产计划!O15-表一!T17/数据填报!$AT$2*(数据填报!$AT$2-数据填报!$AY$2) -> 0 | H17: =历史产量!N15+表一!E17 -> 0 | I17: 0 | J17: =数据填报!H18 -> 0 | K17: =U17/数据填报!$AT$2 -> 0 | L17: =U17/数据填报!$AT$2*数据填报!$AY$2 -> 0 | M17: =数据填报!H42+数据填报!H18 -> 0 | N17: 0 | O17: =分月生产计划!O34-表一!U17/数据填报!$AT$2*(数据填报!$AT$2-数据填报!$AY$2) -> 0 | P17: =历史产量!N34+表一!M17 -> 0 | Q17: 0 | S17: 江苏双多 | T17: 0 | U17: 0 | AN17: 0 | AP17: 0 | AY17: 220 | AZ17: 14531 | BA17: 187211 | BB17: 1600 | BC17: 3665
A18: 唐山晋银 | B18: =数据填报!C20 -> 836 | C18: =T18/数据填报!$AT$2 -> 811.5068493 | D18: =T18/数据填报!$AT$2*数据填报!$AY$2 -> 11361.09589 | E18: =数据填报!C43+数据填报!C20 -> 12135 | F18: 773.9041096 | G18: =分月生产计划!O16-表一!T18/数据填报!$AT$2*(数据填报!$AT$2-数据填报!$AY$2) -> 84396.71233 | H18: =历史产量!N16+表一!E18 -> 67835 | I18: -16561.71233 | J18: =数据填报!H20 -> 775 | K18: =U18/数据填报!$AT$2 -> 753.4246575 | L18: =U18/数据填报!$AT$2*数据填报!$AY$2 -> 10547.94521 | M18: =数据填报!H43+数据填报!H20 -> 11239 | N18: 691.0547945 | O18: =分月生产计划!O35-表一!U18/数据填报!$AT$2*(数据填报!$AT$2-数据填报!$AY$2) -> 78356.16438 | P18: =历史产量!N35+表一!M18 -> 62939 | Q18: -15417.16438 | S18: 唐山晋银 | T18: 24345.20548 | U18: 22602.73973 | AT18: 528 | AU18: 8733 | AV18: 109124 | AW18: 1360 | AX18: 1878 | AY18: 132 | AZ18: 2633 | BA18: 23074 | BB18: 1930 | BC18: 2209 | BD18: 94 | BE18: 1310 | BF18: 19530 | BG18: 2000 | BH18: 35 | BI18: 725 | BJ18: 9588.38 | BK18: 146 | BL18: 3278 | BM18: 29105.38 | BN18: 1144 | BO18: 1164 | BP18: 1164.26874 | BQ18: 1145 | BR18: 1170.388889 | BS18: 1171.643229 | BT18: 1124 | BU18: 1175.444444 | BV18: 1177.912518 | BW18: 125 | BX18: 137.0555556 | BY18: 137.744942 | BZ18: 23783 | CA18: 1036 | CB18: 4795 | CC18: 109
A19: 山西金象 | B19: =数据填报!C21 -> 1206.44 | C19: =T19/数据填报!$AT$2 -> 932.0547945 | D19: =T19/数据填报!$AT$2*数据填报!$AY$2 -> 13048.76712 | E19: =数据填报!C44+数据填报!C21 -> 16959.08 | F19: 3910.312877 | G19: =分月生产计划!O17-表一!T19/数据填报!$AT$2*(数据填报!$AT$2-数据填报!$AY$2) -> 96933.69863 | H19: =历史产量!N17+表一!E19 -> 70759.08 | I19: -26174.61863 | J19: =数据填报!H21 -> 982.78 | K19: =U19/数据填报!$AT$2 -> 791.2328767 | L19: =U19/数据填报!$AT$2*数据填报!$AY$2 -> 11077.26027 | M19: =数据填报!H44+数据填报!H21 -> 13858.73 | N19: 2781.469726 | O19: =分月生产计划!O36-表一!U19/数据填报!$AT$2*(数据填报!$AT$2-数据填报!$AY$2) -> 82288.21918 | P19: =历史产量!N36+表一!M19 -> 59258.73 | Q19: -23029.48918 | S19: 山西金象 | T19: 27961.64384 | U19: 23736.9863
A20: 山西天源 | B20: =数据填报!C22 -> 2029.69 | C20: =T20/数据填报!$AT$2 -> 1381.369863 | D20: =T20/数据填报!$AT$2*数据填报!$AY$2 -> 19339.17808 | E20: =数据填报!C45+数据填报!C22 -> 28125.65 | F20: 8786.471918 | G20: =分月生产计划!O18-表一!T20/数据填报!$AT$2*(数据填报!$AT$2-数据填报!$AY$2) -> 143662.4658 | H20: =历史产量!N18+表一!E20 -> 119427.65 | I20: -24234.81575 | J20: =数据填报!H22 -> 1641.71 | K20: =U20/数据填报!$AT$2 -> 1114.794521 | L20: =U20/数据填报!$AT$2*数据填报!$AY$2 -> 15607.12329 | M20: =数据填报!H45+数据填报!H22 -> 22819.08 | N20: 7211.956712 | O20: =分月生产计划!O37-表一!U20/数据填报!$AT$2*(数据填报!$AT$2-数据填报!$AY$2) -> 115938.6301 | P20: =历史产量!N37+表一!M20 -> 95219.08 | Q20: -20719.55014 | S20: 山西天源 | T20: 41441.09589 | U20: 33443.83562
A21: 晋煤天庆 | B21: =数据填报!C23 -> 2825.91 | C21: =T21/数据填报!$AT$2 -> 2191.780822 | D21: =T21/数据填报!$AT$2*数据填报!$AY$2 -> 30684.93151 | E21: =数据填报!C46+数据填报!C23 -> 40267.102 | F21: 9582.170493 | G21: =分月生产计划!O19-表一!T21/数据填报!$AT$2*(数据填报!$AT$2-数据填报!$AY$2) -> 227945.2055 | H21: =历史产量!N19+表一!E21 -> 204346.6671 | I21: -23598.53835 | J21: =数据填报!H23 -> 1136.39 | K21: =U21/数据填报!$AT$2 -> 821.9178082 | L21: =U21/数据填报!$AT$2*数据填报!$AY$2 -> 11506.84932 | M21: =数据填报!H46+数据填报!H23 -> 15914.602 | N21: 4407.752685 | O21: =分月生产计划!O38-表一!U21/数据填报!$AT$2*(数据填报!$AT$2-数据填报!$AY$2) -> 85479.45205 | P21: =历史产量!N38+表一!M21 -> 79451.1888 | Q21: -6028.263255 | S21: 晋煤天庆 | T21: 65753.42466 | U21: 24657.53425 | AT21: 2681 | AU21: 50972 | AV21: 454189 | AW21: 1200 | AX21: 1763 | AY21: 445 | AZ21: 5611 | BA21: 48264 | BB21: 1570 | BC21: 1095 | BN21: 1206 | BO21: 1210 | BP21: 1222 | BQ21: 797 | BR21: 908 | BS21: 840 | BT21: 941 | BU21: 986 | BV21: 1026 | BW21: 182 | BX21: 191 | BY21: 191 | BZ21: 14358 | CA21: 2475
A22: 晋煤华昱 | B22: =数据填报!C24 -> 0 | C22: =T22/数据填报!$AT$2 -> 3194.520548 | D22: =T22/数据填报!$AT$2*数据填报!$AY$2 -> 44723.28767 | E22: =数据填报!C47+数据填报!C24 -> 19961.29248 | F22: -24761.99519 | G22: =分月生产计划!O20-表一!T22/数据填报!$AT$2*(数据填报!$AT$2-数据填报!$AY$2) -> 332230.137 | H22: =历史产量!N20+表一!E22 -> 235172.2925 | I22: -97057.84451 | K22: =U22/数据填报!$AT$2 -> 0 | L22: =U22/数据填报!$AT$2*数据填报!$AY$2 -> 0 | M22: =数据填报!H48+数据填报!H25 -> 0 | N22: 0 | O22: =分月生产计划!O39-表一!U22/数据填报!$AT$2*(数据填报!$AT$2-数据填报!$AY$2) -> 0 | P22: =历史产量!N39+表一!M22 -> 0 | Q22: 0 | S22: 晋煤华昱 | T22: 95835.61644
B23: 尿素产量 | E23: 本月计划 | F23: =T25 -> 940980.8219 | G23: 截止今日完成比例： | I23: =E25/F23 -> 0.4447808619 | J23: 甲醇产量 | M23: 本月计划 | N23: =U25 -> 391544.9425 | O23: 截至今日完成比例： | Q23: =M25/N23 -> 0.382769697 | T23: 尿素 | U23: 甲醇 | AT23: 1307 | AU23: 34797.321 | AV23: 169926.641 | AX23: 9584 | BN23: 1057 | BO23: 1089 | BQ23: 352 | BR23: 339 | BT23: 815 | BU23: 807 | BW23: 142 | BX23: 149 | BZ23: 10270 | CA23: 1486.13 | CC23: 0
B24: 当日 | C24: 日计划量 | D24: 月累计划 | E24: 月累实际 | F24: 月累超亏 | G24: 年累计划 | H24: 年累实际 | I24: 年累超亏 | J24: 当日 | K24: 日计划量 | L24: 月累计划 | M24: 月累实际 | N24: 月累超亏 | O24: 年累计划 | P24: 年累实际 | Q24: 年累超亏 | T24: 月生产计划 | U24: 月生产计划
A25: 合计 | B25: =SUM(B26:B42) -> 29786.814 | C25: =SUM(C26:C42) -> 31366.0274 | D25: =SUM(D26:D42) -> 458459.7423 | E25: =SUM(E26:E42) -> 418530.261 | F25: =E25-D25 -> -39929.48133 | G25: =SUM(G26:G42) -> 3262066.849 | H25: =SUM(H26:H42) -> 2183775.802 | I25: =H25-G25 -> -1078291.047 | J25: =SUM(J26:J42) -> 10199.606 | K25: =SUM(K26:K42) -> 13051.49808 | L25: =SUM(L26:L42) -> 182720.9732 | M25: =SUM(M26:M42) -> 149871.539 | N25: =M25-L25 -> -32849.43415 | O25: =SUM(O26:O42) -> 1357355.801 | P25: =SUM(P26:P42) -> 1042085.47 | Q25: =P25-O25 -> -315270.3302 | S25: 合计 | T25: 940980.8219 | U25: 391544.9425
A26: 晋煤金石 | B26: =数据填报!M7 -> 1612.8 | C26: =T26/数据填报!$AT$2 -> 1723.561644 | D26: =T26/数据填报!$AT$2*数据填报!$AY$2 -> 24129.86301 | E26: =数据填报!M31+表一!B26 -> 27087 | F26: 2957.136986 | G26: =分月生产计划!O42-表一!T26/数据填报!$AT$2*(数据填报!$AT$2-数据填报!$AY$2) -> 179250.411 | H26: =历史产量!N41+表一!E26 -> 137774.83 | I26: =H26-G26 -> -41475.58096 | J26: =数据填报!R7 -> 737.18 | K26: =U26/数据填报!$AT$2 -> 999.1693151 | L26: =U26/数据填报!$AT$2*数据填报!$AY$2 -> 13988.37041 | M26: =数据填报!R31+表一!J26 -> 9920.93 | N26: -4067.440411 | O26: =分月生产计划!O61-表一!U26/数据填报!$AT$2*(数据填报!$AT$2-数据填报!$AY$2) -> 103913.6088 | P26: =历史产量!N59+表一!M26 -> 60525.25759 | Q26: -43388.35118 | S26: 晋煤金石 | T26: 51706.84932 | U26: 29975.07945
A27: 山西晋丰 | B27: =数据填报!M8 -> 1937 | C27: =T27/数据填报!$AT$2 -> 2146.027397 | D27: =T27/数据填报!$AT$2*数据填报!$AY$2 -> 30044.38356 | E27: =数据填报!M32+表一!B27 -> 26623.04 | F27: -3421.343562 | G27: =分月生产计划!O43-表一!T27/数据填报!$AT$2*(数据填报!$AT$2-数据填报!$AY$2) -> 223186.8493 | H27: =历史产量!N42+表一!E27 -> 78868.53 | I27: -144318.3193 | J27: =数据填报!R8 -> 147 | K27: =U27/数据填报!$AT$2 -> 233.6986301 | L27: =U27/数据填报!$AT$2*数据填报!$AY$2 -> 3271.780822 | M27: =数据填报!R32+表一!J27 -> 2988.11 | N27: -283.6708219 | O27: =分月生产计划!O62-表一!U27/数据填报!$AT$2*(数据填报!$AT$2-数据填报!$AY$2) -> 24304.65753 | P27: =历史产量!N60+表一!M27 -> 7664.713774 | Q27: -16639.94376 | S27: 山西晋丰 | T27: 64380.82192 | U27: 7010.958904 | BM27: 368 | BN27: 4500 | BO27: 526 | BQ27: 0 | BR27: 0 | BT27: 0 | BU27: 0 | BV27: 1760 | BW27: 1510 | BX27: 1530 | CA27: 8629 | CB27: 1771
A28: 河南晋开 | B28: =数据填报!M9 -> 2645 | C28: =T28/数据填报!$AT$2 -> 3013.69863 | D28: =T28/数据填报!$AT$2*数据填报!$AY$2 -> 42191.78082 | E28: =数据填报!M33+表一!B28 -> 24098 | F28: -18093.78082 | G28: =分月生产计划!O44-表一!T28/数据填报!$AT$2*(数据填报!$AT$2-数据填报!$AY$2) -> 313424.6575 | H28: =历史产量!N43+表一!E28 -> 179460 | I28: -133964.6575 | J28: =数据填报!R9 -> 0 | K28: =U28/数据填报!$AT$2 -> 0 | L28: =U28/数据填报!$AT$2*数据填报!$AY$2 -> 0 | M28: =数据填报!R33+表一!J28 -> 1181 | N28: 1181 | O28: =分月生产计划!O63-表一!U28/数据填报!$AT$2*(数据填报!$AT$2-数据填报!$AY$2) -> 0 | P28: =历史产量!N61+表一!M28 -> 1181 | Q28: 1181 | S28: 河南晋开 | T28: 90410.9589 | U28: 0
A29: 江苏恒盛 | B29: =数据填报!M10 -> 0 | C29: =T29/数据填报!$AT$2 -> 986.3013699 | D29: =T29/数据填报!$AT$2*数据填报!$AY$2 -> 13808.21918 | E29: =数据填报!M34+表一!B29 -> 0 | F29: -13808.21918 | G29: =分月生产计划!O45-表一!T29/数据填报!$AT$2*(数据填报!$AT$2-数据填报!$AY$2) -> 102575.3425 | H29: =历史产量!N44+表一!E29 -> 68600 | I29: -33975.34247 | J29: =数据填报!R10 -> 241 | K29: =U29/数据填报!$AT$2 -> 150.6849315 | L29: =U29/数据填报!$AT$2*数据填报!$AY$2 -> 2109.589041 | M29: =数据填报!R34+表一!J29 -> 3125 | N29: 1015.410959 | O29: =分月生产计划!O64-表一!U29/数据填报!$AT$2*(数据填报!$AT$2-数据填报!$AY$2) -> 15671.23288 | P29: =历史产量!N62+表一!M29 -> 15825 | Q29: 153.7671233 | S29: 江苏恒盛 | T29: 29589.0411 | U29: 4520.547945
A30: 山东联盟 | B30: =数据填报!M11 -> 4192.9 | C30: =T30/数据填报!$AT$2 -> 4023.424658 | D30: =T30/数据填报!$AT$2*数据填报!$AY$2 -> 56327.94521 | E30: =数据填报!M35+表一!B30 -> 60206.75 | F30: 3878.804795 | G30: =分月生产计划!O46-表一!T30/数据填报!$AT$2*(数据填报!$AT$2-数据填报!$AY$2) -> 418436.1644 | H30: =历史产量!N45+表一!E30 -> 338182.75 | I30: -80253.41438 | J30: =数据填报!R11 -> 553.746 | K30: =U30/数据填报!$AT$2 -> 698.630137 | L30: =U30/数据填报!$AT$2*数据填报!$AY$2 -> 9780.821918 | M30: =数据填报!R35+表一!J30 -> 8924.629 | N30: -856.1929178 | O30: =分月生产计划!O65-表一!U30/数据填报!$AT$2*(数据填报!$AT$2-数据填报!$AY$2) -> 72657.53425 | P30: =历史产量!N63+表一!M30 -> 65748.629 | Q30: -6908.905247 | S30: 山东联盟 | T30: 120702.7397 | U30: 20958.90411
A31: 山东明水 | B31: =数据填报!M12 -> 4228.51 | C31: =T31/数据填报!$AT$2 -> 3013.69863 | D31: =T31/数据填报!$AT$2*数据填报!$AY$2 -> 42191.78082 | E31: =数据填报!M36+表一!B31 -> 57157.37 | F31: 14965.58918 | G31: =分月生产计划!O47-表一!T31/数据填报!$AT$2*(数据填报!$AT$2-数据填报!$AY$2) -> 313424.6575 | H31: =历史产量!N46+表一!E31 -> 310297.37 | I31: -3127.287534 | J31: =数据填报!R12 -> 1997 | K31: =U31/数据填报!$AT$2 -> 1939.726027 | L31: =U31/数据填报!$AT$2*数据填报!$AY$2 -> 27156.16438 | M31: =数据填报!R36+表一!J31 -> 27774 | N31: 617.8356164 | O31: =分月生产计划!O66-表一!U31/数据填报!$AT$2*(数据填报!$AT$2-数据填报!$AY$2) -> 201731.5068 | P31: =历史产量!N64+表一!M31 -> 158054 | Q31: -43677.50685 | S31: 山东明水 | T31: 90410.9589 | U31: 58191.78082
A32: 安徽中能 | B32: =数据填报!M13 -> 2871 | C32: =T32/数据填报!$AT$2 -> 3451.09589 | D32: =T32/数据填报!$AT$2*数据填报!$AY$2 -> 48315.34247 | E32: =数据填报!M37+表一!B32 -> 40602 | F32: -7713.342466 | G32: =分月生产计划!O48-表一!T32/数据填报!$AT$2*(数据填报!$AT$2-数据填报!$AY$2) -> 358913.9726 | H32: =历史产量!N47+表一!E32 -> 231102 | I32: -127811.9726 | J32: =数据填报!R13 -> 1280 | K32: =U32/数据填报!$AT$2 -> 1406.849315 | L32: =U32/数据填报!$AT$2*数据填报!$AY$2 -> 19695.89041 | M32: =数据填报!R37+表一!J32 -> 15727 | N32: -3968.890411 | O32: =分月生产计划!O67-表一!U32/数据填报!$AT$2*(数据填报!$AT$2-数据填报!$AY$2) -> 146312.3288 | P32: =历史产量!N65+表一!M32 -> 106227 | Q32: -40085.32877 | S32: 安徽中能 | T32: 103532.8767 | U32: 42205.47945
A33: 安徽昊源 | B33: =数据填报!M14 -> 2825.77 | C33: =T33/数据填报!$AT$2 -> 4150.684932 | D33: =T33/数据填报!$AT$2*数据填报!$AY$2 -> 58109.58904 | E33: =数据填报!M38+表一!B33 -> 40957.57 | F33: -17152.01904 | G33: =分月生产计划!O49-表一!T33/数据填报!$AT$2*(数据填报!$AT$2-数据填报!$AY$2) -> 431671.2329 | H33: =历史产量!N48+表一!E33 -> 245257.57 | I33: -186413.6629 | J33: =数据填报!R14 -> 2531.8 | K33: =U33/数据填报!$AT$2 -> 2422.191781 | L33: =U33/数据填报!$AT$2*数据填报!$AY$2 -> 33910.68493 | M33: =数据填报!R38+表一!J33 -> 36113.19 | N33: 2202.505068 | O33: =分月生产计划!O68-表一!U33/数据填报!$AT$2*(数据填报!$AT$2-数据填报!$AY$2) -> 251907.9452 | P33: =历史产量!N66+表一!M33 -> 225013.19 | Q33: -26894.75521 | S33: 安徽昊源 | T33: 124520.5479 | U33: 72665.75342
A34: 湖北三宁 | B34: =数据填报!M15 -> 2508.49 | C34: =T34/数据填报!$AT$2 -> 3197.260274 | D34: =T34/数据填报!$AT$2*数据填报!$AY$2 -> 44761.64384 | E34: =数据填报!M39+表一!B34 -> 46140.53 | F34: 1378.886164 | G34: =分月生产计划!O50-表一!T34/数据填报!$AT$2*(数据填报!$AT$2-数据填报!$AY$2) -> 332515.0685 | H34: =历史产量!N49+表一!E34 -> 141840.53 | I34: 56 | J34: =数据填报!R15 -> 717.18 | K34: =U34/数据填报!$AT$2 -> 542.0547945 | L34: =U34/数据填报!$AT$2*数据填报!$AY$2 -> 7588.767123 | M34: =数据填报!R39+表一!J34 -> 10324.23 | N34: 2735.462877 | O34: =分月生产计划!O69-表一!U34/数据填报!$AT$2*(数据填报!$AT$2-数据填报!$AY$2) -> 56373.69863 | P34: =历史产量!N67+表一!M34 -> 54824.23 | Q34: -1549.46863 | S34: 湖北三宁 | T34: 95917.80822 | U34: 16261.64384
A35: 山东日月 | B35: =数据填报!M16 -> 0 | C35: =T35/数据填报!$AT$2 -> 82.19178082 | D35: =T35/数据填报!$AT$2*数据填报!$AY$2 -> 1150.684932 | E35: =数据填报!M40+表一!B35 -> 0 | F35: -1150.684932 | G35: =分月生产计划!O51-表一!T35/数据填报!$AT$2*(数据填报!$AT$2-数据填报!$AY$2) -> 8547.945205 | H35: =历史产量!N50+表一!E35 -> 0 | I35: =H35-G35 -> -8547.945205 | J35: =数据填报!R16 -> 260 | K35: =U35/数据填报!$AT$2 -> 328.7671233 | L35: =U35/数据填报!$AT$2*数据填报!$AY$2 -> 4602.739726 | M35: =数据填报!R40+表一!J35 -> 3499 | N35: -1103.739726 | O35: =分月生产计划!O70-表一!U35/数据填报!$AT$2*(数据填报!$AT$2-数据填报!$AY$2) -> 34191.78082 | P35: =历史产量!N68+表一!M35 -> 21499 | Q35: -12692.78082 | S35: 山东日月 | T35: 2465.753425 | U35: 9863.013699
A36: 晋煤天溪 | J36: =数据填报!R17 -> 1100 | K36: =U36/数据填报!$AT$2 -> 876.7123288 | L36: =U36/数据填报!$AT$2*数据填报!$AY$2 -> 12273.9726 | M36: =数据填报!R41+表一!J36 -> 2131 | N36: -10142.9726 | O36: =分月生产计划!O71-表一!U36/数据填报!$AT$2*(数据填报!$AT$2-数据填报!$AY$2) -> 91178.08219 | P36: =历史产量!N69+表一!M36 -> 66831 | Q36: -24347.08219 | S36: 晋煤天溪 | U36: 26301.36986
A37: 江苏双多 | B37: =数据填报!M18 -> 0 | C37: =T37/数据填报!$AT$2 -> 0 | D37: =T37/数据填报!$AT$2*数据填报!$AY$2 -> 0 | E37: =数据填报!M42+表一!B37 -> 0 | F37: =E37-D37 -> 0 | G37: =分月生产计划!O53-表一!T37/数据填报!$AT$2*(数据填报!$AT$2-数据填报!$AY$2) -> 0 | H37: =历史产量!N52+表一!E37 -> 0 | I37: =H37-G37 -> 0 | J37: =数据填报!R18 -> 0 | K37: =U37/数据填报!$AT$2 -> 0 | L37: =U37/数据填报!$AT$2*数据填报!$AY$2 -> 0 | M37: =数据填报!R42+表一!J37 -> 0 | N37: 0 | O37: =分月生产计划!O72-表一!U37/数据填报!$AT$2*(数据填报!$AT$2-数据填报!$AY$2) -> 0 | P37: =历史产量!N70+表一!M37 -> 0 | Q37: 0 | S37: 江苏双多 | T37: 0 | U37: 0
A38: 唐山晋银 | B38: =数据填报!M20 -> 1308 | C38: =T38/数据填报!$AT$2 -> 1232.876712 | D38: =T38/数据填报!$AT$2*数据填报!$AY$2 -> 17260.27397 | E38: =数据填报!M43+表一!B38 -> 17051 | F38: =E38-D38 -> -209.2739726 | G38: =分月生产计划!O54-表一!T38/数据填报!$AT$2*(数据填报!$AT$2-数据填报!$AY$2) -> 128219.1781 | H38: =历史产量!N53+表一!E38 -> 96451 | I38: =H38-G38 -> -31768.17808 | J38: =数据填报!R20 -> 62 | K38: =U38/数据填报!$AT$2 -> 54.79452055 | L38: =U38/数据填报!$AT$2*数据填报!$AY$2 -> 767.1232877 | M38: =数据填报!R43+表一!J38 -> 895 | N38: 127.8767123 | O38: =分月生产计划!O73-表一!U38/数据填报!$AT$2*(数据填报!$AT$2-数据填报!$AY$2) -> 5698.630137 | P38: =历史产量!N71+表一!M38 -> 4695 | Q38: -1003.630137 | S38: 唐山晋银 | T38: 36986.30137 | U38: 1643.835616
A39: 山西金象 | B39: =数据填报!M21 -> 1320 | C39: =T39/数据填报!$AT$2 -> 1108.219178 | D39: =数据基表!D251 -> 23041.53 | E39: =数据填报!M44+表一!B39 -> 18594.28 | F39: =E39-D39 -> -4447.25 | G39: =分月生产计划!O55-表一!T39/数据填报!$AT$2*(数据填报!$AT$2-数据填报!$AY$2) -> 115254.7945 | H39: =历史产量!N54+表一!E39 -> 80594.28 | I39: =H39-G39 -> -34660.51452 | J39: =数据填报!R21 -> 211 | K39: =U39/数据填报!$AT$2 -> 132.8767123 | L39: =U39/数据填报!$AT$2*数据填报!$AY$2 -> 1860.273973 | M39: =数据填报!R44+表一!J39 -> 2927.6 | N39: 1067.326027 | O39: =分月生产计划!O74-表一!U39/数据填报!$AT$2*(数据填报!$AT$2-数据填报!$AY$2) -> 13819.17808 | P39: =历史产量!N72+表一!M39 -> 10727.6 | Q39: -3091.578082 | S39: 山西金象 | T39: 33246.57534 | U39: 3986.30137
A40: 山西天源 | B40: =数据填报!M22 -> 2562 | C40: =T40/数据填报!$AT$2 -> 1812.328767 | D40: =数据基表!D265 -> 37181.5 | E40: =数据填报!M45+表一!B40 -> 35170 | F40: =E40-D40 -> -2011.5 | G40: =分月生产计划!O56-表一!T40/数据填报!$AT$2*(数据填报!$AT$2-数据填报!$AY$2) -> 188482.1918 | H40: =历史产量!N55+表一!E40 -> 151570 | I40: =H40-G40 -> -36912.19178 | J40: =数据填报!R22 -> 361.7 | K40: =U40/数据填报!$AT$2 -> 251.6438356 | L40: =U40/数据填报!$AT$2*数据填报!$AY$2 -> 3523.013699 | M40: =数据填报!R45+表一!J40 -> 4724.8 | N40: 1201.786301 | O40: =分月生产计划!O75-表一!U40/数据填报!$AT$2*(数据填报!$AT$2-数据填报!$AY$2) -> 26170.9589 | P40: =历史产量!N73+表一!M40 -> 20624.8 | Q40: -5546.158904 | S40: 山西天源 | T40: 54369.86301 | U40: 7549.315068
A41: 晋煤天庆 | B41: =数据填报!M23 -> 1775.344 | C41: =T41/数据填报!$AT$2 -> 1424.657534 | D41: =T41/数据填报!$AT$2*数据填报!$AY$2 -> 19945.20548 | E41: =数据填报!M46+表一!B41 -> 24842.721 | F41: =E41-D41 -> 4897.515521 | G41: =分月生产计划!O57-表一!T41/数据填报!$AT$2*(数据填报!$AT$2-数据填报!$AY$2) -> 148164.3836 | H41: =历史产量!N56+表一!E41 -> 123776.942 | I41: =H41-G41 -> -24387.44156 | J41: =数据填报!R23 -> 0 | K41: =U41/数据填报!$AT$2 -> 0 | L41: =U41/数据填报!$AT$2*数据填报!$AY$2 -> 0 | M41: =数据填报!R46+表一!J41 -> 0 | N41: 0 | O41: =分月生产计划!O76-表一!U41/数据填报!$AT$2*(数据填报!$AT$2-数据填报!$AY$2) -> 0 | P41: =历史产量!N74+表一!M41 -> 0 | Q41: 0 | S41: 晋煤天庆 | T41: 42739.72603
A42: 晋煤华昱 | J42: =数据填报!R24 -> 0 | K42: =U42/数据填报!$AT$2 -> 3013.69863 | L42: =U42/数据填报!$AT$2*数据填报!$AY$2 -> 42191.78082 | M42: =数据填报!R47+表一!J42 -> 19616.05 | N42: -22575.73082 | O42: =分月生产计划!O77-表一!U42/数据填报!$AT$2*(数据填报!$AT$2-数据填报!$AY$2) -> 313424.6575 | P42: =历史产量!N75+表一!M42 -> 222645.05 | Q42: -90779.60753 | S42: 晋煤华昱 | U42: 90410.9589
A43: 单位 | B43: 复合肥料产量 | E43: 本月计划 | F43: =T45 -> 201150 | G43: 截止今日完成比例： | I43: =E45/F43 -> 1.041575039 | J43: 精细化工产品产量 | M43: 本月计划 | N43: =U45 -> 231750 | O43: 截至今日完成比例： | Q43: =M45/N43 -> 0.3166310248 | T43: 其他肥料 | U43: 精细化工
B44: 当日 | C44: 日计划量 | D44: 月累计划 | E44: 月累实际 | F44: 月累超亏 | G44: 年累计划 | H44: 年累实际 | I44: 年累超亏 | J44: 当日 | K44: 日计划量 | L44: 月累计划 | M44: 月累实际 | N44: 月累超亏 | O44: 年累计划 | P44: 年累实际 | Q44: 年累超亏 | T44: 月生产计划 | U44: 月生产计划
A45: 合计 | B45: =SUM(B46:B55) -> 8929.87 | C45: 6705 | D45: 120770.5935 | E45: 209512.819 | F45: =E45-D45 -> 88742.22545 | G45: 897152.9806 | H45: 485736.499 | I45: =H45-G45 -> -411416.4816 | J45: =SUM(J46:J54) -> 4819.48 | K45: 7725 | L45: =SUM(L46:L54) -> 100286.6667 | M45: =SUM(M46:M54) -> 73379.24 | N45: =M45-L45 -> -26907.42667 | O45: =SUM(O46:O54) -> 618021.5054 | P45: =SUM(P46:P54) -> 446110.24 | Q45: =P45-O45 -> -171911.2654 | S45: 合计 | T45: 201150 | U45: 231750
A46: 晋煤金石 | B46: =数据填报!W7 -> 2054 | C46: =T46/数据填报!$AT$2 -> 1931.774194 | D46: =T46/数据填报!$AT$2*数据填报!$AY$2 -> 27044.83871 | E46: =数据填报!W31+数据填报!W7 -> 51976 | F46: =E46-D46 -> 24931.16129 | G46: =分月生产计划!O80-表一!T46/数据填报!$AT$2*(数据填报!$AT$2-数据填报!$AY$2) -> 200904.5161 | H46: =历史产量!N78+表一!E46 -> 117799.68 | I46: =H46-G46 -> -83104.83613 | J46: =数据填报!AB7 -> 1344 | K46: =U46/数据填报!$AT$2 -> 1366.666667 | L46: =U46/数据填报!$AT$2*数据填报!$AY$2 -> 19133.33333 | M46: =数据填报!AB31+数据填报!AB7 -> 18581 | N46: =M46-L46 -> -552.3333333 | O46: =分月生产计划!O97-表一!U46/数据填报!$AT$2*(数据填报!$AT$2-数据填报!$AY$2) -> 110275.2688 | P46: =历史产量!N96+表一!M46 -> 110675 | Q46: =P46-O46 -> 399.7311828 | S46: 晋煤金石 | T46: 57953.22581 | U46: 41000
A47: 河南晋开 | B47: =数据填报!W9 -> 360 | C47: =T47/数据填报!$AT$2 -> 249.4623656 | D47: =T47/数据填报!$AT$2*数据填报!$AY$2 -> 3492.473118 | E47: =数据填报!W33+数据填报!W9 -> 20975 | F47: =E47-D47 -> 17482.52688 | G47: =分月生产计划!O81-表一!T47/数据填报!$AT$2*(数据填报!$AT$2-数据填报!$AY$2) -> 25944.08602 | H47: =历史产量!N79+表一!E47 -> 20975 | I47: =H47-G47 -> -4969.086022 | S47: 河南晋开 | T47: 7483.870968 | U47: 0
A48: 江苏恒盛 | B48: =数据填报!W10 -> 0 | C48: =T48/数据填报!$AT$2 -> 0 | D48: =T48/数据填报!$AT$2*数据填报!$AY$2 -> 0 | E48: =数据填报!W34+数据填报!W10 -> 0 | F48: =E48-D48 -> 0 | G48: =分月生产计划!O82-表一!T48/数据填报!$AT$2*(数据填报!$AT$2-数据填报!$AY$2) -> 0 | H48: =历史产量!N81+表一!E48 -> 0 | I48: =H48-G48 -> 0 | J48: =数据填报!AB10 -> 0 | S48: 江苏恒盛 | T48: 0 | U48: 0
A49: 山东联盟 | B49: =数据填报!W11 -> 0 | E49: =数据填报!W35+数据填报!W11 -> 0 | J49: =数据填报!AB11 -> 125 | K49: =U49/数据填报!$AT$2 -> 0 | L49: =U49/数据填报!$AT$2*数据填报!$AY$2 -> 0 | M49: =数据填报!AB35+数据填报!AB11 -> 2489 | N49: =M49-L49 -> 2489 | O49: =分月生产计划!O100-表一!U49/数据填报!$AT$2*(数据填报!$AT$2-数据填报!$AY$2) -> 5425.806452 | P49: =历史产量!N99+表一!M49 -> 2489 | Q49: =P49-O49 -> -2936.806452 | S49: 山东联盟 | U49: 0
A50: 山东明水 | B50: =数据填报!W12 -> 0 | C50: =T50/数据填报!$AT$2 -> 0 | D50: =T50/数据填报!$AT$2*数据填报!$AY$2 -> 0 | E50: =数据填报!W36+数据填报!W12 -> 0 | F50: =E50-D50 -> 0 | G50: =分月生产计划!O84-表一!T50/数据填报!$AT$2*(数据填报!$AT$2-数据填报!$AY$2) -> 0 | H50: =历史产量!N83+表一!E50 -> 0 | I50: =H50-G50 -> 0 | J50: =数据填报!AB12 -> 0 | K50: =U50/数据填报!$AT$2 -> 0 | L50: =U50/数据填报!$AT$2*数据填报!$AY$2 -> 0 | M50: =数据填报!AB36+数据填报!AB12 -> 0 | N50: 0 | O50: =分月生产计划!O101-表一!U50/数据填报!$AT$2*(数据填报!$AT$2-数据填报!$AY$2) -> 0 | P50: =历史产量!N100+表一!M50 -> 6900 | Q50: 6900 | S50: 山东明水 | T50: 0 | U50: 0
A51: 安徽中能 | B51: =数据填报!W13 -> 0 | C51: =T51/数据填报!$AT$2 -> 0 | D51: =T51/数据填报!$AT$2*数据填报!$AY$2 -> 0 | E51: =数据填报!W37+数据填报!W13 -> 0 | F51: 0 | G51: =分月生产计划!O85-表一!T51/数据填报!$AT$2*(数据填报!$AT$2-数据填报!$AY$2) -> 0 | H51: =历史产量!N84+表一!E51 -> 0 | I51: 0 | J51: =数据填报!AB13 -> 1146 | K51: =U51/数据填报!$AT$2 -> 1560 | L51: =U51/数据填报!$AT$2*数据填报!$AY$2 -> 21840 | M51: =数据填报!AB37+数据填报!AB13 -> 14898 | N51: -6942 | O51: =分月生产计划!O102-表一!U51/数据填报!$AT$2*(数据填报!$AT$2-数据填报!$AY$2) -> 159569.0323 | P51: =历史产量!N101+表一!M51 -> 14898 | Q51: -144671.0323 | S51: 安徽中能 | T51: 0 | U51: 46800
A52: 安徽昊源 | B52: =数据填报!W14 -> 0 | C52: =T52/数据填报!$AT$2 -> 0 | D52: =T52/数据填报!$AT$2*数据填报!$AY$2 -> 0 | E52: =数据填报!W38+数据填报!W14 -> 0 | F52: 0 | G52: =分月生产计划!O86-表一!T52/数据填报!$AT$2*(数据填报!$AT$2-数据填报!$AY$2) -> 0 | H52: =历史产量!N85+表一!E52 -> 5700 | I52: 5700 | J52: =数据填报!AB14 -> 1223.35 | K52: =U52/数据填报!$AT$2 -> 1536.666667 | L52: =U52/数据填报!$AT$2*数据填报!$AY$2 -> 21513.33333 | M52: =数据填报!AB38+数据填报!AB14 -> 22538.45 | N52: 1025.116667 | O52: =分月生产计划!O103-表一!U52/数据填报!$AT$2*(数据填报!$AT$2-数据填报!$AY$2) -> 146942.3656 | P52: =历史产量!N102+表一!M52 -> 138438.45 | Q52: -8503.915591 | S52: 安徽昊源 | T52: 0 | U52: 46100
A53: 湖北三宁 | B53: =数据填报!W15 -> 6515.87 | C53: =T53/数据填报!$AT$2 -> 6314.266667 | D53: =T53/数据填报!$AT$2*数据填报!$AY$2 -> 88399.73333 | E53: =数据填报!W39+数据填报!W15 -> 136561.819 | F53: 48162.08567 | G53: =分月生产计划!O87-表一!T53/数据填报!$AT$2*(数据填报!$AT$2-数据填报!$AY$2) -> 656683.7333 | H53: =历史产量!N86+表一!E53 -> 341261.819 | I53: -315421.9143 | J53: =数据填报!AB15 -> 448.13 | K53: =U53/数据填报!$AT$2 -> 2303.333333 | L53: =U53/数据填报!$AT$2*数据填报!$AY$2 -> 32246.66667 | M53: =数据填报!AB39+数据填报!AB15 -> 8064.79 | N53: -24181.87667 | O53: =分月生产计划!O104-表一!U53/数据填报!$AT$2*(数据填报!$AT$2-数据填报!$AY$2) -> 133826.6667 | P53: =历史产量!N103+表一!M53 -> 93201.79 | Q53: -40624.87667 | S53: 湖北三宁 | T53: 189428 | U53: 69100
A54: 山东日月 | B54: =数据填报!W16 -> 0 | C54: =T54/数据填报!$AT$2 -> 130.9677419 | D54: =T54/数据填报!$AT$2*数据填报!$AY$2 -> 1833.548387 | E54: =数据填报!W40+数据填报!W16 -> 0 | F54: -1833.548387 | G54: =分月生产计划!O88-表一!T54/数据填报!$AT$2*(数据填报!$AT$2-数据填报!$AY$2) -> 13620.64516 | H54: =历史产量!N87+表一!E54 -> 0 | I54: -13620.64516 | J54: =数据填报!AB16 -> 533 | K54: =U54/数据填报!$AT$2 -> 396.6666667 | L54: =U54/数据填报!$AT$2*数据填报!$AY$2 -> 5553.333333 | M54: =数据填报!AB40+数据填报!AB16 -> 6808 | N54: 1254.666667 | O54: =分月生产计划!O105-表一!U54/数据填报!$AT$2*(数据填报!$AT$2-数据填报!$AY$2) -> 61982.36559 | P54: =历史产量!N104+表一!M54 -> 79508 | Q54: 17525.63441 | S54: 山东日月 | T54: 3929.032258 | U54: 11900
A55: 山西天源 | B55: =数据填报!W8 -> 0 | C55: =T55/数据填报!$AT$2 -> 0 | D55: =T55/数据填报!$AT$2*数据填报!$AY$2 -> 0 | E55: =数据填报!W32+数据填报!W8 -> 0 | F55: 0 | G55: =分月生产计划!O93-表一!T55/数据填报!$AT$2*(数据填报!$AT$2-数据填报!$AY$2) -> 0 | H55: =历史产量!N92+表一!E55 -> 0 | I55: 0 | K55: 52 | L55: 1446 | S55: 山西天源
A56: 单位 | B56: 石化产品产量 | E56: 本月计划 | F56: =T58 -> 33015 | G56: 截至今日完成比例： | I56: =E59/F56 -> 0.3438437074 | J56: 煤基合成油产量 | M56: 本月计划 | N56: =U60 -> 1e-06 | O56: 截止今日完成比例： | Q56: =M58/N56 -> 0 | T56: 石化产品
B57: 当日 | C57: 日计划量 | D57: 月累计划 | E57: 月累实际 | F57: 月累超亏 | G57: 年累计划 | H57: 年累实际 | I57: 年累超亏 | J57: 当日 | K57: 日计划量 | L57: 月累计划 | M57: 月累实际 | N57: 月累超亏 | O57: 年累计划 | P57: 年累实际 | Q57: 年累超亏 | T57: 月生产计划 | U57: 月生产计划
A58: 合计 | B58: =SUM(B59:B61) -> 760 | C58: =SUM(C59:C61) -> 1100.5 | D58: =SUM(D59:D61) -> 15407 | E58: =SUM(E59:E61) -> 11352 | F58: =E58-D58 -> -4055 | G58: =SUM(G59:G61) -> 96941 | H58: =SUM(H59:H61) -> 156352 | I58: =H58-G58 -> 59411 | J58: =SUM(J59:J61) -> 0 | K58: =SUM(K59:K61) -> 3.333333333e-08 | L58: =SUM(L59:L61) -> 4.666666667e-07 | M58: =SUM(M59:M61) -> 0 | N58: =M58-L58 -> -4.666666667e-07 | O58: =SUM(O59:O61) -> -5.333333333e-07 | P58: =SUM(P59:P61) -> 0 | Q58: =P58-O58 -> 5.333333333e-07 | S58: 合计 | T58: 33015 | U58: 1e-06
A59: 联盟石油 | B59: =数据填报!AG25 -> 760 | C59: =T59/数据填报!$AT$2 -> 1100.5 | D59: =T59/数据填报!$AT$2*数据填报!$AY$2 -> 15407 | E59: =数据填报!AG48+数据填报!AG25 -> 11352 | F59: =E59-D59 -> -4055 | G59: =分月生产计划!O114-表一!T59/数据填报!$AT$2*(数据填报!$AT$2-数据填报!$AY$2) -> 96941 | H59: =历史产量!N113+表一!E59 -> 156352 | I59: =H59-G59 -> 59411 | S59: 联盟石油 | T59: 33015
A60: 晋煤天溪 | J60: =数据填报!AL17 -> 0 | K60: =U60/数据填报!$AT$2 -> 3.333333333e-08 | L60: =U60/数据填报!$AT$2*数据填报!$AY$2 -> 4.666666667e-07 | M60: =数据填报!AL41+数据填报!AL17 -> 0 | N60: =M60-L60 -> -4.666666667e-07 | O60: =分月生产计划!O118-表一!U60/数据填报!$AT$2*(数据填报!$AT$2-数据填报!$AY$2) -> -5.333333333e-07 | P60: =历史产量!N117+表一!M60 -> 0 | Q60: =P60-O60 -> 5.333333333e-07 | S60: 晋煤天溪 | U60: 1e-06
A61: 晋煤华昱 | K61: =U61/数据填报!$AT$2 -> 0 | L61: =U61/数据填报!$AT$2*数据填报!$AY$2 -> 0 | M61: =V61/数据填报!$AT$2*数据填报!$AY$2 -> 0 | N61: =W61/数据填报!$AT$2*数据填报!$AY$2 -> 0 | O61: =X61/数据填报!$AT$2*数据填报!$AY$2 -> 0 | P61: =Y61/数据填报!$AT$2*数据填报!$AY$2 -> 0 | Q61: =Z61/数据填报!$AT$2*数据填报!$AY$2 -> 0 | S61: 晋煤华昱 | U61: 0
A68: 今日产量 影响因素 | C68: 检修系统：1、明升达公司因建设新项目，老厂于2019年3月30日0时停车，新项目已进入试生产阶段。
C71: 上周 | J71: 本周
C73: 31日 | D73: 1日 | E73: 2日 | F73: 3日 | G73: 4日 | H73: 5日 | I73: 6日 | J73: 7日 | K73: 8日 | L73: 9日 | M73: 10日 | N73: 11日 | O73: 12日 | P73: 13日 | Q73: 14日 | S73: 今日
A74: 总氨产量 | C74: 48055 | D74: 47640 | E74: 48305.30534 | F74: 48895 | G74: 48994 | H74: 49881.49921 | I74: 49950 | J74: 46153 | K74: 45298.52598 | L74: 46093 | M74: 45306 | N74: 45814 | O74: 45150 | P74: 47396 | Q74: 45947.02444 | S74: =B5 -> 45947.02444
C76: 31日 | D76: 1日 | E76: 2日 | F76: 3日 | G76: 4日 | H76: 5日 | I76: 6日 | J76: 7日 | K76: 8日 | L76: 9日 | M76: 10日 | N76: 11日 | O76: 12日 | P76: 13日 | Q76: =Q73 -> 14日
A77: 甲醇产量 | C77: 12409 | D77: 12499 | E77: 12342.523 | F77: 12700 | G77: 12773 | H77: 12819.846 | I77: 12384 | J77: 8354 | K77: 8322.054 | L77: 9078 | M77: 9096 | N77: 10050 | O77: 9153 | P77: 10151 | Q77: 10199.606 | S77: =J25 -> 10199.606
C79: 31日 | D79: 1日 | E79: 2日 | F79: 3日 | G79: 4日 | H79: 5日 | I79: 6日 | J79: 7日 | K79: 8日 | L79: 9日 | M79: 10日 | N79: 11日 | O79: 12日 | P79: 13日 | Q79: =Q73 -> 14日
A80: 尿素产量 | C80: 29450 | D80: 29130 | E80: 30137.509 | F80: 30246 | G80: 30283 | H80: 29704.639 | I80: 29329 | J80: 29788 | K80: 29655.659 | L80: 29600 | M80: 29164 | N80: 30025 | O80: 30715 | P80: 30966 | Q80: 29786.814 | S80: =B25 -> 29786.814
C82: 31日 | D82: 1日 | E82: 2日 | F82: 3日 | G82: 4日 | H82: 5日 | I82: 6日 | J82: 7日 | K82: 8日 | L82: 9日 | M82: 10日 | N82: 11日 | O82: 12日 | P82: 13日 | Q82: =Q73 -> 14日
A83: 复合肥产量 | C83: 12011 | D83: 11641 | E83: 11896.545 | F83: 10955 | G83: 11877 | H83: 11563.39 | I83: 14024 | J83: 11196 | K83: 10893.08 | L83: 12773 | M83: 9649 | N83: 10307 | O83: 9795 | P83: 8951 | Q83: 8951 | S83: =B45 -> 8929.87
C85: 31日 | D85: 1日 | E85: 2日 | F85: 3日 | G85: 4日 | H85: 5日 | I85: 6日 | J85: 7日 | K85: 8日 | L85: 9日 | M85: 10日 | N85: 11日 | O85: 12日 | P85: 13日 | Q85: =Q73 -> 14日
A86: 精细产量 | C86: 4658 | D86: 4536 | E86: 4730.59 | F86: 4741 | G86: 4756 | H86: 4779.45 | I86: 4761 | J86: 4767 | K86: 4706.64 | L86: 4748 | M86: 4770 | N86: 4780 | O86: 4687 | P86: 4778 | Q86: 4819.48 | S86: =J45 -> 4819.48
C88: 31日 | D88: 1日 | E88: 2日 | F88: 3日 | G88: 4日 | H88: 5日 | I88: 6日 | J88: 7日 | K88: 8日 | L88: 9日 | M88: 10日 | N88: 11日 | O88: 12日 | P88: 13日 | Q88: =Q73 -> 14日 | S88: =J5 -> 32423.0473
A89: 合成氨产量 | C89: 32540 | D89: 32032 | E89: 32671.8634 | F89: 32789 | G89: 32794 | H89: 33611.4618 | I89: 34305 | J89: 33650 | K89: 33503.3279 | L89: 33562 | M89: 32715 | N89: 32109 | O89: 32725 | P89: 33950 | Q89: 32423.0473
E92: 总氨 | G92: 尿素 | I92: 甲醇 | K92: 合成氨 | M92: 其他肥料 | O92: 精细化工
C93: 全年计划 | E93: 1686.68 | G93: 1144.86 | I93: 476.38 | K93: 978.0397325 | M93: 244.88 | O93: 281.98
C94: 周计划 | E94: =C5*7/10000 -> 32.34724932 | G94: =C25*7/10000 -> 21.95621918 | I94: =K25*7/10000 -> 9.136048658 | K94: =K5*7/10000 -> 20.72542356 | M94: =C45*7/10000 -> 4.6935 | O94: =K45*7/10000 -> 5.4075
C96: 序时计划 | E96: =数据填报!BD2*E93/366 -> 479.2751913 | G96: =数据填报!BD2*G93/366 -> 325.3154098 | I96: =数据填报!BD2*I93/366 -> 135.3648087 | K96: =数据填报!BD2*K93/366 -> 277.9129295 | M96: =数据填报!BD2*M93/366 -> 69.58338798 | O96: =数据填报!BD2*O93/366 -> 80.12546448
C98: 实际时序比 | E98: =H5/(E96*100) -> 74.54479779 | G98: =H25/(G96*100) -> 67.12795447 | I98: =P25/(I96*100) -> 76.98348485 | K98: =P5/(K96*100) -> 82.6674393 | M98: =H45/(M96*100) -> 69.80638815 | O98: =P45/(O96*100) -> 55.67646227
C100: 实际时序差 | E100: =H5/10000-E96 -> -122.0004691 | G100: =H25/10000-G96 -> -106.9378296 | I100: =P25/10000-I96 -> -31.15626171 | K100: =P5/10000-K96 -> -48.16942718 | M100: =H45/10000-M96 -> -21.00973808 | O100: =P45/10000-O96 -> -35.51444048
C102: 实际年计划比 | E102: =H5/E93/100 -> 21.18212833 | G102: =H25/G93/100 -> 19.07461001 | I102: =P25/I93/100 -> 21.87508859 | K102: =P5/K93/100 -> 23.49020133 | M102: =H45/M93/100 -> 19.83569499 | O102: =P45/O93/100 -> 15.82063409

Sheet 表二
A1: 集团公司煤化工板块生产调度情况日报表（二）
A2: 单位：吨、元/吨、千克/吨、千瓦时/吨 | Q2: =数据填报!M2 -> 2021-04-14
A3: 产品销售情况 | L3: 产品消耗情况 | R3: 原料煤情况
A4: 单位 | B4: 尿素销量 | G4: 甲醇销量 | L4: 吨氨耗原料煤 | O4: 吨氨耗电 | R4: 原料块煤
B5: 当日 | C5: 月累计 | D5: 年累计 | E5: 当日 价格 | F5: 库存量 | G5: 当日 | H5: 月累计 | I5: 年累计 | J5: 当日价格 | K5: 库存量 | L5: 当日 | M5: 月累计 | N5: 年累计 | O5: 当日 | P5: 月累计 | Q5: 年累计 | R5: 库存 | S5: 日消耗
A6: 合计 | B6: =SUM(B7:B22) -> 30037.049 | C6: =SUM(C7:C22) -> 435228.9936 | D6: =SUM(D7:D22) -> 3062583.176 | E6: =(B7*E7+B8*E8+B9*E9+B10*E10+B11*E11+B12*E12+B13*E13+B14*E14+B15*E15+B16*E16+B18*E18+B19*E19+B20*E20+B21*E21+B22*E22)/B6 -> 2084.291735 | F6: =SUM(F7:F22) -> 142654.183 | G6: =SUM(G7:G23) -> 10257.99 | H6: =SUM(H7:H23) -> 121206.77 | I6: =SUM(I7:I23) -> 1170667.26 | J6: =(G8*J8+G11*J11+G12*J12+G13*J13+G14*J14+G15*J15+G16*J16+G17*J17+G19*J19+G21*J21+J10*G10+J18*G18+G23*J23+G20*J20)/(G8+G11+G12+G13+G14+G15+G16+G17+G19+G21+G10+G18+G23+G20) -> 2258.933671 | K6: =SUM(K7:K23) -> 99820.6174 | L6: =AVERAGE(L7:L23) -> 1117.524886 | M6: =AVERAGE(M7:M22) -> 1195.66869 | N6: 1204.545037 | O6: 949.7616574 | P6: 950.704582 | Q6: 899.804652 | R6: =SUM(R7:R22) -> 267529.197 | S6: =SUM(S7:S22) -> 24399.4
A7: 晋煤金石 | B7: =数据填报!AT7 -> 838.457 | C7: =数据填报!AT31+数据填报!AT7 -> 13532.5816 | D7: =历史销量!N4+表二!C7 -> 146194.607 | E7: =数据填报!AW7 -> 2120 | F7: =数据填报!AX7 -> 5621.135 | G7: =数据填报!AY7 -> 452 | H7: =数据填报!AW31+数据填报!AY7 -> 6486.65 | I7: =历史销量!N23+表二!H7 -> 41063.48 | J7: =数据填报!BB7 -> 2234.446903 | K7: =数据填报!BC7 -> 2833 | L7: =数据填报!BN7 -> 1207.970673 | M7: =数据填报!BO7 -> 1181.055979 | N7: =数据填报!BP7 -> 1178.027112 | O7: =数据填报!BQ7 -> 1115.269019 | P7: =数据填报!BR7 -> 1107.58636 | Q7: =数据填报!BS7 -> 1128.703035 | R7: =数据填报!BZ7 -> 65303 | S7: =煤炭库存统计表!F7 -> 5952.07
A8: 山西晋丰 | B8: =数据填报!AT8 -> 3023 | C8: =数据填报!AT32+数据填报!AT8 -> 33351.248 | D8: =历史销量!N5+表二!C8 -> 159749.142 | E8: =数据填报!AW8 -> 2008.594112 | F8: =数据填报!AX8 -> 2944 | G8: =数据填报!AY8 -> 439 | H8: =数据填报!AW32+数据填报!AY8 -> 2698.18 | I8: =历史销量!N24+表二!H8 -> 13694.6 | J8: =数据填报!BB8 -> 2120 | K8: =数据填报!BC8 -> 1335 | L8: =数据填报!BN8 -> 1168 | M8: =数据填报!BO8 -> 1127.544974 | N8: =数据填报!BP8 -> 1150.165447 | O8: =数据填报!BQ8 -> 1191 | P8: =数据填报!BR8 -> 1236.528425 | Q8: =数据填报!BS8 -> 1375.763083 | R8: =数据填报!BZ8 -> 17420 | S8: =数据填报!CA8 -> 1551
A9: 河南晋开 | B9: =数据填报!AT9 -> 1680 | C9: =数据填报!AT33+数据填报!AT9 -> 25527 | D9: =历史销量!N6+表二!C9 -> 276035 | E9: =数据填报!AW9 -> 2045 | F9: =数据填报!AX9 -> 32549 | G9: =数据填报!AY9 -> 0 | H9: =数据填报!AW33+数据填报!AY9 -> 0 | I9: =历史销量!N25+表二!H9 -> 0 | J9: =数据填报!BB9 -> 0 | K9: =数据填报!BC9 -> 0 | L9: =数据填报!BN9 -> 1361 | M9: =数据填报!BO9 -> 1367 | N9: =数据填报!BP9 -> 1365 | O9: =数据填报!BQ9 -> 183 | P9: =数据填报!BR9 -> 191 | Q9: =数据填报!BS9 -> 185 | R9: =数据填报!BZ9 -> 4466 | S9: =数据填报!CA9 -> 0
A10: 江苏恒盛 | B10: =数据填报!AT10 -> 0 | C10: =数据填报!AT34+数据填报!AT10 -> 2090 | D10: =历史销量!N7+表二!C10 -> 107103 | E10: =数据基表!E73 -> 0 | F10: =数据填报!AX10 -> 0 | G10: =数据填报!AY10 -> 106 | H10: =数据填报!AW34+数据填报!AY10 -> 1499 | I10: =数据基表!I73 -> 18625 | J10: =数据基表!J73 -> 2350 | K10: =数据填报!BC10 -> 1538 | L10: =数据填报!BN10 -> 1112 | M10: =数据填报!BO10 -> 1112 | N10: =数据填报!BP10 -> 1109 | O10: =数据填报!BQ10 -> 1228 | P10: =数据填报!BR10 -> 1228 | Q10: =数据填报!BS10 -> 1240 | R10: =数据填报!BZ10 -> 7325 | S10: =数据填报!CA10 -> 1206
A11: 山东联盟 | B11: =数据填报!AT11 -> 4114 | C11: =数据填报!AT35+数据填报!AT11 -> 65509.58 | D11: =历史销量!N8+表二!C11 -> 464304.96 | E11: =数据填报!AW11 -> 2133 | F11: =数据基表!F87 -> 0 | G11: =数据填报!AY11 -> 816.14 | H11: =数据填报!AW35+数据填报!AY11 -> 9865.48 | I11: =历史销量!N27+表二!H11 -> 81765.61 | J11: =数据填报!BB11 -> 2441 | K11: =数据填报!BC11 -> 2240 | L11: =数据填报!BN11 -> 1295.71975 | M11: =数据填报!BO11 -> 1277.20605 | N11: =数据填报!BP11 -> 1212.9066 | O11: =数据填报!BQ11 -> 839.0261112 | P11: =数据填报!BR11 -> 825.9870798 | Q11: =数据填报!BS11 -> 799.3383889 | R11: =数据填报!BZ11 -> 39044 | S11: =数据填报!CA11 -> 2716
A12: 山东明水 | B12: =数据填报!AT12 -> 4116 | C12: =数据填报!AT36+数据填报!AT12 -> 62213.74 | D12: =历史销量!N9+表二!C12 -> 436426.85 | E12: =数据填报!AW12 -> 2077.05758 | F12: =数据填报!AX12 -> 3187 | G12: =数据填报!AY12 -> 1635.73 | H12: =数据填报!AW36+数据填报!AY12 -> 21261.83 | I12: =历史销量!N28+表二!H12 -> 173374.44 | J12: =数据填报!BB12 -> 2220.592427 | K12: =数据填报!BC12 -> 5525 | L12: 1183 | M12: 1216 | N12: 1201 | O12: 929 | P12: 896 | Q12: 987 | R12: =数据填报!BZ12 -> 12482 | S12: =数据填报!CA12 -> 1048.34
A13: 安徽中能 | B13: =数据填报!AT13 -> 2144 | C13: =数据填报!AT37+数据填报!AT13 -> 54590 | D13: =历史销量!N10+表二!C13 -> 359883 | E13: =数据填报!AW13 -> 2119 | F13: =数据填报!AX13 -> 36805 | G13: =数据填报!AY13 -> 1601 | H13: =数据填报!AW37+数据填报!AY13 -> 21258 | I13: =历史销量!N29+表二!H13 -> 152085 | J13: =数据填报!BB13 -> 2306 | K13: =数据填报!BC13 -> 22071 | L13: =数据填报!BN13 -> 1112 | M13: =数据填报!BO13 -> 1106 | N13: =数据填报!BP13 -> 1078 | O13: =数据填报!BQ13 -> 1277 | P13: =数据填报!BR13 -> 1273 | Q13: =数据填报!BS13 -> 1301 | R13: =数据填报!BZ13 -> 42283 | S13: =数据填报!CA13 -> 663
A14: 安徽昊源 | B14: =数据填报!AT14 -> 2991.72 | C14: =数据填报!AT38+数据填报!AT14 -> 45094.35 | D14: =历史销量!N11+表二!C14 -> 335511.54 | E14: =数据填报!AW14 -> 2210 | F14: =数据填报!AX14 -> 3227.37 | G14: =数据填报!AY14 -> 2417.3 | H14: =数据填报!AW38+数据填报!AY14 -> 31870.35 | I14: =历史销量!N30+表二!H14 -> 232597.36 | J14: =数据填报!BB14 -> 2300 | K14: =数据填报!BC14 -> 17264.36 | L14: =数据填报!BN14 -> 1193.253177 | M14: =数据填报!BO14 -> 1187.041112 | N14: =数据填报!BP14 -> 1200.986316 | O14: =数据基表!Y167 -> 921.5933603 | P14: =数据填报!BR14 -> 929.1256295 | Q14: =数据填报!BS14 -> 931.0193517 | R14: =数据填报!BZ14 -> 23240 | S14: =数据填报!CA14 -> 2448
A15: 湖北三宁 | B15: =数据填报!AT15 -> 2670 | C15: =数据填报!AT39+数据填报!AT15 -> 10499.14 | D15: =历史销量!N12+表二!C15 -> 102872.96 | E15: =数据填报!AW15 -> 2091.064 | F15: =数据填报!AX15 -> 15518.92 | G15: =数据填报!AY15 -> 412.08 | H15: =数据填报!AW39+数据填报!AY15 -> 3820.44 | I15: =历史销量!N31+表二!H15 -> 46078.96 | J15: =数据填报!BB15 -> 2360 | K15: =数据填报!BC15 -> 18835.707 | L15: =数据基表!AF185*1000 -> 1024 | M15: =数据基表!AG185*1000 -> 915 | N15: =数据基表!AH185*1000 -> 1117 | O15: =数据基表!AJ185 -> 781.245 | P15: =数据基表!AK185 -> 984.346 | Q15: =数据基表!AL185 -> 93.303
A16: 山东日月 | B16: =数据填报!AT16 -> 0 | C16: =数据填报!AT40+数据填报!AT16 -> 0 | D16: =历史销量!N13+表二!C16 -> 0 | E16: =数据填报!AW16 -> 0 | F16: =数据填报!AX16 -> 0 | G16: =数据填报!AY16 -> 0 | H16: =数据填报!AW40+数据填报!AY16 -> 0 | I16: =历史销量!N32+表二!H16 -> 0 | J16: =数据填报!BB16 -> 0 | K16: =数据填报!BC16 -> 569 | O16: =数据基表!Y204 -> 1129 | R16: =数据基表!A209 -> 1000 | S16: =数据基表!B209 -> 700
A17: 晋煤天溪 | B17: =数据填报!AT17 -> 0 | G17: =数据填报!AY17 -> 919 | H17: =数据填报!AW41+数据填报!AY17 -> 1019 | I17: =历史销量!N33+表二!H17 -> 65993.4 | J17: =数据填报!BB17 -> 2120 | K17: =数据填报!BC17 -> 6305 | L17: =数据填报!BV28 -> 1607 | M17: =数据填报!BW28 -> 1790 | N17: =数据填报!BX28 -> 1550
A18: 江苏双多 | B18: =数据填报!AT18 -> 0 | C18: =数据填报!AT42+数据填报!AT18 -> 0 | D18: =历史销量!N15+表二!C18 -> 0 | E18: =数据填报!AW18 -> 0 | F18: =数据填报!AX18 -> 0 | G18: =数据填报!AY18 -> 0 | H18: =数据填报!AW42+数据填报!AY18 -> 0 | I18: =历史销量!N34+表二!H18 -> 0 | J18: =数据填报!BB18 -> 0 | K18: =数据填报!BC18 -> 0
A19: 唐山晋银 | B19: =数据填报!AT20 -> 2102 | C19: =数据填报!AT43+数据填报!AT20 -> 27714 | D19: =历史销量!N16+表二!C19 -> 132558 | E19: =数据填报!AW20 -> 2080 | F19: =数据填报!AX20 -> 35624 | G19: =数据填报!AY20 -> 0 | H19: =数据填报!AW43+数据填报!AY20 -> 239 | I19: =历史销量!N35+表二!H19 -> 6639 | J19: =数据基表!J239 -> 2280 | K19: =数据填报!BC20 -> 2022 | L19: =数据填报!BN20 -> 1180 | M19: =数据填报!BO20 -> 1167 | N19: =数据填报!BP20 -> 1178 | O19: =数据填报!BQ20 -> 1332 | P19: =数据填报!BR20 -> 1318 | Q19: =数据填报!BS20 -> 1296 | R19: =数据填报!BZ20 -> 17040 | S19: =数据填报!CA20 -> 1088
A20: 山西金象 | B20: =数据填报!AT21 -> 1484 | C20: =数据基表!C256 -> 14841 | D20: =数据基表!D256 -> 118858 | E20: =数据基表!E256 -> 2020 | F20: =数据填报!AX21 -> 3189 | G20: =数据填报!AY21 -> 33 | H20: =数据填报!AW44+数据填报!AY21 -> 1879.68 | I20: =历史销量!N36+表二!H20 -> 17587.4 | J20: =数据填报!BB21 -> 2120 | K20: =数据填报!BC21 -> 1687 | L20: =数据基表!V256 -> 1146 | M20: =数据基表!W256 -> 1144 | N20: =数据填报!BP21 -> 1213 | O20: =数据填报!BQ21 -> 1176.3 | P20: =数据基表!Z256 -> 1169.19 | Q20: =数据填报!BS21 -> 1201.33 | R20: =数据填报!BZ21 -> 8474.81 | S20: =数据填报!CA21 -> 1470.65
A21: 山西天源 | B21: =数据填报!AT22 -> 2860 | C21: =数据基表!C270 -> 45836.68 | D21: =数据基表!D270 -> 234636.24 | E21: =数据基表!E270 -> 2000 | F21: =数据填报!AX22 -> 1835.7 | G21: =数据填报!AY22 -> 629.94 | H21: =数据填报!AW45+数据填报!AY22 -> 3322.48 | I21: =历史销量!N37+表二!H21 -> 25272.56 | J21: =数据填报!BB22 -> 2120 | K21: =数据填报!BC22 -> 2371.9504 | L21: =数据填报!BN22 -> 1114 | M21: =数据填报!BO22 -> 1111 | N21: =数据填报!BP22 -> 1106 | O21: =数据填报!BQ22 -> 959 | P21: =数据基表!Z270 -> 968 | Q21: =数据填报!BS22 -> 926 | R21: =数据填报!BZ22 -> 5331.08 | S21: =数据填报!CA22 -> 2563.9
A22: 晋煤天庆 | B22: =数据填报!AT23 -> 2013.872 | C22: =数据基表!C280 -> 34429.674 | D22: =数据基表!D280 -> 188449.877 | E22: =数据基表!E280 -> 2070 | F22: =数据填报!AX23 -> 2153.058 | G22: =数据填报!AY23 -> 0 | H22: =数据填报!AW46+数据填报!AY23 -> 0 | I22: =历史销量!N38+表二!H22 -> 0 | J22: =数据填报!BB23 -> 0 | K22: =数据填报!BC23 -> 0 | L22: =数据填报!BN23 -> 1058.92969 | M22: =数据填报!BO23 -> 1038.513548 | O22: =数据填报!BQ23 -> 235.2297136 | P22: =数据填报!BR23 -> 232.396071 | Q22: =数据填报!BS23 -> 233.0036172 | R22: =数据填报!BZ23 -> 24120.307 | S22: =数据填报!CA23 -> 2992.44
A23: 晋煤华昱 | G23: =数据填报!AY24 -> 796.8 | H23: =数据填报!AW47+数据填报!AY24 -> 15986.68 | I23: =历史销量!N39+表二!H23 -> 295890.45 | J23: =数据填报!BB24 -> 2220 | K23: =数据填报!BC24 -> 15223.6 | L23: =数据基表!M295*1000 -> 0 | M23: =数据基表!N295*1000 -> 1357.527106 | N23: =数据基表!O295*1000 -> 1393.745589 | O23: =数据填报!BQ24 -> 0 | P23: =数据填报!BR24 -> 312.6159586 | Q23: =数据填报!BS24 -> 249.1705949
A24: 单位 | B24: 液氨销量 | F24: 复合肥料销量 | I24: 精细化工销量 | L24: 吨尿素耗蒸汽 | O24: 吨尿素耗电 | R24: 原料末煤
B25: 当日 | C25: 月累计 | D25: 年累计 | E25: 当日 价格 | F25: 当日 | G25: 月累计 | H25: 年累计 | I25: 当日 | J25: 月累计 | K25: 年累计 | L25: 当日 | M25: 月累计 | N25: 年累计 | O25: 当日 | P25: 月累计 | Q25: 年累计 | R25: 库存 | S25: 日消耗
A26: 合计 | B26: =SUM(B27:B41) -> 11868.26 | C26: =SUM(C27:C41) -> 155179.72 | D26: =SUM(D27:D41) -> 946307.534 | E26: =(E27*B27+E28*B28+E29*B29+E30*B30+E31*B31+E32*B32+E33*B33+E34*B34+E35*B35+E36*B36+E37*B37+E38*B38+E39*B39+E40*B40+E41*B41)/B26 -> 3482.798579 | F26: =SUM(F27:F41) -> 7521.87 | G26: 34758.36 | H26: 270071.71 | I26: 4184.63 | J26: 55057.072 | K26: 411297.382 | L26: =AVERAGE(L27:L42) -> 891.5253248 | M26: 934.4792855 | N26: 997.2604001 | O26: 128.3762378 | P26: 129.1437461 | Q26: 140.7164513 | R26: =SUM(R27:R43) -> 376277.587 | S26: =SUM(S27:S43) -> 27772.61
A27: 晋煤金石 | B27: =数据填报!BD7 -> 2246.86 | C27: =数据填报!AX31+数据填报!BD7 -> 29766.06 | D27: =历史销量!N42+表二!C27 -> 209731.377 | E27: =数据填报!BG7 -> 3503.889517 | F27: =数据填报!BH7 -> 1700 | G27: =数据填报!AY31+数据填报!BH7 -> 24290 | H27: =历史销量!N61+表二!G27 -> 192627 | I27: =数据填报!BK7 -> 1026.14 | J27: =数据填报!BB31+数据填报!BK7 -> 15030.922 | K27: =历史销量!N80+表二!J27 -> 96356.312 | L27: =数据填报!BT7 -> 896.2715774 | M27: =数据填报!BU7 -> 875.1284976 | N27: =数据填报!BV7 -> 977.4285954 | O27: =数据填报!BW7 -> 157.859003 | P27: =数据填报!BX7 -> 161.9950495 | Q27: =数据填报!BY7 -> 168.4290143 | R27: =煤炭库存统计表!I7 -> 5550 | S27: =煤炭库存统计表!J7 -> 0
A28: 山西晋丰 | B28: =数据填报!BD8 -> 557 | C28: =数据填报!AX32+数据填报!BD8 -> 5925.6 | D28: =历史销量!N43+表二!C28 -> 17387.36 | E28: =数据基表!O32 -> 3250 | F28: =数据填报!BH8 -> 0 | G28: =数据填报!AY32+数据填报!BH8 -> 0 | H28: =历史销量!N62+表二!G28 -> 0 | K28: =历史销量!N81+表二!J28 -> 0 | L28: =数据基表!AB32 -> 990 | M28: =数据填报!BU8 -> 997.5574926 | N28: =数据填报!BV8 -> 983.4563807 | O28: =数据基表!AE32 -> 169 | P28: =数据填报!BX8 -> 167.7330805 | Q28: =数据填报!BY8 -> 165.1416749 | R28: =数据填报!CB8 -> 0 | S28: =数据填报!CC8 -> 0
A29: 河南晋开 | B29: =数据填报!BD9 -> 1453.2 | C29: =数据填报!AX33+数据填报!BD9 -> 19508.22 | D29: =历史销量!N44+表二!C29 -> 132189.76 | E29: =数据填报!BG9 -> 3438.55 | F29: =数据填报!BH9 -> 1027.2 | G29: =数据填报!AY33+数据填报!BH9 -> 10468.36 | H29: =历史销量!N63+表二!G29 -> 77444.71 | K29: =历史销量!N82+表二!J29 -> 0 | L29: =数据填报!BT9 -> 1033 | M29: =数据填报!BU9 -> 1018 | N29: =数据填报!BV9 -> 1031 | O29: =数据填报!BW9 -> 156 | P29: =数据填报!BX9 -> 144 | Q29: =数据填报!BY9 -> 140 | R29: =数据填报!CB9 -> 42761 | S29: =数据填报!CC9 -> 5722
A30: 江苏恒盛 | B30: =数据填报!BD10 -> 932 | C30: =数据填报!AX34+数据填报!BD10 -> 12020 | D30: =历史销量!N45+表二!C30 -> 34910 | E30: =数据填报!BG10 -> 3530 | F30: =数据填报!BH10 -> 0 | G30: =数据填报!AY34+数据填报!BH10 -> 0 | H30: =历史销量!N64+表二!G30 -> 0 | L30: =数据填报!BT10 -> 0 | M30: =数据填报!BU10 -> 0 | N30: =数据填报!BV10 -> 1097 | O30: =数据填报!BW10 -> 0 | P30: =数据填报!BX10 -> 0 | Q30: =数据填报!BY10 -> 140 | R30: =数据填报!CB10 -> 123 | S30: =数据填报!CC10 -> 0
A31: 山东联盟 | B31: =数据填报!BD11 -> 1106.5 | C31: =数据填报!AX35+数据填报!BD11 -> 14536.61 | D31: =历史销量!N46+表二!C31 -> 96955.787 | E31: =数据填报!BG11 -> 3554 | I31: =数据填报!BK11 -> 0 | J31: =数据填报!BB35+数据填报!BK11 -> 0 | K31: =历史销量!N84+表二!J31 -> 0 | L31: =数据填报!BT11 -> 913.1362 | M31: =数据填报!BU11 -> 908.5688 | N31: =数据填报!BV11 -> 931.67905 | O31: =数据填报!BW11 -> 103.05145 | P31: =数据填报!BX11 -> 101.54505 | Q31: =数据填报!BY11 -> 100.7696 | R31: =煤炭库存统计表!I26 -> 15203 | S31: =煤炭库存统计表!J26 -> 2896
A32: 山东明水 | B32: =数据填报!BD12 -> 629.04 | C32: =数据填报!AX36+数据填报!BD12 -> 9189.1 | D32: =历史销量!N47+表二!C32 -> 53751.2 | E32: =数据填报!BG12 -> 3454.001335 | F32: =数据填报!BH12 -> 0 | G32: =数据填报!AY36+数据填报!BH12 -> 0 | H32: =历史销量!N66+表二!G32 -> 0 | I32: =数据填报!BK12 -> 0 | J32: =数据填报!BB36+数据填报!BK12 -> 0 | K32: =历史销量!N85+表二!J32 -> 0 | L32: =数据基表!AB95 -> 1054.641881 | M32: =数据填报!BU12 -> 1044.388901 | N32: =数据填报!BV12 -> 1060.177569 | O32: =数据基表!AE95 -> 67.89578362 | P32: =数据填报!BX12 -> 69.92105075 | Q32: =数据填报!BY12 -> 71.81340046 | R32: =数据填报!CB12 -> 23304.15 | S32: =数据填报!CC12 -> 2706.1
A33: 安徽中能 | B33: =数据填报!BD13 -> 718 | C33: =数据填报!AX37+数据填报!BD13 -> 10484 | D33: =历史销量!N48+表二!C33 -> 92581 | E33: =数据填报!BG13 -> 3627 | F33: =数据填报!BH13 -> 0 | G33: =数据填报!AY37+数据填报!BH13 -> 0 | H33: =历史销量!N67+表二!G33 -> 0 | I33: =数据填报!BK13 -> 1284 | J33: =数据填报!BB37+数据填报!BK13 -> 15002 | K33: =历史销量!N86+表二!J33 -> 144674 | L33: =数据填报!BT13 -> 936 | M33: =数据基表!AC141 -> 990 | N33: =数据基表!AD141 -> 994 | O33: =数据填报!BW13 -> 147 | P33: =数据填报!BX13 -> 148 | Q33: =数据填报!BY13 -> 147 | R33: =数据填报!CB13 -> 90527 | S33: =数据填报!CC13 -> 4635
A34: 安徽昊源 | B34: =数据填报!BD14 -> 1961.92 | C34: =数据填报!AX38+数据填报!BD14 -> 26910.77 | D34: =历史销量!N49+表二!C34 -> 176807.97 | E34: =数据填报!BG14 -> 3450 | F34: =数据填报!BH14 -> 0 | G34: =数据填报!AY38+数据填报!BH14 -> 0 | H34: =历史销量!N68+表二!G34 -> 0 | I34: =数据填报!BK14 -> 902.77 | J34: =数据填报!BB38+数据填报!BK14 -> 12641.29 | K34: =历史销量!N87+表二!J34 -> 66535.57 | L34: =数据填报!BT14 -> 979.9099007 | M34: =数据填报!BU14 -> 1461.395011 | N34: =数据填报!BV14 -> 991.9329377 | O34: =数据填报!BW14 -> 155 | P34: =数据填报!BX14 -> 155 | Q34: =数据填报!BY14 -> 155 | R34: =数据填报!CB14 -> 70024 | S34: =数据填报!CC14 -> 4919
A35: 湖北三宁 | B35: =数据填报!BD15 -> 1178.88 | C35: =数据填报!AX39+数据填报!BD15 -> 16810.72 | D35: =历史销量!N50+表二!C35 -> 80824.48 | E35: =数据填报!BG15 -> 3600 | F35: =数据填报!BH15 -> 4794.67 | G35: =数据基表!W185 -> 0 | H35: =数据基表!X185 -> 0 | I35: =数据填报!BK15 -> 552.72 | J35: =数据填报!BB39+数据填报!BK15 -> 6780.86 | K35: =历史销量!N88+表二!J35 -> 56263.5 | L35: =数据基表!AO185*1000 -> 941 | M35: =数据基表!AP185*1000 -> 1019 | N35: =数据基表!AQ185*1000 -> 1046 | O35: =数据基表!AL185 -> 93.303 | P35: =数据基表!AM185 -> 97.845 | Q35: =数据基表!AN185 -> 121.659 | R35: =数据基表!AT185 -> 59860.207 | S35: =数据基表!AU185 -> 4585.69
A36: 山东日月 | B36: =数据填报!BD16 -> 294 | C36: =数据填报!AX40+数据填报!BD16 -> 3645 | D36: =历史销量!N51+表二!C36 -> 18338 | E36: =数据填报!BG16 -> 3480 | F36: =数据填报!BH16 -> 0 | G36: =数据填报!AY40+数据填报!BH16 -> 0 | H36: =历史销量!N70+表二!G36 -> 0 | I36: =数据填报!BK16 -> 419 | J36: =数据填报!BB40+数据填报!BK16 -> 5602 | K36: =历史销量!N89+表二!J36 -> 47468 | R36: =数据填报!CB16 -> 0 | S36: =数据填报!CC16 -> 0
A37: 晋煤天溪 | R37: =数据填报!BY28 -> 9700 | S37: =数据填报!BZ28 -> 1768
A38: 江苏双多 | B38: =数据填报!BD18 -> 0 | C38: =数据填报!AX42+数据填报!BD18 -> 0 | D38: =历史销量!N53+表二!C38 -> 0 | E38: =数据填报!BG18 -> 0
A39: 唐山晋银 | B39: =数据基表!L239 -> 150 | C39: =数据基表!M239 -> 1885 | D39: =数据基表!N239 -> 9275 | E39: =数据填报!BG20 -> 3580 | L39: =数据填报!BT20 -> 1114 | M39: =数据填报!BU20 -> 1112 | N39: =数据填报!BV20 -> 1111 | O39: =数据填报!BW20 -> 146 | P39: =数据填报!BX20 -> 154 | Q39: =数据填报!BY20 -> 148
A40: 山西金象 | B40: =数据基表!L256 -> 315 | C40: =数据基表!M256 -> 2326 | D40: =数据基表!N256 -> 17102 | E40: =数据基表!O256 -> 3250 | L40: =数据基表!AB256 -> 983 | M40: =数据基表!AC256 -> 978 | N40: =数据基表!AD256 -> 999 | O40: =数据基表!AE256 -> 153.64 | P40: =数据基表!AF256 -> 154.86 | Q40: =数据填报!BY21 -> 153.94
A41: 山西天源 | B41: =数据填报!BD22 -> 325.86 | C41: =数据基表!M270 -> 2172.64 | D41: =数据基表!N270 -> 6453.6 | E41: =数据填报!BG22 -> 3250 | L41: =数据填报!BT22 -> 931 | M41: =数据填报!BU22 -> 926 | N41: =数据填报!BV22 -> 923 | O41: =数据填报!BW22 -> 180 | P41: =数据填报!BX22 -> 183 | Q41: =数据填报!BY22 -> 176 | R41: =数据填报!CB22 -> 0 | S41: =数据填报!CC22 -> 0
A42: 晋煤天庆 | B42: =数据基表!L280 -> 63.28 | C42: =数据基表!M280 -> 827.28 | D42: =数据基表!N280 -> 5753.94 | E42: =数据基表!O280 -> 3350 | L42: =数据填报!BT23 -> 817.8696636 | M42: =数据填报!BU23 -> 818.1920091 | N42: =数据填报!BV23 -> 818.7106685 | O42: =数据填报!BW23 -> 140.1418542 | P42: =数据填报!BX23 -> 140.969468 | Q42: =数据填报!BY23 -> 141.5611776 | R42: =数据填报!CB23 -> 0 | S42: =数据填报!CC23 -> 540.82
A43: 晋煤华昱 | R43: =数据填报!CB24 -> 59225.23 | S43: =数据填报!CC24 -> 0
A44: 单位 | B44: 石化汽、柴油销量（吨） | G44: 煤基合成油销量（吨） | L44: 吨合成油耗甲醇 | O44: 吨合成油耗电 | R44: 原料煤紧张单位
B45: 当日 | C45: 月累计 | D45: 年累计 | E45: 当日 价格 | F45: 库存量 | G45: 当日 | H45: 月累计 | I45: 年累计 | J45: 当日价格 | K45: 库存量 | L45: 当日 | M45: 月累计 | N45: 年累计 | O45: 当日 | P45: 月累计 | Q45: 年累计 | R45: 块煤 | S45: 末煤
A46: 合计 | B46: =SUM(B47:B48) -> 1003 | C46: 13756 | D46: 85502 | E46: =E47 -> 7009 | F46: =F47 -> 30727 | G46: 0 | H46: 0 | I46: 0 | J46: =J48 -> 0 | K46: 0 | L46: 0 | M46: 0 | N46: 0 | O46: 0 | P46: 0 | Q46: 0
A47: 联盟石油 | B47: =数据填报!AT27 -> 1003 | C47: =数据填报!BC48+数据填报!AT27 -> 13756 | D47: =历史销量!N99+表二!C47 -> 85502 | E47: =数据填报!AW27 -> 7009 | F47: =数据填报!AX27 -> 30727
A48: 晋煤天溪 | G48: =数据基表!N221 -> 0 | H48: =数据基表!O221 -> 0 | I48: =数据基表!P221 -> 0 | J48: =数据基表!Q221 -> 0 | K48: =数据基表!R221 -> 0 | L48: =数据填报!BP28 -> 0 | M48: =数据填报!BQ28 -> 0 | N48: =数据填报!BR28 -> 0 | O48: =数据填报!BS28 -> 0 | P48: =数据填报!BT28 -> 0 | Q48: =数据填报!BU28 -> 0
A49: 晋煤华昱
A52: 今日生产及突发事件 情 况 | D52: 1、满负荷运行公司21家：天溪公司、天源公司、晋丰高平公司、金象公司、晋开二分公司、联盟公司、明水本部、明升达公司、金华润公司、明泉公司、中能公司、恒盛公司、金牛公司、昊源公司、天庆公司、三宁公司、晋银公司、新疆万源公司、华强公司、联盟石油公司、日月公司。2、减量运行公司1家：金石藁城公司。3、停车公司3家：泉盛公司、华昱公司、晋丰闻喜公司。4、停产公司5家：双多公司因搬迁改造停产、金万泰公司因环保原因停产，延化公司因搬迁改造停产、晋开一分公司因项目搬迁原因停产，武陟绿宇公司因产能落后停产。5、板块整体煤炭库容比为59.68%。
C58: 31日 | D58: 1日 | E58: 2日 | F58: 3日 | G58: 4日 | H58: 5日 | I58: 6日 | J58: 7日 | K58: 8日 | L58: 9日 | M58: 10日 | N58: 11日 | O58: 12日 | P58: 13日 | Q58: 13日 | S58: 今日
A59: 尿素价格 | C59: 2119 | D59: 2109 | E59: 2118.463201 | F59: 2104 | G59: 2102 | H59: 2092 | I59: 2088 | J59: 2089 | K59: 2090.77179 | L59: 2086 | M59: 2083 | N59: 2082 | O59: 2093 | P59: 2083 | Q59: 2093.959204 | S59: =数据填报!BW52 -> 2084.291735
C60: . | D60: . | E60: . | F60: . | G60: . | H60: . | I60: . | J60: . | K60: . | L60: . | M60: . | N60: . | O60: . | P60: . | Q60: .
C61: 31日 | D61: 1日 | E61: 2日 | F61: 3日 | G61: 4日 | H61: 5日 | I61: 6日 | J61: 7日 | K61: 8日 | L61: 9日 | M61: 10日 | N61: 11日 | O61: 12日 | P61: 13日 | Q61: =Q58 -> 13日
A62: 甲醇价格 | C62: 2247 | D62: 2261 | E62: 2273.559867 | F62: 2258 | G62: 2289 | H62: 2288.750346 | I62: 2281 | J62: 2261 | K62: 2284.285646 | L62: 2268 | M62: 2299 | N62: 2292.252111 | O62: 2293 | P62: 2271 | Q62: 2302.132223 | S62: =J6 -> 2258.933671
C64: 31日 | D64: 1日 | E64: 2日 | F64: 3日 | G64: 4日 | H64: 5日 | I64: 6日 | J64: 7日 | K64: 8日 | L64: 9日 | M64: 10日 | N64: 11日 | O64: 12日 | P64: 13日 | Q64: =Q58 -> 13日
A65: 吨氨耗煤 | C65: 1088 | D65: 1100 | E65: 1093.545461 | F65: 1081 | G65: 1073 | H65: 1080.279915 | I65: 1080.279915 | J65: 988 | K65: 991.9419661 | L65: 990 | M65: 984 | N65: 982 | O65: 1006 | P65: 1115 | Q65: 1104.991553 | S65: =L6 -> 1117.524886
C67: 31日 | D67: 1日 | E67: 2日 | F67: 3日 | G67: 4日 | H67: 5日 | I67: 6日 | J67: 7日 | K67: 8日 | L67: 9日 | M67: 10日 | N67: 11日 | O67: 12日 | P67: 13日 | Q67: =Q58 -> 13日
A68: 吨氨耗电 | C68: 896 | D68: 983 | E68: 979.3491018 | F68: 957 | G68: 953 | H68: 946.4746505 | I68: 953 | J68: 950 | K68: 951.8943118 | L68: 946 | M68: 949 | N68: 946 | O68: 948 | P68: 954 | Q68: 947.1902288 | S68: =O6 -> 949.7616574
C70: 31日 | D70: 1日 | E70: 2日 | F70: 3日 | G70: 4日 | H70: 5日 | I70: 6日 | J70: 7日 | K70: 8日 | L70: 9日 | M70: 10日 | N70: 11日 | O70: 12日 | P70: 13日 | Q70: =Q58 -> 13日
A71: 原料块煤库存 | C71: 254906 | D71: 252930 | E71: 257495.177 | F71: 263980 | G71: 264133 | H71: 259951.547 | I71: 266764 | J71: 265905 | K71: 271599.807 | L71: 269744 | M71: 267367 | N71: 268773 | O71: 265555 | P71: 264331 | Q71: 263114.687 | S71: =煤炭库存统计表!E6 -> 267529.197
C73: 31日 | D73: 1日 | E73: 2日 | F73: 3日 | G73: 4日 | H73: 5日 | I73: 6日 | J73: 7日 | K73: 8日 | L73: 9日 | M73: 10日 | N73: 11日 | O73: 12日 | P73: 13日 | Q73: =Q58 -> 13日
A74: 原料末煤库存 | C74: 356339 | D74: 350625 | E74: 337987.757 | F74: 333833 | G74: 332177 | H74: 318410.607 | I74: 334712 | J74: 346747 | K74: 346833.047 | L74: 356308 | M74: 352453 | N74: 348874 | O74: 357121 | P74: 366790 | Q74: 376277.587 | S74: =煤炭库存统计表!I6 -> 376277.587
A77: 三聚氰胺价格 | C77: 7900 | D77: 7900 | E77: 7900 | F77: 7900 | G77: 7900 | H77: 7900 | I77: 7900 | J77: 9100 | K77: 9310 | L77: 9310 | M77: 9310 | N77: 9310 | O77: 9310 | P77: 9500 | Q77: 9500 | S77: =数据基表!E13 -> 9500
C79: 31日 | D79: 1日 | E79: 2日 | F79: 3日 | G79: 4日 | H79: 5日 | I79: 6日 | J79: 7日 | K79: 8日 | L79: 9日 | M79: 10日 | N79: 11日 | O79: 12日 | P79: 13日 | Q79: =Q58 -> 13日 | S79: =AVERAGE(数据填报!BB7:BB16,数据填报!BB19,数据填报!BB22) -> 1859.276303
A80: 甲醇算数平均价格 | C80: 1828 | D80: 1841 | E80: 1854.929626 | F80: 1843 | G80: 1870 | H80: 1858.240223 | I80: 1876 | J80: 1863 | K80: 1890.086869 | L80: 1872 | M80: 1861 | N80: 1866 | O80: 1863 | P80: 1867 | Q80: 1962.003575
A82: 己内酰胺价格 | C82: 12893 | D82: 12837 | E82: 12969.804 | F82: 13014 | G82: 12988 | H82: 12988 | I82: 12926 | J82: 12944 | K82: 12990.884 | L82: 12992 | M82: 13067 | N82: 12936 | O82: 12924 | P82: 12986 | Q82: 12966.774 | S82: =数据基表!AD185 -> 12966.774
A83: 甲醇产量加权价格 | C83: 1878 | D83: 1896 | E83: 1915.201625 | F83: 1892 | G83: 1936 | H83: 1915.27608 | I83: 1945 | J83: 1923 | K83: 1965.002421 | L83: 1935 | M83: 1916 | N83: 1926 | O83: 1925 | P83: 1929 | Q83: 1955.118678 | S83: =(1205*表二!J7+274*表二!J8+630*表二!J9+521*表二!J10+1178*表二!J11+521*表二!J12+932*表二!J13+877*表二!J14+877*表二!J15+274*表二!J16+55*表二!J21)/7644 -> 1946.988118
C84: 31日 | D84: 1日 | E84: 2日 | F84: 3日 | G84: 4日 | H84: 5日 | I84: 6日 | J84: 7日 | K84: 8日 | L84: 9日 | M84: 10日 | N84: 11日 | O84: 12日 | P84: 13日 | Q84: =Q58 -> 13日
A85: 液氨价格 | C85: 3416 | D85: 3429 | E85: 3490.178301 | F85: 3483 | G85: 3508 | H85: 3476.907951 | I85: 3509 | J85: 3515 | K85: 3519.83689 | L85: 3530 | M85: 3523 | N85: 3512 | O85: 3518 | P85: 3495 | Q85: 3489.370847 | S85: =E26 -> 3482.798579
D86: 1日 | E86: 2日 | F86: 3日 | G86: 4日 | H86: 5日 | I86: 6日 | J86: 7日 | K86: 8日 | L86: 9日 | M86: 10日 | N86: 11日 | O86: 12日 | P86: 13日 | Q86: 13日
A87: LNG | D87: 3550 | E87: 3550 | F87: 3550 | G87: 3550 | H87: 3550 | I87: 3550 | J87: 3550 | K87: 3550 | L87: 3550 | M87: 3550 | N87: 3750 | O87: 3750 | P87: 3650 | Q87: 3500 | S87: =数据基表!O281 -> 3500

Sheet 煤炭库存统计表
A1: 煤化工板块各公司煤炭库存统计表
M2: 单位：吨、天 | P2: =表一!N2 -> 2021-04-14
A3: 序 号 | B3: 公司名称 | D3: 生产情况（生产、检修） | E3: 原料煤情况 | L3: 燃料煤情况 | P3: 合计
E4: 原料块煤 | I4: 原料末煤 | L4: 燃料末煤 | P4: 库存 | Q4: 日消耗 | R4: 可用天数 | S4: 剩余可用库存
B5: 二级公司 | C5: 三级公司 | E5: 库存 | F5: 日消耗 | G5: 可用天数 | H5: 剩余可用库存 | I5: 库存 | J5: 日消耗 | K5: 可用天数 | L5: 库存 | M5: 日消耗 | N5: 可用天数 | O5: 剩余可用库存
B6: 总计 | E6: =E7+E13+E16+E23+E26+E29+E35+E38+E42+E47+E50+E51+E52+E53+E54+E55 -> 267529.197 | F6: =F7+F13+F16+F23+F26+F29+F35+F38+F42+F47+F50+F51+F52+F53+F54+F55 -> 24399.06 | G6: =E6/F6 -> 10.96473376 | H6: =543000-E6 -> 275470.803 | I6: =I7+I13+I16+I23+I26+I29+I35+I38+I42+I47+I50+I51+I52+I53+I54+I55+I56 -> 376277.587 | J6: =J7+J13+J16+J23+J26+J29+J35+J38+J42+J47+J50+J51+J52+J53+J54+J56 -> 27231.79 | K6: =I6/J6 -> 13.81758551 | L6: =L7+L13+L16+L23+L26+L29+L35+L38+L42+L47+L50+L51+L52+L53+L54+L55+L56 -> 250250.877 | M6: =M7+M13+M16+M23+M26+M29+M35+M38+M42+M47+M50+M51+M52+M53+M54+M55+M56 -> 23151.69 | N6: =L6/M6 -> 10.80918399 | O6: =873000-I6-L6 -> 246471.536 | P6: =E6+I6+L6 -> 894057.661 | Q6: =F6+J6+M6 -> 74782.54 | R6: =P6/Q6 -> 11.95543319 | S6: =1458000-P6 -> 563942.339 | V6: 板块整体煤炭库容比 | X6: =P6/14980 -> 59.68342196 | Y6: %
A7: 1 | B7: 小计 | E7: =SUM(E8:E12) -> 65303 | F7: =SUM(F8:F12) -> 5952.07 | G7: =E7/F7 -> 10.97147715 | H7: =H8+H10+H12-E7 -> 32495 | I7: =SUM(I8:I12) -> 5550 | J7: =SUM(J8:J12) -> 0 | K7: =I7/J7 ->  | L7: =SUM(L8:L12) -> 41811 | M7: =SUM(M8:M12) -> 1952 | N7: =L7/M7 -> 21.41956967 | O7: =220000-I7-L7 -> 172639 | P7: =SUM(P8:P12) -> 112664 | Q7: =SUM(Q8:Q12) -> 7904.07 | R7: =P7/Q7 -> 14.25392235 | S7: =275000-P7 -> 162336
B8: 晋煤金石化工 | C8: 藁城 | D8: 减量生产 | E8: =数据基表!AH15 -> 14516 | F8: =数据基表!AI15 -> 1706 | G8: =E8/F8 -> 8.508792497 | H8: =20000-E8 -> 5484 | L8: =数据基表!AL15 -> 10811 | M8: =数据基表!AM15 -> 1132 | N8: =L8/M8 -> 9.550353357 | O8: =20000-L8 -> 9189 | P8: =E8+I8+L8 -> 25327 | Q8: 2838 | R8: =P8/Q8 -> 8.924242424 | S8: =40000-P8 -> 14673
C9: 金万泰 | D9: 停车检修 | E9: =数据基表!AH16 -> 0 | F9: =数据基表!AI16 -> 0 | H9: =25000-E9 -> 25000 | K9: =I9/J9 ->  | L9: =数据基表!AL16 -> 0 | M9: =数据基表!AM16 -> 0 | O9: =5000-L9 -> 5000 | P9: 0 | Q9: 0 | S9: =30000-P9 -> 30000
C10: 华强 | D10: 正常生产 | E10: =数据基表!AH17 -> 12300 | F10: =数据基表!AI17 -> 1598 | G10: =E10/F10 -> 7.697121402 | H10: =100000-E10 -> 87700 | L10: =数据基表!AL17 -> 31000 | M10: =数据基表!AM17 -> 820 | N10: =L10/M10 -> 37.80487805 | O10: 0 | P10: 43300 | Q10: 2418 | R10: =P10/Q10 -> 17.90736146 | S10: =100000-P10 -> 56700
C11: 金华润 | D11: 正常生产 | E11: =数据基表!AH18 -> 33101 | F11: =数据基表!AI18 -> 1914.07 | G11: =E11/F11 -> 17.29351591 | I11: =数据基表!AJ18 -> 0 | J11: =数据基表!AK18 -> 0 | L11: =数据基表!AL18 -> 0 | M11: 0 | O11: 0 | P11: =I11+L11+E11 -> 33101 | Q11: =F11+J11+M11 -> 1914.07 | R11: =P11/Q11 -> 17.29351591 | S11: 0
C12: 金牛 | D12: 正常生产 | E12: =数据基表!AH19 -> 5386 | F12: =数据基表!AI19 -> 734 | G12: =E12/F12 -> 7.337874659 | H12: =10000-E12 -> 4614 | I12: =数据基表!AJ19 -> 5550 | J12: =数据基表!AK19 -> 0 | K12: =I12/J12 ->  | L12: =数据基表!AL19 -> 0 | M12: =数据基表!AM19 -> 0 | O12: =15000-I12 -> 9450 | P12: =E12+I12+L12 -> 10936 | Q12: =F12+J12+M12 -> 734 | R12: =P12/Q12 -> 14.89918256 | S12: =25000-P12 -> 14064
A13: 2 | B13: 小计 | E13: =E14+E15 -> 17420 | F13: =F14+F15 -> 1551 | G13: 11.23146357 | H13: =41000-E13 -> 23580 | I13: =I14+I15 -> 0 | J13: =J14+J15 -> 0 | L13: =L14+L15 -> 2844 | M13: =M14+M15 -> 483 | N13: =L13/M13 -> 5.888198758 | O13: =8000-I13-L13 -> 5156 | P13: =E13+I13+L13 -> 20264 | Q13: =F13+J13+M13 -> 2034 | R13: =P13/Q13 -> 9.962635202 | S13: =49000-P13 -> 28736
B14: 晋丰 化工 | C14: 高平公司 | D14: 正常生产 | E14: =数据基表!AH33 -> 11899 | F14: =数据基表!AI33 -> 1551 | G14: 7.671824629 | H14: =15000-E14 -> 3101 | I14: =数据基表!AJ33 -> 0 | J14: =数据基表!AK33 -> 0 | L14: =数据基表!AL33 -> 1717 | M14: =数据基表!AM33 -> 483 | N14: =L14/M14 -> 3.554865424 | O14: =8000-I14-L14 -> 6283 | P14: 13616 | Q14: 2034 | R14: 6.694198623 | S14: =23000-P14 -> 9384
C15: 闻喜公司 | D15: 停车检修 | E15: =数据基表!AH34 -> 5521 | F15: =数据基表!AI34 -> 0 | H15: =26000-E15 -> 20479 | L15: =数据基表!AL34 -> 1127 | M15: =数据基表!AM34 -> 0 | N15: =L15/M15 ->  | P15: 6648 | Q15: 0 | S15: =26000-P15 -> 19352
A16: 3 | B16: 小计 | E16: =E17+E18+E19+E20+E21+E22 -> 4466 | F16: =F18 -> 0 | H16: =80000-E16 -> 75534 | I16: =I17+I18+I19+I20+I21+I22 -> 42761 | J16: =J17+J18+J19+J20+J21+J22 -> 5722 | K16: =I16/J16 -> 7.473086333 | L16: =L17+L18+L19+L20+L21+L22 -> 8933 | M16: =M17+M18+M19+M20+M21+M22 -> 2656 | N16: =L16/M16 -> 3.363328313 | O16: =110000-I16-L16 -> 58306 | P16: 56160 | Q16: 8378 | R16: 6.70327047 | S16: =190000-P16 -> 133840
B17: 河南晋开化工 | C17: 一分公司 | D17: 停产 | E17: =数据基表!AH56 -> 2638 | F17: =数据基表!AI56 -> 0 | H17: =50000-E17 -> 47362 | I17: =数据基表!AJ56 -> 5384 | J17: =数据基表!AK56 -> 0 | L17: =数据基表!AL56 -> 0 | M17: =数据基表!AM56 -> 0 | O17: =10000-I17 -> 4616 | P17: 8022 | Q17: 0 | S17: =60000-P17 -> 51978
C18: 二分公司 | D18: 正常生产 | E18: =数据基表!AH57 -> 0 | F18: =数据基表!AI57 -> 0 | I18: =数据基表!AJ57 -> 36955 | J18: =数据基表!AK57 -> 5722 | K18: 6.458406152 | L18: =数据基表!AL57 -> 5897 | M18: =数据基表!AM57 -> 2656 | N18: =L18/M18 -> 2.220256024 | O18: =90000-I18-L18 -> 47148 | P18: 42852 | Q18: 8378 | R18: 5.11482454 | S18: =90000-P18 -> 47148
C19: 延化化工 | D19: 停车 | E19: =数据基表!AH58 -> 0 | F19: =数据基表!AI58 -> 0 | G19: =E19/F19 ->  | H19: =20000-E19 -> 20000 | L19: =数据基表!AL58 -> 2505 | O19: =5000-L19 -> 2495 | P19: 2505 | Q19: 0 | S19: =25000-P19 -> 22495
C20: 太康昕洲 | D20: 停产
C21: 郸城晋鑫 | D21: 停车检修 | P21: =E21+I21+L21 -> 0 | Q21: =F21+J21+M21 -> 0
C22: 武陟绿宇 | D22: 停车检修 | E22: =数据基表!AH61 -> 1828 | F22: =数据基表!AI61 -> 0 | G22: =E22/F22 ->  | H22: =10000-E22 -> 8172 | I22: =数据基表!AJ61 -> 422 | J22: =数据基表!AK61 -> 0 | K22: =I22/J22 ->  | L22: =数据基表!AL61 -> 531 | M22: =数据基表!AM61 -> 0 | N22: =L22/M22 ->  | O22: =5000-I22-L22 -> 4047 | P22: =E22+I22+L22 -> 2781 | Q22: =F22+J22+M22 -> 0 | R22: =P22/Q22 ->  | S22: =5000-P22 -> 2219
A23: 4 | B23: 小计 | E23: =E24 -> 7325 | F23: =F24 -> 1206 | H23: =30000-E23 -> 22675 | I23: =I24 -> 123 | J23: =J24 -> 0 | L23: =L24 -> 5919 | M23: =M24 -> 127 | O23: =15000-I23-L23 -> 8958 | P23: =E23+I23+L23 -> 13367 | Q23: =F23+J23+M23 -> 1333 | S23: =45000-P23 -> 31633
B24: 江苏晋煤恒盛 | C24: 本部 | D24: 正常生产 | E24: =数据基表!AH73 -> 7325 | F24: =数据基表!AI73 -> 1206 | H24: =30000-E24 -> 22675 | I24: =数据基表!AJ73 -> 123 | J24: =数据基表!AK73 -> 0 | L24: =数据基表!AL73 -> 5919 | M24: =数据基表!AM73 -> 127 | O24: =15000-I24-L24 -> 8958 | P24: =E24+I24+L24 -> 13367 | Q24: =F24+J24+M24 -> 1333 | S24: =45000-P24 -> 31633
C25: 恒鑫 | D25: 停产
A26: 5 | B26: 小计 | E26: =数据基表!AH87 -> 39044 | F26: =数据基表!AI87 -> 2716 | G26: =E26/F26 -> 14.37555228 | H26: =50000-E26 -> 10956 | I26: =数据基表!AJ87 -> 15203 | J26: =数据基表!AK87 -> 2896 | K26: =I26/J26 -> 5.249654696 | L26: =数据基表!AL87 -> 26057.9 | M26: =数据基表!AM87 -> 2352 | N26: =L26/M26 -> 11.07903912 | P26: =E26+I26+L26 -> 80304.9 | Q26: =F26+J26+M26 -> 7964 | R26: =P26/Q26 -> 10.0834882 | S26: =95000-P26 -> 14695.1
B27: 山东联盟化工 | C27: 一厂 | D27: 正常生产 | E27: =数据基表!AH85 -> 39044 | F27: =数据基表!AI85 -> 2716 | G27: =E27/F27 -> 14.37555228 | L27: =数据基表!AL85 -> 10359.9 | M27: =数据基表!AM85 -> 496 | N27: =L27/M27 -> 20.88689516 | P27: =E27+L27 -> 49403.9 | Q27: =F27+M27 -> 3212 | R27: =P27/Q27 -> 15.38103985
C28: 二厂 | D28: 正常生产 | I28: =数据基表!AJ86 -> 15203 | J28: =数据基表!AK86 -> 2896 | K28: =I28/J28 -> 5.249654696 | M28: =数据基表!AM86 -> 1856 | P28: =I28 -> 15203 | Q28: =J28+M28 -> 4752 | R28: =P28/Q28 -> 3.199284512
A29: 6 | B29: 小计 | E29: =E30+E31+E32+E33+E34 -> 12482 | F29: =F30+F32 -> 1048 | G29: =E29/F29 -> 11.91030534 | H29: =60000-E29 -> 47518 | I29: =I30+I33 -> 23304.15 | J29: =J30+J33 -> 2706.1 | K29: =I29/J29 -> 8.61171058 | L29: =L30+L31+L32+L33+L34 -> 18088.82 | M29: =M30+M31+M32+M33+M34 -> 3029.8 | N29: =L29/M29 -> 5.97030167 | O29: =22000-I29-L29 -> -19392.97 | P29: =E29+I29+L29 -> 53874.97 | Q29: =F29+J29+M29 -> 6783.9 | R29: =P29/Q29 -> 7.941592594 | S29: =82000-P29 -> 28125.03
B30: 山东晋煤明水 | C30: 本部 | D30: 正常生产 | E30: =数据基表!D124 -> 12482 | F30: =数据基表!E124 -> 1048 | G30: =E30/F30 -> 11.91030534 | H30: =40000-E30 -> 27518 | I30: =数据基表!G124 -> 0 | J30: =数据基表!H124 -> 0 | L30: =数据基表!J124 -> 5409 | M30: =数据基表!K124 -> 569 | N30: =L30/M30 -> 9.506151142 | O30: =20000-I30-L30 -> 14591 | P30: 17891 | Q30: 1617 | R30: 11.06431664 | S30: =60000-P30 -> 42109
C31: 文登 | D31: 停产 | I31: =数据基表!G125 -> 0 | J31: =数据基表!H125 -> 0 | L31: =数据基表!J125 -> 0 | M31: =数据基表!K125 -> 0
C32: 明升达 | D32: 停产 | H32: =20000-E32 -> 20000 | I32: =数据基表!G126 -> 0 | J32: =数据基表!H126 -> 0 | L32: =数据基表!J126 -> 4303.23 | M32: =数据基表!K126 -> 1281 | O32: =2000-I32-L32 -> -2303.23 | P32: 4303.23 | Q32: 1281 | S32: =22000-P32 -> 17696.77
C33: 明泉科技 | D33: 正常生产 | I33: =数据基表!G127 -> 23304.15 | J33: =数据基表!H127 -> 2706.1 | K33: =I33/J33 -> 8.61171058 | L33: =数据基表!J127 -> 8376.59 | M33: =数据基表!K127 -> 1179.8 | N33: =L33/M33 -> 7.100008476 | P33: =L33+I33 -> 31680.74 | Q33: =M33+J33 -> 3885.9 | R33: 8.152741965
C34: 郓城鲁发 | D34: 停产
A35: 7 | B35: 小计 | E35: =E36 -> 1000 | F35: =F36 -> 700 | G35: =E35/F35 -> 1.428571429 | H35: =17000-E35 -> 16000 | P35: 1000 | Q35: 700 | R35: 1.428571429 | S35: =17000-P35 -> 16000
B36: 山东晋煤日月 | C36: 本部 | D36: 正常生产 | E36: =数据基表!A209 -> 1000 | F36: =数据基表!B209 -> 700 | G36: =E36/F36 -> 1.428571429 | H36: =17000-E36 -> 16000 | I36: =数据基表!C209 -> 2550 | L36: =数据基表!D209 -> 2550 | P36: 6100 | Q36: 700 | R36: 8.714285714 | S36: =17000-P36 -> 10900
C37: 日月同辉 | D37: 未报 | P37: 0 | Q37: 0
A38: 8 | B38: 小计 | E38: =E39+E40+E41 -> 42283 | F38: =F39+F40+F41 -> 663 | G38: =E38/F38 -> 63.77526395 | H38: =55000-E38 -> 12717 | I38: =I39+I40+I41 -> 90527 | J38: =J39+J40+J41 -> 4635 | K38: =I38/J38 -> 19.53117584 | L38: =SUM(L39:L41) -> 43331 | M38: =M39+M40+M41 -> 1730 | N38: =L38/M38 -> 25.04682081 | O38: =85000-I39-I40-L39-L40 -> -11911 | P38: 176141 | Q38: 7028 | R38: 25.062749 | S38: =S39+S40 -> 806
B39: 安徽晋煤中能 | C39: 本部 | D39: 正常生产 | E39: =数据基表!D149 -> 15367 | F39: =数据基表!E149 -> 663 | G39: 23.17797888 | H39: =25000-E39 -> 9633 | I39: =数据基表!G149 -> 46290 | J39: =数据基表!H149 -> 3248 | K39: 14.25184729 | L39: =数据基表!J149 -> 36618 | M39: =数据基表!K149 -> 1362 | N39: =L39/M39 -> 26.88546256 | O39: =70000-I39-L39 -> -12908 | P39: 98275 | Q39: 5273 | R39: 18.63739807 | S39: =95000-P39 -> -3275
C40: 泉盛化工 | D40: 停车 | E40: =数据基表!D150 -> 26916 | F40: =数据基表!E150 -> 0 | H40: =30000-E40 -> 3084 | I40: =数据基表!G150 -> 7290 | J40: =数据基表!H150 -> 0 | L40: =数据基表!J150 -> 6713 | M40: =数据基表!K150 -> 368 | N40: =L40/M40 -> 18.24184783 | O40: =15000-I40-L40 -> 997 | P40: 40919 | Q40: 368 | R40: 111.1929348 | S40: =45000-P40 -> 4081
C41: 新疆万源 | D41: 系统开车 | E41: =数据基表!D151 -> 0 | F41: =数据基表!E151 -> 0 | I41: =数据基表!G151 -> 36947 | J41: =数据基表!H151 -> 1387 | K41: 26.63806777 | P41: 36947 | Q41: 1387 | R41: 26.63806777
A42: 9 | B42: 小计 | E42: =SUM(E43+E44+E45+E46) -> 23240 | F42: =SUM(F43+F44+F45+F46) -> 2448 | G42: =E42/F42 -> 9.493464052 | H42: =40000-E42 -> 16760 | I42: =SUM(I43:I46) -> 70024 | J42: =SUM(J43:J46) -> 4919 | K42: 14.2354137 | L42: =SUM(L43:L46) -> 15558 | M42: =M43+M46 -> 1060 | N42: =L42/M42 -> 14.67735849 | O42: =50000-I42-L42 -> -35582 | P42: =L42+I42+E42 -> 108822 | Q42: =M42+J42+F42 -> 8427 | R42: 12.91349235 | S42: =90000-P42 -> -18822
B43: 安徽昊源化工 | C43: 阜阳昊源 | D43: 正常生产 | E43: =数据基表!C173 -> 23240 | F43: =数据基表!D173 -> 2448 | G43: =E43/F43 -> 9.493464052 | H43: =40000-E43 -> 16760 | I43: =数据基表!F173+数据基表!F174 -> 31325 | J43: =数据基表!G174+数据基表!G173 -> 1738 | K43: 18.02359033 | L43: =数据基表!I173 -> 7813 | M43: =数据基表!J173 -> 306 | N43: =L43/M43 -> 25.53267974 | O43: =50000-I43-L43 -> 10862 | P43: =L43+I43+E43 -> 62378 | Q43: =M43+J43+F43 -> 4492 | R43: 13.88646483 | S43: =90000-P43 -> 27622
C44: 阜南新天 | D44: 停产 | N44: =L44/M44 ->  | P44: =I44 -> 0
C45: 界首昊源 | D45: 停产 | N45: =L45/M45 ->  | P45: =I45+L45 -> 0
C46: 新材料 | D46: 正常生产 | I46: =数据基表!F175 -> 38699 | J46: =数据基表!G175 -> 3181 | K46: 12.16567117 | L46: =数据基表!I175 -> 7745 | M46: =数据基表!J175 -> 754 | N46: =L46/M46 -> 10.27188329 | P46: =L46+I46 -> 46444 | Q46: =M46+J46 -> 3935 | R46: =P46/Q46 -> 11.80279543
A47: 10 | B47: 小计 | I47: =I48+I49 -> 59860.207 | J47: =J48+J49 -> 4585.69 | K47: 13.05369683 | L47: =L48+L49 -> 49813.827 | M47: =M48+M49 -> 5193.62 | N47: =数据基表!L190 -> 15 | O47: =150000-I47-L47 -> 40325.966 | P47: 109674.034 | Q47: 9779.31 | R47: 11.21490514 | S47: =150000-P47 -> 40325.966
B48: 湖北三宁化工 | C48: 三宁本部 | D48: 正常生产 | I48: =表二!R35 -> 59860.207 | J48: =表二!S35 -> 4585.69 | K48: 13.05369683 | L48: =数据基表!J190 -> 49813.827 | M48: =数据基表!K190 -> 5193.62 | N48: =L48/M48 -> 9.591349964 | O48: =150000-I48-L48 -> 40325.966 | P48: 109674.034 | Q48: 9779.31 | R48: 11.21490514 | S48: =150000-P48 -> 40325.966
C49: 田田化工 | D49: 停产
A50: 11 | B50: 江苏双多化工 | D50: 停车 | O50: =20000-I50-L50 -> 20000 | S50: =35000-P50 -> 35000
A51: 12 | B51: 唐山晋银化工 | D51: 正常生产 | E51: =数据基表!D245 -> 17040 | F51: =数据基表!E245 -> 1088 | G51: =E51/F51 -> 15.66176471 | H51: =35000-E51 -> 17960 | L51: =数据基表!J245 -> 8486 | M51: =数据基表!K245 -> 375 | N51: =L51/M51 -> 22.62933333 | O51: =5000-I51-L51 -> -3486 | P51: 25526 | Q51: 1463 | R51: 17.44771018 | S51: =40000-P51 -> 14474
A52: 13 | B52: 山西金象化工 | D52: 正常生产 | E52: =数据基表!D259 -> 8474.81 | F52: =数据基表!E260 -> 1470.65 | G52: =E52/F52 -> 5.76262877 | H52: =12000-E52 -> 3525.19 | I52: 0 | J52: 0 | L52: =数据基表!J260 -> 1692.56 | M52: =数据基表!K260 -> 226 | N52: 7.48920354 | O52: =2000-I52-L52 -> 307.44 | P52: 10167.37 | Q52: 1696.65 | R52: 5.992614859 | S52: =14000-P52 -> 3832.63
A53: 14 | B53: 山西晋煤天源 | D53: 正常生产 | E53: =数据基表!AH270 -> 5331.08 | F53: =数据基表!AI270 -> 2563.9 | G53: =E53/F53 -> 2.079285464 | H53: =28000-E53 -> 22668.92 | I53: 0 | J53: 0 | L53: =数据基表!AL270 -> 2105.42 | M53: =数据基表!AM270 -> 916.57 | N53: 2.297064054 | O53: =6000-I53-L53 -> 3894.58 | P53: 7436.5 | Q53: 3480.47 | R53: 2.136636719 | S53: =34000-P53 -> 26563.5
A54: 15 | B54: 天溪煤制油 | D54: 停车 | I54: =数据基表!G226 -> 9700 | J54: =数据基表!H226 -> 1768 | K54: =I54/J54 -> 5.486425339 | L54: =数据基表!J226 -> 3000 | M54: =数据基表!K226 -> 668 | N54: 4.491017964 | O54: =15000-I54-L54 -> 2300 | P54: 12700 | Q54: 2436 | R54: 5.213464696 | S54: =15000-P54 -> 2300
A55: 16 | B55: 晋煤天庆公司 | D55: 正常生产 | E55: =数据基表!AH280 -> 24120.307 | F55: =数据基表!AI280 -> 2992.44 | G55: =E55/F55 -> 8.060414578 | H55: =25000-E55 -> 879.693 | I55: =数据基表!AJ280 -> 0 | J55: 0 | K55: 0 | L55: =数据基表!AL280 -> 8997.75 | M55: =数据基表!AM280 -> 1901.6 | N55: 4.731673328 | O55: =15000-I55-L55 -> 6002.25 | P55: 33118.057 | Q55: 4894.04 | R55: 6.767018046 | S55: =40000-P55 -> 6881.943
A56: 17 | B56: 华昱公司 | D56: 停车检修 | I56: =数据基表!U295 -> 59225.23 | J56: =数据基表!V295 -> 0 | K56: =I56/J56 ->  | L56: =数据基表!S295 -> 13612.6 | M56: =数据基表!T295 -> 481.1 | N56: 28.29474122 | O56: =106000-I56-L56 -> 33162.17 | P56: 72837.83 | Q56: 481.1 | R56: 151.3985242 | S56: =106000-P56 -> 33162.17
W59: 公路运输公司煤炭库存及产品库存情况汇总表
W60: =表二!Q2 -> 2021-04-14 | AE60: 单位：吨、天
V61: 块煤最大库存 | W61: 公司名称 | X61: 生产情况 | Y61: 块煤情况 | AB61: 末煤情况 | AG61: 尿素库存 | AH61: 甲醇库存
Y62: 原料块煤 | AB62: 原料末煤 | AD62: 燃料末煤
Y63: 库存 | Z63: 可用天 | AA63: 块煤最大库容可用天数 | AB63: 库存 | AC63: 可用天 | AD63: 库存 | AE63: 可用天 | AF63: 末煤最大库容可用天数 | AI63: 末煤最大库存
V64: 1.5 | W64: 晋丰高平公司 | X64: 正常生产 | Y64: =E14 -> 11899 | Z64: 8 | AB64: =I14 -> 0 | AD64: =L14 -> 1717 | AE64: =N14 -> 3.554865424 | AG64: =数据基表!F33 -> 2807 | AH64: =数据基表!K32+数据基表!K36 -> 1335 | AI64: 0.8 | AJ64: 晋丰高平公司
V65: 1.2 | W65: 金象公司 | X65: 正常生产 | Y65: =E52 -> 8474.81 | Z65: =G52 -> 5.76262877 | AA65: =V65*10000/F52 -> 8.159657294 | AB65: 0 | AD65: =L52 -> 1692.56 | AE65: =N52 -> 7.48920354 | AF65: =AI65*10000/M52 -> 8.849557522 | AG65: =表二!F20 -> 3189 | AH65: =表二!K20 -> 1687 | AI65: 0.2 | AJ65: 金象公司
V66: 2.8 | W66: 天源公司 | X66: 正常生产 | Y66: =E53 -> 5331.08 | Z66: =G53 -> 2.079285464 | AA66: =V66*10000/F53 -> 10.92086275 | AB66: 0 | AD66: 2105.42 | AE66: =N53 -> 2.297064054 | AF66: =AI66*10000/M53 -> 6.546144866 | AG66: =表二!F21 -> 1835.7 | AH66: =表二!K21 -> 2371.9504 | AI66: 0.6 | AJ66: 天源公司
W67: 天溪公司 | X67: 正常生产 | AB67: =I54 -> 9700 | AC67: 6 | AD67: 3000 | AE67: =N54 -> 4.491017964 | AH67: =表二!K17 -> 6305 | AI67: 1.5 | AJ67: 天溪公司
V68: 2.5 | W68: 天庆公司 | X68: 正常生产 | Y68: 24120.307 | Z68: =G55 -> 8.060414578 | AA68: =V68*10000/F55 -> 8.354386387 | AB68: 0 | AC68: 0 | AD68: =数据基表!AL280 -> 8997.75 | AE68: =N55 -> 4.731673328 | AF68: =AI68*10000/(J55+M55) -> 7.888094236 | AG68: =表二!F22 -> 2153.058 | AI68: 1.5 | AJ68: 天庆公司
W69: 华昱公司 | X69: 停车检修 | AB69: =I56 -> 59225.23 | AD69: 13612.6 | AH69: =表二!K23 -> 15223.6 | AI69: 10.6 | AJ69: 华昱公司
W70: 藁城 | Y70: =E8 -> 14516 | Z70: =G8 -> 8.508792497 | AB70: =L8 -> 10811 | AC70: =N8 -> 9.550353357

Sheet 煤化工板块调度日志
A3: 煤化工板块调度日志
A4: 值班长： | E4: =报调度指挥中心!A2 -> 2021-04-14
A5: 项目 | C5: 计划 | D5: 实际 | E5: 项目 | H5: 计划 | I5: 实际
A6: 氨醇 | B6: 产量 | C6: =表一!C5 -> 46210.35616 | D6: =表一!B5 -> 45947.02444 | E6: 复合肥料 | G6: 产量 | H6: =表一!C45 -> 6705 | I6: =表一!B45 -> 8929.87
A7: 华昱 | B7: 甲醇 | C7: =表一!C22 -> 3194.520548 | D7: =表一!J42 -> 0 | G7: 销量 | I7: =表二!F26 -> 7521.87
D8: =表二!G23 -> 796.8 | E8: 精细化工 | G8: 产量 | H8: 7725 | I8: =表一!J45 -> 4819.48
G9: 销量 | I9: =表二!I26 -> 4184.63
E10: 天 溪 公 司 | F10: 合成油 | G10: 产量
A11: 尿素 | B11: 产量 | C11: =表一!C25 -> 31366.0274 | D11: =表一!B25 -> 29786.814 | G11: 销量
B12: 销量 | D12: =表二!B6 -> 30037.049 | F12: 甲醇 | G12: 产量 | H12: 954 | I12: =表一!J36 -> 1100
A13: 甲醇 | B13: 产量 | C13: =表一!K25 -> 13051.49808 | D13: =表一!J25 -> 10199.606 | G13: 销量 | I13: =表二!G17 -> 919
B14: 销量 | D14: =表二!G6 -> 10257.99 | E14: 煤炭库存 | I14: =煤炭库存统计表!P6 -> 894057.661
A15: 安全 生产 情况 | B15: =表二!D52 -> 1、满负荷运行公司21家：天溪公司、天源公司、晋丰高平公司、金象公司、晋开二分公司、联盟公司、明水本部、明升达公司、金华润公司、明泉公司、中能公司、恒盛公司、金牛公司、昊源公司、天庆公司、三宁公司、晋银公司、新疆万源公司、华强公司、联盟石油公司、日月公司。2、减量运行公司1家：金石藁城公司。3、停车公司3家：泉盛公司、华昱公司、晋丰闻喜公司。4、停产公司5家：双多公司因搬迁改造停产、金万泰公司因环保原因停产，延化公司因搬迁改造停产、晋开一分公司因项目搬迁原因停产，武陟绿宇公司因产能落后停产。5、板块整体煤炭库容比为59.68%。
A21: 计划 | B21: 总氨计划 | D21: 总氨产量 | E21: 昨日总氨 | F21: 合成氨计划 | H21: 合成氨产量 | I21: 昨日合成氨 | J21: 甲醇计划 | L21: 甲醇产量 | M21: 昨日甲醇 | N21: 尿素计划 | P21: 尿素产量 | Q21: 昨日尿素
B22: 日计划 | C22: 全年日均 计划 | F22: 日计划 | G22: 全年日均 计划 | J22: 日计划 | K22: 全年日均 计划 | N22: 日计划 | O22: 全年日均 计划
A23: 产量 | B23: =表一!C5 -> 46210.35616 | C23: 47397 | D23: =表一!B5 -> 45947.02444 | E23: 39578 | F23: =表一!K5 -> 29607.74795 | G23: 26465 | H23: =表一!J5 -> 32423.0473 | I23: 23179 | J23: =表一!K25 -> 13051.49808 | K23: 14493 | L23: =表一!J25 -> 10199.606 | M23: 12929 | N23: =表一!C25 -> 31366.0274 | O23: 28000 | P23: =表一!B25 -> 29786.814 | Q23: 26086
A24: 超亏 | B24: =D23-B23 -> -263.3317215 | C24: =D23-C23 -> -1449.975557 | E24: =D23-E23 -> 6369.024443 | F24: =H23-F23 -> 2815.299355 | G24: =H23-G23 -> 5958.0473 | I24: =H23-I23 -> 9244.0473 | J24: =L23-J23 -> -2851.892082 | K24: =L23-K23 -> -4293.394 | M24: =L23-M23 -> -2729.394 | N24: =P23-N23 -> -1579.213397 | O24: =P23-O23 -> 1786.814 | Q24: =P23-Q23 -> 3700.814

Sheet 大表
A1: `煤化工板块总氨尿素产量、主产品售价、煤耗、存煤日报表
I2: 本月天数 | K2: =数据填报!AT2 -> 30 | O2: 累计天数 | Q2: =数据填报!AY2 -> 14 | S2: 单位：吨、元/吨 | W2: =表二!Q2 -> 2021-04-14
A3: 序 号 | B3: 公司名称 | D3: 计划完成率% | E3: 生产 情况 | F3: 总氨产量 | L3: 尿素产量 | N3: 主产品售价 | P3: 煤炭消耗 | T3: 煤炭库存 | X3: 煤炭发运 | AA3: 序 号 | AB3: 公司名称 | AD3: 总氨产量
F4: 总氨 | H4: 合成氨 | J4: 甲醇
B5: 二级公司 | C5: 三级公司 | F5: 计划 | G5: 实际 | H5: 计划 | I5: 实际 | J5: 计划 | K5: 实际 | L5: 计划 | M5: 实际 | N5: 尿素 | O5: 甲醇 | P5: 原料 块煤 | Q5: 原料 末煤 | R5: 燃料 末煤 | S5: 合计 | T5: 原料 块煤 | U5: 原料 末煤 | V5: 燃料 末煤 | W5: 合计 | X5: 块煤 | Y5: 末煤 | AB5: 二级公司 | AC5: 三级公司 | AD5: 计划 | AE5: 实际 | AF5: 当日产量 | AG5: 产量差值 | AH5: 影响原因
B6: 总计 | D6: =G6/F6 -> 0.9943002776 | F6: 46210.41096 | G6: =G7+G13+G16+G23+G26+G29+G35+G38+G42+G47+G50+G51+G52+G53+G54+G55+G56 -> 45947.02444 | H6: 29607.67123 | I6: =I7+I13+I16+I23+I26+I29+I35+I38+I42+I47+I50+I51+I52+I53+I54+I55 -> 32423.0473 | J6: 13051.49808 | K6: =K7+K13+K16+K23+K26+K29+K35+K38+K42+K47+K50+K51+K52+K53+K54+K55+K56 -> 10199.606 | L6: 31366.0274 | M6: =数据填报!M6 -> 29786.814 | N6: =表二!E6 -> 2084.291735 | O6: =表二!J6 -> 2258.933671 | P6: =P7+P13+P16+P23+P26+P29+P35+P38+P42+P47+P51+P52+P53+P55+P54+P56 -> 24399.4 | Q6: =煤炭库存统计表!J6 -> 27231.79 | R6: =R7+R13+R16+R23+R26+R29+R35+R38+R42+R47+R51+R52+R53+R55+R54+R56 -> 21135.69 | S6: =R6+Q6+P6 -> 72766.88 | T6: =T7+T13+T16+T23+T26+T29+T35+T38+T42+T47+T51+T52+T53+T55+T54+T56 -> 267529.197 | U6: =煤炭库存统计表!I6 -> 376277.587 | V6: =煤炭库存统计表!L6 -> 250250.877 | W6: =V6+U6+T6 -> 894057.661 | AB6: 总计 | AD6: 43848.32698 | AE6: =SUM(AE7:AE32) -> 51207.25902 | AF6: =G6 -> 45947.02444 | AG6: =SUM(AG7:AG32) -> -6332.781976
A7: 1 | B7: 小计 | D7: =G7/F7 -> 0.9521008887 | F7: 4763.150685 | G7: =G8+G9+G11+G10+G12 -> 4535 | H7: 3442.268493 | I7: =I8+I9+I11+I10+I12 -> 3527.92 | J7: 999.1693151 | K7: =K8+K9+K11+K10+K12 -> 737.18 | L7: 1723.561644 | M7: =M8+M9+M11+M10+M12 -> 1612.8 | N7: =数据基表!E20 -> 2120 | O7: =数据基表!J20 -> 2234.446903 | P7: =SUM(P8:P12) -> 5952.07 | Q7: 0 | R7: 1132 | S7: =煤炭库存统计表!Q7 -> 7904.07 | T7: 65303 | U7: =煤炭库存统计表!I7 -> 5550 | V7: =煤炭库存统计表!L7 -> 41811 | W7: =煤炭库存统计表!P7 -> 112664 | AA7: 1 | AB7: 晋煤金石化工 | AC7: 藁城 | AD7: 1286.885246 | AE7: 1363 | AF7: =G8 -> 744 | AG7: =AF7-AE7 -> -619 | AH7: 减量生产
B8: 晋煤金石化工 | C8: 藁城 | D8: =G8/F8 -> 0.5980180577 | E8: 减量生产 | F8: 1244.109589 | G8: =数据基表!B5 -> 744 | H8: 575.0684932 | I8: =数据基表!G5 -> 529 | J8: 383.8356164 | K8: =数据基表!Q5 -> 129 | M8: =数据基表!L5 -> 0 | N8: =数据基表!E15 -> 0 | O8: =数据基表!J15 -> 2035 | P8: =数据基表!AI15 -> 1706 | Q8: =数据基表!AK15 -> 0 | R8: =数据基表!AM15 -> 1132 | S8: =P8+Q8+R8 -> 2838 | T8: =数据基表!AH15 -> 14516 | U8: =数据基表!AJ15 -> 0 | V8: =数据基表!AL15 -> 10811 | W8: =T8+U8+V8 -> 25327 | AA8: 2 | AC8: 华强 | AD8: 1379.781421 | AE8: 1558 | AF8: =G10 -> 1454 | AG8: -104
C9: 金万泰 | E9: 停车 | F9: 0 | G9: =数据基表!B6 -> 0 | H9: 0 | I9: =数据基表!G6 -> 0 | J9: 0 | K9: =数据基表!Q6 -> 0 | L9: 0 | M9: =数据基表!L6 -> 0 | N9: =数据基表!E16 -> 0 | O9: =数据基表!J16 -> 0 | P9: =数据基表!AI16 -> 0 | Q9: =数据基表!AK16 -> 0 | R9: =数据基表!AM16 -> 0 | S9: =P9+Q9+R9 -> 0 | T9: =数据基表!AH16 -> 0 | U9: =数据基表!AJ16 -> 0 | V9: =数据基表!AL16 -> 0 | W9: =T9+U9+V9 -> 0 | AA9: 3 | AC9: 金华润 | AD9: 1448.087432 | AE9: 1561 | AF9: =G11 -> 1772 | AG9: 211
C10: 华强 | D10: =G10/F10 -> 1.045116187 | E10: 正常生产 | F10: 1391.232877 | G10: =数据基表!B7 -> 1454 | H10: 1129.863014 | I10: =数据基表!G7 -> 1194 | J10: 246.5753425 | K10: =数据基表!Q7 -> 171 | L10: 381.0958904 | M10: =数据基表!L7 -> 507 | N10: =数据基表!E17 -> 2129 | O10: =数据基表!J17 -> 2300 | P10: =数据基表!AI17 -> 1598 | R10: =数据基表!AM19 -> 0 | S10: =P10+Q10+R10 -> 1598 | T10: =数据基表!AH17 -> 12300 | V10: =数据基表!AL17 -> 31000 | W10: =T10+U10+V10 -> 43300 | AA10: 4 | AC10: 金牛 | AD10: 437.1584699 | AE10: 561 | AF10: =G12 -> 565 | AG10: 4
C11: 金华润 | D11: 1.123076923 | E11: 正常生产 | F11: 1577.808219 | G11: =数据基表!B8 -> 1772 | H11: 1227.39726 | I11: =数据基表!G8 -> 1383.92 | J11: 330.6849315 | K11: =数据基表!Q8 -> 388.18 | L11: 1342.465753 | M11: =数据基表!L8 -> 1105.8 | P11: =数据基表!AI18 -> 1914.07 | Q11: =煤炭库存统计表!J11 -> 0 | R11: =煤炭库存统计表!M11 -> 0 | S11: =煤炭库存统计表!Q11 -> 1914.07 | T11: =数据基表!AH18 -> 33101 | U11: =煤炭库存统计表!I11 -> 0 | V11: =煤炭库存统计表!L11 -> 0 | W11: =煤炭库存统计表!P11 -> 33101 | AA11: 5 | AB11: 晋丰化工 | AC11: 高平 | AD11: 915.3005464 | AE11: 1655 | AF11: =G14 -> 1513 | AG11: -142
C12: 金牛 | D12: 1.027016932 | E12: 正常生产 | F12: 550.1369863 | G12: =数据基表!B9 -> 565 | H12: 509.8630137 | I12: =数据基表!G9 -> 421 | J12: 38.08219178 | K12: =数据基表!Q9 -> 49 | M12: =数据基表!L9 -> 0 | N12: =数据基表!E19 -> 0 | O12: =数据基表!J19 -> 2100 | P12: =数据基表!AI19 -> 734 | Q12: =数据基表!AK19 -> 0 | R12: =数据基表!AM19 -> 0 | S12: =P12+Q12+R12 -> 734 | T12: =数据基表!AH19 -> 5386 | U12: =数据基表!AJ19 -> 5550 | V12: =数据基表!AL19 -> 0 | W12: =T12+U12+V12 -> 10936 | AA12: 6 | AC12: 闻喜 | AD12: 655.7377049 | AE12: 900 | AF12: =G15 -> 0 | AG12: -900 | AH12: 停车检修
A13: 2 | B13: 小计 | D13: 0.892733592 | F13: 1694.794521 | G13: =SUM(G14:G15) -> 1513 | H13: 1447.39726 | I13: =SUM(I14:I15) -> 1303 | J13: 233.6986301 | K13: =SUM(K14:K15) -> 147 | L13: 2146.027397 | M13: =SUM(M14:M15) -> 1937 | N13: =数据基表!E32 -> 2008.594112 | O13: =数据基表!J32 -> 2120 | P13: =数据基表!AI32 -> 1551 | Q13: =数据基表!AK32 -> 0 | R13: =数据基表!AM32 -> 483 | S13: 2034 | T13: =数据基表!AH32 -> 17420 | U13: =数据基表!AJ32 -> 0 | V13: =数据基表!AL32 -> 2844 | W13: =+T13+U13+V13 -> 20264 | AA13: 7 | AB13: 晋开 | AC13: 二分 | AD13: 3415.300546 | AE13: 3906 | AF13: =G18 -> 4019 | AG13: 113
B14: 山西晋丰化工 | C14: 高平 | D14: 1.473046146 | E14: 正常生产 | F14: 1027.123288 | G14: =数据基表!B26 -> 1513 | H14: 873.1506849 | I14: =数据基表!G26 -> 1303 | J14: 145.4794521 | K14: =数据基表!Q26 -> 147 | L14: 1169.589041 | M14: =数据基表!L26 -> 1937 | N14: =数据基表!E33 -> 2008.560053 | O14: =数据基表!J33 -> 2120 | P14: =数据基表!AI33 -> 1551 | Q14: =数据基表!AK33 -> 0 | R14: =数据基表!AM33 -> 483 | S14: 2034 | T14: =数据基表!AH33 -> 11899 | U14: =数据基表!AJ33 -> 0 | V14: =数据基表!AL33 -> 1717 | W14: =T14+U14+V14 -> 13616 | AA14: 8 | AB14: 恒盛 | AC14: 本部 | AD14: 1038.251366 | AE14: 1148 | AF14: =G24 -> 1143 | AG14: -5
C15: 闻喜 | D15: 0 | E15: 停车检修 | F15: 667.6712329 | G15: =数据基表!B27 -> 0 | H15: 574.2465753 | I15: =数据基表!G27 -> 0 | J15: 88.21917808 | K15: =数据基表!Q27 -> 0 | L15: 976.4383562 | M15: =数据基表!L27 -> 0 | N15: =数据基表!E34 -> 2020 | O15: =数据基表!J34 -> 2120 | P15: =数据基表!AI34 -> 0 | Q15: =数据基表!AK34 -> 0 | R15: =数据基表!AM34 -> 0 | S15: 0 | T15: =数据基表!AH34 -> 5521 | U15: =数据基表!AJ34 -> 0 | V15: =数据基表!AL34 -> 1127 | W15: 6648 | AA15: 9 | AB15: 山东联盟 | AC15: 一厂 | AD15: 2247.26776 | AE15: 2247 | AF15: =G27 -> 2124.4651 | AG15: -122.5349
A16: 3 | B16: 小计 | D16: 1.173548 | F16: 3424.657534 | G16: =数据基表!B44 -> 4019 | H16: 3424.657534 | I16: =数据基表!G44 -> 4019 | J16: 0 | K16: =数据基表!Q44 -> 0 | L16: 3013.69863 | M16: =数据基表!L44 -> 2645 | N16: =数据基表!E55 -> 2045 | O16: =数据基表!J55 -> 0 | P16: =数据基表!AI55 -> 0 | Q16: =数据基表!AK55 -> 5722 | R16: =数据基表!AM55 -> 2656 | S16: 8378 | T16: =数据基表!AH55 -> 4466 | U16: =数据基表!AJ55 -> 42761 | V16: =数据基表!AL55 -> 8933 | W16: 56160 | AA16: 10 | AC16: 二厂 | AD16: 2247.26776 | AE16: 2350 | AF16: =G28 -> 2072 | AG16: -278 | AH16: 调整工况
B17: 河南晋开化工 | C17: 一分 | E17: 停产 | F17: 0 | G17: =数据基表!B45 -> 0 | H17: 0 | I17: =数据基表!G45 -> 0 | J17: 0 | K17: =数据基表!Q45 -> 0 | L17: 0 | M17: =数据基表!L45 -> 0 | N17: =数据基表!E56 -> 0 | O17: =数据基表!J56 -> 0 | P17: =数据基表!AI56 -> 0 | Q17: =数据基表!AK56 -> 0 | R17: =数据基表!AM56 -> 0 | S17: 0 | T17: =数据基表!AH56 -> 2638 | U17: =数据基表!AJ56 -> 5384 | V17: =数据基表!AL56 -> 0 | W17: 8022 | AA17: 11 | AB17: 山东明水 | AC17: 本部 | AD17: 3797.814208 | AE17: 1276 | AF17: =G30 -> 989 | AG17: -287 | AH17: 调整工况
C18: 二分 | D18: 1.173548 | E18: 正常生产 | F18: 3424.657534 | G18: =数据基表!B46 -> 4019 | H18: 3424.657534 | I18: =数据基表!G46 -> 4019 | K18: =数据基表!Q46 -> 0 | L18: 3013.69863 | M18: =数据基表!L46 -> 2645 | N18: =数据基表!E57 -> 2045 | O18: =数据基表!J57 -> 0 | P18: =数据基表!AI57 -> 0 | Q18: =数据基表!AK57 -> 5722 | R18: =数据基表!AM57 -> 2656 | S18: 8378 | T18: =数据基表!AH57 -> 0 | U18: =数据基表!AJ57 -> 36955 | V18: =数据基表!AL57 -> 5897 | W18: 42852 | AA18: 12 | AC18: 明泉科技 | AE18: 2147.976019 | AF18: =G32 -> 2192.762943 | AG18: 44.78692415
C19: 延化 | E19: 停车 | F19: 0 | G19: =数据基表!B47 -> 0 | H19: 0 | I19: =数据基表!G47 -> 0 | J19: 0 | K19: =数据基表!Q47 -> 0 | L19: 0 | M19: =数据基表!L47 -> 0 | N19: =数据基表!E58 -> 0 | O19: =数据基表!J58 -> 0 | P19: =数据基表!AI58 -> 0 | Q19: =数据基表!AK58 -> 0 | R19: =数据基表!AM58 -> 0 | S19: 0 | T19: =数据基表!AH58 -> 0 | U19: =数据基表!AJ58 -> 0 | V19: =数据基表!AL58 -> 2505 | W19: 2505 | AA19: 13 | AC19: 明升达 | AE19: 2000 | AF19: =数据基表!B104 -> 2134.43 | AG19: 134.43
C20: 太康 | E20: 停产 | G20: =数据基表!B48 -> 0 | I20: =数据基表!G48 -> 0 | K20: =数据基表!Q48 -> 0 | M20: =数据基表!L48 -> 0 | N20: =数据基表!E59 -> 0 | O20: =数据基表!J59 -> 0 | P20: =数据基表!AI59 -> 0 | Q20: =数据基表!AK59 -> 0 | R20: =数据基表!AM59 -> 0 | S20: 0 | T20: =数据基表!AH59 -> 0 | U20: =数据基表!AJ59 -> 0 | V20: =数据基表!AL59 -> 0 | W20: 0 | AA20: 14 | AB20: 安徽晋煤中能 | AC20: 本部 | AD20: 2811.441735 | AE20: 2811 | AF20: =G39 -> 2960.354 | AG20: 149.354
C21: 郸城 | D21: =G21/F21 ->  | E21: 停产 | F21: 0 | G21: =数据基表!B49 -> 0 | H21: 0 | I21: =数据基表!G49 -> 0 | J21: 0 | K21: =数据基表!Q49 -> 0 | L21: 0 | M21: =数据基表!L49 -> 0 | N21: =数据基表!E60 -> 0 | O21: =数据基表!J60 -> 0 | P21: =数据基表!AI60 -> 0 | Q21: =数据基表!AK60 -> 0 | R21: =数据基表!AM60 -> 0 | S21: 0 | T21: =数据基表!AH60 -> 0 | U21: =数据基表!AJ60 -> 0 | V21: =数据基表!AL60 -> 0 | W21: 0 | AA21: 15 | AC21: 泉盛 | AD21: 995.9016393 | AE21: 1052 | AF21: =G40 -> 0 | AG21: -1052 | AH21: 停车检修
C22: 武陟 | D22: =G22/F22 ->  | E22: 停产 | F22: 0 | G22: =数据基表!B50 -> 0 | H22: 0 | I22: =数据基表!G50 -> 0 | J22: 0 | K22: =数据基表!Q50 -> 0 | L22: 0 | M22: =数据基表!L50 -> 0 | N22: =数据基表!E61 -> 0 | O22: =数据基表!J61 -> 0 | P22: =数据基表!AI61 -> 0 | Q22: =数据基表!AK61 -> 0 | R22: =数据基表!AM61 -> 0 | S22: 0 | T22: =数据基表!AH61 -> 1828 | U22: =数据基表!AJ61 -> 422 | V22: =数据基表!AL61 -> 531 | W22: 2781 | AA22: 16 | AC22: 万源 | AD22: 1013.661202 | AE22: 1058 | AF22: =G41 -> 1064 | AG22: 6
A23: 4 | B23: 小计 | D23: =G23/F23 -> 1.125424872 | F23: 1015.616438 | G23: =数据基表!B66 -> 1143 | H23: 855.890411 | I23: =数据基表!G66 -> 888 | J23: 150.6849315 | K23: =数据基表!Q66 -> 241 | L23: 986.3013699 | M23: =数据基表!L66 -> 0 | N23: =N24 -> 0 | O23: =O24 -> 2350 | P23: =P24 -> 1206 | Q23: =Q24 -> 0 | R23: =R24 -> 127 | S23: 1333 | T23: =T24 -> 7325 | U23: =U24 -> 123 | V23: =V24 -> 5919 | W23: 13367 | AA23: 17 | AB23: 安徽昊源 | AC23: 本部 | AD23: 6092.896175 | AE23: 5500 | AF23: =G43 -> 5261.11 | AG23: -238.89 | AH23: 调整工况
B24: 江苏晋煤恒盛 | C24: 本部 | D24: =G24/F24 -> 1.125424872 | E24: 正常生产 | F24: 1015.616438 | G24: =数据基表!B67 -> 1143 | H24: 855.890411 | I24: =数据基表!G67 -> 888 | J24: 150.6849315 | K24: =数据基表!Q67 -> 241 | L24: 986.3013699 | M24: =数据基表!L67 -> 0 | N24: =数据基表!E73 -> 0 | O24: =数据基表!J73 -> 2350 | P24: =数据基表!AI73 -> 1206 | Q24: =数据基表!AK73 -> 0 | R24: =数据基表!AM73 -> 127 | S24: 1333 | T24: =数据基表!AH73 -> 7325 | U24: =数据基表!AJ73 -> 123 | V24: =数据基表!AL73 -> 5919 | W24: 13367 | AA24: 18 | AC24: 新材料 | AE24: 2443.1 | AF24: =G46 -> 2325.19 | AG24: -117.91
C25: 恒鑫 | E25: 停产 | F25: 0 | G25: =数据基表!B68 -> 0 | I25: =数据基表!G68 -> 0 | K25: =数据基表!Q68 -> 0 | M25: =数据基表!L68 -> 0 | P25: =煤炭库存统计表!F25 -> 0 | Q25: =煤炭库存统计表!J25 -> 0 | R25: =煤炭库存统计表!M25 -> 0 | S25: 0 | T25: =煤炭库存统计表!E25 -> 0 | U25: =煤炭库存统计表!I25 -> 0 | V25: =煤炭库存统计表!L25 -> 0 | W25: 0 | AA25: 19 | AB25: 湖北三宁 | AD25: 3551.912568 | AE25: 3660.883 | AF25: =G48 -> 4477.125 | AG25: 816.242
A26: 5 | B26: 小计 | D26: =G26/F26 -> 1.034869104 | F26: 4055.068493 | G26: =数据基表!B80 -> 4196.4651 | H26: 3314.520548 | I26: =数据基表!G80 -> 3586.4445 | J26: 698.630137 | K26: =数据基表!Q80 -> 553.746 | L26: 4023.424658 | M26: =数据基表!L80 -> 4192.9 | N26: =数据基表!E87 -> 2133 | O26: =数据基表!J87 -> 2441 | P26: =数据基表!AI85 -> 2716 | Q26: =煤炭库存统计表!J26 -> 2896 | R26: =煤炭库存统计表!M26 -> 2352 | S26: 7964 | T26: =煤炭库存统计表!E26 -> 39044 | U26: =煤炭库存统计表!I26 -> 15203 | V26: =煤炭库存统计表!L26 -> 26057.9 | W26: =煤炭库存统计表!P26 -> 80304.9 | AA26: 20 | AB26: 江苏双多化工 | AG26: 0
B27: 山东联盟 | C27: 一厂 | E27: 正常生产 | F27: 2027.534247 | G27: =数据基表!B78 -> 2124.4651 | H27: 1657.260274 | I27: =数据基表!G78 -> 1769.4445 | J27: 349.3150685 | K27: =数据基表!Q78 -> 322.746 | L27: 2011.780822 | M27: =数据基表!L78 -> 1751.9 | P27: =煤炭库存统计表!F27 -> 2716 | R27: =煤炭库存统计表!M27 -> 496 | T27: =煤炭库存统计表!E27 -> 39044 | V27: =煤炭库存统计表!L27 -> 10359.9 | AA27: 21 | AB27: 唐山晋银化工 | AD27: 857.6502732 | AE27: 858 | AF27: =G51 -> 836 | AG27: -22
C28: 二厂 | E28: 正常生产 | F28: 2027.534247 | G28: =数据基表!B79 -> 2072 | H28: 1657.260274 | I28: =数据基表!G79 -> 1817 | J28: 349.3150685 | K28: =数据基表!Q79 -> 231 | L28: 2011.780822 | M28: =数据基表!L79 -> 2441 | Q28: =煤炭库存统计表!J28 -> 2896 | R28: =煤炭库存统计表!M28 -> 1856 | U28: =煤炭库存统计表!I28 -> 15203 | AA28: 22 | AB28: 山西金象化工 | AD28: 710.3825137 | AE28: 1201.3 | AF28: 1206.44 | AG28: 5.14
A29: 6 | B29: 小计 | D29: =G29/F29 -> 1.228107863 | F29: 4328.767123 | G29: =数据基表!B92 -> 5316.192943 | H29: 2191.780822 | I29: =数据基表!G92 -> 3072.43 | J29: 1939.726027 | K29: =数据基表!Q92 -> 1997 | L29: 3013.69863 | M29: =数据基表!L92 -> 4228.51 | N29: =数据基表!E95 -> 2077.05758 | O29: =数据基表!J95 -> 2220.592427 | P29: =数据基表!AI118 -> 1048.34 | Q29: =数据基表!AK118 -> 2706.1 | R29: =R30+R32 -> 1748.8 | S29: =P29+Q29+R29 -> 5503.24 | T29: =T30 -> 12482 | U29: =U32 -> 23304.15 | V29: =V30+V32 -> 13785.59 | W29: =T29+U29+V29 -> 49571.74 | AA29: 23 | AB29: 山西晋煤天源 | AD29: 1595.901639 | AE29: 1950 | AF29: 2029.69 | AG29: 79.69
B30: 山东晋煤明水 | C30: 本部 | D30: 0.228471519 | E30: 正常生产 | F30: 4328.767123 | G30: =数据基表!B101 -> 989 | H30: 2191.780822 | I30: =数据基表!G101 -> 938 | J30: 1939.726027 | K30: =数据基表!Q101 -> 47.4 | L30: 3013.69863 | M30: =数据基表!L101 -> 1279 | N30: =数据基表!E112 -> 2103.062704 | P30: =数据基表!AI112 -> 1048.34 | Q30: =煤炭库存统计表!J30 -> 0 | R30: =数据基表!K124 -> 569 | S30: 1617.34 | T30: =数据基表!AH112 -> 12482 | V30: =数据基表!J124 -> 5409 | W30: 17891 | AA30: 24 | AB30: 晋煤天溪煤制油 | AD30: 1010.928962 | AE30: 1200 | AF30: 1166 | AG30: -34 | AH30: 加负荷调整工况
C31: 明升达 | D31: 0 | E31: 停车检修 | F31: 0 | G31: =数据基表!B104 -> 2134.43 | H31: 0 | J31: 0 | L31: 0 | P31: =煤炭库存统计表!F31 -> 0 | Q31: =煤炭库存统计表!J31 -> 0 | R31: =煤炭库存统计表!M31 -> 0 | S31: 0 | T31: =煤炭库存统计表!E31 -> 0 | U31: =煤炭库存统计表!I31 -> 0 | W31: 0 | AA31: 25 | AB31: 晋煤天庆 | AD31: 2185.79235 | AE31: 2500 | AF31: 2825.91 | AG31: 325.91
C32: 明泉科技 | E32: 正常生产 | G32: =数据基表!B100 -> 2192.762943 | K32: =数据基表!Q100 -> 1949.6 | Q32: =数据基表!AK111 -> 2706.1 | R32: =数据基表!K127 -> 1179.8 | S32: 3885.9 | U32: =数据基表!AJ111 -> 23304.15 | V32: =数据基表!J127 -> 8376.59 | W32: 31680.74 | AA32: 26 | AB32: 华昱公司 | AD32: 3169.398907 | AE32: 4300 | AF32: 0 | AG32: -4300 | AH32: 停车检修
C33: 鲁发 | E33: 停产 | P33: =煤炭库存统计表!F33 -> 0 | W33: 0 | AA33: 27 | AB33: 山东日月 | AD33: 983.6065574 | AE33: 984 | AF33: =G36 -> 1140 | AG33: 156
C34: 滕州 | E34: 停产 | P34: =煤炭库存统计表!F34 -> 0 | Q34: =煤炭库存统计表!J34 -> 0 | R34: =煤炭库存统计表!M34 -> 0 | S34: 0 | T34: =煤炭库存统计表!E34 -> 0 | U34: =煤炭库存统计表!I34 -> 0 | W34: 0
A35: 7 | B35: 小计 | D35: 1.155833333 | F35: 986.3013699 | G35: =数据基表!B197 -> 1140 | H35: 547.9452055 | I35: =I36 -> 880 | J35: 328.7671233 | K35: =K36 -> 260 | L35: 82.19178082 | M35: =M36 -> 0 | N35: =N36 -> 0 | O35: =O36 -> 0 | P35: =P36 -> 700 | Q35: =煤炭库存统计表!J35 -> 0 | S35: 700 | T35: =T36 -> 1000 | U35: =煤炭库存统计表!I35 -> 0 | W35: 1000
B36: 山东晋煤日月 | C36: 本部 | D36: 1.155833333 | E36: 正常生产 | F36: 986.3013699 | G36: =数据基表!B197 -> 1140 | H36: 547.9452055 | I36: =数据基表!G197 -> 880 | J36: 328.7671233 | K36: =数据基表!Q197 -> 260 | L36: 82.19178082 | M36: =数据基表!L197 -> 0 | N36: =数据基表!E204 -> 0 | O36: =数据基表!J204 -> 0 | P36: =数据基表!B209 -> 700 | S36: 700 | T36: =数据基表!A209 -> 1000 | U36: =煤炭库存统计表!I36 -> 2550 | W36: 3550
C37: 同辉 | E37: 未报 | P37: =煤炭库存统计表!F37 -> 0 | Q37: =煤炭库存统计表!J37 -> 0 | R37: =煤炭库存统计表!M37 -> 0 | S37: 0 | T37: =煤炭库存统计表!E37 -> 0 | U37: =煤炭库存统计表!I37 -> 0 | V37: =煤炭库存统计表!L37 -> 0 | W37: 0
A38: 8 | B38: 小计 | D38: 0.8475978879 | F38: 4747.534247 | G38: =数据基表!B133 -> 4024 | H38: 3256.438356 | I38: =数据基表!G133 -> 2568 | J38: 1406.849315 | K38: =数据基表!Q133 -> 1280 | L38: 3451.09589 | M38: =数据基表!L133 -> 2871 | N38: =数据基表!E141 -> 2119 | O38: =数据基表!J141 -> 2306 | P38: =数据基表!AI141 -> 663 | Q38: =数据基表!AK141 -> 4635 | R38: =R39+R40+R41 -> 2569 | S38: 7867 | T38: =数据基表!AH141 -> 42283 | U38: =数据基表!AJ141 -> 90527 | V38: =V39+V40+V41 -> 58408 | W38: 191218
B39: 安徽晋煤中能 | C39: 本部 | D39: 1.036677742 | E39: 正常生产 | F39: 2855.616438 | G39: =数据基表!C134 -> 2960.354 | H39: 1489.315068 | I39: =数据基表!H134 -> 1504 | J39: 1289.041096 | K39: =数据基表!R134 -> 1280 | L39: 1219.178082 | M39: =数据基表!M134 -> 1287 | N39: =数据基表!D142 -> 2119 | O39: =数据基表!I142 -> 2306 | P39: =数据基表!E149 -> 663 | Q39: =数据基表!H149 -> 3248 | R39: =数据基表!K149 -> 1362 | S39: 5273 | T39: =数据基表!D149 -> 15367 | U39: =数据基表!G149 -> 46290 | V39: =数据基表!J149 -> 36618 | W39: 98275
C40: 泉盛 | D40: 0 | E40: 停车检修 | F40: 886.5753425 | G40: =数据基表!C135 -> 0 | H40: 761.6438356 | I40: =数据基表!H135 -> 0 | J40: 117.8082192 | K40: =数据基表!R135 -> 0 | L40: 652.0547945 | M40: =数据基表!M135 -> 0 | N40: =数据基表!D143 -> 2162 | O40: =数据基表!I143 -> 2400 | P40: =数据基表!E150 -> 0 | Q40: =数据基表!H150 -> 0 | R40: =数据基表!K150 -> 368 | S40: 368 | T40: =数据基表!D150 -> 26916 | U40: =数据基表!G150 -> 7290 | V40: =数据基表!J150 -> 6713 | W40: 40919
C41: 万源 | D41: 1.058201635 | E41: 正常生产 | F41: 1005.479452 | G41: =数据基表!C136 -> 1064 | H41: 1005.479452 | I41: =数据基表!H136 -> 1064 | K41: =数据基表!R136 -> 0 | L41: 1580 | M41: =数据基表!M136 -> 1584 | N41: =数据基表!D144 -> 1600 | P41: =数据基表!E151 -> 0 | Q41: =数据基表!H151 -> 1387 | R41: =数据基表!K151 -> 839 | S41: 2226 | T41: =数据基表!D151 -> 0 | U41: =数据基表!G151 -> 36947 | V41: =数据基表!J151 -> 15077 | W41: 52024
A42: 9 | B42: 小计 | D42: 1.138044664 | F42: 6607.123288 | G42: =数据基表!B159 -> 7519.2014 | H42: 4039.726027 | I42: =SUM(I43:I46) -> 4282.4278 | J42: 2422.191781 | K42: =SUM(K43:K46) -> 2531.8 | L42: 4150.684932 | M42: =SUM(M43:M46) -> 2825.77 | N42: =N43 -> 2210 | O42: =O43 -> 2300 | P42: =P43+P44 -> 2448 | Q42: =煤炭库存统计表!J42 -> 4919 | R42: =R43 -> 306 | S42: 7673 | T42: =T43+T44+T45 -> 23240 | U42: =U43 -> 31325 | V42: =V43 -> 7813 | W42: 62378
B43: 安徽昊源化工 | C43: 本部 | D43: 0.7962784666 | E43: 正常生产 | F43: 6607.123288 | G43: =数据基表!B156+数据基表!G157+数据基表!Q156 -> 5261.11 | H43: 4039.726027 | I43: =数据基表!G159 -> 4282.4278 | J43: 2422.191781 | K43: =数据基表!Q156 -> 206.61 | L43: 4150.684932 | M43: =数据基表!L159 -> 2825.77 | N43: =数据基表!E167 -> 2210 | O43: =数据基表!J167 -> 2300 | P43: =煤炭库存统计表!F43 -> 2448 | Q43: =煤炭库存统计表!J43 -> 1738 | R43: =煤炭库存统计表!M43 -> 306 | S43: 4492 | T43: =数据基表!C173 -> 23240 | U43: =煤炭库存统计表!I43 -> 31325 | V43: =煤炭库存统计表!L43 -> 7813 | W43: 62378
C44: 界首 | E44: 停产 | P44: =煤炭库存统计表!F44 -> 0 | Q44: =数据基表!F174 -> 29845 | S44: 29845 | T44: =煤炭库存统计表!E44 -> 0 | U44: =数据基表!G174 -> 1738 | W44: 1738
C45: 新天 | E45: 停产 | G45: 0 | I45: 0 | K45: 0 | P45: =煤炭库存统计表!F45 -> 0 | Q45: =数据基表!F175 -> 38699 | R45: =数据基表!I175 -> 7745 | S45: 46444 | T45: =煤炭库存统计表!E45 -> 0 | U45: =数据基表!G175 -> 3181 | V45: =数据基表!J175 -> 754 | W45: 3935
C46: 新材料 | E46: 正常生产 | G46: =数据基表!Q157 -> 2325.19 | I46: 0 | K46: =数据基表!Q157 -> 2325.19 | P46: =煤炭库存统计表!F46 -> 0 | Q46: =数据基表!G175 -> 3181 | R46: =数据基表!J175 -> 754 | S46: 3935 | T46: =煤炭库存统计表!E46 -> 0 | U46: =煤炭库存统计表!I46 -> 38699 | V46: =煤炭库存统计表!L46 -> 7745 | W46: 46444
A47: 10 | B47: 小计 | D47: 0.8698860975 | F47: 5146.794521 | G47: =数据基表!B180 -> 4477.125 | H47: 3605.753425 | I47: =数据基表!G180 -> 3759.945 | J47: 542.0547945 | K47: =数据基表!Q180 -> 717.18 | L47: 3197.260274 | M47: =数据基表!L180 -> 2508.49 | N47: =数据基表!E185 -> 2091.064 | O47: =数据基表!J185 -> 2360 | P47: =煤炭库存统计表!F47 -> 0 | Q47: =Q48 -> 4621.5 | R47: =R48 -> 5193.62 | S47: 9815.12 | T47: =煤炭库存统计表!E47 -> 0 | U47: =U48 -> 58236.047 | V47: =V48 -> 49813.827 | W47: 108049.874
B48: 湖北三宁化工 | C48: 本部 | D48: 0.8698860975 | E48: 正常生产 | F48: 5146.794521 | G48: =数据基表!B180 -> 4477.125 | H48: 2706.451613 | I48: =数据基表!G180 -> 3759.945 | J48: 542.0547945 | K48: =数据基表!Q180 -> 717.18 | L48: 3197.260274 | M48: =数据基表!L180 -> 2508.49 | N48: =数据基表!E185 -> 2091.064 | O48: =数据基表!J185 -> 2360 | P48: =煤炭库存统计表!F48 -> 0 | Q48: =数据基表!H190 -> 4621.5 | R48: =煤炭库存统计表!M48 -> 5193.62 | S48: 9815.12 | T48: =煤炭库存统计表!E48 -> 0 | U48: =数据基表!G190 -> 58236.047 | V48: =煤炭库存统计表!L48 -> 49813.827 | W48: 108049.874
C49: 田田 | E49: 停产 | F49: 0 | H49: 0 | I49: =I4 -> 0 | J49: 0
A50: 11 | B50: 江苏双多化工 | E50: 停车 | F50: 0 | H50: 0 | J50: 0 | L50: 0
A51: 12 | B51: 唐山晋银化工 | D51: =G51/F51 -> 1.030182309 | E51: 正常生产 | F51: 811.5068493 | G51: =数据基表!B233 -> 836 | H51: 753.4246575 | I51: =数据基表!G233 -> 775 | J51: 54.79452055 | K51: =数据基表!Q233 -> 62 | L51: 1232.876712 | M51: =数据基表!L233 -> 1308 | N51: =数据基表!E239 -> 2080 | O51: =数据基表!J239 -> 2280 | P51: =数据基表!AI239 -> 1088 | Q51: =煤炭库存统计表!J51 -> 0 | R51: =数据基表!K245 -> 375 | S51: 1463 | T51: =数据基表!AH239 -> 17040 | U51: =煤炭库存统计表!I51 -> 0 | V51: =数据基表!J245 -> 8486 | W51: 25526
A52: 13 | B52: 山西金象化工 | D52: 1.294387419 | E52: 正常生产 | F52: 932.0547945 | G52: =数据基表!B251 -> 1206.44 | H52: 791.2328767 | I52: =数据基表!G251 -> 982.78 | J52: 132.8767123 | K52: =数据基表!Q251 -> 211 | L52: 1108.219178 | M52: =数据基表!L251 -> 1320 | N52: =数据基表!E256 -> 2020 | O52: =数据基表!J256 -> 2120 | P52: =数据基表!E260 -> 1470.65 | Q52: =数据基表!H260 -> 0 | R52: =数据基表!K260 -> 226 | S52: 1696.65 | T52: =数据基表!D260 -> 8474.81 | U52: =数据基表!G260 -> 0 | V52: =数据基表!J260 -> 1692.56 | W52: 10167.37
A53: 14 | B53: 山西晋煤天源 | D53: 1.469331317 | E53: 正常生产 | F53: 1381.369863 | G53: =数据基表!B265 -> 2029.69 | H53: 1114.794521 | I53: =数据基表!G265 -> 1641.71 | J53: 251.6438356 | K53: =数据基表!Q265 -> 361.7 | L53: 1812.328767 | M53: =数据基表!L265 -> 2562 | N53: =数据基表!E270 -> 2000 | O53: =数据基表!J270 -> 2120 | P53: =数据基表!AI270 -> 2563.9 | Q53: =煤炭库存统计表!J53 -> 0 | R53: =数据基表!AM270 -> 916.57 | S53: 3480.47 | T53: =数据基表!AH270 -> 5331.08 | U53: =煤炭库存统计表!I53 -> 0 | V53: =数据基表!AL270 -> 2105.42 | W53: 7436.5
A54: 15 | B54: 晋煤天溪煤制油 | D54: 1.2546875 | E54: 系统开车 | F54: 929.3150685 | G54: =数据基表!B216 -> 1166 | J54: 876.7123288 | K54: =数据基表!Q216 -> 1100 | L54: 0 | O54: =数据基表!E221 -> 2120 | P54: =煤炭库存统计表!F54 -> 0 | Q54: =数据基表!H226 -> 1768 | R54: =数据基表!K226 -> 668 | S54: 2436 | U54: =数据基表!G226 -> 9700 | V54: =数据基表!J226 -> 3000 | W54: 12700
A55: 16 | B55: 晋煤天庆 | D55: 1.289321437 | E55: 正常生产 | F55: 2191.780822 | G55: =数据基表!A275 -> 2825.91 | H55: 821.9178082 | I55: =数据基表!F275 -> 1136.39 | L55: 1424.657534 | M55: =数据基表!K275 -> 1775.344 | N55: =N16 -> 2045 | P55: =数据基表!AI280 -> 2992.44 | Q55: =煤炭库存统计表!J55 -> 0 | R55: =数据基表!AM280 -> 1901.6 | S55: 4894.04 | T55: =数据基表!AH280 -> 24120.307 | U55: =煤炭库存统计表!I55 -> 0 | V55: =数据基表!AL280 -> 8997.75 | W55: 33118.057
A56: 17 | B56: 华昱公司 | D56: 0 | E56: 停车检修 | F56: 3194.520548 | G56: =数据基表!B285 -> 0 | J56: 3013.69863 | K56: =数据基表!Q285 -> 0 | L56: 3013.69863 | O56: =数据基表!E295 -> 2220 | Q56: =数据基表!V295 -> 0 | R56: =数据基表!T295 -> 481.1 | S56: 481.1 | U56: =数据基表!U295 -> 59225.23 | V56: =数据基表!S295 -> 13612.6 | W56: 72837.83

Sheet OWONVY (hidden)

Sheet 报调度室简表
A1: 晋能控股装备制造集团煤化工板块生产调度情况日报简表
A2: =表一!N2 -> 2021-04-14
A3: 填报单位：煤化工事业部 | G3: 单位：吨
B4: 总氨 | C4: 尿素 | D4: 甲醇 | E4: 精细化工 | F4: 复合肥料 | G4: 煤基合成油
A5: 产量 | B5: =表一!B5 -> 45947.02444 | C5: =表一!B25 -> 29786.814 | D5: =表一!J25 -> 10199.606 | E5: =表一!J45 -> 4819.48 | F5: =表一!B45 -> 8929.87 | G5: =表一!J58 -> 0
A6: 销量 | C6: =表二!B6 -> 30037.049 | D6: =表二!G6 -> 10257.99 | E6: =表二!I26 -> 4184.63 | F6: =表二!F26 -> 7521.87 | G6: =表二!G46 -> 0
A7: 煤炭消耗量 | D7: 煤炭库存 | G7: 天溪
A8: 合计 | B8: 自供煤 | C8: 外供煤 | D8: 合计 | E8: 自供煤 | F8: 外供煤 | G8: 甲醇产量 | H8: 甲醇销量
A9: =煤炭库存统计表!Q6 -> 74782.54 | B9: =A9-C9 -> 58330.3812 | C9: =A9*0.22 -> 16452.1588 | D9: =煤炭库存统计表!P6 -> 894057.661 | E9: =D9-F9 -> 776936.1074 | F9: =D9*0.131 -> 117121.5536 | G9: =表一!J36 -> 1100 | H9: =表二!G17 -> 919
A10: 安全生产及 突发事件情况 | B10: =表二!D52 -> 1、满负荷运行公司21家：天溪公司、天源公司、晋丰高平公司、金象公司、晋开二分公司、联盟公司、明水本部、明升达公司、金华润公司、明泉公司、中能公司、恒盛公司、金牛公司、昊源公司、天庆公司、三宁公司、晋银公司、新疆万源公司、华强公司、联盟石油公司、日月公司。2、减量运行公司1家：金石藁城公司。3、停车公司3家：泉盛公司、华昱公司、晋丰闻喜公司。4、停产公司5家：双多公司因搬迁改造停产、金万泰公司因环保原因停产，延化公司因搬迁改造停产、晋开一分公司因项目搬迁原因停产，武陟绿宇公司因产能落后停产。5、板块整体煤炭库容比为59.68%。
A11: 值班人员 | B11: =数据填报!AG2 -> 尚志宏 闫军
A12: 集团公司调度指挥中心 电话：0356-3668525、0356-3668575、0356-3665075；传真：0356-3668527。
A13: 煤化工事业部调度 电话：0356-3668301；传真：0356-3668301；邮箱：mhgdiaodu@163.com。

Sheet 报调度指挥中心
A1: 集团公司煤化工板块主要产品库存和售价情况表
A2: =表一!N2 -> 2021-04-14
A3: 填报单位：煤化工事业部 | F3: 单位：吨、元/吨
B4: 当日销量 | C4: 月累销量 | D4: 年累销量 | E4: 当日价格 | F4: 当日库存 | G4: 库存增减
A5: 尿素产品 | B5: =表二!B6 -> 30037.049 | C5: =表二!C6 -> 435228.9936 | D5: =表二!D6 -> 3062583.176 | E5: =表二!E6 -> 2084.291735 | F5: =表二!F6 -> 142654.183 | G5: =数据填报!CE52 -> -250.095
A6: 甲醇产品 | B6: =表二!G6 -> 10257.99 | C6: =表二!H6 -> 121206.77 | D6: =表二!I6 -> 1170667.26 | E6: =表二!J6 -> 2258.933671 | F6: =表二!K6 -> 99820.6174 | G6: =数据填报!CE53 -> -1928.7769
A7: 复合肥料 | B7: =表二!F26 -> 7521.87 | C7: =表二!G26 -> 34758.36 | D7: =表二!H26 -> 270071.71
A8: 备 注
A9: 煤化工事业部调度 电话：0356-3668301；传真：0356-3668519；邮箱：mhgdiaodu@163.com。
H15: =数据基表!D209 -> 2550

Sheet 历史产量
A1: 发展规划处提供各化工公司历史产量完成情况
B2: 总氨产量分月完成情况
B3: 1月 未核准 | C3: 2月 已核准 | D3: 3月 已核准 | E3: 4月 已核准 | F3: 5月 已核准 | G3: 6月 已核准 | H3: 7月 已核准 | I3: 8月 已核准 | J3: 9月 已核准 | K3: 10月 已核准 | L3: 11月 已核准 | M3: 12月 未核准 | N3: 合计
A4: 金石公司 | B4: 127621.42 | C4: 131586.984 | D4: 150513.7305 | N4: 259208.404
A5: 晋丰公司 | B5: 19557.37 | C5: 21097.34 | D5: 59592.84 | N5: 40654.71
A6: 晋开公司 | B6: 126557 | C6: 107103 | D6: 119927 | N6: 233660
A7: 恒盛公司 | B7: 35354 | C7: 35708 | D7: 33526 | N7: 71062
A8: 联盟化工 | B8: 147597.876 | C8: 151898.759 | D8: 137543.1782 | N8: 299594
A9: 明水公司 | B9: 162300 | C9: 154800 | D9: 156720.7516 | N9: 317000
A10: 中能公司 | B10: 127100 | C10: 160900 | D10: 126828 | N10: 288000
A11: 昊源公司 | B11: 230800 | C11: 232700 | D11: 226250.3266 | N11: 463500
A12: 三宁公司 | B12: 115632 | C12: 113538 | D12: 111693.338 | N12: 229170
A13: 日月公司 | B13: 30400 | C13: 31000 | D13: 34069 | N13: 61400
A14: 天溪公司 | B14: 34176.52 | C14: 34450 | D14: 17683.079 | N14: 68582
A15: 双多公司 | B15: 0 | C15: 0 | D15: 0 | N15: 0
A16: 晋银公司 | B16: 27600 | C16: 28100 | D16: 26587 | N16: 55700
A17: 金象公司 | B17: 17100 | C17: 36700 | D17: 36399.122 | N17: 53800
A18: 山西天源 | B18: 29661.5 | C18: 61640.5 | D18: 57371.16 | N18: 91302
A19: 晋煤天庆 | B19: 74608.5983 | C19: 89470.96683 | D19: 85486.78133 | N19: 164079.5651
A20: 晋煤华昱 | B20: 98674.34 | C20: 116536.4 | D20: 107501.1974 | N20: 215211
B21: 合成氨产量分月完成情况
B22: 1月 未核准 | C22: 2月 已核准 | D22: 3月 已核准 | E22: 4月 已核准 | F22: 5月 已核准 | G22: 6月 已核准 | H22: 7月 已核准 | I22: 8月 已核准 | J22: 9月 已核准 | K22: 10月 已核准 | L22: 11月 已核准 | M22: 12月 未核准 | N22: 合计
A23: 金石公司 | B23: 100495.36 | C23: 101101.73 | D23: 111095.85 | N23: 201597.09
A24: 晋丰公司 | B24: 17281.03 | C24: 18416.48 | D24: 51884.6 | N24: 35697.51
A25: 晋开公司 | B25: 126557 | C25: 107103 | D25: 117927 | N25: 233660
A26: 恒盛公司 | B26: 29100 | C26: 28500 | D26: 26701 | N26: 57600
A27: 联盟化工 | B27: 115029.906 | C27: 121001.026 | D27: 111996.9011 | N27: 236054
A28: 明水公司 | B28: 90100 | C28: 88950 | D28: 87872.174 | N28: 178950
A29: 中能公司 | B29: 77600 | C29: 103400 | D29: 86223 | N29: 181000
A30: 昊源公司 | B30: 128900 | C30: 134300 | D30: 128171.7914 | N30: 263200
A31: 三宁公司 | B31: 92100 | C31: 89900 | D31: 89819.668 | N31: 182000
A32: 日月公司 | B32: 16700 | C32: 15100 | D32: 26500 | N32: 31800
A33: 天溪公司 | B33: 0 | C33: 0 | D33: 0 | N33: 0
A34: 双多公司 | B34: 0 | C34: 0 | D34: 0 | N34: 0
A35: 晋银公司 | B35: 25700 | C35: 26000 | D35: 24661 | N35: 51700
A36: 金象公司 | B36: 15300 | C36: 30100 | D36: 30024.68 | N36: 45400
A37: 山西天源 | B37: 24000 | C37: 48400 | D37: 46818.4 | N37: 72400
A38: 晋煤天庆 | B38: 28325.9708 | C38: 35210.616 | D38: 33933.943 | N38: 63536.5868
B39: 尿素产量分月完成情况
B40: 1月 未核准 | C40: 2月 已核准 | D40: 3月 已核准 | E40: 4月 已核准 | F40: 5月 已核准 | G40: 6月 已核准 | H40: 7月 已核准 | I40: 8月 已核准 | J40: 9月 已核准 | K40: 10月 已核准 | L40: 11月 已核准 | M40: 12月 未核准 | N40: 合计
A41: 金石公司 | B41: 45901.78 | C41: 64786.05 | D41: 69442.1 | N41: 110687.83
A42: 晋丰公司 | B42: 25594.84 | C42: 26650.65 | D42: 76160.8 | N42: 52245.49
A43: 晋开公司 | B43: 74027 | C43: 81335 | D43: 81615 | N43: 155362
A44: 恒盛公司 | B44: 32000 | C44: 36600 | D44: 35899 | N44: 68600
A45: 联盟化工 | B45: 133531.1 | C45: 144436.98 | D45: 135227.246 | N45: 277976
A46: 明水公司 | B46: 127500 | C46: 125770 | D46: 119418.02 | N46: 253140
A47: 中能公司 | B47: 65600 | C47: 124900 | D47: 114447 | N47: 190500
A48: 昊源公司 | B48: 96800 | C48: 107500 | D48: 97494.55 | N48: 204300
A49: 三宁公司 | B49: 47600 | C49: 48100 | D49: 46738.14 | N49: 95700
A50: 日月公司 | B50: 0 | C50: 0 | D50: 0 | N50: 0
A51: 天溪公司 | B51: 0 | C51: 0 | N51: 0
A52: 双多公司 | B52: 0 | C52: 0 | D52: 0 | N52: 0
A53: 晋银公司 | B53: 38300 | C53: 41100 | D53: 40579 | N53: 79400
A54: 金象公司 | B54: 20700 | C54: 41300 | D54: 41760.58 | N54: 62000
A55: 山西天源 | B55: 37600 | C55: 78800 | D55: 76748 | N55: 116400
A56: 晋煤天庆 | B56: 44291.408 | C56: 54642.813 | D56: 52899.414 | N56: 98934.221
B57: 甲醇产量分月完成情况
B58: 1月 未核准 | C58: 2月 已核准 | D58: 3月 已核准 | E58: 4月 已核准 | F58: 5月 已核准 | G58: 6月 已核准 | H58: 7月 已核准 | I58: 8月 已核准 | J58: 9月 已核准 | K58: 10月 已核准 | L58: 11月 已核准 | M58: 12月 未核准 | N58: 合计
A59: 金石公司 | B59: 24125.08461 | C59: 26479.24297 | D59: 29941.41 | N59: 50604.32759
A60: 晋丰公司 | B60: 2147.490566 | C60: 2529.113208 | D60: 6506.597 | N60: 4676.603774
A61: 晋开公司 | B61: 0 | C61: 0 | D61: 0 | N61: 0
A62: 恒盛公司 | B62: 5900 | C62: 6800 | D62: 6420 | N62: 12700
A63: 联盟化工 | B63: 28458.536 | C63: 28295.303 | D63: 23211.161 | N63: 56824
A64: 明水公司 | B64: 68200 | C64: 62180 | D64: 62332.9 | N64: 130280
A65: 中能公司 | B65: 41900 | C65: 48600 | D65: 38225 | N65: 90500
A66: 昊源公司 | B66: 96000 | C66: 92900 | D66: 76202.89 | N66: 188900
A67: 三宁公司 | B67: 22200 | C67: 22300 | D67: 21873.67 | N67: 44500
A68: 日月公司 | B68: 9500 | C68: 8500 | D68: 7569 | N68: 18000
A69: 天溪公司 | B69: 32242 | C69: 32500 | D69: 16682.15 | N69: 64700
A70: 双多公司 | B70: 0 | C70: 0 | D70: 0 | N70: 0
A71: 晋银公司 | B71: 1800 | C71: 2000 | D71: 1926 | N71: 3800
A72: 金象公司 | B72: 3100 | C72: 6100 | D72: 6013.63 | N72: 7800
A73: 山西天源 | B73: 4900 | C73: 11000 | D73: 9796.2 | N73: 15900
A74: 晋煤天庆 | B74: 0 | C74: 0 | D74: 0 | N74: 0
A75: 晋煤华昱 | B75: 93089 | C75: 109940 | D75: 105641.9 | N75: 203029
B76: 复合肥产量分月完成情况
B77: 1月 未核准 | C77: 2月 已核准 | D77: 3月 已核准 | E77: 4月 已核准 | F77: 5月 已核准 | G77: 6月 已核准 | H77: 7月 已核准 | I77: 8月 已核准 | J77: 9月 已核准 | K77: 10月 已核准 | L77: 11月 已核准 | M77: 12月 未核准 | N77: 合计
A78: 金石公司 | B78: 25983.84 | C78: 39839.84 | D78: 13725 | N78: 65823.68
A79: 晋丰公司 | B79: 0 | C79: 0 | N79: 0
A80: 晋开公司 | B80: 14221 | C80: 24326 | D80: 3860 | N80: 38547
A81: 恒盛公司 | B81: 0 | C81: 0 | D81: 0 | N81: 0
A82: 联盟化工 | B82: 0 | C82: 0 | D82: 0 | N82: 0
A83: 明水公司 | B83: 0 | C83: 0 | D83: 0 | N83: 0
A84: 中能公司 | B84: 0 | C84: 0 | D84: 0 | N84: 0
A85: 昊源公司 | B85: 3800 | C85: 1900 | D85: 0 | N85: 5700
A86: 三宁公司 | B86: 109700 | C86: 95000 | D86: 37743.68 | N86: 204700
A87: 日月公司 | N87: 0
A88: 天溪公司
A89: 双多公司
A90: 晋银公司
A91: 金象公司
N92: =SUM(B92:M92) -> 0
N93: =SUM(N78:N92) -> 314770.68
B94: 精细化工产品产量分月完成情况
B95: 1月 未核准 | C95: 2月 已核准 | D95: 3月 已核准 | E95: 4月 已核准 | F95: 5月 已核准 | G95: 6月 已核准 | H95: 7月 已核准 | I95: 8月 已核准 | J95: 9月 已核准 | K95: 10月 已核准 | L95: 11月 已核准 | M95: 12月 未核准 | N95: 合计
A96: 金石公司 | B96: 48909.18 | C96: 43185 | D96: 39497 | N96: 92094
A97: 晋丰公司 | B97: 0 | C97: 0 | N97: 0
A98: 晋开公司 | B98: 0 | C98: 0 | N98: 0
A99: 恒盛公司 | B99: 0 | C99: 0 | N99: 0
A100: 联盟化工 | B100: 3596 | C100: 3300 | D100: 834 | N100: 6900
A101: 明水公司 | B101: 0 | C101: 0 | D101: 0 | N101: 0
A102: 中能公司 | B102: 53000 | C102: 62900 | D102: 39561 | N102: 115900
A103: 昊源公司 | B103: 42886.05 | C103: 42333.11 | D103: 5907.68 | N103: 85137
A104: 三宁公司 | B104: 37200 | C104: 35500 | D104: 1639.15 | N104: 72700
A105: 日月公司 | B105: 14500 | C105: 13000 | D105: 27809 | N105: 27500
A106: 天溪公司 | N106: 0
A107: 双多公司 | N107: 0
A108: 晋银公司 | N108: 0
A109: 金象公司 | N109: 0
B111: 石化产品产量分月完成情况
B112: 1月 未核准 | C112: 2月 已核准 | D112: 3月 已核准 | E112: 4月 已核准 | F112: 5月 已核准 | G112: 6月 已核准 | H112: 7月 已核准 | I112: 8月 已核准 | J112: 9月 已核准 | K112: 10月 已核准 | L112: 11月 已核准 | M112: 12月 未核准 | N112: 合计
A113: 联盟石油 | B113: 79200 | C113: 65800 | D113: 25142 | N113: 145000
B115: 煤基合成油产量分月完成情况
B116: 1月 未核准 | C116: 2月 已核准 | D116: 3月 已核准 | E116: 4月 已核准 | F116: 5月 已核准 | G116: 6月 已核准 | H116: 7月 已核准 | I116: 8月 已核准 | J116: 9月 已核准 | K116: 10月 已核准 | L116: 11月 已核准 | M116: 12月 未核准 | N116: 合计
A117: 天溪公司 | N117: =SUM(B117:M117) -> 0

Sheet 历史销量
A1: 发展规划处提供各化工公司历史销量完成情况
B2: 尿素销量分月完成情况
B3: 1月 未核准 | C3: 2月 已核准 | D3: 3月 已核准 | E3: 4月 已核准 | F3: 5月 已核准 | G3: 6月 已核准 | H3: 7月 已核准 | I3: 8月 已核准 | J3: 9月 已核准 | K3: 10月 已核准 | L3: 11月 已核准 | M3: 12月 未核准 | N3: 合计
A4: 金石公司 | B4: 38175.705 | C4: 35801.9774 | D4: 58684.343 | N4: =SUM(B4:M4) -> 132662.0254
A5: 晋丰公司 | B5: 30054.48 | C5: 24988 | D5: 71355.414 | N5: =SUM(B5:M5) -> 126397.894
A6: 晋开公司 | B6: 86679 | C6: 66525 | D6: 97304 | N6: 250508
A7: 恒盛公司 | B7: 32942 | C7: 31885 | D7: 40186 | N7: 105013
A8: 联盟化工 | B8: 129440.25 | C8: 104878.41 | D8: 164476.72 | N8: 398795.38
A9: 明水公司 | B9: 130336.5 | C9: 113760.36 | D9: 130116.25 | N9: 374213.11
A10: 中能公司 | B10: 87743 | C10: 111050 | D10: 106500 | N10: 305293
A11: 昊源公司 | B11: 96564.19 | C11: 82471.79 | D11: 111381.21 | N11: 290417.19
A12: 三宁公司 | B12: 35519.86 | C12: 33917.01 | D12: 22936.95 | N12: 92373.82
A13: 日月公司 | B13: 0 | C13: 0 | D13: 0 | N13: 0
A14: 天溪公司 | B14: 0 | N14: 0
A15: 双多公司 | B15: 0 | C15: 0 | D15: 0 | N15: 0
A16: 晋银公司 | B16: 51685 | C16: 27520 | D16: 25639 | N16: 104844
A17: 金象公司 | B17: 23154 | C17: 0 | D17: 38707 | N17: 61861
A18: 山西天源 | B18: 38507 | C18: 5336 | D18: 10744 | N18: 54587
A19: 晋煤天庆 | B19: 60871.123 | C19: 2332.634 | D19: 8127.121 | N19: 71330.878
B21: 甲醇销量分月完成情况
B22: 1月 未核准 | C22: 2月 已核准 | D22: 3月 已核准 | E22: 4月 已核准 | F22: 5月 已核准 | G22: 6月 已核准 | H22: 7月 已核准 | I22: 8月 已核准 | J22: 9月 已核准 | K22: 10月 已核准 | L22: 11月 已核准 | M22: 12月 未核准 | N22: 合计
A23: 金石公司 | B23: 8856 | C23: 9631.75 | D23: 16089.08 | N23: =SUM(B23:M23) -> 34576.83
A24: 晋丰公司 | B24: 2055.7 | C24: 1920 | D24: 7020.72 | N24: =SUM(B24:M24) -> 10996.42
A25: 晋开公司 | B25: 0 | C25: 0 | D25: 0 | N25: 0
A26: 恒盛公司 | B26: 6682 | C26: 4848 | D26: 6275 | N26: 17805
A27: 联盟化工 | B27: 26586.15 | C27: 21954.46 | D27: 23359.52 | N27: 71900.13
A28: 明水公司 | B28: 54678.37 | C28: 46826.8 | D28: 50607.44 | N28: 152112.61
A29: 中能公司 | B29: 54420 | C29: 30729 | D29: 45678 | N29: 130827
A30: 昊源公司 | B30: 66102.45 | C30: 56978.9 | D30: 77645.66 | N30: 200727.01
A31: 三宁公司 | B31: 10284.64 | C31: 16253.82 | D31: 15720.06 | N31: 42258.52
A32: 日月公司 | B32: 0 | C32: 0 | D32: 0 | N32: 0
A33: 天溪公司 | B33: 28092.84 | C33: 23502.38 | D33: 13379.18 | N33: 64974.4
A34: 双多公司 | B34: 0 | C34: 0 | D34: 0 | N34: 0
A35: 晋银公司 | B35: 2893 | C35: 1047 | D35: 2460 | N35: 6400
A36: 金象公司 | B36: 3524.86 | C36: 5576.48 | D36: 6606.38 | N36: 15707.72
A37: 山西天源 | B37: 3585.92 | C37: 8038.4 | D37: 10325.76 | N37: 21950.08
A38: 晋煤天庆 | B38: 0 | C38: 0 | D38: 0 | N38: 0
A39: 晋煤华昱 | B39: 93680.03 | C39: 80960.1 | D39: 105263.64 | N39: 279903.77
B40: 液氨销量分月完成情况
B41: 1月 未核准 | C41: 2月 已核准 | D41: 3月 已核准 | E41: 4月 已核准 | F41: 5月 已核准 | G41: 6月 已核准 | H41: 7月 已核准 | I41: 8月 已核准 | J41: 9月 已核准 | K41: 10月 已核准 | L41: 11月 已核准 | M41: 12月 未核准 | N41: 合计
A42: 金石公司 | B42: 67690.12 | C42: 49950.437 | D42: 62324.76 | N42: =SUM(B42:M42) -> 179965.317
A43: 晋丰公司 | B43: 2639 | C43: 2113 | D43: 6709.76 | N43: =SUM(B43:M43) -> 11461.76
A44: 晋开公司 | B44: 42618.56 | C44: 34926.98 | D44: 35136 | N44: 112681.54
A45: 恒盛公司 | B45: 10160 | C45: 6266 | D45: 6464 | N45: 22890
A46: 联盟化工 | B46: 30744.46 | C46: 25319.97 | D46: 26354.747 | N46: 82419.177
A47: 明水公司 | B47: 10605.96 | C47: 13351.62 | D47: 20604.52 | N47: 44562.1
A48: 中能公司 | B48: 46733 | C48: 20157 | D48: 15207 | N48: 82097
A49: 昊源公司 | B49: 53843.42 | C49: 44696.95 | D49: 51356.83 | N49: 149897.2
A50: 三宁公司 | B50: 22552.66 | C50: 19456.6 | D50: 22004.5 | N50: 64013.76
A51: 日月公司 | B51: 4511 | C51: 4043 | D51: 6139 | N51: 14693
A52: 天溪公司 | N52: 0
A53: 双多公司 | C53: 0 | D53: 0 | N53: 0
A54: 晋银公司 | C54: 125 | D54: 247 | N54: 372
A55: 金象公司 | D55: 4983 | N55: 4983
A56: 山西天源 | D56: 547.16 | N56: 547.16
A57: 晋煤天庆 | C57: 47.02 | D57: 132.24 | N57: 179.26
B59: 其他肥料销量分月完成情况
B60: 1月 未核准 | C60: 2月 已核准 | D60: 3月 已核准 | E60: 4月 已核准 | F60: 5月 已核准 | G60: 6月 已核准 | H60: 7月 已核准 | I60: 8月 已核准 | J60: 9月 已核准 | K60: 10月 已核准 | L60: 11月 已核准 | M60: 12月 未核准 | N60: 合计
A61: 金石公司 | B61: 43018 | C61: 39697 | D61: 85622 | N61: =SUM(B61:M61) -> 168337
A62: 晋丰公司 | B62: 0 | C62: 0 | D62: 0 | N62: =SUM(B62:M62) -> 0
A63: 晋开公司 | B63: 8770.9 | C63: 30598.7 | D63: 27606.75 | N63: 66976.35
A64: 恒盛公司 | B64: 0 | C64: 0 | D64: 0 | N64: 0
A65: 联盟化工 | B65: 0 | N65: 0
A66: 明水公司 | B66: 0 | C66: 0 | D66: 0 | N66: 0
A67: 中能公司 | B67: 0 | C67: 0 | D67: 0 | N67: 0
A68: 昊源公司 | B68: 0 | C68: 0 | D68: 0 | N68: 0
A69: 三宁公司 | B69: 28579.05 | C69: 13864.55 | D69: 25895.27 | N69: 68338.87
A70: 日月公司 | N70: 0
A71: 天溪公司
A72: 双多公司
A73: 晋银公司
A74: 金象公司
A75: 山西天源
B78: 精细化工产品销量分月完成情况
B79: 1月 未核准 | C79: 2月 已核准 | D79: 3月 已核准 | E79: 4月 已核准 | F79: 5月 已核准 | G79: 6月 已核准 | H79: 7月 已核准 | I79: 8月 已核准 | J79: 9月 已核准 | K79: 10月 已核准 | L79: 11月 已核准 | M79: 12月 未核准 | N79: 合计
A80: 金石公司 | B80: 21964 | C80: 18275 | D80: 41086.39 | N80: =SUM(B80:M80) -> 81325.39
A81: 晋丰公司 | B81: 0 | N81: =SUM(B81:M81) -> 0
A82: 晋开公司 | B82: 0 | N82: 0
A83: 恒盛公司 | B83: 0 | N83: 0
A84: 联盟化工 | B84: 0 | C84: 0 | D84: 0 | N84: 0
A85: 明水公司 | B85: 0 | C85: 0 | D85: 0 | N85: 0
A86: 中能公司 | B86: 50698 | C86: 30357 | D86: 48617 | N86: 129672
A87: 昊源公司 | B87: 4819.4 | C87: 22214.77 | D87: 26860.11 | N87: 53894.28
A88: 三宁公司 | B88: 19035.72 | C88: 14989.04 | D88: 15457.88 | N88: 49482.64
A89: 日月公司 | B89: 16401 | C89: 11438 | D89: 14027 | N89: 41866
A90: 天溪公司 | N90: 0
A91: 双多公司 | N91: 0
A92: 晋银公司
A93: 金象公司
A94: 山西天源
B97: 石化产品销量分月完成情况
B98: 1月 未核准 | C98: 2月 已核准 | D98: 3月 已核准 | E98: 4月 已核准 | F98: 5月 已核准 | G98: 6月 已核准 | H98: 7月 已核准 | I98: 8月 已核准 | J98: 9月 已核准 | K98: 10月 已核准 | L98: 11月 已核准 | M98: 12月 未核准 | N98: 合计
A99: 联盟石油 | B99: 32599 | C99: 13708 | D99: 25439 | N99: =SUM(B99:M99) -> 71746
B101: 煤基合成油销量分月完成情况
B102: 1月 未核准 | C102: 2月 已核准 | D102: 3月 已核准 | E102: 4月 已核准 | F102: 5月 已核准 | G102: 6月 已核准 | H102: 7月 已核准 | I102: 8月 已核准 | J102: 9月 已核准 | K102: 10月 已核准 | L102: 11月 已核准 | M102: 12月 未核准 | N102: 合计
A103: 天溪公司 | N103: =SUM(B103:M103) -> 0

Sheet 每月计划粘贴
A1: 氨醇、合成、甲醇生产计划表 | J1: 尿素、精细、肥料生产计划表
A2: 基于经济运行处所报表 计划最终表 | P2: 月天数 | Q2: 30 | S2: 年天数 | T2: 365
A3: 单位名称 | D3: 氨醇总量(万吨) | F3: 合成氨产量(万吨) | H3: 甲醇产量(万吨) | J3: 尿素产量(万吨) | L3: 精细化工产量(万吨) | N3: 其它肥料产量(万吨) | P3: 月天数 | Q3: 30
D4: 本月下达 | E4: 下达日计划 | F4: 本月下达 | G4: 下达日计划 | H4: 本月下达 | I4: 下达日计划 | J4: 本月下达 | K4: 下达日计划 | L4: 本月下达 | M4: 下达日计划 | N4: 本月下达 | O4: 下达日计划 | P4: 月天数 | Q4: 30 | U4: 单位 项目 | V4: 总氨产量 | W4: 合成氨产量 | X4: 尿素 | AA4: 甲醇 | AD4: 液氨
A5: 总计 | D5: =E5*Q2/10000 -> 138.6312329 | E5: =V23*10000/T2 -> 46210.41096 | F5: =G5*Q5/10000 -> 88.8230137 | G5: =W23*10000/T2 -> 29607.67123 | H5: =I5*Q5/10000 -> 39.15449425 | I5: =AA23*10000/T2 -> 13051.49808 | J5: =K5*Q2/10000 -> 94.09808219 | K5: =X23*10000/T2 -> 31366.0274 | L5: =M5*Q5/10000 -> 23.175 | M5: 7725 | N5: =O5*Q5/10000 -> 20.115 | O5: 6705 | P5: 月天数 | Q5: 30 | X5: 产量 | Y5: 销量 | Z5: 价格 | AA5: 产量 | AB5: 销量 | AC5: 价格 | AD5: 产量 | AE5: 销量 | AF5: 价格
A6: 晋煤 金石化工 | B6: 合计 | D6: =E6*Q3/10000 -> 14.28945205 | E6: =V8*10000/T2 -> 4763.150685 | F6: =G6*Q6/10000 -> 10.32680548 | G6: =W8*10000/T2 -> 3442.268493 | H6: =I6*Q6/10000 -> 2.997507945 | I6: =AA8*10000/T2 -> 999.1693151 | J6: =K6*Q3/10000 -> 5.170684932 | K6: =X8*10000/T2 -> 1723.561644 | L6: 4.1 | M6: 1464 | N6: 5.795322581 | O6: 1998.387097 | P6: 月天数 | Q6: 30 | U6: 山西晋丰 | V6: 61.86 | W6: 52.83 | X6: 78.33 | Y6: 72 | Z6: 1570 | AA6: 8.53 | AB6: 8.93 | AC6: 1652 | AD6: 6.17 | AE6: 6.17 | AF6: 2118
B7: 藁城 | D7: 3.732328767 | E7: =V29*10000/T2 -> 1244.109589 | F7: 1.725205479 | G7: =W29*10000/T2 -> 575.0684932 | H7: 1.151506849 | I7: =AA29*10000/T2 -> 383.8356164 | K7: —— | L7: —— | M7: —— | N7: —— | O7: —— | P7: 月天数 | Q7: 30 | U7: 开封晋开 | V7: 125 | W7: 125 | X7: 110 | Y7: 112.6 | Z7: 1683 | AD7: 13.49 | AE7: 13.49 | AF7: 2304
B8: 河北金万泰 | D8: 0 | E8: 0 | F8: 0 | G8: 0 | H8: 0 | I8: 0 | J8: 0 | K8: 0 | L8: —— | M8: —— | N8: —— | O8: —— | P8: 月天数 | Q8: 30 | U8: 金石化肥 | V8: 173.855 | W8: 125.6428 | X8: 62.91 | Y8: 70.593 | Z8: 1732.82614 | AA8: 36.46968 | AB8: 22.9616 | AC8: 1766.421394 | AD8: 61.078 | AE8: 61.078 | AF8: 2376.192443
B9: 天成 | D9: 0 | E9: 0 | F9: 0 | G9: 0 | H9: 0 | I9: 0 | K9: —— | L9: 0 | M9: 0 | N9: 0 | O9: 0 | P9: 月天数 | Q9: 30 | U9: 山西金象 | V9: 34.02 | W9: 28.88 | X9: 40.45 | Y9: 31.19 | Z9: 1591.64 | AA9: 4.85 | AB9: 3.97 | AC9: 1642.29 | AD9: 3 | AE9: 3 | AF9: 2165.2
B10: 河北冀衡 | D10: 0 | E10: 0 | F10: 0 | G10: 0 | H10: 0 | I10: 0 | J10: 0 | K10: 0 | L10: —— | M10: —— | N10: —— | O10: —— | P10: 月天数 | Q10: 30 | U10: 山西天源 | V10: 50.42 | W10: 40.69 | X10: 66.15 | Y10: 68.48 | Z10: 1587.892795 | AA10: 9.185 | AB10: 10.85 | AC10: 1641.390426 | AD10: 6.47 | AE10: 6.47 | AF10: 2070.092995
B11: 冀州银海 | D11: 0 | E11: 0 | F11: 0 | G11: 0 | H11: 0 | I11: 0 | J11: 0 | K11: 0 | L11: 0 | M11: 0 | N11: —— | O11: —— | P11: 月天数 | Q11: 30 | U11: 河南天庆 | V11: 80 | W11: 30 | X11: 52 | Y11: 52 | Z11: 1644.2
B12: 湖北华强 | D12: 4.17369863 | E12: =V30*10000/T2 -> 1391.232877 | F12: 3.389589041 | G12: =W30*10000/T2 -> 1129.863014 | H12: 0.7397260274 | I12: =AA30*10000/T2 -> 246.5753425 | J12: 1.143287671 | K12: =X30*10000/T2 -> 381.0958904 | L12: 3.51 | M12: 1254 | N12: 5.238709677 | O12: 1806.451613 | P12: 月天数 | Q12: 30 | U12: 山东联盟 | V12: 148.01 | W12: 120.98 | X12: 146.855 | Y12: 135.5 | Z12: 1740 | AA12: 25.5 | AB12: 36 | AC12: 1915 | AD12: 38.3 | AE12: 38.3 | AF12: 2474.660523
B13: 湖北潜江 | D13: 4.733424658 | E13: =V31*10000/T2 -> 1577.808219 | F13: 3.682191781 | G13: =W31*10000/T2 -> 1227.39726 | H13: 0.9920547945 | I13: =AA31*10000/T2 -> 330.6849315 | J13: 4.02739726 | K13: =X31*10000/T2 -> 1342.465753 | L13: 0.58 | M13: 219.3548387 | N13: 0 | O13: 0 | P13: 月天数 | Q13: 30 | U13: 山东明水 | V13: 158 | W13: 80 | X13: 110 | Y13: 78 | Z13: 1650 | AA13: 70.8 | AB13: 65.81 | AC13: 1790 | AD13: 13.7 | AE13: 13.7 | AF13: 2390
B14: 湖北金楚 | D14: 0 | E14: 0 | F14: 0 | G14: 0 | H14: 0 | I14: 0 | K14: —— | L14: —— | M14: —— | N14: 0 | O14: 0 | P14: 月天数 | Q14: 30 | U14: 江苏恒盛 | V14: 37.07 | W14: 31.24 | X14: 36 | Y14: 32.47 | Z14: 1742.67 | AA14: 5.5 | AB14: 5.81 | AC14: 1878.3 | AD14: 12.51 | AE14: 12.51 | AF14: 2451.7
B15: 安乡金牛 | D15: 1.650410959 | E15: =V34*10000/T2 -> 550.1369863 | F15: 1.529589041 | G15: =W34*10000/T2 -> 509.8630137 | H15: 0.1142465753 | I15: =AA34*10000/T2 -> 38.08219178 | K15: —— | L15: —— | M15: —— | N15: 0.5566129032 | O15: 191.9354839 | P15: 月天数 | Q15: 30 | U15: 安徽中能 | V15: 173.285 | W15: 118.86 | X15: 125.965 | Y15: 166.2713251 | Z15: 1659.093688 | AA15: 51.35 | AB15: 47.275 | AC15: 1895 | AD15: 21.3 | AE15: 21.3 | AF15: 2326.175383
B16: 安徽金龙源 | E16: —— | F16: 0 | G16: 0 | H16: 0 | I16: 0 | K16: —— | L16: —— | M16: —— | N16: 0 | O16: 0 | P16: 月天数 | Q16: 30 | U16: 安徽昊源 | V16: 241.16 | W16: 147.45 | X16: 151.5 | Y16: 100 | Z16: 1768.64 | AA16: 88.41 | AB16: 102 | AC16: 1853.72 | AD16: 25 | AE16: 25 | AF16: 2375.139159
A17: 山西 晋丰化工 | B17: 合计 | D17: 5.084383562 | E17: =V6*10000/T2 -> 1694.794521 | F17: 4.342191781 | G17: =W6*10000/T2 -> 1447.39726 | H17: 0.7010958904 | I17: =AA6*10000/T2 -> 233.6986301 | J17: 6.438082192 | K17: =X6*10000/T2 -> 2146.027397 | L17: 0 | M17: 0 | N17: 0 | O17: 0 | P17: 月天数 | Q17: 30 | U17: 章丘日月 | V17: 36 | W17: 20 | X17: 3 | Y17: 5 | Z17: 1746 | AA17: 12 | AB17: 12 | AC17: 1800 | AD17: 5.7 | AE17: 5.7 | AF17: 2486
B18: 高平公司 | D18: 3.081369863 | E18: =V24*10000/T2 -> 1027.123288 | F18: 2.619452055 | G18: =W24*10000/T2 -> 873.1506849 | H18: 0.4364383562 | I18: =AA24*10000/T2 -> 145.4794521 | J18: 3.508767123 | K18: =X24*10000/T2 -> 1169.589041 | L18: —— | M18: —— | N18: —— | O18: —— | P18: 月天数 | Q18: 30 | U18: 湖北三宁 | V18: 187.858 | W18: 131.61 | X18: 116.7 | Y18: 70 | Z18: 1739.42 | AA18: 19.785 | AB18: 15.34 | AC18: 1870 | AD18: 26.17 | AE18: 26.17 | AF18: 2414
B19: 闻喜公司 | D19: 2.003013699 | E19: =V25*10000/T2 -> 667.6712329 | F19: 1.722739726 | G19: =W25*10000/T2 -> 574.2465753 | H19: 0.2646575342 | I19: =AA25*10000/T2 -> 88.21917808 | J19: 2.929315068 | K19: =X25*10000/T2 -> 976.4383562 | L19: —— | M19: —— | N19: —— | O19: —— | P19: 月天数 | Q19: 30 | U19: 江苏双多
A20: 河南 晋开化工 | B20: 合计 | D20: 10.2739726 | E20: =V7*10000/T2 -> 3424.657534 | F20: 10.2739726 | G20: =W7*10000/T2 -> 3424.657534 | H20: 0 | I20: 0 | J20: 9.04109589 | K20: =X7*10000/T2 -> 3013.69863 | L20: 0 | M20: 0 | N20: 0.7483870968 | O20: 258.0645161 | P20: 月天数 | Q20: 30 | U20: 唐山邦力 | V20: 29.62 | W20: 27.5 | X20: 45 | Y20: 45 | Z20: 1674.62 | AA20: 2 | AB20: 1.5 | AC20: 1708.65 | AD20: 3.5 | AE20: 3.5 | AF20: 2549.5
B21: 一分(本部) | D21: 0 | E21: 0 | F21: 0 | G21: 0 | H21: 0 | I21: 0 | J21: 0 | K21: 0 | L21: —— | M21: —— | N21: —— | O21: —— | P21: 月天数 | Q21: 30 | U21: 天溪煤制油 | V21: 33.92 | AA21: 32 | AB21: 29 | AC21: 1607.57
B22: 二分(本部) | D22: 10.2739726 | E22: =V7*10000/T2 -> 3424.657534 | F22: 10.2739726 | G22: =W7*10000/T2 -> 3424.657534 | I22: —— | J22: 9.04109589 | K22: =X7*10000/T2 -> 3013.69863 | L22: —— | M22: —— | N22: —— | O22: —— | P22: 月天数 | Q22: 30 | U22: 华昱 | V22: 116.6 | AA22: 110 | AB22: 50 | AC22: 1621.61
B23: 晋开绿宇 | D23: 0 | E23: 0 | F23: 0 | G23: 0 | H23: 0 | I23: 0 | J23: 0 | K23: 0 | L23: —— | M23: —— | N23: —— | O23: —— | P23: 月天数 | Q23: 30 | U23: 板块合计 | V23: 1686.68 | W23: 1080.68 | X23: 1144.86 | Y23: 1039.104325 | Z23: 1682.58105 | AA23: 476.37968 | AB23: 411.4466 | AC23: 1790.046125 | AD23: 236.388 | AE23: 236.388 | AF23: 2379.809099
B24: 晋开郸城 | D24: 0 | E24: 0 | F24: 0 | G24: 0 | H24: 0 | I24: 0 | J24: 0 | K24: 0 | L24: —— | M24: —— | O24: —— | P24: 月天数 | Q24: 30 | U24: 晋丰本部 | V24: 37.49 | W24: 31.87 | X24: 42.69 | Y24: 41.94782609 | AA24: 5.31 | AB24: 5.202695652 | AD24: 3.594695652 | AE24: 3.594695652
B25: 晋开延化 | D25: 0 | E25: 0 | F25: 0 | G25: 0 | H25: 0 | I25: 0 | J25: 0 | K25: 0 | L25: —— | M25: —— | N25: —— | O25: —— | P25: 月天数 | Q25: 30 | U25: 晋丰闻喜 | V25: 24.37 | W25: 20.96 | X25: 35.64 | Y25: 30.05217391 | AA25: 3.22 | AB25: 3.727304348 | AD25: 2.575304348 | AE25: 2.575304348
B26: 复合肥 | E26: —— | G26: —— | I26: —— | K26: —— | L26: —— | M26: —— | N26: 0.7483870968 | O26: 258.0645161 | P26: 月天数 | Q26: 30 | U26: 中能本部 | V26: 104.23 | W26: 54.36 | X26: 44.5 | Y26: 85.68092513 | AA26: 47.05 | AB26: 38.92457265 | AD26: 9.6824495 | AE26: 9.6824495
A27: 江苏 晋煤恒盛 | B27: 合计 | D27: 3.046849315 | E27: =V14*10000/T2 -> 1015.616438 | F27: 2.567671233 | G27: =W14*10000/T2 -> 855.890411 | H27: 0.4520547945 | I27: =AA14*10000/T2 -> 150.6849315 | J27: 2.95890411 | K27: =X14*10000/T2 -> 986.3013699 | L27: 0 | M27: 0 | N27: 0 | O27: 0 | P27: 月天数 | Q27: 30 | U27: 泉盛 | V27: 32.36 | W27: 27.8 | X27: 23.8 | Y27: 20.79 | AA27: 4.3 | AB27: 8.35042735 | AD27: 8.60337 | AE27: 8.60337
B28: 恒盛本部 | D28: 3.046849315 | E28: =V14*10000/T2 -> 1015.616438 | F28: 2.567671233 | G28: =W14*10000/T2 -> 855.890411 | H28: 0.4520547945 | I28: =AA14*10000/T2 -> 150.6849315 | J28: 2.95890411 | K28: =X14*10000/T2 -> 986.3013699 | L28: —— | M28: —— | N28: —— | O28: —— | P28: 月天数 | Q28: 30 | U28: 新疆万源 | V28: 36.7 | W28: 36.7 | X28: 57.67 | Y28: 59.8004 | AD28: 3.0141805 | AE28: 3.0141805
B29: 恒鑫化工 | D29: 0 | E29: 0 | F29: 0 | G29: 0 | H29: 0 | I29: 0 | K29: —— | L29: —— | M29: —— | N29: 0 | O29: 0 | P29: 月天数 | Q29: 30 | U29: 金石园区 | V29: 45.41 | W29: 20.99 | AA29: 14.01 | AB29: 14.91 | AD29: 22.14 | AE29: 22.1388
B30: 生物化工 | E30: —— | G30: —— | I30: —— | K30: —— | L30: —— | M30: —— | N30: 0 | O30: 0 | P30: 月天数 | Q30: 30 | U30: 华强 | V30: 50.78 | W30: 41.24 | X30: 13.91 | Y30: 22.59 | AA30: 9 | AB30: 8.05 | AD30: 13.948 | AE30: 13.948
A31: 山东联盟化工 | B31: 合计 | D31: 12.16520548 | E31: =V12*10000/T2 -> 4055.068493 | F31: 9.943561644 | G31: =W12*10000/T2 -> 3314.520548 | H31: 2.095890411 | I31: =AA12*10000/T2 -> 698.630137 | J31: 12.07027397 | K31: =X12*10000/T2 -> 4023.424658 | L31: 0 | M31: 0 | N31: —— | O31: —— | P31: 月天数 | Q31: 30 | U31: 金华润 | V31: 57.59 | W31: 44.8 | X31: 49 | Y31: 49 | AA31: 12.07 | AD31: 12.65 | AE31: 12.65
B32: 一厂 | D32: 6.08260274 | E32: =V32*10000/T2 -> 2027.534247 | F32: 4.971780822 | G32: =W32*10000/T2 -> 1657.260274 | H32: 1.047945205 | I32: =AA32*10000/T2 -> 349.3150685 | J32: 6.035342466 | K32: =X32*10000/T2 -> 2011.780822 | P32: 月天数 | Q32: 30 | U32: 联盟一厂 | V32: 74.005 | W32: 60.49 | X32: 73.43 | Y32: =Y12/2 -> 67.75 | Z32: 870 | AA32: 12.75 | AB32: 18 | AC32: 957.5 | AD32: 19.15 | AE32: 19.15 | AF32: 1237.330261
B33: 二厂 | D33: 6.08260274 | E33: =V33*10000/T2 -> 2027.534247 | F33: 4.971780822 | G33: =W33*10000/T2 -> 1657.260274 | H33: 1.047945205 | I33: =AA33*10000/T2 -> 349.3150685 | J33: 6.035342466 | K33: =X33*10000/T2 -> 2011.780822 | P33: 月天数 | Q33: 30 | U33: 联盟二厂 | V33: 74.005 | W33: 60.49 | X33: 73.43 | Y33: =Y32 -> 67.75 | Z33: 870 | AA33: 12.75 | AB33: 18 | AC33: 957.5 | AD33: 19.15 | AE33: 19.15 | AF33: 1237.330261
A34: 山东 晋煤明水 | B34: 合计 | D34: =E34*Q29/10000 -> 12.98630137 | E34: =V13*10000/T2 -> 4328.767123 | F34: 6.575342466 | G34: =W13*10000/T2 -> 2191.780822 | H34: 5.819178082 | I34: =AA13*10000/T2 -> 1939.726027 | J34: =K34*Q29/10000 -> 9.04109589 | K34: =X13*10000/T2 -> 3013.69863 | L34: 0 | M34: 0 | N34: 0 | O34: 0 | P34: 月天数 | Q34: 30 | U34: 金牛 | V34: 20.08 | W34: 18.61 | AA34: 1.39 | AD34: 12.35 | AE34: 12.35
B35: 明水本部 | D35: =E35*Q30/10000 -> 12.98630137 | E35: =V13*10000/T2 -> 4328.767123 | F35: 6.575342466 | G35: =W13*10000/T2 -> 2191.780822 | H35: 5.819178082 | I35: =AA13*10000/T2 -> 1939.726027 | J35: =K35*Q30/10000 -> 9.04109589 | K35: =X13*10000/T2 -> 3013.69863 | L35: 0 | M35: 0 | N35: 0 | O35: 0 | P35: 月天数 | Q35: 30
B36: 明升达公司 | D36: =E36*Q31/10000 -> 0 | E36: 0 | F36: 0 | G36: 0 | H36: 0 | I36: 0 | J36: =K36*Q31/10000 -> 0 | K36: 0 | L36: —— | M36: —— | N36: —— | O36: —— | P36: 月天数 | Q36: 30
B37: 郓城公司 | D37: =E37*Q34/10000 ->  | E37: —— | G37: —— | I37: —— | J37: =K37*Q34/10000 ->  | K37: —— | L37: —— | M37: —— | N37: —— | O37: —— | P37: 月天数 | Q37: 30
A38: 安徽 晋煤中能 | B38: 合计 | D38: =E38*Q35/10000 -> 14.24260274 | E38: =V15*10000/T2 -> 4747.534247 | F38: 9.769315068 | G38: =W15*10000/T2 -> 3256.438356 | H38: 4.220547945 | I38: =AA15*10000/T2 -> 1406.849315 | J38: 10.35328767 | K38: =X15*10000/T2 -> 3451.09589 | L38: 4.68 | M38: 1671 | N38: 0 | O38: 0 | P38: 月天数 | Q38: 30
B39: 临泉化工 | D39: =E39*Q36/10000 -> 8.566849315 | E39: =V26*10000/T2 -> 2855.616438 | F39: 4.467945205 | G39: =W26*10000/T2 -> 1489.315068 | H39: 3.867123288 | I39: =AA26*10000/T2 -> 1289.041096 | J39: 3.657534247 | K39: =X26*10000/T2 -> 1219.178082 | L39: 3.14 | M39: 1121 | N39: —— | O39: —— | P39: 月天数 | Q39: 30
B40: 临化泉盛 | D40: =E40*Q37/10000 -> 2.659726027 | E40: =V27*10000/T2 -> 886.5753425 | F40: 2.284931507 | G40: =W27*10000/T2 -> 761.6438356 | H40: =I40*Q40/10000 -> 0.3534246575 | I40: =AA27*10000/T2 -> 117.8082192 | J40: 1.956164384 | K40: =X27*10000/T2 -> 652.0547945 | L40: 1.54 | M40: 550 | N40: —— | O40: —— | P40: 月天数 | Q40: 30
B41: 新疆万源 | D41: 3.016438356 | E41: =V28*10000/T2 -> 1005.479452 | F41: 3.016438356 | G41: =W28*10000/T2 -> 1005.479452 | I41: —— | J41: 4.74 | K41: =X28*10000/T2 -> 1580 | L41: —— | M41: —— | N41: —— | O41: —— | P41: 月天数 | Q41: 30
A42: 安徽 昊源化工 | B42: 合计 | D42: 19.82136986 | E42: =V16*10000/T2 -> 6607.123288 | F42: 12.11917808 | G42: =W16*10000/T2 -> 4039.726027 | H42: 7.266575342 | I42: =AA16*10000/T2 -> 2422.191781 | J42: 12.45205479 | K42: =X16*10000/T2 -> 4150.684932 | L42: 4.61 | M42: 1647 | N42: 0 | O42: 0 | P42: 月天数 | Q42: 30
B43: 昊源本部 | D43: 19.82136986 | E43: =V16*10000/T2 -> 6607.123288 | F43: 12.11917808 | G43: =W16*10000/T2 -> 4039.726027 | H43: 7.266575342 | I43: =AA16*10000/T2 -> 2422.191781 | J43: 12.45205479 | K43: =X16*10000/T2 -> 4150.684932 | L43: 4.61 | M43: 1647 | N43: —— | O43: —— | P43: 月天数 | Q43: 30
B44: 新天化 | D44: 0 | E44: 0 | F44: 0 | G44: 0 | H44: 0 | I44: 0 | K44: —— | L44: 0 | M44: 0 | N44: 0 | O44: 0 | P44: 月天数 | Q44: 30
A45: 湖北 三宁化工 | B45: 合计 | D45: 15.44038356 | E45: =V18*10000/T2 -> 5146.794521 | F45: 10.81726027 | G45: =W18*10000/T2 -> 3605.753425 | H45: 1.626164384 | I45: =AA18*10000/T2 -> 542.0547945 | J45: 9.591780822 | K45: =X18*10000/T2 -> 3197.260274 | L45: 6.91 | M45: 2468 | N45: 18.9428 | O45: 6532 | P45: 月天数 | Q45: 30
B46: 三宁本部 | D46: 15.44038356 | E46: =V18*10000/T2 -> 5146.794521 | F46: 8.119354839 | G46: 2706.451613 | H46: 1.626164384 | I46: =AA18*10000/T2 -> 542.0547945 | J46: 9.591780822 | K46: =X18*10000/T2 -> 3197.260274 | L46: 6.91 | M46: 2468 | N46: 16.82 | O46: 5800 | P46: 月天数 | Q46: 30
B47: 宜昌田田 | D47: 0 | E47: 0 | F47: 0 | G47: 0 | H47: 0 | I47: 0 | K47: —— | L47: —— | M47: —— | N47: 0 | O47: 0 | P47: 月天数 | Q47: 30
B48: 宜昌富升 | E48: —— | G48: —— | I48: —— | K48: —— | L48: —— | M48: —— | N48: 2.1228 | O48: 732 | P48: 月天数 | Q48: 30
A49: 山东晋煤日月 | D49: 2.95890411 | E49: =V17*10000/T2 -> 986.3013699 | F49: 1.643835616 | G49: =W17*10000/T2 -> 547.9452055 | H49: 0.9863013699 | I49: =AA17*10000/T2 -> 328.7671233 | J49: 0.2465753425 | K49: =X17*10000/T2 -> 82.19178082 | L49: 1.19 | M49: 425 | N49: 0.3929032258 | O49: 135.483871 | P49: 月天数 | Q49: 30
A50: 江苏双多化工 | D50: 0 | E50: 0 | F50: 0 | G50: 0 | H50: 0 | I50: 0 | J50: 0 | K50: 0 | L50: —— | M50: —— | N50: —— | O50: —— | P50: 月天数 | Q50: 30
A51: 浙江晋巨化工 | D51: 0 | F51: 0 | H51: 0 | J51: 0 | N51: 0 | P51: 月天数 | Q51: 30
A52: 唐山晋银化工 | D52: 2.434520548 | E52: =V20*10000/T2 -> 811.5068493 | F52: 2.260273973 | G52: =W20*10000/T2 -> 753.4246575 | H52: 0.1643835616 | I52: =AA20*10000/T2 -> 54.79452055 | J52: 3.698630137 | K52: =X20*10000/T2 -> 1232.876712 | L52: —— | M52: —— | N52: —— | O52: —— | P52: 月天数 | Q52: 30
A53: 山西金象化工 | D53: 2.796164384 | E53: =V9*10000/T2 -> 932.0547945 | F53: 2.37369863 | G53: =W9*10000/T2 -> 791.2328767 | H53: 0.398630137 | I53: =AA9*10000/T2 -> 132.8767123 | J53: 3.324657534 | K53: =X9*10000/T2 -> 1108.219178 | L53: —— | M53: —— | N53: —— | O53: —— | P53: 月天数 | Q53: 30
A54: 山西晋煤天源 | D54: 4.144109589 | E54: =V10*10000/T2 -> 1381.369863 | F54: 3.344383562 | G54: =W10*10000/T2 -> 1114.794521 | H54: 0.7549315068 | I54: =AA10*10000/T2 -> 251.6438356 | J54: 5.436986301 | K54: =X10*10000/T2 -> 1812.328767 | L54: 1446 | M54: 52 | N54: —— | O54: —— | P54: 月天数 | Q54: 30
A55: 河南晋煤天庆 | D55: 6.575342466 | E55: =V11*10000/T2 -> 2191.780822 | F55: 2.465753425 | G55: =W11*10000/T2 -> 821.9178082 | I55: —— | J55: 4.273972603 | K55: =X11*10000/T2 -> 1424.657534 | L55: —— | M55: —— | N55: —— | O55: —— | P55: 月天数 | Q55: 30
A56: 晋煤天溪煤制油 | D56: 2.787945205 | E56: =V21*10000/T2 -> 929.3150685 | F56: —— | G56: —— | H56: 2.630136986 | I56: =AA21*10000/T2 -> 876.7123288 | J56: 天溪（油品） | K56: 0 | L56: —— | M56: 石油（油品） | N56: 3.0885 | O56: 1065 | P56: 月天数 | Q56: 30
A57: 晋煤华昱 | D57: 9.583561644 | E57: =V22*10000/T2 -> 3194.520548 | H57: 9.04109589 | I57: =AA22*10000/T2 -> 3013.69863 | P57: 月天数 | Q57: 30
C62: 总氨 | E62: 合成氨 | G62: 甲醇 | I62: 尿素
A63: 总计 | C63: =D5*10000 -> 1386312.329 | D63: =E5 -> 46210.41096 | E63: =F5*10000 -> 888230.137 | F63: =G5 -> 29607.67123 | G63: =H5*10000 -> 391544.9425 | H63: =I5 -> 13051.49808 | I63: =J5*10000 -> 940980.8219 | J63: =K5 -> 31366.0274 | P63: 总氨 | R63: 合成氨 | T63: 甲醇 | V63: 尿素 | Y63: 精细 | AA63: 其他
A64: 小计 | C64: =D6*10000 -> 142894.5205 | D64: =E6 -> 4763.150685 | E64: =F6*10000 -> 103268.0548 | F64: =G6 -> 3442.268493 | G64: =H6*10000 -> 29975.07945 | H64: =I6 -> 999.1693151 | I64: =J6*10000 -> 51706.84932 | J64: =K6 -> 1723.561644
A65: 晋煤金石化工 | B65: 藁城 | C65: =D7*10000 -> 37323.28767 | D65: =E7 -> 1244.109589 | E65: =F7*10000 -> 17252.05479 | F65: =G7 -> 575.0684932 | G65: =H7*10000 -> 11515.06849 | H65: =I7 -> 383.8356164 | O65: 总计 | P65: =D5*10000 -> 1386312.329 | R65: =F5*10000 -> 888230.137 | T65: 391544.9425 | V65: 940980.8219 | Y65: =L5*10000 -> 231750 | AA65: =N5*10000 -> 201150
B66: 金万泰 | C66: =D8*10000 -> 0 | D66: =E8 -> 0 | E66: =F8*10000 -> 0 | F66: =G8 -> 0 | G66: =H8*10000 -> 0 | H66: =I8 -> 0 | I66: =J8*10000 -> 0 | J66: =K8 -> 0 | O66: 金石公司 | P66: =D6*10000 -> 142894.5205 | R66: 103268.0548 | T66: 29975.07945 | V66: 51706.84932 | X66: 金石公司 | Y66: =L6*10000 -> 41000 | AA66: =N6*10000 -> 57953.22581
B67: 华强 | C67: =D12*10000 -> 41736.9863 | D67: =E12 -> 1391.232877 | E67: =F12*10000 -> 33895.89041 | F67: =G12 -> 1129.863014 | G67: =H12*10000 -> 7397.260274 | H67: =I12 -> 246.5753425 | I67: =J12*10000 -> 11432.87671 | J67: =K12 -> 381.0958904 | O67: 晋丰公司 | P67: =D17*10000 -> 50843.83562 | R67: =F17*10000 -> 43421.91781 | T67: =H17*10000 -> 7010.958904 | V67: =J17*10000 -> 64380.82192 | X67: 晋开公司 | Y67: =L20*10000 -> 0 | AA67: =N20*10000 -> 7483.870968
B68: 金华润 | C68: =D13*10000 -> 47334.24658 | D68: =E13 -> 1577.808219 | E68: =F13*10000 -> 36821.91781 | F68: =G13 -> 1227.39726 | G68: =H13*10000 -> 9920.547945 | H68: =I13 -> 330.6849315 | I68: =J13*10000 -> 40273.9726 | J68: =K13 -> 1342.465753 | O68: 晋开公司 | P68: =D20*10000 -> 102739.726 | R68: =F20*10000 -> 102739.726 | T68: =H20*10000 -> 0 | V68: =J20*10000 -> 90410.9589 | X68: 恒盛公司 | Y68: =L27*10000 -> 0 | AA68: =N27*10000 -> 0
B69: 金牛 | C69: =D15*10000 -> 16504.10959 | D69: =E15 -> 550.1369863 | E69: =F15*10000 -> 15295.89041 | F69: =G15 -> 509.8630137 | G69: =H15*10000 -> 1142.465753 | H69: =I15 -> 38.08219178 | O69: 恒盛公司 | P69: =D27*10000 -> 30468.49315 | R69: =F27*10000 -> 25676.71233 | T69: =H27*10000 -> 4520.547945 | V69: =J27*10000 -> 29589.0411 | X69: 联盟化工 | Y69: =L31*10000 -> 0
A70: 小计 | C70: =D17*10000 -> 50843.83562 | D70: =E17 -> 1694.794521 | E70: =F17*10000 -> 43421.91781 | F70: =G17 -> 1447.39726 | G70: =H17*10000 -> 7010.958904 | H70: =I17 -> 233.6986301 | I70: =J17*10000 -> 64380.82192 | J70: =K17 -> 2146.027397 | O70: 联盟化工 | P70: =D31*10000 -> 121652.0548 | R70: =F31*10000 -> 99435.61644 | T70: =H31*10000 -> 20958.90411 | V70: =J31*10000 -> 120702.7397 | X70: 明水公司 | Y70: =L34*10000 -> 0 | AA70: =N34*10000 -> 0
A71: 山西晋丰化工 | B71: 高平 | C71: 30813.69863 | D71: 1027.123288 | E71: 26194.52055 | F71: 873.1506849 | G71: =H18*10000 -> 4364.383562 | H71: =I18 -> 145.4794521 | I71: 35087.67123 | J71: 1169.589041 | O71: 明水公司 | P71: =D34*10000 -> 129863.0137 | R71: =F34*10000 -> 65753.42466 | T71: =H34*10000 -> 58191.78082 | V71: =J34*10000 -> 90410.9589 | X71: 中能公司 | Y71: =L38*10000 -> 46800 | AA71: =N38*10000 -> 0
B72: 闻喜 | C72: 20030.13699 | D72: 667.6712329 | E72: 17227.39726 | F72: 574.2465753 | G72: =H19*10000 -> 2646.575342 | H72: =I19 -> 88.21917808 | I72: 29293.15068 | J72: 976.4383562 | O72: 中能公司 | P72: =D38*10000 -> 142426.0274 | R72: =F38*10000 -> 97693.15068 | T72: =H38*10000 -> 42205.47945 | V72: =J38*10000 -> 103532.8767 | X72: 昊源公司 | Y72: =L42*10000 -> 46100 | AA72: =N42*10000 -> 0
A73: 小计 | C73: 102739.726 | D73: 3424.657534 | E73: 102739.726 | F73: 3424.657534 | G73: =H20*10000 -> 0 | H73: =I20 -> 0 | I73: 90410.9589 | J73: 3013.69863 | O73: 昊源公司 | P73: =D42*10000 -> 198213.6986 | R73: =F42*10000 -> 121191.7808 | T73: =H42*10000 -> 72665.75342 | V73: =J42*10000 -> 124520.5479 | X73: 三宁公司 | Y73: =L45*10000 -> 69100 | AA73: =N45*10000 -> 189428
A74: 河南晋开化工 | B74: 一分 | C74: 0 | D74: 0 | E74: 0 | F74: 0 | G74: =H21*10000 -> 0 | H74: =I21 -> 0 | I74: 0 | J74: 0 | O74: 三宁公司 | P74: =D45*10000 -> 154403.8356 | R74: =F45*10000 -> 108172.6027 | T74: =H45*10000 -> 16261.64384 | V74: =J45*10000 -> 95917.80822 | X74: 日月公司 | Y74: =L49*10000 -> 11900 | AA74: =N49*10000 -> 3929.032258
B75: 二分 | C75: 102739.726 | D75: 3424.657534 | E75: 102739.726 | F75: 3424.657534 | I75: 90410.9589 | J75: 3013.69863 | O75: 日月公司 | P75: =D49*10000 -> 29589.0411 | R75: =F49*10000 -> 16438.35616 | T75: =H49*10000 -> 9863.013699 | V75: =J49*10000 -> 2465.753425 | X75: 天溪公司
B76: 延化 | C76: =D25*10000 -> 0 | D76: =E25 -> 0 | E76: =F25*10000 -> 0 | F76: =G25 -> 0 | G76: =H25*10000 -> 0 | H76: =I25 -> 0 | I76: =J25*10000 -> 0 | J76: =K25 -> 0 | O76: 天溪公司 | P76: =D56*10000 -> 27879.45205 | T76: =H56*10000 -> 26301.36986 | X76: 双多公司
B77: 太康 | O77: 双多公司 | P77: =D50*10000 -> 0 | R77: =F50*10000 -> 0 | T77: =H50*10000 -> 0 | V77: =J50*10000 -> 0
B78: 郸城 | C78: =D24*10000 -> 0 | D78: =E24 -> 0 | E78: =F24*10000 -> 0 | F78: =G24 -> 0 | G78: =H24*10000 -> 0 | H78: =I24 -> 0 | I78: =J24*10000 -> 0 | J78: =K24 -> 0 | O78: 晋银公司 | P78: =D52*10000 -> 24345.20548 | R78: =F52*10000 -> 22602.73973 | T78: =H52*10000 -> 1643.835616 | V78: =J52*10000 -> 36986.30137
B79: 武陟 | C79: =D23*10000 -> 0 | D79: =E23 -> 0 | E79: =F23*10000 -> 0 | F79: =G23 -> 0 | G79: =H23*10000 -> 0 | H79: =I23 -> 0 | J79: =K23 -> 0 | O79: 金象公司 | P79: =D53*10000 -> 27961.64384 | R79: =F53*10000 -> 23736.9863 | T79: =H53*10000 -> 3986.30137 | V79: =J53*10000 -> 33246.57534
A80: 小计 | C80: =D27*10000 -> 30468.49315 | D80: =E27 -> 1015.616438 | E80: =F27*10000 -> 25676.71233 | F80: =G27 -> 855.890411 | G80: =H27*10000 -> 4520.547945 | H80: =I27 -> 150.6849315 | I80: =J27*10000 -> 29589.0411 | J80: =K27 -> 986.3013699 | O80: 山西天源 | P80: =D54*10000 -> 41441.09589 | R80: =F54*10000 -> 33443.83562 | T80: =H54*10000 -> 7549.315068 | V80: =J54*10000 -> 54369.86301
A81: 江苏晋煤恒盛 | B81: 本部 | C81: =D28*10000 -> 30468.49315 | D81: =E28 -> 1015.616438 | E81: =F28*10000 -> 25676.71233 | F81: =G28 -> 855.890411 | G81: =H28*10000 -> 4520.547945 | H81: =I28 -> 150.6849315 | I81: =J28*10000 -> 29589.0411 | J81: =K28 -> 986.3013699 | O81: 晋煤天庆 | P81: =D55*10000 -> 65753.42466 | R81: =F55*10000 -> 24657.53425 | V81: =J55*10000 -> 42739.72603
B82: 恒鑫 | D82: =E29 -> 0 | O82: 华昱公司 | P82: =D57*10000 -> 95835.61644 | T82: =H57*10000 -> 90410.9589
A83: 小计 | C83: =D31*10000 -> 121652.0548 | D83: =E31 -> 4055.068493 | E83: =F31*10000 -> 99435.61644 | F83: =G31 -> 3314.520548 | G83: =H31*10000 -> 20958.90411 | H83: =I31 -> 698.630137 | I83: =J31*10000 -> 120702.7397 | J83: =K31 -> 4023.424658
A84: 联盟化工 | B84: 一厂 | C84: 60826.0274 | D84: 2027.534247 | E84: 49717.80822 | F84: 1657.260274 | G84: 10479.45205 | H84: 349.3150685 | I84: 60353.42466 | J84: 2011.780822
B85: 二厂 | C85: 60826.0274 | D85: 2027.534247 | E85: 49717.80822 | F85: 1657.260274 | G85: 10479.45205 | H85: 349.3150685 | I85: 60353.42466 | J85: 2011.780822
A86: 小计 | C86: 129863.0137 | D86: 4328.767123 | E86: 65753.42466 | F86: 2191.780822 | G86: 58191.78082 | H86: 1939.726027 | I86: 90410.9589 | J86: 3013.69863
A87: 山东晋煤明水 | B87: 本部 | C87: 129863.0137 | D87: 4328.767123 | E87: 65753.42466 | F87: 2191.780822 | G87: 58191.78082 | H87: 1939.726027 | I87: 90410.9589 | J87: 3013.69863
B88: 明升达 | C88: 0 | D88: 0 | E88: 0 | F88: 0 | G88: 0 | H88: 0 | I88: 0 | J88: 0
B89: 明泉科技
B90: 鲁发
B91: 滕州
A92: 小计 | C92: =D49*10000 -> 29589.0411 | D92: =E49 -> 986.3013699 | E92: =F49*10000 -> 16438.35616 | F92: =G49 -> 547.9452055 | G92: =H49*10000 -> 9863.013699 | H92: =I49 -> 328.7671233 | I92: =J49*10000 -> 2465.753425 | J92: =K49 -> 82.19178082
A93: 山东晋煤日月 | B93: 本部 | C93: =D50*10000 -> 0 | D93: =D92 -> 986.3013699 | E93: =F50*10000 -> 0 | F93: 547.9452055 | G93: =H50*10000 -> 0 | H93: 328.7671233 | I93: 2465.753425 | J93: 82.19178082
B94: 同辉
A95: 小计 | C95: =D38*10000 -> 142426.0274 | D95: =E38 -> 4747.534247 | E95: =F38*10000 -> 97693.15068 | F95: =G38 -> 3256.438356 | G95: =H38*10000 -> 42205.47945 | H95: =I38 -> 1406.849315 | I95: =J38*10000 -> 103532.8767 | J95: =K38 -> 3451.09589
A96: 安徽晋煤中能 | B96: 本部 | C96: 85668.49315 | D96: 2855.616438 | E96: 44679.45205 | F96: 1489.315068 | G96: =H39*10000 -> 38671.23288 | H96: =I39 -> 1289.041096 | I96: 36575.34247 | J96: 1219.178082
B97: 泉盛 | C97: 26597.26027 | D97: 886.5753425 | E97: 22849.31507 | F97: 761.6438356 | G97: =H40*10000 -> 3534.246575 | H97: =I40 -> 117.8082192 | I97: 19561.64384 | J97: 652.0547945
B98: 万源 | C98: 30164.38356 | D98: 1005.479452 | E98: 30164.38356 | F98: 1005.479452 | I98: 47400 | J98: 1580
A99: 小计 | C99: 198213.6986 | D99: 6607.123288 | E99: 121191.7808 | F99: 4039.726027 | G99: =H42*10000 -> 72665.75342 | H99: =I42 -> 2422.191781 | I99: 124520.5479 | J99: 4150.684932
A100: 安徽昊源化工 | B100: 本部 | C100: 198213.6986 | D100: 6607.123288 | E100: 121191.7808 | F100: 4039.726027 | G100: =H43*10000 -> 72665.75342 | H100: =I43 -> 2422.191781 | I100: 124520.5479 | J100: 4150.684932
B101: 界首
B102: 新天
B103: 绍兴
A104: 小计 | C104: =D45*10000 -> 154403.8356 | D104: =E45 -> 5146.794521 | E104: =F45*10000 -> 108172.6027 | F104: =G45 -> 3605.753425 | G104: =H45*10000 -> 16261.64384 | H104: =I45 -> 542.0547945 | I104: =J45*10000 -> 95917.80822 | J104: =K45 -> 3197.260274
A105: 湖北三宁化工 | B105: 本部 | C105: =D46*10000 -> 154403.8356 | D105: =E46 -> 5146.794521 | E105: =F46*10000 -> 81193.54839 | F105: =G46 -> 2706.451613 | G105: =H46*10000 -> 16261.64384 | H105: =I46 -> 542.0547945 | I105: =J46*10000 -> 95917.80822 | J105: =K46 -> 3197.260274
B106: 田田 | C106: =D47*10000 -> 0 | D106: =E47 -> 0 | E106: =F47*10000 -> 0 | F106: =G47 -> 0 | G106: =H47*10000 -> 0 | H106: =I47 -> 0
A107: 江苏双多化工 | C107: =D50*10000 -> 0 | D107: =E50 -> 0 | E107: =F50*10000 -> 0 | F107: =G50 -> 0 | G107: =H50*10000 -> 0 | H107: =I50 -> 0 | I107: =J50*10000 -> 0 | J107: =K50 -> 0
A108: 唐山晋银化工 | C108: =D52*10000 -> 24345.20548 | D108: =E52 -> 811.5068493 | E108: =F52*10000 -> 22602.73973 | F108: =G52 -> 753.4246575 | G108: =H52*10000 -> 1643.835616 | H108: =I52 -> 54.79452055 | I108: =J52*10000 -> 36986.30137 | J108: =K52 -> 1232.876712
A109: 山西金象化工 | C109: =D53*10000 -> 27961.64384 | D109: =E53 -> 932.0547945 | E109: =F53*10000 -> 23736.9863 | F109: =G53 -> 791.2328767 | G109: =H53*10000 -> 3986.30137 | H109: =I53 -> 132.8767123 | I109: =J53*10000 -> 33246.57534 | J109: =K53 -> 1108.219178
A110: 山西晋煤天源 | C110: =D54*10000 -> 41441.09589 | D110: =E54 -> 1381.369863 | E110: =F54*10000 -> 33443.83562 | F110: =G54 -> 1114.794521 | G110: =H54*10000 -> 7549.315068 | H110: =I54 -> 251.6438356 | I110: =J54*10000 -> 54369.86301 | J110: =K54 -> 1812.328767
A111: 晋煤天溪煤制油 | C111: =D56*10000 -> 27879.45205 | D111: =E56 -> 929.3150685 | G111: =H56*10000 -> 26301.36986 | H111: =I56 -> 876.7123288 | J111: =K56 -> 0
A112: 晋煤天庆 | C112: =D55*10000 -> 65753.42466 | D112: =E55 -> 2191.780822 | E112: =F55*10000 -> 24657.53425 | F112: =G55 -> 821.9178082 | I112: =J55*10000 -> 42739.72603 | J112: =K55 -> 1424.657534
A113: 晋煤华昱 | C113: =D57*10000 -> 95835.61644 | D113: =E57 -> 3194.520548 | G113: =H57*10000 -> 90410.9589 | H113: =I57 -> 3013.69863

Sheet 分月生产计划
A1: 发展规划处提供各化工公司每月生产计划
B2: 总氨分月生产计划
B3: 年度计划 | C3: 1月 | D3: 2月 | E3: 3月 | F3: 4月 | G3: 5月 | H3: 6月 | I3: 7月 | J3: 8月 | K3: 9月 | L3: 10月 | M3: 11月 | N3: 12月 | O3: 年累计计划
A4: 金石公司 | C4: 147657.6712 | D4: 133368.2192 | E4: 147657.6712 | F4: 142894.5205 | O4: =SUM(C4:N4) -> 571578.0822
A5: 晋丰公司 | C5: 52538.63014 | D5: 47454.24658 | E5: 52538.63014 | F5: 50843.83562 | O5: =SUM(C5:N5) -> 203375.3425
A6: 晋开公司 | C6: 106164.3836 | D6: 95890.41096 | E6: 106164.3836 | F6: 102739.726 | O6: 410958.9041
A7: 恒盛公司 | C7: 31484.10959 | D7: 28437.26027 | E7: 31484.10959 | F7: 30468.49315 | O7: 121873.9726
A8: 联盟化工 | C8: 125707.1233 | D8: 113541.9178 | E8: 125707.1233 | F8: 121652.0548 | O8: 486608.2192
A9: 明水公司 | C9: 134191.7808 | D9: 121205.4795 | E9: 134191.7808 | F9: 129863.0137 | O9: 519452.0548
A10: 中能公司 | C10: 147173.5616 | D10: 132930.9589 | E10: 147173.5616 | F10: 142426.0274 | O10: 569704.1096
A11: 昊源公司 | C11: 204820.8219 | D11: 184999.4521 | E11: 204820.8219 | F11: 198213.6986 | O11: 792854.7945
A12: 三宁公司 | C12: 159550.6301 | D12: 144110.2466 | E12: 159550.6301 | F12: 154403.8356 | O12: 617615.3425
A13: 日月公司 | C13: 30575.34247 | D13: 27616.43836 | E13: 30575.34247 | F13: 29589.0411 | O13: 118356.1644
A14: 天溪公司 | C14: 28808.76712 | D14: 26020.82192 | E14: 28808.76712 | F14: 27879.45205 | O14: 111517.8082
A15: 双多公司 | C15: 0 | D15: 0 | E15: 0 | F15: 0 | O15: 0
A16: 晋银公司 | C16: 25156.71233 | D16: 22722.19178 | E16: 25156.71233 | F16: 24345.20548 | O16: 97380.82192
A17: 金象公司 | C17: 28893.69863 | D17: 26097.53425 | E17: 28893.69863 | F17: 27961.64384 | O17: 111846.5753
A18: 山西天源 | C18: 42822.46575 | D18: 38678.35616 | E18: 42822.46575 | F18: 41441.09589 | O18: 165764.3836
A19: 晋煤天庆 | C19: 67945.20548 | D19: 61369.86301 | E19: 67945.20548 | F19: 65753.42466 | O19: 263013.6986
A20: 晋煤华昱 | C20: 99030.13699 | D20: 89446.57534 | E20: 99030.13699 | F20: 95835.61644 | O20: 383342.4658
B21: 合成氨分月生产计划
B22: 年度计划 | C22: 1月 | D22: 2月 | E22: 3月 | F22: 4月 | G22: 5月 | H22: 6月 | I22: 7月 | J22: 8月 | K22: 9月 | L22: 10月 | M22: 11月 | N22: 12月 | O22: 年累计计划
A23: 金石公司 | C23: 106710.3233 | D23: 96383.51781 | E23: 106710.3233 | F23: 103268.0548 | O23: =SUM(C23:N23) -> 413072.2192
A24: 晋丰公司 | C24: 44869.31507 | D24: 40527.12329 | E24: 44869.31507 | F24: 43421.91781 | O24: =SUM(C24:N24) -> 173687.6712
A25: 晋开公司 | C25: 106164.3836 | D25: 95890.41096 | E25: 106164.3836 | F25: 102739.726 | O25: 410958.9041
A26: 恒盛公司 | C26: 26532.60274 | D26: 23964.93151 | E26: 26532.60274 | F26: 25676.71233 | O26: 102706.8493
A27: 联盟化工 | C27: 102750.137 | D27: 92806.57534 | E27: 102750.137 | F27: 99435.61644 | O27: 397742.4658
A28: 明水公司 | C28: 67945.20548 | D28: 61369.86301 | E28: 67945.20548 | F28: 65753.42466 | O28: 263013.6986
A29: 中能公司 | C29: 100949.589 | D29: 91180.27397 | E29: 100949.589 | F29: 97693.15068 | O29: 390772.6027
A30: 昊源公司 | C30: 125231.5068 | D30: 113112.3288 | E30: 125231.5068 | F30: 121191.7808 | O30: 484767.1233
A31: 三宁公司 | C31: 111778.3562 | D31: 100961.0959 | E31: 111778.3562 | F31: 108172.6027 | O31: 432690.411
A32: 日月公司 | C32: 16986.30137 | D32: 15342.46575 | E32: 16986.30137 | F32: 16438.35616 | O32: 65753.42466
A33: 天溪公司 | O33: 0
A34: 双多公司 | C34: 0 | D34: 0 | E34: 0 | F34: 0 | O34: 0
A35: 晋银公司 | C35: 23356.16438 | D35: 21095.89041 | E35: 23356.16438 | F35: 22602.73973 | O35: 90410.9589
A36: 金象公司 | C36: 24528.21918 | D36: 22154.52055 | E36: 24528.21918 | F36: 23736.9863 | O36: 94947.94521
A37: 山西天源 | C37: 34558.63014 | D37: 31214.24658 | E37: 34558.63014 | F37: 33443.83562 | O37: 133775.3425
A38: 晋煤天庆 | C38: 25479.45205 | D38: 23013.69863 | E38: 25479.45205 | F38: 24657.53425 | O38: 98630.13699
A39: 晋煤华昱 | O39: 0
B40: 尿素分月生产计划
B41: 年度计划 | C41: 1月 | D41: 2月 | E41: 3月 | F41: 4月 | G41: 5月 | H41: 6月 | I41: 7月 | J41: 8月 | K41: 9月 | L41: 10月 | M41: 11月 | N41: 12月 | O41: 年累计计划
A42: 金石公司 | C42: 53430.41096 | D42: 48259.72603 | E42: 53430.41096 | F42: 51706.84932 | O42: =SUM(C42:N42) -> 206827.3973
A43: 晋丰公司 | C43: 66526.84932 | D43: 60088.76712 | E43: 66526.84932 | F43: 64380.82192 | O43: =SUM(C43:N43) -> 257523.2877
A44: 晋开公司 | C44: 93424.65753 | D44: 84383.56164 | E44: 93424.65753 | F44: 90410.9589 | O44: 361643.8356
A45: 恒盛公司 | C45: 30575.34247 | D45: 27616.43836 | E45: 30575.34247 | F45: 29589.0411 | O45: 118356.1644
A46: 联盟化工 | C46: 124726.1644 | D46: 112655.8904 | E46: 124726.1644 | F46: 120702.7397 | O46: 482810.9589
A47: 明水公司 | C47: 93424.65753 | D47: 84383.56164 | E47: 93424.65753 | F47: 90410.9589 | O47: 361643.8356
A48: 中能公司 | C48: 106983.9726 | D48: 96630.68493 | E48: 106983.9726 | F48: 103532.8767 | O48: 414131.5068
A49: 昊源公司 | C49: 128671.2329 | D49: 116219.1781 | E49: 128671.2329 | F49: 124520.5479 | O49: 498082.1918
A50: 三宁公司 | C50: 99115.06849 | D50: 89523.28767 | E50: 99115.06849 | F50: 95917.80822 | O50: 383671.2329
A51: 日月公司 | C51: 2547.945205 | D51: 2301.369863 | E51: 2547.945205 | F51: 2465.753425 | O51: 9863.013699
A52: 天溪公司 | O52: 0
A53: 双多公司 | C53: 0 | D53: 0 | E53: 0 | F53: 0 | O53: 0
A54: 晋银公司 | C54: 38219.17808 | D54: 34520.54795 | E54: 38219.17808 | F54: 36986.30137 | O54: 147945.2055
A55: 金象公司 | C55: 34354.79452 | D55: 31030.13699 | E55: 34354.79452 | F55: 33246.57534 | O55: 132986.3014
A56: 山西天源 | C56: 56182.19178 | D56: 50745.20548 | E56: 56182.19178 | F56: 54369.86301 | O56: 217479.4521
A57: 晋煤天庆 | C57: 44164.38356 | D57: 39890.41096 | E57: 44164.38356 | F57: 42739.72603 | O57: 170958.9041
A58: 晋煤华昱 | O58: 0
B59: 甲醇分月生产计划
B60: 年度计划 | C60: 1月 | D60: 2月 | E60: 3月 | F60: 4月 | G60: 5月 | H60: 6月 | I60: 7月 | J60: 8月 | K60: 9月 | L60: 10月 | M60: 11月 | N60: 12月 | O60: 年累计计划
A61: 金石公司 | C61: 30974.24877 | D61: 27976.74082 | E61: 30974.24877 | F61: 29975.07945 | O61: =SUM(C61:N61) -> 119900.3178
A62: 晋丰公司 | C62: 7244.657534 | D62: 6543.561644 | E62: 7244.657534 | F62: 7010.958904 | O62: =SUM(C62:N62) -> 28043.83562
A63: 晋开公司 | C63: 0 | D63: 0 | E63: 0 | F63: 0 | O63: 0
A64: 恒盛公司 | C64: 4671.232877 | D64: 4219.178082 | E64: 4671.232877 | F64: 4520.547945 | O64: 18082.19178
A65: 联盟化工 | C65: 21657.53425 | D65: 19561.64384 | E65: 21657.53425 | F65: 20958.90411 | O65: 83835.61644
A66: 明水公司 | C66: 60131.50685 | D66: 54312.32877 | E66: 60131.50685 | F66: 58191.78082 | O66: 232767.1233
A67: 中能公司 | C67: 43612.32877 | D67: 39391.78082 | E67: 43612.32877 | F67: 42205.47945 | O67: 168821.9178
A68: 昊源公司 | C68: 75087.94521 | D68: 67821.36986 | E68: 75087.94521 | F68: 72665.75342 | O68: 290663.0137
A69: 三宁公司 | C69: 16803.69863 | D69: 15177.53425 | E69: 16803.69863 | F69: 16261.64384 | O69: 65046.57534
A70: 日月公司 | C70: 10191.78082 | D70: 9205.479452 | E70: 10191.78082 | F70: 9863.013699 | O70: 39452.05479
A71: 天溪公司 | C71: 27178.08219 | D71: 24547.94521 | E71: 27178.08219 | F71: 26301.36986 | O71: 105205.4795
A72: 双多公司 | C72: 0 | D72: 0 | E72: 0 | F72: 0 | O72: 0
A73: 晋银公司 | C73: 1698.630137 | D73: 1534.246575 | E73: 1698.630137 | F73: 1643.835616 | O73: 6575.342466
A74: 金象公司 | C74: 4119.178082 | D74: 3720.547945 | E74: 4119.178082 | F74: 3986.30137 | O74: 15945.20548
A75: 山西天源 | C75: 7800.958904 | D75: 7046.027397 | E75: 7800.958904 | F75: 7549.315068 | O75: 30197.26027
A76: 晋煤天庆
A77: 晋煤华昱 | C77: 93424.65753 | D77: 84383.56164 | E77: 93424.65753 | F77: 90410.9589 | O77: =SUM(C77:N77) -> 361643.8356
B78: 其他肥料分月生产计划
B79: 年度计划 | C79: 1月 | D79: 2月 | E79: 3月 | F79: 4月 | G79: 5月 | H79: 6月 | I79: 7月 | J79: 8月 | K79: 9月 | L79: 10月 | M79: 11月 | N79: 12月 | O79: 年累计计划
A80: 金石公司 | C80: 57953.22581 | D80: 57953.22581 | E80: 57953.22581 | F80: 57953.22581 | O80: =SUM(C80:N80) -> 231812.9032
A81: 晋开公司 | C81: 7483.870968 | D81: 7483.870968 | E81: 7483.870968 | F81: 7483.870968 | O81: =SUM(C81:N81) -> 29935.48387
A82: 恒盛公司 | C82: 0 | D82: 0 | E82: 0 | F82: 0 | O82: 0
A83: 联盟化工 | O83: 0
A84: 明水公司 | C84: 0 | D84: 0 | E84: 0 | F84: 0 | O84: 0
A85: 中能公司 | C85: 0 | D85: 0 | E85: 0 | F85: 0 | O85: 0
A86: 昊源公司 | C86: 0 | D86: 0 | E86: 0 | F86: 0 | O86: 0
A87: 三宁公司 | C87: 189428 | D87: 189428 | E87: 189428 | F87: 189428 | O87: 757712
A88: 日月公司 | C88: 3929.032258 | D88: 3929.032258 | E88: 3929.032258 | F88: 3929.032258 | O88: 15716.12903
A89: 天溪公司
A90: 双多公司
A91: 晋银公司
A92: 金象公司
A93: 山西晋丰
B95: 精细化工产品分月生产计划
B96: 年度计划 | C96: 1月 | D96: 2月 | E96: 3月 | F96: 4月 | G96: 5月 | H96: 6月 | I96: 7月 | J96: 8月 | K96: 9月 | L96: 10月 | M96: 11月 | N96: 12月 | O96: 年累计计划
A97: 金石公司 | C97: 25070.96774 | D97: 25070.96774 | E97: 41000 | F97: 41000 | O97: =SUM(C97:N97) -> 132141.9355
A98: 晋开公司 | C98: 0 | D98: 0 | E98: 0 | F98: 0 | O98: =SUM(C98:N98) -> 0
A99: 恒盛公司 | C99: 0 | D99: 0 | E99: 0 | F99: 0 | O99: 0
A100: 联盟化工 | C100: 2712.903226 | D100: 2712.903226 | E100: 0 | F100: 0 | O100: 5425.806452
A101: 明水公司 | C101: 0 | D101: 0 | E101: 0 | F101: 0 | O101: 0
A102: 中能公司 | C102: 45464.51613 | D102: 45464.51613 | E102: 46800 | F102: 46800 | O102: 184529.0323
A103: 昊源公司 | C103: 39664.51613 | D103: 39664.51613 | E103: 46100 | F103: 46100 | O103: 171529.0323
A104: 三宁公司 | C104: 16240 | D104: 16240 | E104: 69100 | F104: 69100 | O104: 170680
A105: 日月公司 | C105: 22264.51613 | D105: 22264.51613 | E105: 11900 | F105: 11900 | O105: 68329.03226
A106: 天溪公司 | O106: 0
A107: 双多公司 | O107: 0
A108: 晋银公司
A109: 金象公司
A110: 山西天源
B112: 石化产品分月生产计划
B113: 年度计划 | C113: 1月 | D113: 2月 | E113: 3月 | F113: 4月 | G113: 5月 | H113: 6月 | I113: 7月 | J113: 8月 | K113: 9月 | L113: 10月 | M113: 11月 | N113: 12月 | O113: 年累计计划
A114: 联盟石油 | C114: 81534 | E114: 33015 | O114: =SUM(B114:N114) -> 114549
B116: 煤基合成油分月生产计划
B117: 年度计划 | C117: 1月 | D117: 2月 | E117: 3月 | F117: 4月 | G117: 5月 | H117: 6月 | I117: 7月 | J117: 8月 | K117: 9月 | L117: 10月 | M117: 11月 | N117: 12月 | O117: 年累计计划
A118: 天溪公司 | O118: =SUM(B118:N118) -> 0
A119: 华昱公司 | O119: 0

Sheet 甲醇库容比
D3: 甲醇
A4: 二级公司 | B4: 三级公司 | D4: 库存量 | E4: 最大储量 | F4: 库容比%
A5: 总计 | D5: =表二!K6 -> 99820.6174 | E5: 251256 | F5: =D5/E5% -> 39.72865022
A6: 河北金石 | B6: 藁城 | C6: 减量生产 | D6: =数据基表!K15 -> 1312 | E6: 8000 | F6: 16.4
B7: 华强 | C7: 正常生产 | D7: =数据基表!K17 -> 639 | E7: 6560 | F7: 9.740853659
B8: 金华润 | C8: 正常生产 | D8: =数据基表!K18 -> 854 | E8: 5000 | F8: 17.08
B9: 金牛 | C9: 正常生产 | D9: =数据基表!K19 -> 28 | E9: 1250 | F9: 2.24
A10: 山西晋丰 | B10: 高平 | C10: 正在开车 | D10: =数据基表!K33+数据基表!K36 -> 1305 | E10: 4825 | F10: 27.04663212
B11: 闻喜 | C11: 正常生产 | D11: =数据基表!K37 -> 0 | E11: 380 | F11: 0
A12: 河南晋开 | B12: 二分公司 | C12: 正常生产
A13: 江苏恒盛 | B13: 本部 | C13: 正常生产 | D13: =数据基表!K73 -> 1538 | E13: 9600 | F13: =D13/E13% -> 16.02083333
A14: 山东联盟 | B14: 联盟 | C14: 正常生产 | D14: =数据基表!K87 -> 2240 | E14: 11000 | F14: 20.36363636
A15: 山东明水 | B15: 本部 | C15: 正常生产 | D15: =数据基表!K118 -> 5525 | E15: 31200 | F15: 17.70833333
B16: 明泉科技 | C16: 正常生产
A17: 山东日月 | B17: 本部 | C17: 减量生产 | D17: =数据基表!K204 -> 569 | E17: 2250 | F17: 25.28888889
A18: 安徽中能 | B18: 本部 | C18: 正常生产 | D18: =数据基表!K141 -> 22071 | E18: 46700 | F18: 47.26124197
B19: 泉盛 | C19: 正常生产
B20: 新疆万源 | C20: 正常生产
A21: 安徽昊源 | B21: 阜阳昊源 | C21: 正常生产 | D21: =数据基表!K164 -> 17264.36 | E21: 38000 | F21: =D21/E21% -> 45.43252632
A22: 湖北三宁 | B22: 本部 | C22: 正常生产 | D22: =数据基表!K185 -> 18835.707 | E22: 12664 | F22: 148.7342625
A23: 唐山晋银 | C23: 正常生产 | D23: =数据填报!BC20 -> 2022 | E23: 3562 | F23: 56.76586188
A24: 山西金象 | C24: 正在开车 | D24: =数据基表!K256 -> 1687 | E24: 5000 | F24: 33.74
A25: 山西天源 | C25: 正常生产 | D25: =数据基表!K270 -> 2371.9504 | E25: 3900 | F25: 60.81924103
A26: 天溪公司 | C26: 正常生产 | D26: =数据基表!F221+数据基表!F222 -> 6305 | E26: 17500 | F26: 36.02857143
A27: 天庆公司 | C27: 正常生产
A28: 华昱公司 | C28: 正常生产 | D28: =数据基表!F295 -> 15223.6 | E28: 63280 | F28: =D28/E28% -> 24.05752212

Sheet 煤炭库存报调度室
A1: 煤化工板块各公司煤炭库存统计表
G2: =表一!N2 -> 2021-04-14
A3: 序 号 | B3: 公司名称 | D3: 原料煤情况 | F3: 燃料煤情况 | G3: 合计
D4: 原料块煤 | E4: 原料末煤 | F4: 燃料末煤 | G4: 库存
B5: 二级公司 | C5: 三级公司 | D5: 库存
B6: 总计 | D6: =D7+D13+D16+D23+D26+D29+D35+D38+D42+D47+D50+D51+D52+D53+D54+D55 -> 267529.197 | E6: =E7+E13+E16+E23+E26+E29+E35+E38+E42+E47+E50+E51+E52+E53+E54+E55+E56 -> 376277.587 | F6: =F7+F13+F16+F23+F26+F29+F35+F38+F42+F47+F50+F51+F52+F53+F54+F55+F56 -> 250250.877 | G6: =D6+E6+F6 -> 894057.661
A7: 1 | B7: 小计 | D7: =SUM(D8:D12) -> 65303 | E7: =SUM(E8:E12) -> 5550 | F7: =SUM(F8:F12) -> 41811 | G7: =SUM(G8:G12) -> 112664
B8: 金石化工 | C8: 藁城 | D8: =数据基表!AH15 -> 14516 | F8: =数据基表!AL15 -> 10811 | G8: 25327
C9: 金万泰 | D9: =数据基表!AH16 -> 0 | F9: =数据基表!AL16 -> 0 | G9: 0
C10: 华强 | D10: =数据基表!AH17 -> 12300 | F10: =数据基表!AL17 -> 31000 | G10: 43300
C11: 金华润 | D11: =数据基表!AH18 -> 33101 | E11: =数据基表!AJ18 -> 0 | F11: =数据基表!AL18 -> 0 | G11: =E11+F11+D11 -> 33101
C12: 金牛 | D12: =数据基表!AH19 -> 5386 | E12: =数据基表!AJ19 -> 5550 | F12: =数据基表!AL19 -> 0 | G12: =D12+E12+F12 -> 10936
A13: 2 | B13: 小计 | D13: =D14+D15 -> 17420 | E13: =E14+E15 -> 0 | F13: =F14+F15 -> 2844 | G13: 20264
B14: 晋丰 化工 | C14: 高平公司 | D14: =数据基表!AH33 -> 11899 | E14: =数据基表!AJ33 -> 0 | F14: =数据基表!AL33 -> 1717 | G14: 13616
C15: 闻喜公司 | D15: =数据基表!AH34 -> 5521 | F15: =数据基表!AL34 -> 1127 | G15: 6648
A16: 3 | B16: 小计 | D16: =D17+D18+D19+D20+D21+D22 -> 4466 | E16: =E17+E18+E19+E20+E21+E22 -> 42761 | F16: =F17+F18+F19+F20+F21+F22 -> 8933 | G16: 56160
B17: 河南晋开化工 | C17: 一分公司 | D17: =数据基表!AH56 -> 2638 | E17: =数据基表!AJ56 -> 5384 | F17: =数据基表!AL56 -> 0 | G17: 8022
C18: 二分公司 | D18: =数据基表!AH57 -> 0 | E18: =数据基表!AJ57 -> 36955 | F18: =数据基表!AL57 -> 5897 | G18: 42852
C19: 延化化工 | D19: =数据基表!AH58 -> 0 | F19: =数据基表!AL58 -> 2505 | G19: 2505
C20: 太康昕洲
C21: 郸城晋鑫 | G21: =D21+E21+F21 -> 0
C22: 武陟绿宇 | D22: =数据基表!AH61 -> 1828 | E22: =数据基表!AJ61 -> 422 | F22: =数据基表!AL61 -> 531 | G22: 2781
A23: 4 | B23: 小计 | D23: =D24 -> 7325 | E23: =E24 -> 123 | F23: =F24 -> 5919 | G23: 13367
B24: 江苏恒盛 | C24: 本部 | D24: =数据基表!AH73 -> 7325 | E24: =数据基表!AJ73 -> 123 | F24: =数据基表!AL73 -> 5919 | G24: 13367
C25: 恒鑫
A26: 5 | B26: 小计 | D26: =数据基表!AH87 -> 39044 | E26: =数据基表!AJ87 -> 15203 | F26: =数据基表!AL87 -> 26057.9 | G26: =D26+E26+F26 -> 80304.9
B27: 山东联盟化工 | C27: 一厂 | D27: =数据基表!AH85 -> 39044 | F27: =数据基表!AL85 -> 10359.9 | G27: =D27+F27 -> 49403.9
C28: 二厂 | E28: =数据基表!AJ86 -> 15203 | G28: =E28 -> 15203
A29: 6 | B29: 小计 | D29: =D30+D31+D32+D33+D34 -> 12482 | E29: =E30+E33 -> 23304.15 | F29: =F30+F31+F32+F33+F34 -> 18088.82 | G29: 53874.97
B30: 山东晋煤明水 | C30: 本部 | D30: =数据基表!D124 -> 12482 | E30: =数据基表!G124 -> 0 | F30: =数据基表!J124 -> 5409 | G30: 17891
C31: 文登 | E31: =数据基表!G125 -> 0 | F31: =数据基表!J125 -> 0
C32: 明升达 | E32: =数据基表!G126 -> 0 | F32: =数据基表!J126 -> 4303.23 | G32: =D32+E32+F32 -> 4303.23
C33: 明泉科技 | E33: =数据基表!G127 -> 23304.15 | F33: =数据基表!J127 -> 8376.59 | G33: =F33+E33 -> 31680.74
C34: 郓城鲁发
A35: 7 | B35: 小计 | D35: =D36 -> 1000 | G35: 1000
B36: 山东晋煤日月 | C36: 本部 | D36: =数据基表!A209 -> 1000 | E36: =数据基表!C209 -> 2550 | F36: =数据基表!D209 -> 2550 | G36: 6100
C37: 日月同辉 | G37: 0
A38: 8 | B38: 小计 | D38: =D39+D40+D41 -> 42283 | E38: =E39+E40+E41 -> 90527 | F38: =SUM(F39:F41) -> 43331 | G38: 176141
B39: 安徽中能 | C39: 本部 | D39: =数据基表!D149 -> 15367 | E39: =数据基表!G149 -> 46290 | F39: =数据基表!J149 -> 36618 | G39: 98275
C40: 泉盛化工 | D40: =数据基表!D150 -> 26916 | E40: =数据基表!G150 -> 7290 | F40: =数据基表!J150 -> 6713 | G40: 40919
C41: 新疆万源 | D41: =数据基表!D151 -> 0 | E41: =数据基表!G151 -> 36947 | G41: 36947
A42: 9 | B42: 小计 | D42: =SUM(D43+D44+D45+D46) -> 23240 | E42: =SUM(E43:E46) -> 70024 | F42: =SUM(F43:F46) -> 15558 | G42: =F42+E42+D42 -> 108822
B43: 安徽昊源 | C43: 阜阳昊源 | D43: =数据基表!C173 -> 23240 | E43: =数据基表!F173+数据基表!F174 -> 31325 | F43: =数据基表!I173 -> 7813 | G43: =F43+E43+D43 -> 62378
C44: 阜南新天 | G44: =E44 -> 0
C45: 界首昊源 | G45: =E45+F45 -> 0
C46: 新材料 | E46: =数据基表!F175 -> 38699 | F46: =数据基表!I175 -> 7745 | G46: =F46+E46 -> 46444
A47: 10 | B47: 小计 | E47: =E48+E49 -> 59860.207 | F47: =F48+F49 -> 49813.827 | G47: =D47+E47+F47 -> 109674.034
B48: 湖北三宁 | C48: 三宁本部 | E48: =表二!R35 -> 59860.207 | F48: =数据基表!J190 -> 49813.827 | G48: 109674.034
C49: 田田化工
A50: 11 | B50: 江苏双多化工
A51: 12 | B51: 唐山晋银化工 | D51: =数据基表!D245 -> 17040 | F51: =数据基表!J245 -> 8486 | G51: 25526
A52: 13 | B52: 山西金象化工 | D52: =煤炭库存统计表!E52 -> 8474.81 | E52: 0 | F52: =数据基表!J260 -> 1692.56 | G52: 10167.37
A53: 14 | B53: 天源公司 | D53: =数据基表!AH270 -> 5331.08 | E53: 0 | F53: =数据基表!AL270 -> 2105.42 | G53: 7436.5
A54: 15 | B54: 天溪煤制油 | E54: =数据基表!G226 -> 9700 | F54: =数据基表!J226 -> 3000 | G54: 12700
A55: 16 | B55: 天庆公司 | D55: =数据基表!AH280 -> 24120.307 | E55: =数据基表!AJ280 -> 0 | F55: =数据基表!AL280 -> 8997.75 | G55: 33118.057
A56: 17 | B56: 华昱公司 | E56: =数据基表!U295 -> 59225.23 | F56: =数据基表!S295 -> 13612.6 | G56: 72837.83

Sheet Sheet1
B1: 当日计划 | C1: 当日产量 | E1: 年度累计 | H1: 今日年累计 | I1: 序时计划产量 | J1: 序时计划比 | R1: 当日销量 | S1: 月累销量 | T1: 年累销量 | U1: 当日价格 | V1: 当日库存 | W1: 库存增减
A2: 总氨产量 | B2: 46210 | C2: =数据填报!BQ55 -> 45947.02444 | E2: 5192960.59 | H2: =C2+E2 -> 5238907.615 | I2: =46210*(数据填报!BD2+5) -> 5036890 | J2: =H2/I2 -> 1.040107609 | Q2: 尿素产品 | R2: =表二!B6 -> 30037.049 | S2: =表二!C6 -> 435228.9936 | T2: =表二!D6 -> 3062583.176 | U2: =表二!E6 -> 2084.291735 | V2: =表二!F6 -> 142654.183 | W2: =数据填报!CE52 -> -250.095
A3: 尿素产量 | B3: 31366 | C3: =数据填报!BQ57 -> 29786.814 | E3: 3349005.669 | H3: =E3+C3 -> 3378792.483 | I3: =B3*(数据填报!BD2+5) -> 3418894 | J3: 0.988270617 | Q3: 甲醇产品 | R3: =表二!G6 -> 10257.99 | S3: =表二!H6 -> 121206.77 | T3: =表二!I6 -> 1170667.26 | U3: =表二!J6 -> 2258.933671 | V3: =表二!K6 -> 99820.6174 | W3: =数据填报!CE53 -> -1928.7769
A4: 甲醇产量 | B4: 13051 | C4: =数据填报!BQ60 -> 10199.606 | E4: 1514153.307 | H4: =E4+C4 -> 1524352.913 | I4: =B4*(数据填报!BD2+5) -> 1422559 | J4: 1.071556901 | Q4: 复合肥料 | R4: =表二!F26 -> 7521.87 | S4: =表二!G26 -> 34758.36 | T4: =表二!H26 -> 270071.71
A5: 合成氨产量 | B5: 29608 | C5: =数据填报!BQ56 -> 32423.0473 | E5: 3342683.698 | H5: =E5+C5 -> 3375106.745 | I5: =B5*(数据填报!BD2+5) -> 3227272 | J5: 1.04580796
A6: 复合肥料产量 | B6: 6705 | C6: =数据填报!BQ63 -> 8929.87 | E6: 729152.81 | H6: =E6+C6 -> 738082.68 | I6: =B6*(数据填报!BD2+5) -> 730845 | J6: 1.009903167 | R6: 晋城地区 | S6: 河北地区 | T6: 河南地区 | U6: 华东地区 | V6: 山东地区 | W6: 安徽地区 | X6: 湖北地区
A7: 精细化工产量 | B7: 7725 | C7: =数据填报!BQ71 -> 4819.48 | E7: 676645.61 | H7: =E7+C7 -> 681465.09 | I7: =B7*(数据填报!BD2+5) -> 842025 | J7: 0.8093169324 | Q7: 尿素产品 | R7: =R16/R15 -> 2007.555314 | S7: =(S12+S13)/(表二!B7+表二!B19) -> 2091.405805 | T7: =(T12+T13)/(表二!B9+表二!B22) -> 2058.629817 | U7: =表二!E10 -> 0 | V7: =(V12+V13)/(表二!B12+表二!B11) -> 2105.021993 | W7: =(W12+W13)/(表二!B13+表二!B14) -> 2172.01039 | X7: =表二!E15 -> 2091.064
Q8: 甲醇产品 | R8: =(R18+R19+R20+R21+R22)/(表二!G8+表二!G17+表二!G20+表二!G21+表二!G23) -> 2148.277982 | S8: =(S15+S16)/(表二!G7+表二!G19) -> 2234.446903 | U8: =表二!J10 -> 2350 | V8: =(V15+V16+V17)/(表二!G11+表二!G12+表二!G16) -> 2293.95824 | W8: =(W15+W16)/(表二!G13+表二!G14) -> 2302.390563 | X8: =表二!J15 -> 2360
Q9: 液氨 | R9: =(R25+R26+R27)/(表二!B28+表二!B40+表二!B41) -> 3250 | S9: =(S18+S19)/(表二!B27+表二!B39) -> 3508.652654 | T9: =(T18+T19)/(表二!B29+表二!B42) -> 3434.854967 | U9: =表二!E30 -> 3530 | V9: =(V19+V20+V21)/(表二!B31+表二!B32+表二!B36) -> 3512.286528 | W9: =(W18+W19)/(表二!B33+表二!B34) -> 3497.421565 | X9: =表二!E35 -> 3600
B12: 吨氨耗原料煤 | E12: 吨氨耗电 | I12: 吨尿素耗蒸汽 | M12: 吨尿素耗电 | R12: =表二!E8*表二!B8 -> 6071980 | S12: =表二!E7*表二!B7 -> 1777528.84 | T12: =表二!E9*表二!B9 -> 3435600 | V12: =表二!E11*表二!B11 -> 8775162 | W12: =表二!E13*表二!B13 -> 4543136
B13: 当日 | C13: 月累 | D13: 年累 | E13: 当日 | F13: 月累 | G13: 年累 | H13: 当日 | J13: 月累 | K13: 年累 | L13: 当日 | N13: 月累 | O13: 年累 | R13: =表二!E20*表二!B20 -> 2997680 | S13: =表二!E19*表二!B19 -> 4372160 | T13: =表二!E22*表二!B22 -> 4168715.04 | V13: =表二!E12*表二!B12 -> 8549169 | W13: =表二!E14*表二!B14 -> 6611701.2
A14: 金石 | B14: 1138 | C14: 1144 | D14: 1183 | E14: 1042 | F14: 1053 | G14: 1149 | H14: 894 | J14: 882 | K14: 975 | L14: 163 | N14: 157 | O14: 164 | R14: =表二!E21*表二!B21 -> 5720000
A15: 晋丰 | B15: 1274 | C15: 1168 | D15: 1170 | E15: 1388 | F15: 1448 | G15: 1469 | H15: 967 | J15: 972 | K15: 982 | L15: 163 | N15: 178 | O15: 165 | R15: =表二!B8+表二!B20+表二!B21 -> 7367 | S15: =表二!J7*表二!G7 -> 1009970 | V15: =表二!J12*表二!G12 -> 3632289.65 | W15: =表二!J13*表二!G13 -> 3691906
A16: 晋开 | B16: 1360 | C16: 1364 | D16: 1365 | E16: 182 | F16: 182 | G16: 184 | H16: 1064 | J16: 1012 | K16: 1031 | L16: 158 | N16: 142 | O16: 139 | R16: =R12+R13+R14 -> 14789660 | S16: =表二!J19*表二!G19 -> 0 | V16: =表二!J11*表二!G11 -> 1992197.74 | W16: =表二!J14*表二!G14 -> 5559790
A17: 恒盛 | B17: 1068 | C17: 1106 | D17: 1110 | E17: 1238 | F17: 1234 | G17: 1240 | H17: 1089 | J17: 1089 | K17: 1090 | L17: 130 | N17: 131 | O17: 144 | V17: =表二!J16*表二!G16 -> 0
A18: 联盟 | B18: 1224 | C18: 1217 | D18: 1210 | E18: 812 | F18: 804 | G18: 795 | H18: 924 | J18: 921 | K18: 934 | L18: 100 | N18: 99 | O18: 101 | R18: =表二!J8*表二!G8 -> 930680 | S18: =表二!E27*表二!B27 -> 7872749.2 | T18: =表二!E29*表二!B29 -> 4996900.86 | W18: =表二!E33*表二!B33 -> 2604186
A19: 明水 | B19: 1272 | C19: 1298 | D19: 1293 | E19: 344 | F19: 354 | G19: 364 | J19: 1056 | K19: 1077 | N19: 73 | O19: 73 | R19: =表二!J20*表二!G20 -> 69960 | S19: =表二!E39*表二!B39 -> 537000 | T19: =表二!E42*表二!B42 -> 211988 | V19: =表二!E31*表二!B31 -> 3932501 | W19: =表二!E34*表二!B34 -> 6768624
A20: 中能 | B20: 1137 | C20: 1110 | D20: 1111 | E20: 1267 | F20: 1175 | G20: 1155 | H20: 980 | J20: 1023 | K20: 1054 | L20: 147 | N20: 146 | O20: 145 | R20: =表二!J21*表二!G21 -> 1335472.8 | V20: =表二!E32*表二!B32 -> 2172705
A21: 昊源 | B21: 1199 | C21: 1196 | D21: 1204 | E21: 923 | F21: 913 | G21: 932 | H21: 977 | J21: 1627 | K21: 996 | L21: 155 | N21: 155 | O21: 155 | R21: =表二!J23*表二!G23 -> 1768896 | V21: =表二!E36*表二!B36 -> 1023120
A22: 三宁 | B22: 1225 | C22: 1057 | D22: 1197 | E22: 740 | F22: 1 | G22: 1 | H22: 1197 | J22: 1050 | K22: 1050 | L22: 134 | N22: 138 | O22: 132 | R22: =表二!J17*表二!G17 -> 1948280
A23: 日月 | B23: 0 | C23: 0 | D23: 0 | E23: 1151 | F23: 0 | G23: 0 | H23: 0 | J23: 0 | K23: 0 | L23: 0 | N23: 0 | O23: 0
A24: 天溪 | B24: 0 | C24: 1580 | D24: 1550
A25: 双多 | R25: =表二!E28*表二!B28 -> 1810250
A26: 晋银 | B26: 1177 | C26: 1192 | D26: 1181 | E26: 1305 | F26: 1312 | G26: 1289 | H26: 1109 | J26: 1111 | K26: 1111 | L26: 138 | N26: 140 | O26: 147 | R26: =表二!E40*表二!B40 -> 1023750
A27: 金象 | B27: 1146 | C27: 1151 | D27: 1247 | E27: 1166 | F27: 1163 | G27: 1252 | H27: 962 | J27: 966 | K27: 997 | L27: 150 | N27: 150 | O27: 158 | R27: =表二!B41*表二!E41 -> 1059045
A28: 天源 | B28: 1114 | C28: 1111 | D28: 1117 | E28: 930 | F28: 913 | G28: 920 | H28: 904 | J28: 902 | K28: 925 | L28: 172 | N28: 173 | O28: 175
A29: 天庆 | B29: 1074 | C29: 1071 | D29: 0 | E29: 229 | F29: 237 | G29: 0 | H29: 818 | J29: 818 | K29: 0 | L29: 141 | N29: 141 | O29: 0
A30: 华昱 | B30: 1382 | C30: 1393 | D30: 1399 | E30: 223 | F30: 230 | G30: 245
A31: 平均 | B31: 1199 | C31: 1211 | D31: 1238 | E31: 863 | F31: 859 | G31: 926 | H31: 990 | J31: 1033 | K31: 1019 | L31: 146 | N31: 140 | O31: 142

Sheet 报事业部领导 (2) (hidden)
A1: 晋城煤业集团煤化工板块生产调度情况日报简表
A2: =表一!N2 -> 44300
A3: 填报单位：煤化工事业部 | I3: 单位：吨
C4: 总氨 | D4: 尿素 | E4: 甲醇 | F4: 精细化工 | G4: 复合肥料 | H4: 煤基合成油 | I4: 天溪甲醇
A5: 产量 | B5: 日序时计划 | C5: 42246 | D5: 37769 | E5: 10726 | F5: 4677 | G5: 10592
B6: 日实际完成 | C6: =表一!B5 -> 45947.02444 | D6: =表一!B25 -> 29786.814 | E6: =表一!J25 -> 10199.606 | F6: =表一!J45 -> 4819.48 | G6: =表一!B45 -> 8929.87 | H6: 0 | I6: =表一!J36 -> 1100
A7: 销量 | D7: =表二!B6 -> 30037.049 | E7: =表二!G6 -> 10257.99 | F7: =表二!I26 -> 4184.63 | G7: =表二!F26 -> 7521.87 | H7: =表二!G46 -> 0 | I7: =表二!G17 -> 919
A8: 煤炭消耗量 | F8: 煤炭库存
A9: 合计 | B9: 原料块煤 | C9: 原料末煤 | D9: 燃料末煤 | F9: 合计 | G9: 原料块煤 | H9: 原料末煤 | I9: 燃料末煤
A10: 71017 | B10: 34433 | C10: 22414 | D10: 14170 | F10: 1744013 | G10: 629039 | H10: 817625 | I10: 297349
B11: 自供煤 | D11: 外供煤 | G11: 自供煤 | H11: 外供煤
B12: =A10-D12 -> 56103.43 | D12: =A10*0.21 -> 14913.57 | G12: =F10-H12 -> 1515547.297 | H12: =F10*0.131 -> 228465.703
A13: 安全生产情况
A14: 值班人员 | B14: =数据填报!AG2 -> 尚志宏 闫军
A15: 集团公司调度指挥中心 电话：0356-3668525、0356-3668575、0356-3665075；传真：0356-3668527。
A16: 煤化工事业部调度 电话：0356-3668301；传真：0356-3668519；邮箱：mhgdiaodu@163.com。
